Workbook

Sheet Sample Report (hidden)
A2: Date
A3: Hen
A4: Program
A5: Start at 999999
A6: Sequence component 1 | B6: Time 1 | C6: Seqeunce Component 2 | D6: Time 2 | E6: Seqeunce Component 3 | F6: Time 3 | G6: Correct 0 = No 1=Yes | J6: Seqeunce | K6: Time
A7: 12 | B7: 7 | C7: 12 | D7: 42 | E7: 13 | F7: 18 | G7: if 77 new line, if 31 or 41 = yes new line on 77, | J7: =string of Seqeunce compponent 1, 2 & 3 | K7: =time 3
A8: This continues until ther is a 1 on its own to indicate start of summary data
J9: 10-19 =1
A10: Summary Data | J10: 20-29 =2
A11: Correct | B11: Incorrect | C11: Rft | D11: total | E11: Av Correct | F11: Av Incorrect | G11: Percent correct | H11: Time | J11: in this example the seqeunce would be 111
A12: 40 | B12: 33 | C12: 40 | D12: 73 | E12: 23.95 | F12: 15 | G12: 54 | H12: 806

Sheet Summary
A2: Day | B2: Date | C2: Average Response Rate | D2: Target % | E2: RF for non correct sequence | F2: U Value | K2: Block 1 | L2: Block 2 | M2: Block 3 | N2: Block 4 | O2: Block 5 | P2: Block 6
A3: 1 | B3: ='!LB11A04..Is'!B2:C2 -> <date> | C3: =('!LB11A04..Is'!H92/60)/'!LB11A04..Is'!Q3 -> 0 | D3: ='!LB11A04..Is'!N28/'!LB11A04..Is'!Q3 -> 0 | E3: =SUM('!LB11A04..Is'!L28:Q28)/'!LB11A04..Is'!Q3 -> 13.38372093 | F3: ='!LB11A04..Is'!Q24 -> 0.3422763618 | J3: Average Response Rate | K3: =AVERAGE(C3:C7) -> 1.801263595 | L3: =AVERAGE(C8:C12) -> 6.478721822 | M3: =AVERAGE(C13:C17) -> 3.886569347 | N3: =AVERAGE(C18:C22) -> 1.862554206 | O3: =AVERAGE(C23:C27) -> 2.3631039 | P3: =AVERAGE(C28:C32) -> 1.913649791
A4: 2 | B4: ='!LB12A04..Is'!B2:C2 -> <date> | C4: =('!LB12A04..Is'!H24/60)/'!LB12A04..Is'!Q3 -> 2.065740741 | D4: ='!LB12A04..Is'!N28/'!LB12A04..Is'!Q3 -> 0 | E4: =SUM('!LB12A04..Is'!L28:Q28)/'!LB12A04..Is'!Q3 -> 0.3333333333 | F4: ='!LB12A04..Is'!Q24 -> 0.4241932018 | J4: Target % | K4: =AVERAGE(D3:D7) -> 0.005394713181 | L4: =AVERAGE(D8:D12) -> 0.007590404583 | M4: =AVERAGE(D13:D17) -> 0.04991777326 | N4: =AVERAGE(D18:D22) -> 0.1533427304 | O4: =AVERAGE(D23:D27) -> 0.1372994825 | P4: =AVERAGE(D28:D32) -> 0.1203156808
A5: 3 | B5: ='!LB12A14..Is'!B2:C2 -> <date> | C5: =('!LB12A14..Is'!H89/60)/'!LB12A14..Is'!Q3 -> 3.981124498 | D5: ='!LB12A14..Is'!N28/'!LB12A14..Is'!Q3 -> 0.01204819277 | E5: =SUM('!LB12A14..Is'!L28:Q28)/'!LB12A14..Is'!Q3 -> 15.07228916 | F5: ='!LB12A14..Is'!Q24 -> 0.3955048729 | J5: CCRF | K5: =AVERAGE(E3:E7) -> 13.91057657 | L5: =AVERAGE(E8:E12) -> 15.44335342 | M5: =AVERAGE(E13:E17) -> 17.90698632 | N5: =AVERAGE(E18:E22) -> 11.38134273 | O5: =AVERAGE(E23:E27) -> 12.24803787 | P5: =AVERAGE(E28:E32) -> 13.3042833
A6: 4 | B6: ='!LB13A24..Is'!B2:C2 -> <date> | C6: =('!LB13A24..Is'!H140/60)/'!LB13A24..Is'!Q3 -> 2.959452736 | D6: ='!LB13A24..Is'!N28/'!LB13A24..Is'!Q3 -> 0.01492537313 | E6: =SUM('!LB13A24..Is'!L28:Q28)/'!LB13A24..Is'!Q3 -> 8.649253731 | F6: ='!LB13A24..Is'!Q24 -> 0.3439432462 | J6: U Value | K6: =AVERAGE(F3:F7) -> 0.3952535923 | L6: =AVERAGE(F8:F12) -> 0.473613426 | M6: =AVERAGE(F13:F17) -> 0.4070090418 | N6: =AVERAGE(F18:F22) -> 0.2834553016 | O6: =AVERAGE(F23:F27) -> 0.3207800172 | P6: =AVERAGE(F28:F32) -> 0.3292863639
A7: 5 | B7: ='!LB14B14..Is'!B2:C2 -> <date> | C7: =('!LB14B14..Is'!H41/60)/'!LB14B14..Is'!Q3 -> 0 | D7: ='!LB14B14..Is'!N28/'!LB14B14..Is'!Q3 -> 0 | E7: =SUM('!LB14B14..Is'!L28:Q28)/'!LB14B14..Is'!Q3 -> 32.11428571 | F7: ='!LB14B14..Is'!Q24 -> 0.470350279
A8: 6 | B8: ='!LB15A24..Is'!B2:C2 -> <date> | C8: =('!LB15A24..Is'!H27/60)/'!LB15A24..Is'!Q3 -> 13.70075758 | D8: ='!LB15A24..Is'!N28/'!LB15A24..Is'!Q3 -> 0 | E8: =SUM('!LB15A24..Is'!L28:Q28)/'!LB15A24..Is'!Q3 -> 0.4090909091 | F8: ='!LB15A24..Is'!Q24 -> 0.6203376353
A9: 7 | B9: ='!LB16A14..Is'!B2:C2 -> <date> | C9: =('!LB16A14..Is'!H82/60)/'!LB16A14..Is'!Q3 -> 0 | D9: ='!LB16A14..Is'!N28/'!LB16A14..Is'!Q3 -> 0 | E9: =SUM('!LB16A14..Is'!L28:Q28)/'!LB16A14..Is'!Q3 -> 14.96052632 | F9: ='!LB16A14..Is'!Q24 -> 0.3688558391 | G9: =K3 -> 1.801263595 | H9: =L3 -> 6.478721822 | I9: 3.886569347 | J9: 1.862554206 | K9: 2.3631039 | L9: 1.913649791 | M9: =K4 -> 0.005394713181 | N9: =L4 -> 0.007590404583 | O9: 0.04991777326 | P9: 0.1533427304 | Q9: 0.1372994825 | R9: 0.1203156808 | S9: =K6 -> 0.3952535923 | T9: =L6 -> 0.473613426 | U9: 0.4070090418 | V9: 0.2834553016 | W9: 0.3207800172 | X9: 0.3292863639
A10: 8 | B10: ='!LB17A04..Is'!B2:C2 -> <date> | C10: =('!LB17A04..Is'!H72/60)/'!LB17A04..Is'!Q3 -> 3.667412935 | D10: ='!LB17A04..Is'!N28/'!LB17A04..Is'!Q3 -> 0 | E10: =SUM('!LB17A04..Is'!L28:Q28)/'!LB17A04..Is'!Q3 -> 18.56716418 | F10: ='!LB17A04..Is'!Q24 -> 0.4162715509
A11: 9 | B11: ='!LB18A04..Is'!B2:C2 -> <date> | C11: =('!LB18A04..Is'!H55/60)/'!LB18A04..Is'!Q3 -> 8.133333333 | D11: ='!LB18A04..Is'!N28/'!LB18A04..Is'!Q3 -> 0.02040816327 | E11: =SUM('!LB18A04..Is'!L28:Q28)/'!LB18A04..Is'!Q3 -> 23.24489796 | F11: ='!LB18A04..Is'!Q24 -> 0.5492093973
A12: 10 | B12: ='!LB19C54..Is'!B2:C2 -> <date> | C12: =('!LB19C54..Is'!H63/60)/'!LB19C54..Is'!Q3 -> 6.892105263 | D12: ='!LB19C54..Is'!N28/'!LB19C54..Is'!Q3 -> 0.01754385965 | E12: =SUM('!LB19C54..Is'!L28:Q28)/'!LB19C54..Is'!Q3 -> 20.03508772 | F12: ='!LB19C54..Is'!Q24 -> 0.4133927073
A13: 11 | B13: ='!LB20A14..Is'!B2:C2 -> <date> | C13: =('!LB20A14..Is'!H145/60)/'!LB20A14..Is'!Q3 -> 2.838369305 | D13: ='!LB20A14..Is'!N28/'!LB20A14..Is'!Q3 -> 0.01438848921 | E13: =SUM('!LB20A14..Is'!L28:Q28)/'!LB20A14..Is'!Q3 -> 9.136690647 | F13: ='!LB20A14..Is'!Q24 -> 0.350637982
A14: 12 | B14: ='!LB21B04..Is'!B2:C2 -> <date> | C14: =('!LB21B04..Is'!H39/60)/'!LB21B04..Is'!Q3 -> 10.05098039 | D14: ='!LB21B04..Is'!N28/'!LB21B04..Is'!Q3 -> 0 | E14: =SUM('!LB21B04..Is'!L28:Q28)/'!LB21B04..Is'!Q3 -> 33.32352941 | F14: ='!LB21B04..Is'!Q24 -> 0.5808462138
A15: 13 | B15: ='!LB22A44..Is'!B2:C2 -> <date> | C15: =('!LB22A44..Is'!H99/60)/'!LB22A44..Is'!Q3 -> 4.296774194 | D15: ='!LB22A44..Is'!N28/'!LB22A44..Is'!Q3 -> 0.05376344086 | E15: =SUM('!LB22A44..Is'!L28:Q28)/'!LB22A44..Is'!Q3 -> 24.27956989 | F15: ='!LB22A44..Is'!Q24 -> 0.4337188311
A16: 14 | B16: ='!LB23A44..Is'!B2:C2 -> <date> | C16: =('!LB23A44..Is'!H184/60)/'!LB23A44..Is'!Q3 -> 2.246722846 | D16: ='!LB23A44..Is'!N28/'!LB23A44..Is'!Q3 -> 0.08988764045 | E16: =SUM('!LB23A44..Is'!L28:Q28)/'!LB23A44..Is'!Q3 -> 6.724719101 | F16: ='!LB23A44..Is'!Q24 -> 0.3152334965
A17: 15 | B17: ='!LB24A04..Is'!B2:C2 -> <date> | C17: =('!LB24A04..Is'!H148/60)/'!LB24A04..Is'!Q3 -> 0 | D17: ='!LB24A04..Is'!N28/'!LB24A04..Is'!Q3 -> 0.09154929577 | E17: =SUM('!LB24A04..Is'!L28:Q28)/'!LB24A04..Is'!Q3 -> 16.07042254 | F17: ='!LB24A04..Is'!Q24 -> 0.3546086855
A18: 16 | B18: ='!LB25954..Is'!B2:C2 -> <date> | C18: =('!LB25954..Is'!H176/60)/'!LB25954..Is'!Q3 -> 2.350882353 | D18: ='!LB25954..Is'!N28/'!LB25954..Is'!Q3 -> 0.1294117647 | E18: =SUM('!LB25954..Is'!L28:Q28)/'!LB25954..Is'!Q3 -> 7.647058824 | F18: ='!LB25954..Is'!Q24 -> 0.3141285642
A19: 17 | B19: ='!LB26944..Is'!B2:C2 -> <date> | C19: =('!LB26944..Is'!H184/60)/'!LB26944..Is'!Q3 -> 2.244382022 | D19: ='!LB26944..Is'!N28/'!LB26944..Is'!Q3 -> 0.1404494382 | E19: =SUM('!LB26944..Is'!L28:Q28)/'!LB26944..Is'!Q3 -> 12.8988764 | F19: ='!LB26944..Is'!Q24 -> 0.2604980459
A20: 18 | B20: ='!LB27A54..Is'!B2:C2 -> <date> | C20: =('!LB27A54..Is'!H173/60)/'!LB27A54..Is'!Q3 -> 0 | D20: ='!LB27A54..Is'!N28/'!LB27A54..Is'!Q3 -> 0.1556886228 | E20: =SUM('!LB27A54..Is'!L28:Q28)/'!LB27A54..Is'!Q3 -> 7.808383234 | F20: ='!LB27A54..Is'!Q24 -> 0.2642282456
A21: 19 | B21: ='!LB28B04..Is'!B2:C2 -> <date> | C21: =('!LB28B04..Is'!H162/60)/'!LB28B04..Is'!Q3 -> 2.326388889 | D21: ='!LB28B04..Is'!N28/'!LB28B04..Is'!Q3 -> 0.1794871795 | E21: =SUM('!LB28B04..Is'!L28:Q28)/'!LB28B04..Is'!Q3 -> 14.75 | F21: ='!LB28B04..Is'!Q24 -> 0.2814101049
A22: 20 | B22: ='!LB29954..Is'!B2:C2 -> <date> | C22: =('!LB29954..Is'!H173/60)/'!LB29954..Is'!Q3 -> 2.391117764 | D22: ='!LB29954..Is'!N28/'!LB29954..Is'!Q3 -> 0.1616766467 | E22: =SUM('!LB29954..Is'!L28:Q28)/'!LB29954..Is'!Q3 -> 13.80239521 | F22: ='!LB29954..Is'!Q24 -> 0.2970115474
A23: 21 | B23: ='!LB30954..Is'!B2:C2 -> <date> | C23: =('!LB30954..Is'!H181/60)/'!LB30954..Is'!Q3 -> 2.283428571 | D23: ='!LB30954..Is'!N28/'!LB30954..Is'!Q3 -> 0.16 | E23: =SUM('!LB30954..Is'!L28:Q28)/'!LB30954..Is'!Q3 -> 13.13142857 | F23: ='!LB30954..Is'!Q24 -> 0.3332053142
A24: 22 | B24: ='!LC01B14..Is'!B2:C2 -> <date> | C24: =('!LC01B14..Is'!H164/60)/'!LC01B14..Is'!Q3 -> 2.503039832 | D24: ='!LC01B14..Is'!N28/'!LC01B14..Is'!Q3 -> 0.1320754717 | E24: =SUM('!LC01B14..Is'!L28:Q28)/'!LC01B14..Is'!Q3 -> 8.088050314 | F24: ='!LC01B14..Is'!Q24 -> 0.3130998271
A25: 23 | B25: ='!LC02954..Is'!B2:C2 -> <date> | C25: =('!LC02954..Is'!H179/60)/'!LC02954..Is'!Q3 -> 2.302601156 | D25: ='!LC02954..Is'!N28/'!LC02954..Is'!Q3 -> 0.1213872832 | E25: =SUM('!LC02954..Is'!L28:Q28)/'!LC02954..Is'!Q3 -> 13.30057803 | F25: ='!LC02954..Is'!Q24 -> 0.3148617803
A26: 24 | B26: ='!LC03A34..Is'!B2:C2 -> <date> | C26: =('!LC03A34..Is'!H175/60)/'!LC03A34..Is'!Q3 -> 2.356410256 | D26: ='!LC03A34..Is'!N28/'!LC03A34..Is'!Q3 -> 0.1301775148 | E26: =SUM('!LC03A34..Is'!L28:Q28)/'!LC03A34..Is'!Q3 -> 13.01775148 | F26: ='!LC03A34..Is'!Q24 -> 0.3127445785
A27: 25 | B27: ='!LC04B04..Is'!B2:C2 -> <date> | C27: =('!LC04B04..Is'!H173/60)/'!LC04B04..Is'!Q3 -> 2.370039683 | D27: ='!LC04B04..Is'!N28/'!LC04B04..Is'!Q3 -> 0.1428571429 | E27: =SUM('!LC04B04..Is'!L28:Q28)/'!LC04B04..Is'!Q3 -> 13.70238095 | F27: ='!LC04B04..Is'!Q24 -> 0.3299885862
A28: 26 | B28: ='!LC05A34..Is'!B2:C2 -> <date> | C28: =('!LC05A34..Is'!H177/60)/'!LC05A34..Is'!Q3 -> 2.315697674 | D28: ='!LC05A34..Is'!N28/'!LC05A34..Is'!Q3 -> 0.1162790698 | E28: =SUM('!LC05A34..Is'!L28:Q28)/'!LC05A34..Is'!Q3 -> 12.78488372 | F28: ='!LC05A34..Is'!Q24 -> 0.3170026283
A29: 27 | B29: ='!LC07A04..Is'!B2:C2 -> <date> | C29: =('!LC07A04..Is'!H170/60)/'!LC07A04..Is'!Q3 -> 2.438109756 | D29: ='!LC07A04..Is'!N28/'!LC07A04..Is'!Q3 -> 0.1829268293 | E29: =SUM('!LC07A04..Is'!L28:Q28)/'!LC07A04..Is'!Q3 -> 14.06707317 | F29: ='!LC07A04..Is'!Q24 -> 0.2920739054
A30: 28 | B30: ='!LC08A54..Is'!B2:C2 -> <date> | C30: =('!LC08A54..Is'!H172/60)/'!LC08A54..Is'!Q3 -> 0 | D30: ='!LC08A54..Is'!N28/'!LC08A54..Is'!Q3 -> 0.1385542169 | E30: =SUM('!LC08A54..Is'!L28:Q28)/'!LC08A54..Is'!Q3 -> 13.25301205 | F30: ='!LC08A54..Is'!Q24 -> 0.361723338
A31: 29 | B31: ='!LC09A34..Is'!B2:C2 -> <date> | C31: =('!LC09A34..Is'!H169/60)/'!LC09A34..Is'!Q3 -> 2.448568507 | D31: ='!LC09A34..Is'!N28/'!LC09A34..Is'!Q3 -> 0.1042944785 | E31: =SUM('!LC09A34..Is'!L28:Q28)/'!LC09A34..Is'!Q3 -> 13.39263804 | F31: ='!LC09A34..Is'!Q24 -> 0.372687666
A32: 30 | B32: ='!LC11C04..Is'!B2:C2 -> <date> | C32: =('!LC11C04..Is'!H174/60)/'!LC11C04..Is'!Q3 -> 2.365873016 | D32: ='!LC11C04..Is'!N28/'!LC11C04..Is'!Q3 -> 0.05952380952 | E32: =SUM('!LC11C04..Is'!L28:Q28)/'!LC11C04..Is'!Q3 -> 13.02380952 | F32: ='!LC11C04..Is'!Q24 -> 0.3029442817

Sheet Start
F1: Use Folder 51 | H1: Auto Clean Up | J1: Correct sequence
F2: FALSE | H2: TRUE | J2: 2212
A4: Working with Folder | G4: Process All/Or Pick A number: ALL or an integer
A5: F:\Possum Chapter\Raw Data\Ishan\phase 3\ | G5: ALL
A6: Filenames:
A7: !LC04B04..Is | G7: Paint Cells
A8: !LC05A34..Is | G8: FALSE
A9: !LC02954..Is
A10: !LB11A04..Is
A11: !LB12A04..Is
A12: !LB12A14..Is
A13: !LB13A24..Is
A14: !LB14B14..Is
A15: !LB15A24..Is
A16: !LB16A14..Is
A17: !LB17A04..Is
A18: !LB18A04..Is
A19: !LB19C54..Is
A20: !LB20A14..Is
A21: !LB21B04..Is
A22: !LB22A44..Is
A23: !LB23A44..Is
A24: !LB24A04..Is
A25: !LB27A54..Is
A26: !LB28B04..Is
A27: !LB25954..Is
A28: !LB26944..Is
A29: !LB29954..Is
A30: !LB30954..Is
A31: !LC01B14..Is
A32: !LC03A34..Is
A33: !LC09A34..Is
A34: !LC11C04..Is
A35: !LC07A04..Is
A36: !LC08A54..Is

Sheet !LB11A04..Is
A1: Report for:!LB11A04..Is
A2: Date: | B2: <date>
A3: Hen: | B3: <hen> | F3: Correct Sequence | G3: =Start!J2 -> 2212 | P3: Total Sequences in Data | Q3: =4994-COUNTBLANK(L7:L5000) -> 86 | V3: Total Sequences in Block Data | W3: =COUNTA(L7:L20) -> 14 | AA3: Total Sequences in Block Data | AB3: =COUNTA(L21:L35) -> 15 | AF3: Total Sequences in Block Data | AG3: =COUNTA(L36:L49) -> 14 | AK3: Total Sequences in Block Data | AL3: =COUNTA(L50:L63) -> 14 | AP3: Total Sequences in Block Data | AQ3: =COUNTA(L64:L78) -> 15 | AU3: Total Sequences in Block Data | AV3: =COUNTA(L79:L92) -> 14
P4: Total Sequences in Summary | Q4: =SUM(O7:O22) -> 85 | V4: Total Sequences in Block Summary | W4: =SUM(U7:U22) -> 14 | AA4: Total Sequences in Block Summary | AB4: =SUM(Z7:Z22) -> 15 | AF4: Total Sequences in Block Summary | AG4: =SUM(AE7:AE22) -> 14 | AK4: Total Sequences in Block Summary | AL4: =SUM(AJ7:AJ22) -> 14 | AP4: Total Sequences in Block Summary | AQ4: =SUM(AO7:AO22) -> 15 | AU4: Total Sequences in Block Summary | AV4: =SUM(AT7:AT22) -> 13
T5: Block 1 | Y5: Block 2 | AD5: Block 3 | AI5: Block 4 | AN5: Block 5 | AS5: Block 6
A6: Sequence Component 1 | B6: Time 1 | C6: Sequence Component 2 | D6: Time 2 | E6: Sequence Component 3 | F6: Time 3 | G6: Sequence Component 4 | H6: Time 4 | I6: Sequence Component 5 | J6: Time 5 | K6: Correct? 0=No 1=Yes | L6: Sequence | N6: Frequency | P6: Relative Frequency | Q6: Variability | T6: Frequency | V6: Relative Frequency | W6: Variability | Y6: Frequency | AA6: Relative Frequency | AB6: Variability | AD6: Frequency | AF6: Relative Frequency | AG6: Variability | AI6: Frequency | AK6: Relative Frequency | AL6: Variability | AN6: Frequency | AP6: Relative Frequency | AQ6: Variability | AS6: Frequency | AU6: Relative Frequency | AV6: Variability
A7: 21 | B7: 119 | C7: 12 | D7: 134 | E7: 24 | F7: 144 | G7: 23 | H7: 148 | K7: 0 | L7: 2122 | N7: 1111 | O7: =COUNTIF($L$7:$L$500,N7) -> 4 | P7: =O7/$Q$4 -> 0.04705882353 | Q7: =IF(P7=0,0,(P7*((LOG(P7))/LOG(2)))) -> -0.2075007499 | T7: =N7 -> 1111 | U7: =COUNTIF(L7:L20,T7) -> 0 | V7: =U7/(W4-U20) -> 0 | W7: =IF(V7=0,0,(V7*((LOG(V7))/LOG(2)))) -> 0 | Y7: =N7 -> 1111 | Z7: =COUNTIF(L21:L35,Y7) -> 0 | AA7: =Z7/(AB4-Z20) -> 0 | AB7: =IF(AA7=0,0,(AA7*((LOG(AA7))/LOG(2)))) -> 0 | AD7: =N7 -> 1111 | AE7: =COUNTIF(L36:L49,AD7) -> 1 | AF7: =AE7/(AG4-AE20) -> 0.07142857143 | AG7: =IF(AF7=0,0,(AF7*((LOG(AF7))/LOG(2)))) -> -0.271953923 | AI7: =N7 -> 1111 | AJ7: =COUNTIF(L50:L63,AI7) -> 0 | AK7: =AJ7/(AL4-AJ20) -> 0 | AL7: =IF(AK7=0,0,(AK7*((LOG(AK7))/LOG(2)))) -> 0 | AN7: =N7 -> 1111 | AO7: =COUNTIF(L64:L78,AN7) -> 3 | AP7: =AO7/(AQ4-AO20) -> 0.2 | AQ7: =IF(AP7=0,0,(AP7*((LOG(AP7))/LOG(2)))) -> -0.464385619 | AS7: =N7 -> 1111 | AT7: =COUNTIF(L79:L92,AS7) -> 0 | AU7: =AT7/(AV4-AT20) -> 0 | AV7: =IF(AU7=0,0,(AU7*((LOG(AU7))/LOG(2)))) -> 0
A8: 12 | B8: 245 | C8: 23 | D8: 254 | E8: 24 | F8: 260 | G8: 23 | H8: 267 | K8: 0 | L8: 1222 | N8: 1112 | O8: =COUNTIF($L$7:$L$500,N8) -> 21 | P8: =O8/$Q$4 -> 0.2470588235 | Q8: =IF(P8=0,0,(P8*((LOG(P8))/LOG(2)))) -> -0.4983358092 | T8: =N8 -> 1112 | U8: =COUNTIF(L7:L20,T8) -> 3 | V8: =U8/(W4-U20) -> 0.2142857143 | W8: =IF(V8=0,0,(V8*((LOG(V8))/LOG(2)))) -> -0.4762269474 | Y8: =N8 -> 1112 | Z8: =COUNTIF(L21:L35,Y8) -> 3 | AA8: =Z8/(AB4-Z20) -> 0.2 | AB8: =IF(AA8=0,0,(AA8*((LOG(AA8))/LOG(2)))) -> -0.464385619 | AD8: =N8 -> 1112 | AE8: =COUNTIF(L36:L49,AD8) -> 8 | AF8: =AE8/(AG4-AE20) -> 0.5714285714 | AG8: =IF(AF8=0,0,(AF8*((LOG(AF8))/LOG(2)))) -> -0.4613456697 | AI8: =N8 -> 1112 | AJ8: =COUNTIF(L50:L63,AI8) -> 1 | AK8: =AJ8/(AL4-AJ20) -> 0.07142857143 | AL8: =IF(AK8=0,0,(AK8*((LOG(AK8))/LOG(2)))) -> -0.271953923 | AN8: =N8 -> 1112 | AO8: =COUNTIF(L64:L78,AN8) -> 5 | AP8: =AO8/(AQ4-AO20) -> 0.3333333333 | AQ8: =IF(AP8=0,0,(AP8*((LOG(AP8))/LOG(2)))) -> -0.5283208336 | AS8: =N8 -> 1112 | AT8: =COUNTIF(L79:L92,AS8) -> 1 | AU8: =AT8/(AV4-AT20) -> 0.07692307692 | AV8: =IF(AU8=0,0,(AU8*((LOG(AU8))/LOG(2)))) -> -0.2846492091
A9: 12 | B9: 362 | C9: 23 | D9: 371 | E9: 24 | F9: 390 | G9: 14 | H9: 410 | K9: 0 | L9: 1221 | N9: 1121 | O9: =COUNTIF($L$7:$L$500,N9) -> 0 | P9: =O9/$Q$4 -> 0 | Q9: =IF(P9=0,0,(P9*((LOG(P9))/LOG(2)))) -> 0 | T9: =N9 -> 1121 | U9: =COUNTIF(L7:L20,T9) -> 0 | V9: =U9/(W4-U20) -> 0 | W9: =IF(V9=0,0,(V9*((LOG(V9))/LOG(2)))) -> 0 | Y9: =N9 -> 1121 | Z9: =COUNTIF(L21:L35,Y9) -> 0 | AA9: =Z9/(AB4-Z20) -> 0 | AB9: =IF(AA9=0,0,(AA9*((LOG(AA9))/LOG(2)))) -> 0 | AD9: =N9 -> 1121 | AE9: =COUNTIF(L36:L49,AD9) -> 0 | AF9: =AE9/(AG4-AE20) -> 0 | AG9: =IF(AF9=0,0,(AF9*((LOG(AF9))/LOG(2)))) -> 0 | AI9: =N9 -> 1121 | AJ9: =COUNTIF(L50:L63,AI9) -> 0 | AK9: =AJ9/(AL4-AJ20) -> 0 | AL9: =IF(AK9=0,0,(AK9*((LOG(AK9))/LOG(2)))) -> 0 | AN9: =N9 -> 1121 | AO9: =COUNTIF(L64:L78,AN9) -> 0 | AP9: =AO9/(AQ4-AO20) -> 0 | AQ9: =IF(AP9=0,0,(AP9*((LOG(AP9))/LOG(2)))) -> 0 | AS9: =N9 -> 1121 | AT9: =COUNTIF(L79:L92,AS9) -> 0 | AU9: =AT9/(AV4-AT20) -> 0 | AV9: =IF(AU9=0,0,(AU9*((LOG(AU9))/LOG(2)))) -> 0
A10: 12 | B10: 505 | C10: 23 | D10: 512 | E10: 24 | F10: 516 | G10: 23 | H10: 525 | K10: 0 | L10: 1222 | N10: 1122 | O10: =COUNTIF($L$7:$L$500,N10) -> 27 | P10: =O10/$Q$4 -> 0.3176470588 | Q10: =IF(P10=0,0,(P10*((LOG(P10))/LOG(2)))) -> -0.5255481496 | T10: =N10 -> 1122 | U10: =COUNTIF(L7:L20,T10) -> 3 | V10: =U10/(W4-U20) -> 0.2142857143 | W10: =IF(V10=0,0,(V10*((LOG(V10))/LOG(2)))) -> -0.4762269474 | Y10: =N10 -> 1122 | Z10: =COUNTIF(L21:L35,Y10) -> 10 | AA10: =Z10/(AB4-Z20) -> 0.6666666667 | AB10: =IF(AA10=0,0,(AA10*((LOG(AA10))/LOG(2)))) -> -0.3899750005 | AD10: =N10 -> 1122 | AE10: =COUNTIF(L36:L49,AD10) -> 2 | AF10: =AE10/(AG4-AE20) -> 0.1428571429 | AG10: =IF(AF10=0,0,(AF10*((LOG(AF10))/LOG(2)))) -> -0.4010507032 | AI10: =N10 -> 1122 | AJ10: =COUNTIF(L50:L63,AI10) -> 8 | AK10: =AJ10/(AL4-AJ20) -> 0.5714285714 | AL10: =IF(AK10=0,0,(AK10*((LOG(AK10))/LOG(2)))) -> -0.4613456697 | AN10: =N10 -> 1122 | AO10: =COUNTIF(L64:L78,AN10) -> 2 | AP10: =AO10/(AQ4-AO20) -> 0.1333333333 | AQ10: =IF(AP10=0,0,(AP10*((LOG(AP10))/LOG(2)))) -> -0.3875854127 | AS10: =N10 -> 1122 | AT10: =COUNTIF(L79:L92,AS10) -> 2 | AU10: =AT10/(AV4-AT20) -> 0.1538461538 | AV10: =IF(AU10=0,0,(AU10*((LOG(AU10))/LOG(2)))) -> -0.4154522643
A11: 12 | B11: 623 | C11: 23 | D11: 636 | E11: 24 | F11: 640 | G11: 23 | H11: 646 | K11: 0 | L11: 1222 | N11: 1211 | O11: =COUNTIF($L$7:$L$500,N11) -> 0 | P11: =O11/$Q$4 -> 0 | Q11: =IF(P11=0,0,(P11*((LOG(P11))/LOG(2)))) -> 0 | T11: =N11 -> 1211 | U11: =COUNTIF(L7:L20,T11) -> 0 | V11: =U11/(W4-U20) -> 0 | W11: =IF(V11=0,0,(V11*((LOG(V11))/LOG(2)))) -> 0 | Y11: =N11 -> 1211 | Z11: =COUNTIF(L21:L35,Y11) -> 0 | AA11: =Z11/(AB4-Z20) -> 0 | AB11: =IF(AA11=0,0,(AA11*((LOG(AA11))/LOG(2)))) -> 0 | AD11: =N11 -> 1211 | AE11: =COUNTIF(L36:L49,AD11) -> 0 | AF11: =AE11/(AG4-AE20) -> 0 | AG11: =IF(AF11=0,0,(AF11*((LOG(AF11))/LOG(2)))) -> 0 | AI11: =N11 -> 1211 | AJ11: =COUNTIF(L50:L63,AI11) -> 0 | AK11: =AJ11/(AL4-AJ20) -> 0 | AL11: =IF(AK11=0,0,(AK11*((LOG(AK11))/LOG(2)))) -> 0 | AN11: =N11 -> 1211 | AO11: =COUNTIF(L64:L78,AN11) -> 0 | AP11: =AO11/(AQ4-AO20) -> 0 | AQ11: =IF(AP11=0,0,(AP11*((LOG(AP11))/LOG(2)))) -> 0 | AS11: =N11 -> 1211 | AT11: =COUNTIF(L79:L92,AS11) -> 0 | AU11: =AT11/(AV4-AT20) -> 0 | AV11: =IF(AU11=0,0,(AU11*((LOG(AU11))/LOG(2)))) -> 0
A12: 12 | B12: 742 | C12: 14 | D12: 746 | E12: 24 | F12: 755 | G12: 23 | H12: 779 | K12: 0 | L12: 1122 | N12: 1212 | O12: =COUNTIF($L$7:$L$500,N12) -> 0 | P12: =O12/$Q$4 -> 0 | Q12: =IF(P12=0,0,(P12*((LOG(P12))/LOG(2)))) -> 0 | T12: =N12 -> 1212 | U12: =COUNTIF(L7:L20,T12) -> 0 | V12: =U12/(W4-U20) -> 0 | W12: =IF(V12=0,0,(V12*((LOG(V12))/LOG(2)))) -> 0 | Y12: =N12 -> 1212 | Z12: =COUNTIF(L21:L35,Y12) -> 0 | AA12: =Z12/(AB4-Z20) -> 0 | AB12: =IF(AA12=0,0,(AA12*((LOG(AA12))/LOG(2)))) -> 0 | AD12: =N12 -> 1212 | AE12: =COUNTIF(L36:L49,AD12) -> 0 | AF12: =AE12/(AG4-AE20) -> 0 | AG12: =IF(AF12=0,0,(AF12*((LOG(AF12))/LOG(2)))) -> 0 | AI12: =N12 -> 1212 | AJ12: =COUNTIF(L50:L63,AI12) -> 0 | AK12: =AJ12/(AL4-AJ20) -> 0 | AL12: =IF(AK12=0,0,(AK12*((LOG(AK12))/LOG(2)))) -> 0 | AN12: =N12 -> 1212 | AO12: =COUNTIF(L64:L78,AN12) -> 0 | AP12: =AO12/(AQ4-AO20) -> 0 | AQ12: =IF(AP12=0,0,(AP12*((LOG(AP12))/LOG(2)))) -> 0 | AS12: =N12 -> 1212 | AT12: =COUNTIF(L79:L92,AS12) -> 0 | AU12: =AT12/(AV4-AT20) -> 0 | AV12: =IF(AU12=0,0,(AU12*((LOG(AU12))/LOG(2)))) -> 0
A13: 12 | B13: 874 | C13: 14 | D13: 878 | E13: 24 | F13: 887 | G13: 23 | H13: 891 | K13: 0 | L13: 1122 | N13: 1221 | O13: =COUNTIF($L$7:$L$500,N13) -> 1 | P13: =O13/$Q$4 -> 0.01176470588 | Q13: =IF(P13=0,0,(P13*((LOG(P13))/LOG(2)))) -> -0.07540459925 | T13: =N13 -> 1221 | U13: =COUNTIF(L7:L20,T13) -> 1 | V13: =U13/(W4-U20) -> 0.07142857143 | W13: =IF(V13=0,0,(V13*((LOG(V13))/LOG(2)))) -> -0.271953923 | Y13: =N13 -> 1221 | Z13: =COUNTIF(L21:L35,Y13) -> 0 | AA13: =Z13/(AB4-Z20) -> 0 | AB13: =IF(AA13=0,0,(AA13*((LOG(AA13))/LOG(2)))) -> 0 | AD13: =N13 -> 1221 | AE13: =COUNTIF(L36:L49,AD13) -> 0 | AF13: =AE13/(AG4-AE20) -> 0 | AG13: =IF(AF13=0,0,(AF13*((LOG(AF13))/LOG(2)))) -> 0 | AI13: =N13 -> 1221 | AJ13: =COUNTIF(L50:L63,AI13) -> 0 | AK13: =AJ13/(AL4-AJ20) -> 0 | AL13: =IF(AK13=0,0,(AK13*((LOG(AK13))/LOG(2)))) -> 0 | AN13: =N13 -> 1221 | AO13: =COUNTIF(L64:L78,AN13) -> 0 | AP13: =AO13/(AQ4-AO20) -> 0 | AQ13: =IF(AP13=0,0,(AP13*((LOG(AP13))/LOG(2)))) -> 0 | AS13: =N13 -> 1221 | AT13: =COUNTIF(L79:L92,AS13) -> 0 | AU13: =AT13/(AV4-AT20) -> 0 | AV13: =IF(AU13=0,0,(AU13*((LOG(AU13))/LOG(2)))) -> 0
A14: 12 | B14: 987 | C14: 23 | D14: 999 | E14: 24 | F14: 1003 | G14: 23 | H14: 1006 | K14: 0 | L14: 1222 | N14: 1222 | O14: =COUNTIF($L$7:$L$500,N14) -> 25 | P14: =O14/$Q$4 -> 0.2941176471 | Q14: =IF(P14=0,0,(P14*((LOG(P14))/LOG(2)))) -> -0.5192749254 | T14: =N14 -> 1222 | U14: =COUNTIF(L7:L20,T14) -> 6 | V14: =U14/(W4-U20) -> 0.4285714286 | W14: =IF(V14=0,0,(V14*((LOG(V14))/LOG(2)))) -> -0.5238824663 | Y14: =N14 -> 1222 | Z14: =COUNTIF(L21:L35,Y14) -> 1 | AA14: =Z14/(AB4-Z20) -> 0.06666666667 | AB14: =IF(AA14=0,0,(AA14*((LOG(AA14))/LOG(2)))) -> -0.260459373 | AD14: =N14 -> 1222 | AE14: =COUNTIF(L36:L49,AD14) -> 3 | AF14: =AE14/(AG4-AE20) -> 0.2142857143 | AG14: =IF(AF14=0,0,(AF14*((LOG(AF14))/LOG(2)))) -> -0.4762269474 | AI14: =N14 -> 1222 | AJ14: =COUNTIF(L50:L63,AI14) -> 5 | AK14: =AJ14/(AL4-AJ20) -> 0.3571428571 | AL14: =IF(AK14=0,0,(AK14*((LOG(AK14))/LOG(2)))) -> -0.5305095811 | AN14: =N14 -> 1222 | AO14: =COUNTIF(L64:L78,AN14) -> 3 | AP14: =AO14/(AQ4-AO20) -> 0.2 | AQ14: =IF(AP14=0,0,(AP14*((LOG(AP14))/LOG(2)))) -> -0.464385619 | AS14: =N14 -> 1222 | AT14: =COUNTIF(L79:L92,AS14) -> 7 | AU14: =AT14/(AV4-AT20) -> 0.5384615385 | AV14: =IF(AU14=0,0,(AU14*((LOG(AU14))/LOG(2)))) -> -0.4808918133
A15: 12 | B15: 1103 | C15: 23 | D15: 1114 | E15: 24 | F15: 1117 | G15: 23 | H15: 1121 | K15: 0 | L15: 1222 | N15: 2111 | O15: =COUNTIF($L$7:$L$500,N15) -> 0 | P15: =O15/$Q$4 -> 0 | Q15: =IF(P15=0,0,(P15*((LOG(P15))/LOG(2)))) -> 0 | T15: =N15 -> 2111 | U15: =COUNTIF(L7:L20,T15) -> 0 | V15: =U15/(W4-U20) -> 0 | W15: =IF(V15=0,0,(V15*((LOG(V15))/LOG(2)))) -> 0 | Y15: =N15 -> 2111 | Z15: =COUNTIF(L21:L35,Y15) -> 0 | AA15: =Z15/(AB4-Z20) -> 0 | AB15: =IF(AA15=0,0,(AA15*((LOG(AA15))/LOG(2)))) -> 0 | AD15: =N15 -> 2111 | AE15: =COUNTIF(L36:L49,AD15) -> 0 | AF15: =AE15/(AG4-AE20) -> 0 | AG15: =IF(AF15=0,0,(AF15*((LOG(AF15))/LOG(2)))) -> 0 | AI15: =N15 -> 2111 | AJ15: =COUNTIF(L50:L63,AI15) -> 0 | AK15: =AJ15/(AL4-AJ20) -> 0 | AL15: =IF(AK15=0,0,(AK15*((LOG(AK15))/LOG(2)))) -> 0 | AN15: =N15 -> 2111 | AO15: =COUNTIF(L64:L78,AN15) -> 0 | AP15: =AO15/(AQ4-AO20) -> 0 | AQ15: =IF(AP15=0,0,(AP15*((LOG(AP15))/LOG(2)))) -> 0 | AS15: =N15 -> 2111 | AT15: =COUNTIF(L79:L92,AS15) -> 0 | AU15: =AT15/(AV4-AT20) -> 0 | AV15: =IF(AU15=0,0,(AU15*((LOG(AU15))/LOG(2)))) -> 0
A16: 12 | B16: 1218 | C16: 14 | D16: 1220 | E16: 13 | F16: 1230 | G16: 23 | H16: 1238 | K16: 0 | L16: 1112 | N16: 2112 | O16: =COUNTIF($L$7:$L$500,N16) -> 0 | P16: =O16/$Q$4 -> 0 | Q16: =IF(P16=0,0,(P16*((LOG(P16))/LOG(2)))) -> 0 | T16: =N16 -> 2112 | U16: =COUNTIF(L7:L20,T16) -> 0 | V16: =U16/(W4-U20) -> 0 | W16: =IF(V16=0,0,(V16*((LOG(V16))/LOG(2)))) -> 0 | Y16: =N16 -> 2112 | Z16: =COUNTIF(L21:L35,Y16) -> 0 | AA16: =Z16/(AB4-Z20) -> 0 | AB16: =IF(AA16=0,0,(AA16*((LOG(AA16))/LOG(2)))) -> 0 | AD16: =N16 -> 2112 | AE16: =COUNTIF(L36:L49,AD16) -> 0 | AF16: =AE16/(AG4-AE20) -> 0 | AG16: =IF(AF16=0,0,(AF16*((LOG(AF16))/LOG(2)))) -> 0 | AI16: =N16 -> 2112 | AJ16: =COUNTIF(L50:L63,AI16) -> 0 | AK16: =AJ16/(AL4-AJ20) -> 0 | AL16: =IF(AK16=0,0,(AK16*((LOG(AK16))/LOG(2)))) -> 0 | AN16: =N16 -> 2112 | AO16: =COUNTIF(L64:L78,AN16) -> 0 | AP16: =AO16/(AQ4-AO20) -> 0 | AQ16: =IF(AP16=0,0,(AP16*((LOG(AP16))/LOG(2)))) -> 0 | AS16: =N16 -> 2112 | AT16: =COUNTIF(L79:L92,AS16) -> 0 | AU16: =AT16/(AV4-AT20) -> 0 | AV16: =IF(AU16=0,0,(AU16*((LOG(AU16))/LOG(2)))) -> 0
A17: 12 | B17: 1347 | C17: 23 | D17: 1363 | E17: 24 | F17: 1369 | G17: 23 | H17: 1376 | K17: 0 | L17: 1222 | N17: 2121 | O17: =COUNTIF($L$7:$L$500,N17) -> 0 | P17: =O17/$Q$4 -> 0 | Q17: =IF(P17=0,0,(P17*((LOG(P17))/LOG(2)))) -> 0 | T17: =N17 -> 2121 | U17: =COUNTIF(L7:L20,T17) -> 0 | V17: =U17/(W4-U20) -> 0 | W17: =IF(V17=0,0,(V17*((LOG(V17))/LOG(2)))) -> 0 | Y17: =N17 -> 2121 | Z17: =COUNTIF(L21:L35,Y17) -> 0 | AA17: =Z17/(AB4-Z20) -> 0 | AB17: =IF(AA17=0,0,(AA17*((LOG(AA17))/LOG(2)))) -> 0 | AD17: =N17 -> 2121 | AE17: =COUNTIF(L36:L49,AD17) -> 0 | AF17: =AE17/(AG4-AE20) -> 0 | AG17: =IF(AF17=0,0,(AF17*((LOG(AF17))/LOG(2)))) -> 0 | AI17: =N17 -> 2121 | AJ17: =COUNTIF(L50:L63,AI17) -> 0 | AK17: =AJ17/(AL4-AJ20) -> 0 | AL17: =IF(AK17=0,0,(AK17*((LOG(AK17))/LOG(2)))) -> 0 | AN17: =N17 -> 2121 | AO17: =COUNTIF(L64:L78,AN17) -> 0 | AP17: =AO17/(AQ4-AO20) -> 0 | AQ17: =IF(AP17=0,0,(AP17*((LOG(AP17))/LOG(2)))) -> 0 | AS17: =N17 -> 2121 | AT17: =COUNTIF(L79:L92,AS17) -> 0 | AU17: =AT17/(AV4-AT20) -> 0 | AV17: =IF(AU17=0,0,(AU17*((LOG(AU17))/LOG(2)))) -> 0
A18: 12 | B18: 1474 | C18: 14 | D18: 1480 | E18: 24 | F18: 1491 | G18: 23 | H18: 1499 | K18: 0 | L18: 1122 | N18: 2122 | O18: =COUNTIF($L$7:$L$500,N18) -> 2 | P18: =O18/$Q$4 -> 0.02352941176 | Q18: =IF(P18=0,0,(P18*((LOG(P18))/LOG(2)))) -> -0.1272797867 | T18: =N18 -> 2122 | U18: =COUNTIF(L7:L20,T18) -> 1 | V18: =U18/(W4-U20) -> 0.07142857143 | W18: =IF(V18=0,0,(V18*((LOG(V18))/LOG(2)))) -> -0.271953923 | Y18: =N18 -> 2122 | Z18: =COUNTIF(L21:L35,Y18) -> 0 | AA18: =Z18/(AB4-Z20) -> 0 | AB18: =IF(AA18=0,0,(AA18*((LOG(AA18))/LOG(2)))) -> 0 | AD18: =N18 -> 2122 | AE18: =COUNTIF(L36:L49,AD18) -> 0 | AF18: =AE18/(AG4-AE20) -> 0 | AG18: =IF(AF18=0,0,(AF18*((LOG(AF18))/LOG(2)))) -> 0 | AI18: =N18 -> 2122 | AJ18: =COUNTIF(L50:L63,AI18) -> 0 | AK18: =AJ18/(AL4-AJ20) -> 0 | AL18: =IF(AK18=0,0,(AK18*((LOG(AK18))/LOG(2)))) -> 0 | AN18: =N18 -> 2122 | AO18: =COUNTIF(L64:L78,AN18) -> 0 | AP18: =AO18/(AQ4-AO20) -> 0 | AQ18: =IF(AP18=0,0,(AP18*((LOG(AP18))/LOG(2)))) -> 0 | AS18: =N18 -> 2122 | AT18: =COUNTIF(L79:L92,AS18) -> 1 | AU18: =AT18/(AV4-AT20) -> 0.07692307692 | AV18: =IF(AU18=0,0,(AU18*((LOG(AU18))/LOG(2)))) -> -0.2846492091
A19: 12 | B19: 1594 | C19: 14 | D19: 1597 | E19: 13 | F19: 1605 | G19: 23 | H19: 1613 | K19: 0 | L19: 1112 | N19: 2211 | O19: =COUNTIF($L$7:$L$500,N19) -> 0 | P19: =O19/$Q$4 -> 0 | Q19: =IF(P19=0,0,(P19*((LOG(P19))/LOG(2)))) -> 0 | T19: =N19 -> 2211 | U19: =COUNTIF(L7:L20,T19) -> 0 | V19: =U19/(W4-U20) -> 0 | W19: =IF(V19=0,0,(V19*((LOG(V19))/LOG(2)))) -> 0 | Y19: =N19 -> 2211 | Z19: =COUNTIF(L21:L35,Y19) -> 0 | AA19: =Z19/(AB4-Z20) -> 0 | AB19: =IF(AA19=0,0,(AA19*((LOG(AA19))/LOG(2)))) -> 0 | AD19: =N19 -> 2211 | AE19: =COUNTIF(L36:L49,AD19) -> 0 | AF19: =AE19/(AG4-AE20) -> 0 | AG19: =IF(AF19=0,0,(AF19*((LOG(AF19))/LOG(2)))) -> 0 | AI19: =N19 -> 2211 | AJ19: =COUNTIF(L50:L63,AI19) -> 0 | AK19: =AJ19/(AL4-AJ20) -> 0 | AL19: =IF(AK19=0,0,(AK19*((LOG(AK19))/LOG(2)))) -> 0 | AN19: =N19 -> 2211 | AO19: =COUNTIF(L64:L78,AN19) -> 0 | AP19: =AO19/(AQ4-AO20) -> 0 | AQ19: =IF(AP19=0,0,(AP19*((LOG(AP19))/LOG(2)))) -> 0 | AS19: =N19 -> 2211 | AT19: =COUNTIF(L79:L92,AS19) -> 0 | AU19: =AT19/(AV4-AT20) -> 0 | AV19: =IF(AU19=0,0,(AU19*((LOG(AU19))/LOG(2)))) -> 0
A20: 12 | B20: 1708 | C20: 14 | D20: 1711 | E20: 13 | F20: 1718 | G20: 23 | H20: 1726 | K20: 0 | L20: 1112 | N20: 2212 | O20: =COUNTIF($L$7:$L$500,N20) -> 0 | P20: =O20/$Q$4 -> 0 | Q20: =IF(P20=0,0,(P20*((LOG(P20))/LOG(2)))) -> 0 | T20: =N20 -> 2212 | U20: =COUNTIF(L7:L20,T20) -> 0 | Y20: =N20 -> 2212 | Z20: =COUNTIF(L21:L35,Y20) -> 0 | AD20: =N20 -> 2212 | AE20: =COUNTIF(L36:L49,AD20) -> 0 | AI20: =N20 -> 2212 | AJ20: =COUNTIF(L50:L63,AI20) -> 0 | AN20: =N20 -> 2212 | AO20: =COUNTIF(L64:L78,AN20) -> 0 | AS20: =N20 -> 2212 | AT20: =COUNTIF(L79:L92,AS20) -> 0
A21: 12 | B21: 1821 | C21: 14 | D21: 1825 | E21: 24 | F21: 1838 | G21: 23 | H21: 1867 | K21: 0 | L21: 1122 | N21: 2221 | O21: =COUNTIF($L$7:$L$500,N21) -> 0 | P21: =O21/$Q$4 -> 0 | Q21: =IF(P21=0,0,(P21*((LOG(P21))/LOG(2)))) -> 0 | T21: =N21 -> 2221 | U21: =COUNTIF(L7:L20,T21) -> 0 | V21: =U21/(W4-U20) -> 0 | W21: =IF(V21=0,0,(V21*((LOG(V21))/LOG(2)))) -> 0 | Y21: =N21 -> 2221 | Z21: =COUNTIF(L21:L35,Y21) -> 0 | AA21: =Z21/(AB4-Z20) -> 0 | AB21: =IF(AA21=0,0,(AA21*((LOG(AA21))/LOG(2)))) -> 0 | AD21: =N21 -> 2221 | AE21: =COUNTIF(L36:L49,AD21) -> 0 | AF21: =AE21/(AG4-AE20) -> 0 | AG21: =IF(AF21=0,0,(AF21*((LOG(AF21))/LOG(2)))) -> 0 | AI21: =N21 -> 2221 | AJ21: =COUNTIF(L50:L63,AI21) -> 0 | AK21: =AJ21/(AL4-AJ20) -> 0 | AL21: =IF(AK21=0,0,(AK21*((LOG(AK21))/LOG(2)))) -> 0 | AN21: =N21 -> 2221 | AO21: =COUNTIF(L64:L78,AN21) -> 0 | AP21: =AO21/(AQ4-AO20) -> 0 | AQ21: =IF(AP21=0,0,(AP21*((LOG(AP21))/LOG(2)))) -> 0 | AS21: =N21 -> 2221 | AT21: =COUNTIF(L79:L92,AS21) -> 0 | AU21: =AT21/(AV4-AT20) -> 0 | AV21: =IF(AU21=0,0,(AU21*((LOG(AU21))/LOG(2)))) -> 0
A22: 12 | B22: 1965 | C22: 14 | D22: 1973 | E22: 24 | F22: 1980 | G22: 23 | H22: 1986 | K22: 0 | L22: 1122 | N22: 2222 | O22: =COUNTIF($L$7:$L$500,N22) -> 5 | P22: =O22/$Q$4 -> 0.05882352941 | Q22: =IF(P22=0,0,(P22*((LOG(P22))/LOG(2)))) -> -0.2404389907 | T22: =N22 -> 2222 | U22: =COUNTIF(L7:L20,T22) -> 0 | V22: =U22/(W4-U20) -> 0 | W22: =IF(V22=0,0,(V22*((LOG(V22))/LOG(2)))) -> 0 | Y22: =N22 -> 2222 | Z22: =COUNTIF(L21:L35,Y22) -> 1 | AA22: =Z22/(AB4-Z20) -> 0.06666666667 | AB22: =IF(AA22=0,0,(AA22*((LOG(AA22))/LOG(2)))) -> -0.260459373 | AD22: =N22 -> 2222 | AE22: =COUNTIF(L36:L49,AD22) -> 0 | AF22: =AE22/(AG4-AE20) -> 0 | AG22: =IF(AF22=0,0,(AF22*((LOG(AF22))/LOG(2)))) -> 0 | AI22: =N22 -> 2222 | AJ22: =COUNTIF(L50:L63,AI22) -> 0 | AK22: =AJ22/(AL4-AJ20) -> 0 | AL22: =IF(AK22=0,0,(AK22*((LOG(AK22))/LOG(2)))) -> 0 | AN22: =N22 -> 2222 | AO22: =COUNTIF(L64:L78,AN22) -> 2 | AP22: =AO22/(AQ4-AO20) -> 0.1333333333 | AQ22: =IF(AP22=0,0,(AP22*((LOG(AP22))/LOG(2)))) -> -0.3875854127 | AS22: =N22 -> 2222 | AT22: =COUNTIF(L79:L92,AS22) -> 2 | AU22: =AT22/(AV4-AT20) -> 0.1538461538 | AV22: =IF(AU22=0,0,(AU22*((LOG(AU22))/LOG(2)))) -> -0.4154522643
A23: 12 | B23: 2088 | C23: 23 | D23: 2099 | E23: 24 | F23: 2103 | G23: 23 | H23: 2109 | K23: 0 | L23: 1222 | P23: =SUM(P7:P22) -> 1 | Q23: =-SUM(Q7:Q22) -> 2.193783011 | V23: =SUM(V7:V22) -> 1 | W23: =-SUM(W7:W22) -> 2.020244207 | AA23: =SUM(AA7:AA22) -> 1 | AB23: =-SUM(AB7:AB22) -> 1.375279366 | AF23: =SUM(AF7:AF22) -> 1 | AG23: =-SUM(AG7:AG22) -> 1.610577243 | AK23: =SUM(AK7:AK22) -> 1 | AL23: =-SUM(AL7:AL22) -> 1.263809174 | AP23: =SUM(AP7:AP22) -> 1 | AQ23: =-SUM(AQ7:AQ22) -> 2.232262897 | AU23: =SUM(AU7:AU22) -> 1 | AV23: =-SUM(AV7:AV22) -> 1.88109476
A24: 12 | B24: 2204 | C24: 14 | D24: 2209 | E24: 13 | F24: 2216 | G24: 23 | H24: 2224 | K24: 0 | L24: 1112 | P24: U= | Q24: =Q23/(LOG(Q4)/LOG(2)) -> 0.3422763618 | V24: U1= | W24: =W23/(LOG(W4)/LOG(2)) -> 0.5306162017 | AA24: U2= | AB24: =AB23/(LOG(AB4)/LOG(2)) -> 0.35201379 | AF24: U3= | AG24: =AG23/(LOG(AG4)/LOG(2)) -> 0.4230173641 | AK24: U4= | AL24: =AL23/(LOG(AL4)/LOG(2)) -> 0.3319388919 | AP24: U5= | AQ24: =AQ23/(LOG(AQ4)/LOG(2)) -> 0.571365602 | AU24: U6= | AV24: =AV23/(LOG(AV4)/LOG(2)) -> 0.5083435763
A25: 21 | B25: 2336 | C25: 21 | D25: 2340 | E25: 22 | F25: 2346 | G25: 23 | H25: 2354 | K25: 0 | L25: 2222
A26: 12 | B26: 2449 | C26: 14 | D26: 2454 | E26: 24 | F26: 2465 | G26: 23 | H26: 2468 | K26: 0 | L26: 1122
A27: 12 | B27: 2570 | C27: 14 | D27: 2575 | E27: 13 | F27: 2580 | G27: 23 | H27: 2604 | K27: 0 | L27: 1112 | N27: Total Target Seq
A28: 12 | B28: 2698 | C28: 14 | D28: 2709 | E28: 24 | F28: 2716 | G28: 23 | H28: 2720 | K28: 0 | L28: 1122 | N28: =COUNTIF(L7:L92,G3) -> 0 | P28: 14 | Q28: 15 | R28: 14 | S28: 14 | T28: 15 | U28: 14
A29: 12 | B29: 2818 | C29: 14 | D29: 2825 | E29: 24 | F29: 2840 | G29: 23 | H29: 2848 | K29: 0 | L29: 1122 | P29: % of reinforcement given in 6 equal intervals based on number of trials
A30: 12 | B30: 2944 | C30: 14 | D30: 2948 | E30: 24 | F30: 2960 | G30: 23 | H30: 2968 | K30: 0 | L30: 1122 | P30: %_1 | Q30: %_2 | R30: %_3 | S30: %_4 | T30: %_5 | U30: %_6
A31: 12 | B31: 3086 | C31: 14 | D31: 3091 | E31: 13 | F31: 3093 | G31: 23 | H31: 3101 | K31: 0 | L31: 1112 | O31: target sequence | P31: =$G$3 -> 2212 | Q31: =$G$3 -> 2212 | R31: =$G$3 -> 2212 | S31: =$G$3 -> 2212 | T31: =$G$3 -> 2212 | U31: =$G$3 -> 2212
A32: 12 | B32: 3197 | C32: 14 | D32: 3201 | E32: 24 | F32: 3209 | G32: 23 | H32: 3212 | K32: 0 | L32: 1122 | O32: total reinforcement | P32: =U20 -> 0 | Q32: =Z20 -> 0 | R32: =AE20 -> 0 | S32: =AJ20 -> 0 | T32: =AO20 -> 0 | U32: =AT20 -> 0
A33: 12 | B33: 3325 | C33: 14 | D33: 3329 | E33: 24 | F33: 3339 | G33: 23 | H33: 3343 | K33: 0 | L33: 1122 | O33: % target
A34: 12 | B34: 3445 | C34: 14 | D34: 3449 | E34: 24 | F34: 3458 | G34: 23 | H34: 3461 | K34: 0 | L34: 1122 | O34: CCRF
A35: 12 | B35: 3555 | C35: 14 | D35: 3559 | E35: 24 | F35: 3568 | G35: 23 | H35: 3571 | K35: 0 | L35: 1122 | O35: % CCRf
A36: 12 | B36: 3666 | C36: 14 | D36: 3675 | E36: 24 | F36: 3683 | G36: 23 | H36: 3693 | K36: 0 | L36: 1122 | O36: average response rate | P36: =H20/P28 -> 123.2857143 | Q36: =(H35-H20)/Q28 -> 123 | R36: =(H49-H35)/R28 -> 124.2142857 | S36: =(H63-H49)/S28 -> 140.7142857 | T36: =(H78-H63)/T28 -> 136.3333333 | U36: =(H92-H78)/U28 -> -666.0714286
A37: 12 | B37: 3788 | C37: 14 | D37: 3791 | E37: 13 | F37: 3795 | G37: 23 | H37: 3856 | K37: 0 | L37: 1112
A38: 12 | B38: 3955 | C38: 23 | D38: 3973 | E38: 24 | F38: 3975 | G38: 23 | H38: 3981 | K38: 0 | L38: 1222
A39: 12 | B39: 4075 | C39: 14 | D39: 4080 | E39: 13 | F39: 4084 | G39: 23 | H39: 4097 | K39: 0 | L39: 1112
A40: 12 | B40: 4194 | C40: 14 | D40: 4199 | E40: 13 | F40: 4204 | G40: 23 | H40: 4211 | K40: 0 | L40: 1112
A41: 12 | B41: 4339 | C41: 14 | D41: 4344 | E41: 13 | F41: 4349 | G41: 23 | H41: 4358 | K41: 0 | L41: 1112
A42: 12 | B42: 4452 | C42: 14 | D42: 4457 | E42: 13 | F42: 4461 | G42: 23 | H42: 4470 | K42: 0 | L42: 1112
A43: 12 | B43: 4565 | C43: 14 | D43: 4575 | E43: 13 | F43: 4581 | G43: 23 | H43: 4589 | K43: 0 | L43: 1112
A44: 12 | B44: 4684 | C44: 14 | D44: 4693 | E44: 24 | F44: 4702 | G44: 23 | H44: 4709 | K44: 0 | L44: 1122
A45: 12 | B45: 4804 | C45: 14 | D45: 4810 | E45: 13 | F45: 4814 | G45: 23 | H45: 4823 | K45: 0 | L45: 1112
A46: 12 | B46: 4921 | C46: 23 | D46: 4941 | E46: 24 | F46: 4946 | G46: 23 | H46: 4959 | K46: 0 | L46: 1222
A47: 12 | B47: 5055 | C47: 14 | D47: 5058 | E47: 13 | F47: 5063 | G47: 23 | H47: 5072 | K47: 0 | L47: 1112
A48: 12 | B48: 5166 | C48: 14 | D48: 5176 | E48: 13 | F48: 5178 | G48: 14 | H48: 5184 | K48: 0 | L48: 1111
A49: 12 | B49: 5291 | C49: 23 | D49: 5300 | E49: 24 | F49: 5304 | G49: 23 | H49: 5310 | K49: 0 | L49: 1222
A50: 12 | B50: 5422 | C50: 23 | D50: 5430 | E50: 24 | F50: 5434 | G50: 23 | H50: 5445 | K50: 0 | L50: 1222
A51: 12 | B51: 5582 | C51: 23 | D51: 5593 | E51: 24 | F51: 5598 | G51: 23 | H51: 5604 | K51: 0 | L51: 1222
A52: 12 | B52: 5700 | C52: 23 | D52: 5717 | E52: 24 | F52: 5721 | G52: 23 | H52: 5727 | K52: 0 | L52: 1222
A53: 12 | B53: 5833 | C53: 23 | D53: 5840 | E53: 24 | F53: 5843 | G53: 23 | H53: 5848 | K53: 0 | L53: 1222
A54: 12 | B54: 5956 | C54: 14 | D54: 5966 | E54: 24 | F54: 5973 | G54: 23 | H54: 6004 | K54: 0 | L54: 1122
A55: 12 | B55: 6100 | C55: 14 | D55: 6115 | E55: 24 | F55: 6122 | G55: 23 | H55: 6127 | K55: 0 | L55: 1122
A56: 12 | B56: 6222 | C56: 14 | D56: 6230 | E56: 24 | F56: 6237 | G56: 23 | H56: 6241 | K56: 0 | L56: 1122
A57: 12 | B57: 6433 | C57: 23 | D57: 6450 | E57: 24 | F57: 6454 | G57: 23 | H57: 6462 | K57: 0 | L57: 1222
A58: 12 | B58: 6569 | C58: 14 | D58: 6573 | E58: 24 | F58: 6580 | G58: 23 | H58: 6585 | K58: 0 | L58: 1122
A59: 12 | B59: 6682 | C59: 14 | D59: 6687 | E59: 24 | F59: 6696 | G59: 23 | H59: 6732 | K59: 0 | L59: 1122
A60: 12 | B60: 6856 | C60: 14 | D60: 6864 | E60: 24 | F60: 6872 | G60: 23 | H60: 6875 | K60: 0 | L60: 1122
A61: 12 | B61: 6970 | C61: 14 | D61: 6977 | E61: 24 | F61: 7021 | G61: 23 | H61: 7035 | K61: 0 | L61: 1122
A62: 12 | B62: 7143 | C62: 14 | D62: 7155 | E62: 24 | F62: 7163 | G62: 23 | H62: 7167 | K62: 0 | L62: 1122
A63: 12 | B63: 7264 | C63: 14 | D63: 7268 | E63: 13 | F63: 7271 | G63: 23 | H63: 7280 | K63: 0 | L63: 1112
A64: 12 | B64: 7376 | C64: 23 | D64: 7388 | E64: 24 | F64: 7391 | G64: 23 | H64: 7410 | K64: 0 | L64: 1222
A65: 12 | B65: 7506 | C65: 14 | D65: 7511 | E65: 13 | F65: 7515 | G65: 14 | H65: 7519 | K65: 0 | L65: 1111
A66: 12 | B66: 7614 | C66: 23 | D66: 7626 | E66: 24 | F66: 7629 | G66: 23 | H66: 7632 | K66: 0 | L66: 1222
A67: 12 | B67: 7729 | C67: 14 | D67: 7734 | E67: 13 | F67: 7740 | G67: 23 | H67: 7749 | K67: 0 | L67: 1112
A68: 12 | B68: 7866 | C68: 14 | D68: 7875 | E68: 13 | F68: 7881 | G68: 23 | H68: 7889 | K68: 0 | L68: 1112
A69: 12 | B69: 7985 | C69: 14 | D69: 7994 | E69: 13 | F69: 8002 | G69: 23 | H69: 8017 | K69: 0 | L69: 1112
A70: 12 | B70: 8114 | C70: 14 | D70: 8122 | E70: 24 | F70: 8133 | G70: 23 | H70: 8137 | K70: 0 | L70: 1122
A71: 12 | B71: 8233 | C71: 14 | D71: 8238 | E71: 13 | F71: 8242 | G71: 14 | H71: 8256 | K71: 0 | L71: 1111
A72: 12 | B72: 8359 | C72: 14 | D72: 8363 | E72: 24 | F72: 8375 | G72: 23 | H72: 8378 | K72: 0 | L72: 1122
A73: 21 | B73: 8484 | C73: 21 | D73: 8503 | E73: 22 | F73: 8507 | G73: 23 | H73: 8512 | K73: 0 | L73: 2222
A74: 12 | B74: 8623 | C74: 23 | D74: 8631 | E74: 24 | F74: 8636 | G74: 23 | H74: 8642 | K74: 0 | L74: 1222
A75: 12 | B75: 8740 | C75: 14 | D75: 8745 | E75: 13 | F75: 8750 | G75: 14 | H75: 8754 | K75: 0 | L75: 1111
A76: 12 | B76: 9038 | C76: 14 | D76: 9043 | E76: 13 | F76: 9050 | G76: 23 | H76: 9058 | K76: 0 | L76: 1112
A77: 12 | B77: 9165 | C77: 14 | D77: 9169 | E77: 13 | F77: 9173 | G77: 23 | H77: 9180 | K77: 0 | L77: 1112
A78: 21 | B78: 9299 | C78: 21 | D78: 9316 | E78: 22 | F78: 9321 | G78: 23 | H78: 9325 | K78: 0 | L78: 2222
A79: 12 | B79: 9424 | C79: 14 | D79: 9429 | E79: 13 | F79: 9432 | G79: 23 | H79: 9449 | K79: 0 | L79: 1112
A80: 12 | B80: 9587 | C80: 23 | D80: 9599 | E80: 24 | F80: 9603 | G80: 23 | H80: 9608 | K80: 0 | L80: 1222
A81: 12 | B81: 9746 | C81: 14 | D81: 9751 | E81: 24 | F81: 9762 | G81: 23 | H81: 9785 | K81: 0 | L81: 1122
A82: 12 | B82: 10269 | C82: 23 | D82: 10277 | E82: 24 | F82: 10281 | G82: 23 | H82: 10286 | K82: 0 | L82: 1222
A83: 12 | B83: 13978 | C83: 23 | D83: 13989 | E83: 24 | F83: 13995 | G83: 23 | H83: 14005 | K83: 0 | L83: 1222
A84: 21 | B84: 14123 | C84: 12 | D84: 14133 | E84: 24 | F84: 14143 | G84: 23 | H84: 14147 | K84: 0 | L84: 2122
A85: 12 | B85: 14275 | C85: 23 | D85: 14285 | E85: 24 | F85: 14296 | G85: 23 | H85: 14302 | K85: 0 | L85: 1222
A86: 12 | B86: 15103 | C86: 23 | D86: 15119 | E86: 24 | F86: 15123 | G86: 23 | H86: 15134 | K86: 0 | L86: 1222
A87: 21 | B87: 15252 | C87: 21 | D87: 15257 | E87: 22 | F87: 15261 | G87: 23 | H87: 15271 | K87: 0 | L87: 2222
A88: 12 | B88: 15419 | C88: 14 | D88: 15423 | E88: 24 | F88: 15432 | G88: 23 | H88: 15435 | K88: 0 | L88: 1122
A89: 21 | B89: 15671 | C89: 21 | D89: 15681 | E89: 22 | F89: 15685 | G89: 23 | H89: 15690 | K89: 0 | L89: 2222
A90: 12 | B90: 19217 | C90: 23 | D90: 19227 | E90: 24 | F90: 19234 | G90: 23 | H90: 19245 | K90: 0 | L90: 1222
A91: 12 | B91: 21409 | C91: 23 | D91: 21425 | E91: 24 | F91: 21443 | G91: 23 | H91: 21450 | K91: 0 | L91: 1222
A92: 21 | B92: 21697 | C92: 12 | D92: 23579 | E92: 24 | F92: 23596 | L92: 212

Sheet !LB12A04..Is
A1: Report for:!LB12A04..Is
A2: Date: | B2: <date>
A3: Hen: | B3: <hen> | F3: Correct Sequence | G3: =Start!J2 -> 2212 | P3: Total Sequences in Data | Q3: =4994-COUNTBLANK(L7:L5000) -> 18 | V3: Total Sequences in Block Data | W3: =COUNTA(L7:L9) -> 3 | AA3: Total Sequences in Block Data | AB3: =COUNTA(L10:L12) -> 3 | AF3: Total Sequences in Block Data | AG3: =COUNTA(L13:L15) -> 3 | AK3: Total Sequences in Block Data | AL3: =COUNTA(L16:L18) -> 3 | AP3: Total Sequences in Block Data | AQ3: =COUNTA(L19:L21) -> 3 | AU3: Total Sequences in Block Data | AV3: =COUNTA(L22:L24) -> 3
P4: Total Sequences in Summary | Q4: =SUM(O7:O22) -> 18 | V4: Total Sequences in Block Summary | W4: =SUM(U7:U22) -> 3 | AA4: Total Sequences in Block Summary | AB4: =SUM(Z7:Z22) -> 3 | AF4: Total Sequences in Block Summary | AG4: =SUM(AE7:AE22) -> 3 | AK4: Total Sequences in Block Summary | AL4: =SUM(AJ7:AJ22) -> 3 | AP4: Total Sequences in Block Summary | AQ4: =SUM(AO7:AO22) -> 3 | AU4: Total Sequences in Block Summary | AV4: =SUM(AT7:AT22) -> 3
T5: Block 1 | Y5: Block 2 | AD5: Block 3 | AI5: Block 4 | AN5: Block 5 | AS5: Block 6
A6: Sequence Component 1 | B6: Time 1 | C6: Sequence Component 2 | D6: Time 2 | E6: Sequence Component 3 | F6: Time 3 | G6: Sequence Component 4 | H6: Time 4 | I6: Sequence Component 5 | J6: Time 5 | K6: Correct? 0=No 1=Yes | L6: Sequence | N6: Frequency | P6: Relative Frequency | Q6: Variability | T6: Frequency | V6: Relative Frequency | W6: Variability | Y6: Frequency | AA6: Relative Frequency | AB6: Variability | AD6: Frequency | AF6: Relative Frequency | AG6: Variability | AI6: Frequency | AK6: Relative Frequency | AL6: Variability | AN6: Frequency | AP6: Relative Frequency | AQ6: Variability | AS6: Frequency | AU6: Relative Frequency | AV6: Variability
A7: 21 | B7: 178 | C7: 21 | D7: 182 | E7: 22 | F7: 187 | G7: 23 | H7: 193 | K7: 0 | L7: 2222 | N7: 1111 | O7: =COUNTIF($L$7:$L$500,N7) -> 0 | P7: =O7/$Q$4 -> 0 | Q7: =IF(P7=0,0,(P7*((LOG(P7))/LOG(2)))) -> 0 | T7: =N7 -> 1111 | U7: =COUNTIF(L7:L9,T7) -> 0 | V7: =U7/(W4-U20) -> 0 | W7: =IF(V7=0,0,(V7*((LOG(V7))/LOG(2)))) -> 0 | Y7: =N7 -> 1111 | Z7: =COUNTIF(L10:L12,Y7) -> 0 | AA7: =Z7/(AB4-Z20) -> 0 | AB7: =IF(AA7=0,0,(AA7*((LOG(AA7))/LOG(2)))) -> 0 | AD7: =N7 -> 1111 | AE7: =COUNTIF(L13:L15,AD7) -> 0 | AF7: =AE7/(AG4-AE20) -> 0 | AG7: =IF(AF7=0,0,(AF7*((LOG(AF7))/LOG(2)))) -> 0 | AI7: =N7 -> 1111 | AJ7: =COUNTIF(L16:L18,AI7) -> 0 | AK7: =AJ7/(AL4-AJ20) -> 0 | AL7: =IF(AK7=0,0,(AK7*((LOG(AK7))/LOG(2)))) -> 0 | AN7: =N7 -> 1111 | AO7: =COUNTIF(L19:L21,AN7) -> 0 | AP7: =AO7/(AQ4-AO20) -> 0 | AQ7: =IF(AP7=0,0,(AP7*((LOG(AP7))/LOG(2)))) -> 0 | AS7: =N7 -> 1111 | AT7: =COUNTIF(L22:L24,AS7) -> 0 | AU7: =AT7/(AV4-AT20) -> 0 | AV7: =IF(AU7=0,0,(AU7*((LOG(AU7))/LOG(2)))) -> 0
A8: 12 | B8: 291 | C8: 23 | D8: 302 | E8: 24 | F8: 306 | G8: 23 | H8: 310 | K8: 0 | L8: 1222 | N8: 1112 | O8: =COUNTIF($L$7:$L$500,N8) -> 2 | P8: =O8/$Q$4 -> 0.1111111111 | Q8: =IF(P8=0,0,(P8*((LOG(P8))/LOG(2)))) -> -0.352213889 | T8: =N8 -> 1112 | U8: =COUNTIF(L7:L9,T8) -> 0 | V8: =U8/(W4-U20) -> 0 | W8: =IF(V8=0,0,(V8*((LOG(V8))/LOG(2)))) -> 0 | Y8: =N8 -> 1112 | Z8: =COUNTIF(L10:L12,Y8) -> 0 | AA8: =Z8/(AB4-Z20) -> 0 | AB8: =IF(AA8=0,0,(AA8*((LOG(AA8))/LOG(2)))) -> 0 | AD8: =N8 -> 1112 | AE8: =COUNTIF(L13:L15,AD8) -> 1 | AF8: =AE8/(AG4-AE20) -> 0.3333333333 | AG8: =IF(AF8=0,0,(AF8*((LOG(AF8))/LOG(2)))) -> -0.5283208336 | AI8: =N8 -> 1112 | AJ8: =COUNTIF(L16:L18,AI8) -> 0 | AK8: =AJ8/(AL4-AJ20) -> 0 | AL8: =IF(AK8=0,0,(AK8*((LOG(AK8))/LOG(2)))) -> 0 | AN8: =N8 -> 1112 | AO8: =COUNTIF(L19:L21,AN8) -> 0 | AP8: =AO8/(AQ4-AO20) -> 0 | AQ8: =IF(AP8=0,0,(AP8*((LOG(AP8))/LOG(2)))) -> 0 | AS8: =N8 -> 1112 | AT8: =COUNTIF(L22:L24,AS8) -> 1 | AU8: =AT8/(AV4-AT20) -> 0.3333333333 | AV8: =IF(AU8=0,0,(AU8*((LOG(AU8))/LOG(2)))) -> -0.5283208336
A9: 12 | B9: 407 | C9: 23 | D9: 417 | E9: 24 | F9: 421 | G9: 23 | H9: 437 | K9: 0 | L9: 1222 | N9: 1121 | O9: =COUNTIF($L$7:$L$500,N9) -> 0 | P9: =O9/$Q$4 -> 0 | Q9: =IF(P9=0,0,(P9*((LOG(P9))/LOG(2)))) -> 0 | T9: =N9 -> 1121 | U9: =COUNTIF(L7:L9,T9) -> 0 | V9: =U9/(W4-U20) -> 0 | W9: =IF(V9=0,0,(V9*((LOG(V9))/LOG(2)))) -> 0 | Y9: =N9 -> 1121 | Z9: =COUNTIF(L10:L12,Y9) -> 0 | AA9: =Z9/(AB4-Z20) -> 0 | AB9: =IF(AA9=0,0,(AA9*((LOG(AA9))/LOG(2)))) -> 0 | AD9: =N9 -> 1121 | AE9: =COUNTIF(L13:L15,AD9) -> 0 | AF9: =AE9/(AG4-AE20) -> 0 | AG9: =IF(AF9=0,0,(AF9*((LOG(AF9))/LOG(2)))) -> 0 | AI9: =N9 -> 1121 | AJ9: =COUNTIF(L16:L18,AI9) -> 0 | AK9: =AJ9/(AL4-AJ20) -> 0 | AL9: =IF(AK9=0,0,(AK9*((LOG(AK9))/LOG(2)))) -> 0 | AN9: =N9 -> 1121 | AO9: =COUNTIF(L19:L21,AN9) -> 0 | AP9: =AO9/(AQ4-AO20) -> 0 | AQ9: =IF(AP9=0,0,(AP9*((LOG(AP9))/LOG(2)))) -> 0 | AS9: =N9 -> 1121 | AT9: =COUNTIF(L22:L24,AS9) -> 0 | AU9: =AT9/(AV4-AT20) -> 0 | AV9: =IF(AU9=0,0,(AU9*((LOG(AU9))/LOG(2)))) -> 0
A10: 12 | B10: 536 | C10: 23 | D10: 550 | E10: 24 | F10: 555 | G10: 23 | H10: 563 | K10: 0 | L10: 1222 | N10: 1122 | O10: =COUNTIF($L$7:$L$500,N10) -> 10 | P10: =O10/$Q$4 -> 0.5555555556 | Q10: =IF(P10=0,0,(P10*((LOG(P10))/LOG(2)))) -> -0.4711093925 | T10: =N10 -> 1122 | U10: =COUNTIF(L7:L9,T10) -> 0 | V10: =U10/(W4-U20) -> 0 | W10: =IF(V10=0,0,(V10*((LOG(V10))/LOG(2)))) -> 0 | Y10: =N10 -> 1122 | Z10: =COUNTIF(L10:L12,Y10) -> 2 | AA10: =Z10/(AB4-Z20) -> 0.6666666667 | AB10: =IF(AA10=0,0,(AA10*((LOG(AA10))/LOG(2)))) -> -0.3899750005 | AD10: =N10 -> 1122 | AE10: =COUNTIF(L13:L15,AD10) -> 1 | AF10: =AE10/(AG4-AE20) -> 0.3333333333 | AG10: =IF(AF10=0,0,(AF10*((LOG(AF10))/LOG(2)))) -> -0.5283208336 | AI10: =N10 -> 1122 | AJ10: =COUNTIF(L16:L18,AI10) -> 2 | AK10: =AJ10/(AL4-AJ20) -> 0.6666666667 | AL10: =IF(AK10=0,0,(AK10*((LOG(AK10))/LOG(2)))) -> -0.3899750005 | AN10: =N10 -> 1122 | AO10: =COUNTIF(L19:L21,AN10) -> 3 | AP10: =AO10/(AQ4-AO20) -> 1 | AQ10: =IF(AP10=0,0,(AP10*((LOG(AP10))/LOG(2)))) -> 0 | AS10: =N10 -> 1122 | AT10: =COUNTIF(L22:L24,AS10) -> 2 | AU10: =AT10/(AV4-AT20) -> 0.6666666667 | AV10: =IF(AU10=0,0,(AU10*((LOG(AU10))/LOG(2)))) -> -0.3899750005
A11: 12 | B11: 659 | C11: 14 | D11: 662 | E11: 24 | F11: 671 | G11: 23 | H11: 674 | K11: 0 | L11: 1122 | N11: 1211 | O11: =COUNTIF($L$7:$L$500,N11) -> 0 | P11: =O11/$Q$4 -> 0 | Q11: =IF(P11=0,0,(P11*((LOG(P11))/LOG(2)))) -> 0 | T11: =N11 -> 1211 | U11: =COUNTIF(L7:L9,T11) -> 0 | V11: =U11/(W4-U20) -> 0 | W11: =IF(V11=0,0,(V11*((LOG(V11))/LOG(2)))) -> 0 | Y11: =N11 -> 1211 | Z11: =COUNTIF(L10:L12,Y11) -> 0 | AA11: =Z11/(AB4-Z20) -> 0 | AB11: =IF(AA11=0,0,(AA11*((LOG(AA11))/LOG(2)))) -> 0 | AD11: =N11 -> 1211 | AE11: =COUNTIF(L13:L15,AD11) -> 0 | AF11: =AE11/(AG4-AE20) -> 0 | AG11: =IF(AF11=0,0,(AF11*((LOG(AF11))/LOG(2)))) -> 0 | AI11: =N11 -> 1211 | AJ11: =COUNTIF(L16:L18,AI11) -> 0 | AK11: =AJ11/(AL4-AJ20) -> 0 | AL11: =IF(AK11=0,0,(AK11*((LOG(AK11))/LOG(2)))) -> 0 | AN11: =N11 -> 1211 | AO11: =COUNTIF(L19:L21,AN11) -> 0 | AP11: =AO11/(AQ4-AO20) -> 0 | AQ11: =IF(AP11=0,0,(AP11*((LOG(AP11))/LOG(2)))) -> 0 | AS11: =N11 -> 1211 | AT11: =COUNTIF(L22:L24,AS11) -> 0 | AU11: =AT11/(AV4-AT20) -> 0 | AV11: =IF(AU11=0,0,(AU11*((LOG(AU11))/LOG(2)))) -> 0
A12: 12 | B12: 771 | C12: 14 | D12: 779 | E12: 24 | F12: 787 | G12: 23 | H12: 792 | K12: 0 | L12: 1122 | N12: 1212 | O12: =COUNTIF($L$7:$L$500,N12) -> 0 | P12: =O12/$Q$4 -> 0 | Q12: =IF(P12=0,0,(P12*((LOG(P12))/LOG(2)))) -> 0 | T12: =N12 -> 1212 | U12: =COUNTIF(L7:L9,T12) -> 0 | V12: =U12/(W4-U20) -> 0 | W12: =IF(V12=0,0,(V12*((LOG(V12))/LOG(2)))) -> 0 | Y12: =N12 -> 1212 | Z12: =COUNTIF(L10:L12,Y12) -> 0 | AA12: =Z12/(AB4-Z20) -> 0 | AB12: =IF(AA12=0,0,(AA12*((LOG(AA12))/LOG(2)))) -> 0 | AD12: =N12 -> 1212 | AE12: =COUNTIF(L13:L15,AD12) -> 0 | AF12: =AE12/(AG4-AE20) -> 0 | AG12: =IF(AF12=0,0,(AF12*((LOG(AF12))/LOG(2)))) -> 0 | AI12: =N12 -> 1212 | AJ12: =COUNTIF(L16:L18,AI12) -> 0 | AK12: =AJ12/(AL4-AJ20) -> 0 | AL12: =IF(AK12=0,0,(AK12*((LOG(AK12))/LOG(2)))) -> 0 | AN12: =N12 -> 1212 | AO12: =COUNTIF(L19:L21,AN12) -> 0 | AP12: =AO12/(AQ4-AO20) -> 0 | AQ12: =IF(AP12=0,0,(AP12*((LOG(AP12))/LOG(2)))) -> 0 | AS12: =N12 -> 1212 | AT12: =COUNTIF(L22:L24,AS12) -> 0 | AU12: =AT12/(AV4-AT20) -> 0 | AV12: =IF(AU12=0,0,(AU12*((LOG(AU12))/LOG(2)))) -> 0
A13: 12 | B13: 888 | C13: 14 | D13: 891 | E13: 24 | F13: 899 | G13: 23 | H13: 903 | K13: 0 | L13: 1122 | N13: 1221 | O13: =COUNTIF($L$7:$L$500,N13) -> 0 | P13: =O13/$Q$4 -> 0 | Q13: =IF(P13=0,0,(P13*((LOG(P13))/LOG(2)))) -> 0 | T13: =N13 -> 1221 | U13: =COUNTIF(L7:L9,T13) -> 0 | V13: =U13/(W4-U20) -> 0 | W13: =IF(V13=0,0,(V13*((LOG(V13))/LOG(2)))) -> 0 | Y13: =N13 -> 1221 | Z13: =COUNTIF(L10:L12,Y13) -> 0 | AA13: =Z13/(AB4-Z20) -> 0 | AB13: =IF(AA13=0,0,(AA13*((LOG(AA13))/LOG(2)))) -> 0 | AD13: =N13 -> 1221 | AE13: =COUNTIF(L13:L15,AD13) -> 0 | AF13: =AE13/(AG4-AE20) -> 0 | AG13: =IF(AF13=0,0,(AF13*((LOG(AF13))/LOG(2)))) -> 0 | AI13: =N13 -> 1221 | AJ13: =COUNTIF(L16:L18,AI13) -> 0 | AK13: =AJ13/(AL4-AJ20) -> 0 | AL13: =IF(AK13=0,0,(AK13*((LOG(AK13))/LOG(2)))) -> 0 | AN13: =N13 -> 1221 | AO13: =COUNTIF(L19:L21,AN13) -> 0 | AP13: =AO13/(AQ4-AO20) -> 0 | AQ13: =IF(AP13=0,0,(AP13*((LOG(AP13))/LOG(2)))) -> 0 | AS13: =N13 -> 1221 | AT13: =COUNTIF(L22:L24,AS13) -> 0 | AU13: =AT13/(AV4-AT20) -> 0 | AV13: =IF(AU13=0,0,(AU13*((LOG(AU13))/LOG(2)))) -> 0
A14: 21 | B14: 1004 | C14: 12 | D14: 1014 | E14: 24 | F14: 1021 | G14: 23 | H14: 1026 | K14: 0 | L14: 2122 | N14: 1222 | O14: =COUNTIF($L$7:$L$500,N14) -> 4 | P14: =O14/$Q$4 -> 0.2222222222 | Q14: =IF(P14=0,0,(P14*((LOG(P14))/LOG(2)))) -> -0.4822055559 | T14: =N14 -> 1222 | U14: =COUNTIF(L7:L9,T14) -> 2 | V14: =U14/(W4-U20) -> 0.6666666667 | W14: =IF(V14=0,0,(V14*((LOG(V14))/LOG(2)))) -> -0.3899750005 | Y14: =N14 -> 1222 | Z14: =COUNTIF(L10:L12,Y14) -> 1 | AA14: =Z14/(AB4-Z20) -> 0.3333333333 | AB14: =IF(AA14=0,0,(AA14*((LOG(AA14))/LOG(2)))) -> -0.5283208336 | AD14: =N14 -> 1222 | AE14: =COUNTIF(L13:L15,AD14) -> 0 | AF14: =AE14/(AG4-AE20) -> 0 | AG14: =IF(AF14=0,0,(AF14*((LOG(AF14))/LOG(2)))) -> 0 | AI14: =N14 -> 1222 | AJ14: =COUNTIF(L16:L18,AI14) -> 1 | AK14: =AJ14/(AL4-AJ20) -> 0.3333333333 | AL14: =IF(AK14=0,0,(AK14*((LOG(AK14))/LOG(2)))) -> -0.5283208336 | AN14: =N14 -> 1222 | AO14: =COUNTIF(L19:L21,AN14) -> 0 | AP14: =AO14/(AQ4-AO20) -> 0 | AQ14: =IF(AP14=0,0,(AP14*((LOG(AP14))/LOG(2)))) -> 0 | AS14: =N14 -> 1222 | AT14: =COUNTIF(L22:L24,AS14) -> 0 | AU14: =AT14/(AV4-AT20) -> 0 | AV14: =IF(AU14=0,0,(AU14*((LOG(AU14))/LOG(2)))) -> 0
A15: 12 | B15: 1122 | C15: 14 | D15: 1125 | E15: 13 | F15: 1127 | G15: 23 | H15: 1138 | K15: 0 | L15: 1112 | N15: 2111 | O15: =COUNTIF($L$7:$L$500,N15) -> 0 | P15: =O15/$Q$4 -> 0 | Q15: =IF(P15=0,0,(P15*((LOG(P15))/LOG(2)))) -> 0 | T15: =N15 -> 2111 | U15: =COUNTIF(L7:L9,T15) -> 0 | V15: =U15/(W4-U20) -> 0 | W15: =IF(V15=0,0,(V15*((LOG(V15))/LOG(2)))) -> 0 | Y15: =N15 -> 2111 | Z15: =COUNTIF(L10:L12,Y15) -> 0 | AA15: =Z15/(AB4-Z20) -> 0 | AB15: =IF(AA15=0,0,(AA15*((LOG(AA15))/LOG(2)))) -> 0 | AD15: =N15 -> 2111 | AE15: =COUNTIF(L13:L15,AD15) -> 0 | AF15: =AE15/(AG4-AE20) -> 0 | AG15: =IF(AF15=0,0,(AF15*((LOG(AF15))/LOG(2)))) -> 0 | AI15: =N15 -> 2111 | AJ15: =COUNTIF(L16:L18,AI15) -> 0 | AK15: =AJ15/(AL4-AJ20) -> 0 | AL15: =IF(AK15=0,0,(AK15*((LOG(AK15))/LOG(2)))) -> 0 | AN15: =N15 -> 2111 | AO15: =COUNTIF(L19:L21,AN15) -> 0 | AP15: =AO15/(AQ4-AO20) -> 0 | AQ15: =IF(AP15=0,0,(AP15*((LOG(AP15))/LOG(2)))) -> 0 | AS15: =N15 -> 2111 | AT15: =COUNTIF(L22:L24,AS15) -> 0 | AU15: =AT15/(AV4-AT20) -> 0 | AV15: =IF(AU15=0,0,(AU15*((LOG(AU15))/LOG(2)))) -> 0
A16: 12 | B16: 1248 | C16: 14 | D16: 1256 | E16: 24 | F16: 1262 | G16: 23 | H16: 1277 | K16: 0 | L16: 1122 | N16: 2112 | O16: =COUNTIF($L$7:$L$500,N16) -> 0 | P16: =O16/$Q$4 -> 0 | Q16: =IF(P16=0,0,(P16*((LOG(P16))/LOG(2)))) -> 0 | T16: =N16 -> 2112 | U16: =COUNTIF(L7:L9,T16) -> 0 | V16: =U16/(W4-U20) -> 0 | W16: =IF(V16=0,0,(V16*((LOG(V16))/LOG(2)))) -> 0 | Y16: =N16 -> 2112 | Z16: =COUNTIF(L10:L12,Y16) -> 0 | AA16: =Z16/(AB4-Z20) -> 0 | AB16: =IF(AA16=0,0,(AA16*((LOG(AA16))/LOG(2)))) -> 0 | AD16: =N16 -> 2112 | AE16: =COUNTIF(L13:L15,AD16) -> 0 | AF16: =AE16/(AG4-AE20) -> 0 | AG16: =IF(AF16=0,0,(AF16*((LOG(AF16))/LOG(2)))) -> 0 | AI16: =N16 -> 2112 | AJ16: =COUNTIF(L16:L18,AI16) -> 0 | AK16: =AJ16/(AL4-AJ20) -> 0 | AL16: =IF(AK16=0,0,(AK16*((LOG(AK16))/LOG(2)))) -> 0 | AN16: =N16 -> 2112 | AO16: =COUNTIF(L19:L21,AN16) -> 0 | AP16: =AO16/(AQ4-AO20) -> 0 | AQ16: =IF(AP16=0,0,(AP16*((LOG(AP16))/LOG(2)))) -> 0 | AS16: =N16 -> 2112 | AT16: =COUNTIF(L22:L24,AS16) -> 0 | AU16: =AT16/(AV4-AT20) -> 0 | AV16: =IF(AU16=0,0,(AU16*((LOG(AU16))/LOG(2)))) -> 0
A17: 12 | B17: 1381 | C17: 23 | D17: 1393 | E17: 24 | F17: 1400 | G17: 23 | H17: 1405 | K17: 0 | L17: 1222 | N17: 2121 | O17: =COUNTIF($L$7:$L$500,N17) -> 0 | P17: =O17/$Q$4 -> 0 | Q17: =IF(P17=0,0,(P17*((LOG(P17))/LOG(2)))) -> 0 | T17: =N17 -> 2121 | U17: =COUNTIF(L7:L9,T17) -> 0 | V17: =U17/(W4-U20) -> 0 | W17: =IF(V17=0,0,(V17*((LOG(V17))/LOG(2)))) -> 0 | Y17: =N17 -> 2121 | Z17: =COUNTIF(L10:L12,Y17) -> 0 | AA17: =Z17/(AB4-Z20) -> 0 | AB17: =IF(AA17=0,0,(AA17*((LOG(AA17))/LOG(2)))) -> 0 | AD17: =N17 -> 2121 | AE17: =COUNTIF(L13:L15,AD17) -> 0 | AF17: =AE17/(AG4-AE20) -> 0 | AG17: =IF(AF17=0,0,(AF17*((LOG(AF17))/LOG(2)))) -> 0 | AI17: =N17 -> 2121 | AJ17: =COUNTIF(L16:L18,AI17) -> 0 | AK17: =AJ17/(AL4-AJ20) -> 0 | AL17: =IF(AK17=0,0,(AK17*((LOG(AK17))/LOG(2)))) -> 0 | AN17: =N17 -> 2121 | AO17: =COUNTIF(L19:L21,AN17) -> 0 | AP17: =AO17/(AQ4-AO20) -> 0 | AQ17: =IF(AP17=0,0,(AP17*((LOG(AP17))/LOG(2)))) -> 0 | AS17: =N17 -> 2121 | AT17: =COUNTIF(L22:L24,AS17) -> 0 | AU17: =AT17/(AV4-AT20) -> 0 | AV17: =IF(AU17=0,0,(AU17*((LOG(AU17))/LOG(2)))) -> 0
A18: 12 | B18: 1502 | C18: 14 | D18: 1505 | E18: 24 | F18: 1514 | G18: 23 | H18: 1519 | K18: 0 | L18: 1122 | N18: 2122 | O18: =COUNTIF($L$7:$L$500,N18) -> 1 | P18: =O18/$Q$4 -> 0.05555555556 | Q18: =IF(P18=0,0,(P18*((LOG(P18))/LOG(2)))) -> -0.2316625001 | T18: =N18 -> 2122 | U18: =COUNTIF(L7:L9,T18) -> 0 | V18: =U18/(W4-U20) -> 0 | W18: =IF(V18=0,0,(V18*((LOG(V18))/LOG(2)))) -> 0 | Y18: =N18 -> 2122 | Z18: =COUNTIF(L10:L12,Y18) -> 0 | AA18: =Z18/(AB4-Z20) -> 0 | AB18: =IF(AA18=0,0,(AA18*((LOG(AA18))/LOG(2)))) -> 0 | AD18: =N18 -> 2122 | AE18: =COUNTIF(L13:L15,AD18) -> 1 | AF18: =AE18/(AG4-AE20) -> 0.3333333333 | AG18: =IF(AF18=0,0,(AF18*((LOG(AF18))/LOG(2)))) -> -0.5283208336 | AI18: =N18 -> 2122 | AJ18: =COUNTIF(L16:L18,AI18) -> 0 | AK18: =AJ18/(AL4-AJ20) -> 0 | AL18: =IF(AK18=0,0,(AK18*((LOG(AK18))/LOG(2)))) -> 0 | AN18: =N18 -> 2122 | AO18: =COUNTIF(L19:L21,AN18) -> 0 | AP18: =AO18/(AQ4-AO20) -> 0 | AQ18: =IF(AP18=0,0,(AP18*((LOG(AP18))/LOG(2)))) -> 0 | AS18: =N18 -> 2122 | AT18: =COUNTIF(L22:L24,AS18) -> 0 | AU18: =AT18/(AV4-AT20) -> 0 | AV18: =IF(AU18=0,0,(AU18*((LOG(AU18))/LOG(2)))) -> 0
A19: 12 | B19: 1614 | C19: 14 | D19: 1626 | E19: 24 | F19: 1635 | G19: 23 | H19: 1639 | K19: 0 | L19: 1122 | N19: 2211 | O19: =COUNTIF($L$7:$L$500,N19) -> 0 | P19: =O19/$Q$4 -> 0 | Q19: =IF(P19=0,0,(P19*((LOG(P19))/LOG(2)))) -> 0 | T19: =N19 -> 2211 | U19: =COUNTIF(L7:L9,T19) -> 0 | V19: =U19/(W4-U20) -> 0 | W19: =IF(V19=0,0,(V19*((LOG(V19))/LOG(2)))) -> 0 | Y19: =N19 -> 2211 | Z19: =COUNTIF(L10:L12,Y19) -> 0 | AA19: =Z19/(AB4-Z20) -> 0 | AB19: =IF(AA19=0,0,(AA19*((LOG(AA19))/LOG(2)))) -> 0 | AD19: =N19 -> 2211 | AE19: =COUNTIF(L13:L15,AD19) -> 0 | AF19: =AE19/(AG4-AE20) -> 0 | AG19: =IF(AF19=0,0,(AF19*((LOG(AF19))/LOG(2)))) -> 0 | AI19: =N19 -> 2211 | AJ19: =COUNTIF(L16:L18,AI19) -> 0 | AK19: =AJ19/(AL4-AJ20) -> 0 | AL19: =IF(AK19=0,0,(AK19*((LOG(AK19))/LOG(2)))) -> 0 | AN19: =N19 -> 2211 | AO19: =COUNTIF(L19:L21,AN19) -> 0 | AP19: =AO19/(AQ4-AO20) -> 0 | AQ19: =IF(AP19=0,0,(AP19*((LOG(AP19))/LOG(2)))) -> 0 | AS19: =N19 -> 2211 | AT19: =COUNTIF(L22:L24,AS19) -> 0 | AU19: =AT19/(AV4-AT20) -> 0 | AV19: =IF(AU19=0,0,(AU19*((LOG(AU19))/LOG(2)))) -> 0
A20: 12 | B20: 1735 | C20: 14 | D20: 1740 | E20: 24 | F20: 1749 | G20: 23 | H20: 1754 | K20: 0 | L20: 1122 | N20: 2212 | O20: =COUNTIF($L$7:$L$500,N20) -> 0 | P20: =O20/$Q$4 -> 0 | Q20: =IF(P20=0,0,(P20*((LOG(P20))/LOG(2)))) -> 0 | T20: =N20 -> 2212 | U20: =COUNTIF(L7:L9,T20) -> 0 | Y20: =N20 -> 2212 | Z20: =COUNTIF(L10:L12,Y20) -> 0 | AD20: =N20 -> 2212 | AE20: =COUNTIF(L13:L15,AD20) -> 0 | AI20: =N20 -> 2212 | AJ20: =COUNTIF(L16:L18,AI20) -> 0 | AN20: =N20 -> 2212 | AO20: =COUNTIF(L19:L21,AN20) -> 0 | AS20: =N20 -> 2212 | AT20: =COUNTIF(L22:L24,AS20) -> 0
A21: 12 | B21: 1849 | C21: 14 | D21: 1858 | E21: 24 | F21: 1867 | G21: 23 | H21: 1872 | K21: 0 | L21: 1122 | N21: 2221 | O21: =COUNTIF($L$7:$L$500,N21) -> 0 | P21: =O21/$Q$4 -> 0 | Q21: =IF(P21=0,0,(P21*((LOG(P21))/LOG(2)))) -> 0 | T21: =N21 -> 2221 | U21: =COUNTIF(L7:L9,T21) -> 0 | V21: =U21/(W4-U20) -> 0 | W21: =IF(V21=0,0,(V21*((LOG(V21))/LOG(2)))) -> 0 | Y21: =N21 -> 2221 | Z21: =COUNTIF(L10:L12,Y21) -> 0 | AA21: =Z21/(AB4-Z20) -> 0 | AB21: =IF(AA21=0,0,(AA21*((LOG(AA21))/LOG(2)))) -> 0 | AD21: =N21 -> 2221 | AE21: =COUNTIF(L13:L15,AD21) -> 0 | AF21: =AE21/(AG4-AE20) -> 0 | AG21: =IF(AF21=0,0,(AF21*((LOG(AF21))/LOG(2)))) -> 0 | AI21: =N21 -> 2221 | AJ21: =COUNTIF(L16:L18,AI21) -> 0 | AK21: =AJ21/(AL4-AJ20) -> 0 | AL21: =IF(AK21=0,0,(AK21*((LOG(AK21))/LOG(2)))) -> 0 | AN21: =N21 -> 2221 | AO21: =COUNTIF(L19:L21,AN21) -> 0 | AP21: =AO21/(AQ4-AO20) -> 0 | AQ21: =IF(AP21=0,0,(AP21*((LOG(AP21))/LOG(2)))) -> 0 | AS21: =N21 -> 2221 | AT21: =COUNTIF(L22:L24,AS21) -> 0 | AU21: =AT21/(AV4-AT20) -> 0 | AV21: =IF(AU21=0,0,(AU21*((LOG(AU21))/LOG(2)))) -> 0
A22: 12 | B22: 1968 | C22: 14 | D22: 1973 | E22: 24 | F22: 1983 | G22: 23 | H22: 1987 | K22: 0 | L22: 1122 | N22: 2222 | O22: =COUNTIF($L$7:$L$500,N22) -> 1 | P22: =O22/$Q$4 -> 0.05555555556 | Q22: =IF(P22=0,0,(P22*((LOG(P22))/LOG(2)))) -> -0.2316625001 | T22: =N22 -> 2222 | U22: =COUNTIF(L7:L9,T22) -> 1 | V22: =U22/(W4-U20) -> 0.3333333333 | W22: =IF(V22=0,0,(V22*((LOG(V22))/LOG(2)))) -> -0.5283208336 | Y22: =N22 -> 2222 | Z22: =COUNTIF(L10:L12,Y22) -> 0 | AA22: =Z22/(AB4-Z20) -> 0 | AB22: =IF(AA22=0,0,(AA22*((LOG(AA22))/LOG(2)))) -> 0 | AD22: =N22 -> 2222 | AE22: =COUNTIF(L13:L15,AD22) -> 0 | AF22: =AE22/(AG4-AE20) -> 0 | AG22: =IF(AF22=0,0,(AF22*((LOG(AF22))/LOG(2)))) -> 0 | AI22: =N22 -> 2222 | AJ22: =COUNTIF(L16:L18,AI22) -> 0 | AK22: =AJ22/(AL4-AJ20) -> 0 | AL22: =IF(AK22=0,0,(AK22*((LOG(AK22))/LOG(2)))) -> 0 | AN22: =N22 -> 2222 | AO22: =COUNTIF(L19:L21,AN22) -> 0 | AP22: =AO22/(AQ4-AO20) -> 0 | AQ22: =IF(AP22=0,0,(AP22*((LOG(AP22))/LOG(2)))) -> 0 | AS22: =N22 -> 2222 | AT22: =COUNTIF(L22:L24,AS22) -> 0 | AU22: =AT22/(AV4-AT20) -> 0 | AV22: =IF(AU22=0,0,(AU22*((LOG(AU22))/LOG(2)))) -> 0
A23: 12 | B23: 2088 | C23: 14 | D23: 2094 | E23: 13 | F23: 2103 | G23: 23 | H23: 2112 | K23: 0 | L23: 1112 | P23: =SUM(P7:P22) -> 1 | Q23: =-SUM(Q7:Q22) -> 1.768853838 | V23: =SUM(V7:V22) -> 1 | W23: =-SUM(W7:W22) -> 0.9182958341 | AA23: =SUM(AA7:AA22) -> 1 | AB23: =-SUM(AB7:AB22) -> 0.9182958341 | AF23: =SUM(AF7:AF22) -> 1 | AG23: =-SUM(AG7:AG22) -> 1.584962501 | AK23: =SUM(AK7:AK22) -> 1 | AL23: =-SUM(AL7:AL22) -> 0.9182958341 | AP23: =SUM(AP7:AP22) -> 1 | AQ23: =-SUM(AQ7:AQ22) -> 0 | AU23: =SUM(AU7:AU22) -> 1 | AV23: =-SUM(AV7:AV22) -> 0.9182958341
A24: 12 | B24: 2209 | C24: 14 | D24: 2220 | E24: 24 | F24: 2228 | G24: 23 | H24: 2231 | L24: 1122 | P24: U= | Q24: =Q23/(LOG(Q4)/LOG(2)) -> 0.4241932018 | V24: U1= | W24: =W23/(LOG(W4)/LOG(2)) -> 0.5793801643 | AA24: U2= | AB24: =AB23/(LOG(AB4)/LOG(2)) -> 0.5793801643 | AF24: U3= | AG24: =AG23/(LOG(AG4)/LOG(2)) -> 1 | AK24: U4= | AL24: =AL23/(LOG(AL4)/LOG(2)) -> 0.5793801643 | AP24: U5= | AQ24: =AQ23/(LOG(AQ4)/LOG(2)) -> 0 | AU24: U6= | AV24: =AV23/(LOG(AV4)/LOG(2)) -> 0.5793801643
N27: Total Target Seq
N28: =COUNTIF(L7:L24,G3) -> 0 | P28: 3 | Q28: 3 | R28: 3 | S28: 3 | T28: 3 | U28: 3
P29: % of reinforcement given in 6 equal intervals based on number of trials
P30: %_1 | Q30: %_2 | R30: %_3 | S30: %_4 | T30: %_5 | U30: %_6
O31: target sequence | P31: =$G$3 -> 2212 | Q31: =$G$3 -> 2212 | R31: =$G$3 -> 2212 | S31: =$G$3 -> 2212 | T31: =$G$3 -> 2212 | U31: =$G$3 -> 2212
O32: total reinforcement | P32: =U20 -> 0 | Q32: =Z20 -> 0 | R32: =AE20 -> 0 | S32: =AJ20 -> 0 | T32: =AO20 -> 0 | U32: =AT20 -> 0
O33: % target
O34: CCRF
O35: % CCRf
O36: average response rate | P36: =H9/P28 -> 145.6666667 | Q36: =(H12-H9)/Q28 -> 118.3333333 | R36: =(H15-H12)/R28 -> 115.3333333 | S36: =(H18-H15)/S28 -> 127 | T36: =(H21-H18)/T28 -> 117.6666667 | U36: =(H24-H21)/U28 -> 119.6666667

Sheet !LB12A14..Is
A1: Report for:!LB12A14..Is
A2: Date: | B2: <date>
A3: Hen: | B3: <hen> | F3: Correct Sequence | G3: =Start!J2 -> 2212 | P3: Total Sequences in Data | Q3: =4994-COUNTBLANK(L7:L5000) -> 83 | V3: Total Sequences in Block Data | W3: =COUNTA(L7:L20) -> 14 | AA3: Total Sequences in Block Data | AB3: =COUNTA(L21:L34) -> 14 | AF3: Total Sequences in Block Data | AG3: =COUNTA(L35:L47) -> 13 | AK3: Total Sequences in Block Data | AL3: =COUNTA(L48:L61) -> 14 | AP3: Total Sequences in Block Data | AQ3: =COUNTA(L62:L75) -> 14 | AU3: Total Sequences in Block Data | AV3: =COUNTA(L76:L89) -> 14
P4: Total Sequences in Summary | Q4: =SUM(O7:O22) -> 83 | V4: Total Sequences in Block Summary | W4: =SUM(U7:U22) -> 14 | AA4: Total Sequences in Block Summary | AB4: =SUM(Z7:Z22) -> 14 | AF4: Total Sequences in Block Summary | AG4: =SUM(AE7:AE22) -> 13 | AK4: Total Sequences in Block Summary | AL4: =SUM(AJ7:AJ22) -> 14 | AP4: Total Sequences in Block Summary | AQ4: =SUM(AO7:AO22) -> 14 | AU4: Total Sequences in Block Summary | AV4: =SUM(AT7:AT22) -> 14
T5: Block 1 | Y5: Block 2 | AD5: Block 3 | AI5: Block 4 | AN5: Block 5 | AS5: Block 6
A6: Sequence Component 1 | B6: Time 1 | C6: Sequence Component 2 | D6: Time 2 | E6: Sequence Component 3 | F6: Time 3 | G6: Sequence Component 4 | H6: Time 4 | I6: Sequence Component 5 | J6: Time 5 | K6: Correct? 0=No 1=Yes | L6: Sequence | N6: Frequency | P6: Relative Frequency | Q6: Variability | T6: Frequency | V6: Relative Frequency | W6: Variability | Y6: Frequency | AA6: Relative Frequency | AB6: Variability | AD6: Frequency | AF6: Relative Frequency | AG6: Variability | AI6: Frequency | AK6: Relative Frequency | AL6: Variability | AN6: Frequency | AP6: Relative Frequency | AQ6: Variability | AS6: Frequency | AU6: Relative Frequency | AV6: Variability
A7: 21 | B7: 14 | C7: 21 | D7: 18 | E7: 22 | F7: 24 | G7: 23 | H7: 30 | K7: 0 | L7: 2222 | N7: 1111 | O7: =COUNTIF($L$7:$L$500,N7) -> 4 | P7: =O7/$Q$4 -> 0.04819277108 | Q7: =IF(P7=0,0,(P7*((LOG(P7))/LOG(2)))) -> -0.2108452738 | T7: =N7 -> 1111 | U7: =COUNTIF(L7:L20,T7) -> 0 | V7: =U7/(W4-U20) -> 0 | W7: =IF(V7=0,0,(V7*((LOG(V7))/LOG(2)))) -> 0 | Y7: =N7 -> 1111 | Z7: =COUNTIF(L21:L34,Y7) -> 0 | AA7: =Z7/(AB4-Z20) -> 0 | AB7: =IF(AA7=0,0,(AA7*((LOG(AA7))/LOG(2)))) -> 0 | AD7: =N7 -> 1111 | AE7: =COUNTIF(L35:L47,AD7) -> 3 | AF7: =AE7/(AG4-AE20) -> 0.2307692308 | AG7: =IF(AF7=0,0,(AF7*((LOG(AF7))/LOG(2)))) -> -0.4881870502 | AI7: =N7 -> 1111 | AJ7: =COUNTIF(L48:L61,AI7) -> 1 | AK7: =AJ7/(AL4-AJ20) -> 0.07142857143 | AL7: =IF(AK7=0,0,(AK7*((LOG(AK7))/LOG(2)))) -> -0.271953923 | AN7: =N7 -> 1111 | AO7: =COUNTIF(L62:L75,AN7) -> 0 | AP7: =AO7/(AQ4-AO20) -> 0 | AQ7: =IF(AP7=0,0,(AP7*((LOG(AP7))/LOG(2)))) -> 0 | AS7: =N7 -> 1111 | AT7: =COUNTIF(L76:L89,AS7) -> 0 | AU7: =AT7/(AV4-AT20) -> 0 | AV7: =IF(AU7=0,0,(AU7*((LOG(AU7))/LOG(2)))) -> 0
A8: 21 | B8: 132 | C8: 21 | D8: 137 | E8: 22 | F8: 142 | G8: 23 | H8: 148 | K8: 0 | L8: 2222 | N8: 1112 | O8: =COUNTIF($L$7:$L$500,N8) -> 16 | P8: =O8/$Q$4 -> 0.1927710843 | Q8: =IF(P8=0,0,(P8*((LOG(P8))/LOG(2)))) -> -0.4578389265 | T8: =N8 -> 1112 | U8: =COUNTIF(L7:L20,T8) -> 0 | V8: =U8/(W4-U20) -> 0 | W8: =IF(V8=0,0,(V8*((LOG(V8))/LOG(2)))) -> 0 | Y8: =N8 -> 1112 | Z8: =COUNTIF(L21:L34,Y8) -> 5 | AA8: =Z8/(AB4-Z20) -> 0.3571428571 | AB8: =IF(AA8=0,0,(AA8*((LOG(AA8))/LOG(2)))) -> -0.5305095811 | AD8: =N8 -> 1112 | AE8: =COUNTIF(L35:L47,AD8) -> 6 | AF8: =AE8/(AG4-AE20) -> 0.4615384615 | AG8: =IF(AF8=0,0,(AF8*((LOG(AF8))/LOG(2)))) -> -0.5148356388 | AI8: =N8 -> 1112 | AJ8: =COUNTIF(L48:L61,AI8) -> 5 | AK8: =AJ8/(AL4-AJ20) -> 0.3571428571 | AL8: =IF(AK8=0,0,(AK8*((LOG(AK8))/LOG(2)))) -> -0.5305095811 | AN8: =N8 -> 1112 | AO8: =COUNTIF(L62:L75,AN8) -> 0 | AP8: =AO8/(AQ4-AO20) -> 0 | AQ8: =IF(AP8=0,0,(AP8*((LOG(AP8))/LOG(2)))) -> 0 | AS8: =N8 -> 1112 | AT8: =COUNTIF(L76:L89,AS8) -> 0 | AU8: =AT8/(AV4-AT20) -> 0 | AV8: =IF(AU8=0,0,(AU8*((LOG(AU8))/LOG(2)))) -> 0
A9: 21 | B9: 261 | C9: 21 | D9: 266 | E9: 22 | F9: 281 | G9: 23 | H9: 285 | K9: 0 | L9: 2222 | N9: 1121 | O9: =COUNTIF($L$7:$L$500,N9) -> 0 | P9: =O9/$Q$4 -> 0 | Q9: =IF(P9=0,0,(P9*((LOG(P9))/LOG(2)))) -> 0 | T9: =N9 -> 1121 | U9: =COUNTIF(L7:L20,T9) -> 0 | V9: =U9/(W4-U20) -> 0 | W9: =IF(V9=0,0,(V9*((LOG(V9))/LOG(2)))) -> 0 | Y9: =N9 -> 1121 | Z9: =COUNTIF(L21:L34,Y9) -> 0 | AA9: =Z9/(AB4-Z20) -> 0 | AB9: =IF(AA9=0,0,(AA9*((LOG(AA9))/LOG(2)))) -> 0 | AD9: =N9 -> 1121 | AE9: =COUNTIF(L35:L47,AD9) -> 0 | AF9: =AE9/(AG4-AE20) -> 0 | AG9: =IF(AF9=0,0,(AF9*((LOG(AF9))/LOG(2)))) -> 0 | AI9: =N9 -> 1121 | AJ9: =COUNTIF(L48:L61,AI9) -> 0 | AK9: =AJ9/(AL4-AJ20) -> 0 | AL9: =IF(AK9=0,0,(AK9*((LOG(AK9))/LOG(2)))) -> 0 | AN9: =N9 -> 1121 | AO9: =COUNTIF(L62:L75,AN9) -> 0 | AP9: =AO9/(AQ4-AO20) -> 0 | AQ9: =IF(AP9=0,0,(AP9*((LOG(AP9))/LOG(2)))) -> 0 | AS9: =N9 -> 1121 | AT9: =COUNTIF(L76:L89,AS9) -> 0 | AU9: =AT9/(AV4-AT20) -> 0 | AV9: =IF(AU9=0,0,(AU9*((LOG(AU9))/LOG(2)))) -> 0
A10: 21 | B10: 380 | C10: 21 | D10: 388 | E10: 11 | F10: 402 | G10: 21 | H10: 410 | K10: 0 | L10: 2212 | N10: 1122 | O10: =COUNTIF($L$7:$L$500,N10) -> 16 | P10: =O10/$Q$4 -> 0.1927710843 | Q10: =IF(P10=0,0,(P10*((LOG(P10))/LOG(2)))) -> -0.4578389265 | T10: =N10 -> 1122 | U10: =COUNTIF(L7:L20,T10) -> 2 | V10: =U10/(W4-U20) -> 0.1538461538 | W10: =IF(V10=0,0,(V10*((LOG(V10))/LOG(2)))) -> -0.4154522643 | Y10: =N10 -> 1122 | Z10: =COUNTIF(L21:L34,Y10) -> 7 | AA10: =Z10/(AB4-Z20) -> 0.5 | AB10: =IF(AA10=0,0,(AA10*((LOG(AA10))/LOG(2)))) -> -0.5 | AD10: =N10 -> 1122 | AE10: =COUNTIF(L35:L47,AD10) -> 1 | AF10: =AE10/(AG4-AE20) -> 0.07692307692 | AG10: =IF(AF10=0,0,(AF10*((LOG(AF10))/LOG(2)))) -> -0.2846492091 | AI10: =N10 -> 1122 | AJ10: =COUNTIF(L48:L61,AI10) -> 5 | AK10: =AJ10/(AL4-AJ20) -> 0.3571428571 | AL10: =IF(AK10=0,0,(AK10*((LOG(AK10))/LOG(2)))) -> -0.5305095811 | AN10: =N10 -> 1122 | AO10: =COUNTIF(L62:L75,AN10) -> 1 | AP10: =AO10/(AQ4-AO20) -> 0.07142857143 | AQ10: =IF(AP10=0,0,(AP10*((LOG(AP10))/LOG(2)))) -> -0.271953923 | AS10: =N10 -> 1122 | AT10: =COUNTIF(L76:L89,AS10) -> 0 | AU10: =AT10/(AV4-AT20) -> 0 | AV10: =IF(AU10=0,0,(AU10*((LOG(AU10))/LOG(2)))) -> 0
A11: 21 | B11: 544 | C11: 21 | D11: 548 | E11: 22 | F11: 558 | G11: 23 | H11: 566 | K11: 0 | L11: 2222 | N11: 1211 | O11: =COUNTIF($L$7:$L$500,N11) -> 0 | P11: =O11/$Q$4 -> 0 | Q11: =IF(P11=0,0,(P11*((LOG(P11))/LOG(2)))) -> 0 | T11: =N11 -> 1211 | U11: =COUNTIF(L7:L20,T11) -> 0 | V11: =U11/(W4-U20) -> 0 | W11: =IF(V11=0,0,(V11*((LOG(V11))/LOG(2)))) -> 0 | Y11: =N11 -> 1211 | Z11: =COUNTIF(L21:L34,Y11) -> 0 | AA11: =Z11/(AB4-Z20) -> 0 | AB11: =IF(AA11=0,0,(AA11*((LOG(AA11))/LOG(2)))) -> 0 | AD11: =N11 -> 1211 | AE11: =COUNTIF(L35:L47,AD11) -> 0 | AF11: =AE11/(AG4-AE20) -> 0 | AG11: =IF(AF11=0,0,(AF11*((LOG(AF11))/LOG(2)))) -> 0 | AI11: =N11 -> 1211 | AJ11: =COUNTIF(L48:L61,AI11) -> 0 | AK11: =AJ11/(AL4-AJ20) -> 0 | AL11: =IF(AK11=0,0,(AK11*((LOG(AK11))/LOG(2)))) -> 0 | AN11: =N11 -> 1211 | AO11: =COUNTIF(L62:L75,AN11) -> 0 | AP11: =AO11/(AQ4-AO20) -> 0 | AQ11: =IF(AP11=0,0,(AP11*((LOG(AP11))/LOG(2)))) -> 0 | AS11: =N11 -> 1211 | AT11: =COUNTIF(L76:L89,AS11) -> 0 | AU11: =AT11/(AV4-AT20) -> 0 | AV11: =IF(AU11=0,0,(AU11*((LOG(AU11))/LOG(2)))) -> 0
A12: 21 | B12: 681 | C12: 21 | D12: 695 | E12: 22 | F12: 700 | G12: 23 | H12: 711 | K12: 0 | L12: 2222 | N12: 1212 | O12: =COUNTIF($L$7:$L$500,N12) -> 0 | P12: =O12/$Q$4 -> 0 | Q12: =IF(P12=0,0,(P12*((LOG(P12))/LOG(2)))) -> 0 | T12: =N12 -> 1212 | U12: =COUNTIF(L7:L20,T12) -> 0 | V12: =U12/(W4-U20) -> 0 | W12: =IF(V12=0,0,(V12*((LOG(V12))/LOG(2)))) -> 0 | Y12: =N12 -> 1212 | Z12: =COUNTIF(L21:L34,Y12) -> 0 | AA12: =Z12/(AB4-Z20) -> 0 | AB12: =IF(AA12=0,0,(AA12*((LOG(AA12))/LOG(2)))) -> 0 | AD12: =N12 -> 1212 | AE12: =COUNTIF(L35:L47,AD12) -> 0 | AF12: =AE12/(AG4-AE20) -> 0 | AG12: =IF(AF12=0,0,(AF12*((LOG(AF12))/LOG(2)))) -> 0 | AI12: =N12 -> 1212 | AJ12: =COUNTIF(L48:L61,AI12) -> 0 | AK12: =AJ12/(AL4-AJ20) -> 0 | AL12: =IF(AK12=0,0,(AK12*((LOG(AK12))/LOG(2)))) -> 0 | AN12: =N12 -> 1212 | AO12: =COUNTIF(L62:L75,AN12) -> 0 | AP12: =AO12/(AQ4-AO20) -> 0 | AQ12: =IF(AP12=0,0,(AP12*((LOG(AP12))/LOG(2)))) -> 0 | AS12: =N12 -> 1212 | AT12: =COUNTIF(L76:L89,AS12) -> 0 | AU12: =AT12/(AV4-AT20) -> 0 | AV12: =IF(AU12=0,0,(AU12*((LOG(AU12))/LOG(2)))) -> 0
A13: 21 | B13: 807 | C13: 21 | D13: 822 | E13: 22 | F13: 830 | G13: 23 | H13: 837 | K13: 0 | L13: 2222 | N13: 1221 | O13: =COUNTIF($L$7:$L$500,N13) -> 1 | P13: =O13/$Q$4 -> 0.01204819277 | Q13: =IF(P13=0,0,(P13*((LOG(P13))/LOG(2)))) -> -0.07680770399 | T13: =N13 -> 1221 | U13: =COUNTIF(L7:L20,T13) -> 0 | V13: =U13/(W4-U20) -> 0 | W13: =IF(V13=0,0,(V13*((LOG(V13))/LOG(2)))) -> 0 | Y13: =N13 -> 1221 | Z13: =COUNTIF(L21:L34,Y13) -> 0 | AA13: =Z13/(AB4-Z20) -> 0 | AB13: =IF(AA13=0,0,(AA13*((LOG(AA13))/LOG(2)))) -> 0 | AD13: =N13 -> 1221 | AE13: =COUNTIF(L35:L47,AD13) -> 0 | AF13: =AE13/(AG4-AE20) -> 0 | AG13: =IF(AF13=0,0,(AF13*((LOG(AF13))/LOG(2)))) -> 0 | AI13: =N13 -> 1221 | AJ13: =COUNTIF(L48:L61,AI13) -> 0 | AK13: =AJ13/(AL4-AJ20) -> 0 | AL13: =IF(AK13=0,0,(AK13*((LOG(AK13))/LOG(2)))) -> 0 | AN13: =N13 -> 1221 | AO13: =COUNTIF(L62:L75,AN13) -> 0 | AP13: =AO13/(AQ4-AO20) -> 0 | AQ13: =IF(AP13=0,0,(AP13*((LOG(AP13))/LOG(2)))) -> 0 | AS13: =N13 -> 1221 | AT13: =COUNTIF(L76:L89,AS13) -> 1 | AU13: =AT13/(AV4-AT20) -> 0.07142857143 | AV13: =IF(AU13=0,0,(AU13*((LOG(AU13))/LOG(2)))) -> -0.271953923
A14: 12 | B14: 934 | C14: 23 | D14: 947 | E14: 24 | F14: 953 | G14: 23 | H14: 959 | K14: 0 | L14: 1222 | N14: 1222 | O14: =COUNTIF($L$7:$L$500,N14) -> 18 | P14: =O14/$Q$4 -> 0.2168674699 | Q14: =IF(P14=0,0,(P14*((LOG(P14))/LOG(2)))) -> -0.4782175872 | T14: =N14 -> 1222 | U14: =COUNTIF(L7:L20,T14) -> 2 | V14: =U14/(W4-U20) -> 0.1538461538 | W14: =IF(V14=0,0,(V14*((LOG(V14))/LOG(2)))) -> -0.4154522643 | Y14: =N14 -> 1222 | Z14: =COUNTIF(L21:L34,Y14) -> 2 | AA14: =Z14/(AB4-Z20) -> 0.1428571429 | AB14: =IF(AA14=0,0,(AA14*((LOG(AA14))/LOG(2)))) -> -0.4010507032 | AD14: =N14 -> 1222 | AE14: =COUNTIF(L35:L47,AD14) -> 3 | AF14: =AE14/(AG4-AE20) -> 0.2307692308 | AG14: =IF(AF14=0,0,(AF14*((LOG(AF14))/LOG(2)))) -> -0.4881870502 | AI14: =N14 -> 1222 | AJ14: =COUNTIF(L48:L61,AI14) -> 2 | AK14: =AJ14/(AL4-AJ20) -> 0.1428571429 | AL14: =IF(AK14=0,0,(AK14*((LOG(AK14))/LOG(2)))) -> -0.4010507032 | AN14: =N14 -> 1222 | AO14: =COUNTIF(L62:L75,AN14) -> 3 | AP14: =AO14/(AQ4-AO20) -> 0.2142857143 | AQ14: =IF(AP14=0,0,(AP14*((LOG(AP14))/LOG(2)))) -> -0.4762269474 | AS14: =N14 -> 1222 | AT14: =COUNTIF(L76:L89,AS14) -> 6 | AU14: =AT14/(AV4-AT20) -> 0.4285714286 | AV14: =IF(AU14=0,0,(AU14*((LOG(AU14))/LOG(2)))) -> -0.5238824663
A15: 12 | B15: 1056 | C15: 23 | D15: 1064 | E15: 24 | F15: 1068 | G15: 23 | H15: 1074 | K15: 0 | L15: 1222 | N15: 2111 | O15: =COUNTIF($L$7:$L$500,N15) -> 0 | P15: =O15/$Q$4 -> 0 | Q15: =IF(P15=0,0,(P15*((LOG(P15))/LOG(2)))) -> 0 | T15: =N15 -> 2111 | U15: =COUNTIF(L7:L20,T15) -> 0 | V15: =U15/(W4-U20) -> 0 | W15: =IF(V15=0,0,(V15*((LOG(V15))/LOG(2)))) -> 0 | Y15: =N15 -> 2111 | Z15: =COUNTIF(L21:L34,Y15) -> 0 | AA15: =Z15/(AB4-Z20) -> 0 | AB15: =IF(AA15=0,0,(AA15*((LOG(AA15))/LOG(2)))) -> 0 | AD15: =N15 -> 2111 | AE15: =COUNTIF(L35:L47,AD15) -> 0 | AF15: =AE15/(AG4-AE20) -> 0 | AG15: =IF(AF15=0,0,(AF15*((LOG(AF15))/LOG(2)))) -> 0 | AI15: =N15 -> 2111 | AJ15: =COUNTIF(L48:L61,AI15) -> 0 | AK15: =AJ15/(AL4-AJ20) -> 0 | AL15: =IF(AK15=0,0,(AK15*((LOG(AK15))/LOG(2)))) -> 0 | AN15: =N15 -> 2111 | AO15: =COUNTIF(L62:L75,AN15) -> 0 | AP15: =AO15/(AQ4-AO20) -> 0 | AQ15: =IF(AP15=0,0,(AP15*((LOG(AP15))/LOG(2)))) -> 0 | AS15: =N15 -> 2111 | AT15: =COUNTIF(L76:L89,AS15) -> 0 | AU15: =AT15/(AV4-AT20) -> 0 | AV15: =IF(AU15=0,0,(AU15*((LOG(AU15))/LOG(2)))) -> 0
A16: 21 | B16: 1190 | C16: 21 | D16: 1194 | E16: 22 | F16: 1201 | G16: 23 | H16: 1208 | K16: 0 | L16: 2222 | N16: 2112 | O16: =COUNTIF($L$7:$L$500,N16) -> 3 | P16: =O16/$Q$4 -> 0.03614457831 | Q16: =IF(P16=0,0,(P16*((LOG(P16))/LOG(2)))) -> -0.1731353107 | T16: =N16 -> 2112 | U16: =COUNTIF(L7:L20,T16) -> 0 | V16: =U16/(W4-U20) -> 0 | W16: =IF(V16=0,0,(V16*((LOG(V16))/LOG(2)))) -> 0 | Y16: =N16 -> 2112 | Z16: =COUNTIF(L21:L34,Y16) -> 0 | AA16: =Z16/(AB4-Z20) -> 0 | AB16: =IF(AA16=0,0,(AA16*((LOG(AA16))/LOG(2)))) -> 0 | AD16: =N16 -> 2112 | AE16: =COUNTIF(L35:L47,AD16) -> 0 | AF16: =AE16/(AG4-AE20) -> 0 | AG16: =IF(AF16=0,0,(AF16*((LOG(AF16))/LOG(2)))) -> 0 | AI16: =N16 -> 2112 | AJ16: =COUNTIF(L48:L61,AI16) -> 0 | AK16: =AJ16/(AL4-AJ20) -> 0 | AL16: =IF(AK16=0,0,(AK16*((LOG(AK16))/LOG(2)))) -> 0 | AN16: =N16 -> 2112 | AO16: =COUNTIF(L62:L75,AN16) -> 2 | AP16: =AO16/(AQ4-AO20) -> 0.1428571429 | AQ16: =IF(AP16=0,0,(AP16*((LOG(AP16))/LOG(2)))) -> -0.4010507032 | AS16: =N16 -> 2112 | AT16: =COUNTIF(L76:L89,AS16) -> 1 | AU16: =AT16/(AV4-AT20) -> 0.07142857143 | AV16: =IF(AU16=0,0,(AU16*((LOG(AU16))/LOG(2)))) -> -0.271953923
A17: 21 | B17: 1316 | C17: 12 | D17: 1332 | E17: 24 | F17: 1340 | G17: 23 | H17: 1344 | K17: 0 | L17: 2122 | N17: 2121 | O17: =COUNTIF($L$7:$L$500,N17) -> 0 | P17: =O17/$Q$4 -> 0 | Q17: =IF(P17=0,0,(P17*((LOG(P17))/LOG(2)))) -> 0 | T17: =N17 -> 2121 | U17: =COUNTIF(L7:L20,T17) -> 0 | V17: =U17/(W4-U20) -> 0 | W17: =IF(V17=0,0,(V17*((LOG(V17))/LOG(2)))) -> 0 | Y17: =N17 -> 2121 | Z17: =COUNTIF(L21:L34,Y17) -> 0 | AA17: =Z17/(AB4-Z20) -> 0 | AB17: =IF(AA17=0,0,(AA17*((LOG(AA17))/LOG(2)))) -> 0 | AD17: =N17 -> 2121 | AE17: =COUNTIF(L35:L47,AD17) -> 0 | AF17: =AE17/(AG4-AE20) -> 0 | AG17: =IF(AF17=0,0,(AF17*((LOG(AF17))/LOG(2)))) -> 0 | AI17: =N17 -> 2121 | AJ17: =COUNTIF(L48:L61,AI17) -> 0 | AK17: =AJ17/(AL4-AJ20) -> 0 | AL17: =IF(AK17=0,0,(AK17*((LOG(AK17))/LOG(2)))) -> 0 | AN17: =N17 -> 2121 | AO17: =COUNTIF(L62:L75,AN17) -> 0 | AP17: =AO17/(AQ4-AO20) -> 0 | AQ17: =IF(AP17=0,0,(AP17*((LOG(AP17))/LOG(2)))) -> 0 | AS17: =N17 -> 2121 | AT17: =COUNTIF(L76:L89,AS17) -> 0 | AU17: =AT17/(AV4-AT20) -> 0 | AV17: =IF(AU17=0,0,(AU17*((LOG(AU17))/LOG(2)))) -> 0
A18: 21 | B18: 1473 | C18: 21 | D18: 1479 | E18: 22 | F18: 1483 | G18: 23 | H18: 1488 | K18: 0 | L18: 2222 | N18: 2122 | O18: =COUNTIF($L$7:$L$500,N18) -> 1 | P18: =O18/$Q$4 -> 0.01204819277 | Q18: =IF(P18=0,0,(P18*((LOG(P18))/LOG(2)))) -> -0.07680770399 | T18: =N18 -> 2122 | U18: =COUNTIF(L7:L20,T18) -> 1 | V18: =U18/(W4-U20) -> 0.07692307692 | W18: =IF(V18=0,0,(V18*((LOG(V18))/LOG(2)))) -> -0.2846492091 | Y18: =N18 -> 2122 | Z18: =COUNTIF(L21:L34,Y18) -> 0 | AA18: =Z18/(AB4-Z20) -> 0 | AB18: =IF(AA18=0,0,(AA18*((LOG(AA18))/LOG(2)))) -> 0 | AD18: =N18 -> 2122 | AE18: =COUNTIF(L35:L47,AD18) -> 0 | AF18: =AE18/(AG4-AE20) -> 0 | AG18: =IF(AF18=0,0,(AF18*((LOG(AF18))/LOG(2)))) -> 0 | AI18: =N18 -> 2122 | AJ18: =COUNTIF(L48:L61,AI18) -> 0 | AK18: =AJ18/(AL4-AJ20) -> 0 | AL18: =IF(AK18=0,0,(AK18*((LOG(AK18))/LOG(2)))) -> 0 | AN18: =N18 -> 2122 | AO18: =COUNTIF(L62:L75,AN18) -> 0 | AP18: =AO18/(AQ4-AO20) -> 0 | AQ18: =IF(AP18=0,0,(AP18*((LOG(AP18))/LOG(2)))) -> 0 | AS18: =N18 -> 2122 | AT18: =COUNTIF(L76:L89,AS18) -> 0 | AU18: =AT18/(AV4-AT20) -> 0 | AV18: =IF(AU18=0,0,(AU18*((LOG(AU18))/LOG(2)))) -> 0
A19: 12 | B19: 1598 | C19: 14 | D19: 1605 | E19: 24 | F19: 1613 | G19: 23 | H19: 1624 | K19: 0 | L19: 1122 | N19: 2211 | O19: =COUNTIF($L$7:$L$500,N19) -> 0 | P19: =O19/$Q$4 -> 0 | Q19: =IF(P19=0,0,(P19*((LOG(P19))/LOG(2)))) -> 0 | T19: =N19 -> 2211 | U19: =COUNTIF(L7:L20,T19) -> 0 | V19: =U19/(W4-U20) -> 0 | W19: =IF(V19=0,0,(V19*((LOG(V19))/LOG(2)))) -> 0 | Y19: =N19 -> 2211 | Z19: =COUNTIF(L21:L34,Y19) -> 0 | AA19: =Z19/(AB4-Z20) -> 0 | AB19: =IF(AA19=0,0,(AA19*((LOG(AA19))/LOG(2)))) -> 0 | AD19: =N19 -> 2211 | AE19: =COUNTIF(L35:L47,AD19) -> 0 | AF19: =AE19/(AG4-AE20) -> 0 | AG19: =IF(AF19=0,0,(AF19*((LOG(AF19))/LOG(2)))) -> 0 | AI19: =N19 -> 2211 | AJ19: =COUNTIF(L48:L61,AI19) -> 0 | AK19: =AJ19/(AL4-AJ20) -> 0 | AL19: =IF(AK19=0,0,(AK19*((LOG(AK19))/LOG(2)))) -> 0 | AN19: =N19 -> 2211 | AO19: =COUNTIF(L62:L75,AN19) -> 0 | AP19: =AO19/(AQ4-AO20) -> 0 | AQ19: =IF(AP19=0,0,(AP19*((LOG(AP19))/LOG(2)))) -> 0 | AS19: =N19 -> 2211 | AT19: =COUNTIF(L76:L89,AS19) -> 0 | AU19: =AT19/(AV4-AT20) -> 0 | AV19: =IF(AU19=0,0,(AU19*((LOG(AU19))/LOG(2)))) -> 0
A20: 12 | B20: 1721 | C20: 14 | D20: 1724 | E20: 24 | F20: 1732 | G20: 23 | H20: 1736 | K20: 0 | L20: 1122 | N20: 2212 | O20: =COUNTIF($L$7:$L$500,N20) -> 1 | P20: =O20/$Q$4 -> 0.01204819277 | Q20: =IF(P20=0,0,(P20*((LOG(P20))/LOG(2)))) -> -0.07680770399 | T20: =N20 -> 2212 | U20: =COUNTIF(L7:L20,T20) -> 1 | Y20: =N20 -> 2212 | Z20: =COUNTIF(L21:L34,Y20) -> 0 | AD20: =N20 -> 2212 | AE20: =COUNTIF(L35:L47,AD20) -> 0 | AI20: =N20 -> 2212 | AJ20: =COUNTIF(L48:L61,AI20) -> 0 | AN20: =N20 -> 2212 | AO20: =COUNTIF(L62:L75,AN20) -> 0 | AS20: =N20 -> 2212 | AT20: =COUNTIF(L76:L89,AS20) -> 0
A21: 12 | B21: 1831 | C21: 14 | D21: 1839 | E21: 24 | F21: 1847 | G21: 23 | H21: 1859 | K21: 0 | L21: 1122 | N21: 2221 | O21: =COUNTIF($L$7:$L$500,N21) -> 0 | P21: =O21/$Q$4 -> 0 | Q21: =IF(P21=0,0,(P21*((LOG(P21))/LOG(2)))) -> 0 | T21: =N21 -> 2221 | U21: =COUNTIF(L7:L20,T21) -> 0 | V21: =U21/(W4-U20) -> 0 | W21: =IF(V21=0,0,(V21*((LOG(V21))/LOG(2)))) -> 0 | Y21: =N21 -> 2221 | Z21: =COUNTIF(L21:L34,Y21) -> 0 | AA21: =Z21/(AB4-Z20) -> 0 | AB21: =IF(AA21=0,0,(AA21*((LOG(AA21))/LOG(2)))) -> 0 | AD21: =N21 -> 2221 | AE21: =COUNTIF(L35:L47,AD21) -> 0 | AF21: =AE21/(AG4-AE20) -> 0 | AG21: =IF(AF21=0,0,(AF21*((LOG(AF21))/LOG(2)))) -> 0 | AI21: =N21 -> 2221 | AJ21: =COUNTIF(L48:L61,AI21) -> 0 | AK21: =AJ21/(AL4-AJ20) -> 0 | AL21: =IF(AK21=0,0,(AK21*((LOG(AK21))/LOG(2)))) -> 0 | AN21: =N21 -> 2221 | AO21: =COUNTIF(L62:L75,AN21) -> 0 | AP21: =AO21/(AQ4-AO20) -> 0 | AQ21: =IF(AP21=0,0,(AP21*((LOG(AP21))/LOG(2)))) -> 0 | AS21: =N21 -> 2221 | AT21: =COUNTIF(L76:L89,AS21) -> 0 | AU21: =AT21/(AV4-AT20) -> 0 | AV21: =IF(AU21=0,0,(AU21*((LOG(AU21))/LOG(2)))) -> 0
A22: 12 | B22: 1963 | C22: 14 | D22: 1969 | E22: 24 | F22: 1977 | G22: 23 | H22: 1980 | K22: 0 | L22: 1122 | N22: 2222 | O22: =COUNTIF($L$7:$L$500,N22) -> 23 | P22: =O22/$Q$4 -> 0.2771084337 | Q22: =IF(P22=0,0,(P22*((LOG(P22))/LOG(2)))) -> -0.5130600233 | T22: =N22 -> 2222 | U22: =COUNTIF(L7:L20,T22) -> 8 | V22: =U22/(W4-U20) -> 0.6153846154 | W22: =IF(V22=0,0,(V22*((LOG(V22))/LOG(2)))) -> -0.4310398265 | Y22: =N22 -> 2222 | Z22: =COUNTIF(L21:L34,Y22) -> 0 | AA22: =Z22/(AB4-Z20) -> 0 | AB22: =IF(AA22=0,0,(AA22*((LOG(AA22))/LOG(2)))) -> 0 | AD22: =N22 -> 2222 | AE22: =COUNTIF(L35:L47,AD22) -> 0 | AF22: =AE22/(AG4-AE20) -> 0 | AG22: =IF(AF22=0,0,(AF22*((LOG(AF22))/LOG(2)))) -> 0 | AI22: =N22 -> 2222 | AJ22: =COUNTIF(L48:L61,AI22) -> 1 | AK22: =AJ22/(AL4-AJ20) -> 0.07142857143 | AL22: =IF(AK22=0,0,(AK22*((LOG(AK22))/LOG(2)))) -> -0.271953923 | AN22: =N22 -> 2222 | AO22: =COUNTIF(L62:L75,AN22) -> 8 | AP22: =AO22/(AQ4-AO20) -> 0.5714285714 | AQ22: =IF(AP22=0,0,(AP22*((LOG(AP22))/LOG(2)))) -> -0.4613456697 | AS22: =N22 -> 2222 | AT22: =COUNTIF(L76:L89,AS22) -> 6 | AU22: =AT22/(AV4-AT20) -> 0.4285714286 | AV22: =IF(AU22=0,0,(AU22*((LOG(AU22))/LOG(2)))) -> -0.5238824663
A23: 12 | B23: 2075 | C23: 14 | D23: 2081 | E23: 13 | F23: 2085 | G23: 23 | H23: 2093 | K23: 0 | L23: 1112 | P23: =SUM(P7:P22) -> 1 | Q23: =-SUM(Q7:Q22) -> 2.52135916 | V23: =SUM(V7:V22) -> 1 | W23: =-SUM(W7:W22) -> 1.546593564 | AA23: =SUM(AA7:AA22) -> 1 | AB23: =-SUM(AB7:AB22) -> 1.431560284 | AF23: =SUM(AF7:AF22) -> 1 | AG23: =-SUM(AG7:AG22) -> 1.775858948 | AK23: =SUM(AK7:AK22) -> 1 | AL23: =-SUM(AL7:AL22) -> 2.005977711 | AP23: =SUM(AP7:AP22) -> 1 | AQ23: =-SUM(AQ7:AQ22) -> 1.610577243 | AU23: =SUM(AU7:AU22) -> 1 | AV23: =-SUM(AV7:AV22) -> 1.591672779
A24: 12 | B24: 2189 | C24: 23 | D24: 2206 | E24: 24 | F24: 2219 | G24: 23 | H24: 2228 | K24: 0 | L24: 1222 | P24: U= | Q24: =Q23/(LOG(Q4)/LOG(2)) -> 0.3955048729 | V24: U1= | W24: =W23/(LOG(W4)/LOG(2)) -> 0.4062120806 | AA24: U2= | AB24: =AB23/(LOG(AB4)/LOG(2)) -> 0.375998643 | AF24: U3= | AG24: =AG23/(LOG(AG4)/LOG(2)) -> 0.4799048447 | AK24: U4= | AL24: =AL23/(LOG(AL4)/LOG(2)) -> 0.5268691132 | AP24: U5= | AQ24: =AQ23/(LOG(AQ4)/LOG(2)) -> 0.4230173641 | AU24: U6= | AV24: =AV23/(LOG(AV4)/LOG(2)) -> 0.4180521152
A25: 12 | B25: 2330 | C25: 14 | D25: 2337 | E25: 24 | F25: 2346 | G25: 23 | H25: 2356 | K25: 0 | L25: 1122
A26: 12 | B26: 2462 | C26: 14 | D26: 2464 | E26: 24 | F26: 2485 | G26: 23 | H26: 2497 | K26: 0 | L26: 1122
A27: 12 | B27: 2592 | C27: 14 | D27: 2597 | E27: 13 | F27: 2608 | G27: 23 | H27: 2647 | K27: 0 | L27: 1112 | N27: Total Target Seq
A28: 12 | B28: 2744 | C28: 23 | D28: 2758 | E28: 24 | F28: 2770 | G28: 23 | H28: 2777 | K28: 0 | L28: 1222 | N28: =COUNTIF(L7:L89,G3) -> 1 | P28: 14 | Q28: 14 | R28: 13 | S28: 14 | T28: 14 | U28: 14
A29: 12 | B29: 2872 | C29: 14 | D29: 2881 | E29: 24 | F29: 2888 | G29: 23 | H29: 2891 | K29: 0 | L29: 1122 | P29: % of reinforcement given in 6 equal intervals based on number of trials
A30: 12 | B30: 2987 | C30: 14 | D30: 2992 | E30: 13 | F30: 2996 | G30: 23 | H30: 3004 | K30: 0 | L30: 1112 | P30: %_1 | Q30: %_2 | R30: %_3 | S30: %_4 | T30: %_5 | U30: %_6
A31: 12 | B31: 3174 | C31: 14 | D31: 3178 | E31: 24 | F31: 3187 | G31: 23 | H31: 3191 | K31: 0 | L31: 1122 | O31: target sequence | P31: =$G$3 -> 2212 | Q31: =$G$3 -> 2212 | R31: =$G$3 -> 2212 | S31: =$G$3 -> 2212 | T31: =$G$3 -> 2212 | U31: =$G$3 -> 2212
A32: 12 | B32: 3289 | C32: 14 | D32: 3295 | E32: 13 | F32: 3300 | G32: 23 | H32: 3308 | K32: 0 | L32: 1112 | O32: total reinforcement | P32: =U20 -> 1 | Q32: =Z20 -> 0 | R32: =AE20 -> 0 | S32: =AJ20 -> 0 | T32: =AO20 -> 0 | U32: =AT20 -> 0
A33: 12 | B33: 3403 | C33: 14 | D33: 3408 | E33: 24 | F33: 3417 | G33: 23 | H33: 3421 | K33: 0 | L33: 1122 | O33: % target
A34: 12 | B34: 3518 | C34: 14 | D34: 3521 | E34: 13 | F34: 3526 | G34: 23 | H34: 3536 | K34: 0 | L34: 1112 | O34: CCRF
A35: 12 | B35: 3632 | C35: 14 | D35: 3636 | E35: 13 | F35: 3644 | G35: 23 | H35: 3652 | K35: 0 | L35: 1112 | O35: % CCRf
A36: 12 | B36: 3748 | C36: 14 | D36: 3761 | E36: 13 | F36: 3766 | G36: 14 | H36: 3772 | K36: 0 | L36: 1111 | O36: average response rate | P36: =H20/P28 -> 124 | Q36: =(H34-H20)/Q28 -> 128.5714286 | R36: =(H47-H34)/R28 -> 129.2307692 | S36: =(H61-H47)/S28 -> 138.2142857 | T36: =(H75-H61)/T28 -> 331.2142857 | U36: =(H89-H75)/U28 -> 574.1428571
A37: 12 | B37: 3871 | C37: 23 | D37: 3881 | E37: 24 | F37: 3884 | G37: 23 | H37: 3890 | K37: 0 | L37: 1222
A38: 12 | B38: 3985 | C38: 14 | D38: 3990 | E38: 13 | F38: 3994 | G38: 14 | H38: 3998 | K38: 0 | L38: 1111
A39: 12 | B39: 4100 | C39: 23 | D39: 4115 | E39: 24 | F39: 4120 | G39: 23 | H39: 4126 | K39: 0 | L39: 1222
A40: 12 | B40: 4333 | C40: 14 | D40: 4340 | E40: 13 | F40: 4346 | G40: 23 | H40: 4360 | K40: 0 | L40: 1112
A41: 12 | B41: 4456 | C41: 14 | D41: 4464 | E41: 13 | F41: 4468 | G41: 23 | H41: 4477 | K41: 0 | L41: 1112
A42: 12 | B42: 4574 | C42: 14 | D42: 4578 | E42: 13 | F42: 4584 | G42: 23 | H42: 4593 | K42: 0 | L42: 1112
A43: 12 | B43: 4694 | C43: 14 | D43: 4699 | E43: 13 | F43: 4708 | G43: 14 | H43: 4716 | K43: 0 | L43: 1111
A44: 12 | B44: 4830 | C44: 23 | D44: 4848 | E44: 24 | F44: 4854 | G44: 23 | H44: 4861 | K44: 0 | L44: 1222
A45: 12 | B45: 4955 | C45: 14 | D45: 4962 | E45: 13 | F45: 4975 | G45: 23 | H45: 4983 | K45: 0 | L45: 1112
A46: 12 | B46: 5082 | C46: 14 | D46: 5089 | E46: 24 | F46: 5098 | G46: 23 | H46: 5103 | K46: 0 | L46: 1122
A47: 12 | B47: 5200 | C47: 14 | D47: 5203 | E47: 13 | F47: 5208 | G47: 23 | H47: 5216 | K47: 0 | L47: 1112
A48: 12 | B48: 5323 | C48: 14 | D48: 5327 | E48: 24 | F48: 5335 | G48: 23 | H48: 5338 | K48: 0 | L48: 1122
A49: 12 | B49: 5434 | C49: 14 | D49: 5443 | E49: 24 | F49: 5451 | G49: 23 | H49: 5464 | K49: 0 | L49: 1122
A50: 12 | B50: 5561 | C50: 14 | D50: 5567 | E50: 24 | F50: 5576 | G50: 23 | H50: 5579 | K50: 0 | L50: 1122
A51: 12 | B51: 5673 | C51: 14 | D51: 5679 | E51: 13 | F51: 5691 | G51: 23 | H51: 5700 | K51: 0 | L51: 1112
A52: 21 | B52: 5812 | C52: 21 | D52: 5816 | E52: 22 | F52: 5822 | G52: 23 | H52: 5828 | K52: 0 | L52: 2222
A53: 12 | B53: 5925 | C53: 14 | D53: 5931 | E53: 24 | F53: 5939 | G53: 23 | H53: 5942 | K53: 0 | L53: 1122
A54: 12 | B54: 6080 | C54: 14 | D54: 6085 | E54: 13 | F54: 6087 | G54: 14 | H54: 6092 | K54: 0 | L54: 1111
A55: 12 | B55: 6188 | C55: 14 | D55: 6192 | E55: 13 | F55: 6197 | G55: 23 | H55: 6205 | K55: 0 | L55: 1112
A56: 12 | B56: 6505 | C56: 14 | D56: 6509 | E56: 13 | F56: 6513 | G56: 23 | H56: 6531 | K56: 0 | L56: 1112
A57: 12 | B57: 6640 | C57: 14 | D57: 6644 | E57: 13 | F57: 6649 | G57: 23 | H57: 6662 | K57: 0 | L57: 1112
A58: 12 | B58: 6774 | C58: 14 | D58: 6778 | E58: 13 | F58: 6785 | G58: 23 | H58: 6793 | K58: 0 | L58: 1112
A59: 12 | B59: 6890 | C59: 14 | D59: 6898 | E59: 24 | F59: 6906 | G59: 23 | H59: 6910 | K59: 0 | L59: 1122
A60: 12 | B60: 7009 | C60: 23 | D60: 7021 | E60: 24 | F60: 7025 | G60: 23 | H60: 7031 | K60: 0 | L60: 1222
A61: 12 | B61: 7127 | C61: 23 | D61: 7140 | E61: 24 | F61: 7145 | G61: 23 | H61: 7151 | K61: 0 | L61: 1222
A62: 12 | B62: 7252 | C62: 23 | D62: 7266 | E62: 24 | F62: 7271 | G62: 23 | H62: 7277 | K62: 0 | L62: 1222
A63: 21 | B63: 7376 | C63: 21 | D63: 7383 | E63: 22 | F63: 7387 | G63: 23 | H63: 7397 | K63: 0 | L63: 2222
A64: 21 | B64: 7512 | C64: 12 | D64: 7519 | E64: 13 | F64: 7523 | G64: 23 | H64: 7536 | K64: 0 | L64: 2112
A65: 21 | B65: 7705 | C65: 21 | D65: 7711 | E65: 22 | F65: 7720 | G65: 23 | H65: 7725 | K65: 0 | L65: 2222
A66: 21 | B66: 7854 | C66: 12 | D66: 7863 | E66: 13 | F66: 7866 | G66: 23 | H66: 7875 | K66: 0 | L66: 2112
A67: 21 | B67: 8009 | C67: 21 | D67: 8017 | E67: 22 | F67: 8023 | G67: 23 | H67: 8029 | K67: 0 | L67: 2222
A68: 12 | B68: 8129 | C68: 14 | D68: 8132 | E68: 24 | F68: 8140 | G68: 23 | H68: 8144 | K68: 0 | L68: 1122
A69: 12 | B69: 8247 | C69: 23 | D69: 8262 | E69: 24 | F69: 8265 | G69: 23 | H69: 8269 | K69: 0 | L69: 1222
A70: 21 | B70: 8415 | C70: 21 | D70: 8420 | E70: 22 | F70: 8431 | G70: 23 | H70: 8434 | K70: 0 | L70: 2222
A71: 12 | B71: 10634 | C71: 23 | D71: 10647 | E71: 24 | F71: 10872 | G71: 23 | H71: 10876 | K71: 0 | L71: 1222
A72: 21 | B72: 11408 | C72: 21 | D72: 11412 | E72: 22 | F72: 11420 | G72: 23 | H72: 11424 | K72: 0 | L72: 2222
A73: 21 | B73: 11542 | C73: 21 | D73: 11544 | E73: 22 | F73: 11550 | G73: 23 | H73: 11555 | K73: 0 | L73: 2222
A74: 21 | B74: 11658 | C74: 21 | D74: 11663 | E74: 22 | F74: 11667 | G74: 23 | H74: 11673 | K74: 0 | L74: 2222
A75: 21 | B75: 11774 | C75: 21 | D75: 11779 | E75: 22 | F75: 11784 | G75: 23 | H75: 11788 | K75: 0 | L75: 2222
A76: 21 | B76: 11894 | C76: 21 | D76: 11899 | E76: 22 | F76: 11906 | G76: 23 | H76: 11912 | K76: 0 | L76: 2222
A77: 21 | B77: 12012 | C77: 21 | D77: 12016 | E77: 22 | F77: 12025 | G77: 23 | H77: 12031 | K77: 0 | L77: 2222
A78: 21 | B78: 12128 | C78: 21 | D78: 12132 | E78: 22 | F78: 12137 | G78: 23 | H78: 12142 | K78: 0 | L78: 2222
A79: 21 | B79: 12257 | C79: 21 | D79: 12262 | E79: 22 | F79: 12265 | G79: 23 | H79: 12269 | K79: 0 | L79: 2222
A80: 21 | B80: 12381 | C80: 21 | D80: 12386 | E80: 22 | F80: 12392 | G80: 23 | H80: 12397 | K80: 0 | L80: 2222
A81: 12 | B81: 14211 | C81: 23 | D81: 14225 | E81: 24 | F81: 14227 | G81: 23 | H81: 14233 | K81: 0 | L81: 1222
A82: 21 | B82: 14442 | C82: 12 | D82: 14455 | E82: 13 | F82: 14461 | G82: 23 | H82: 14474 | K82: 0 | L82: 2112
A83: 21 | B83: 14799 | C83: 21 | D83: 14800 | E83: 22 | F83: 14805 | G83: 23 | H83: 14810 | K83: 0 | L83: 2222
A84: 12 | B84: 15070 | C84: 23 | D84: 15079 | E84: 24 | F84: 15084 | G84: 23 | H84: 15090 | K84: 0 | L84: 1222
A85: 12 | B85: 15872 | C85: 23 | D85: 15876 | E85: 24 | F85: 16235 | G85: 23 | H85: 16242 | K85: 0 | L85: 1222
A86: 12 | B86: 18139 | C86: 23 | D86: 18150 | E86: 24 | F86: 18154 | G86: 23 | H86: 18159 | K86: 0 | L86: 1222
A87: 12 | B87: 19180 | C87: 23 | D87: 19188 | E87: 24 | F87: 19192 | G87: 23 | H87: 19198 | K87: 0 | L87: 1222
A88: 12 | B88: 19369 | C88: 23 | D88: 19380 | E88: 24 | F88: 19385 | G88: 23 | H88: 19390 | K88: 0 | L88: 1222
A89: 12 | B89: 19568 | C89: 23 | D89: 19579 | E89: 24 | F89: 19583 | G89: 14 | H89: 19826 | K89: 0 | L89: 1221

Sheet !LB13A24..Is
A1: Report for:!LB13A24..Is
A2: Date: | B2: <date>
A3: Hen: | B3: <hen> | F3: Correct Sequence | G3: =Start!J2 -> 2212 | P3: Total Sequences in Data | Q3: =4994-COUNTBLANK(L7:L5000) -> 134 | V3: Total Sequences in Block Data | W3: =COUNTA(L7:L28) -> 22 | AA3: Total Sequences in Block Data | AB3: =COUNTA(L29:L51) -> 23 | AF3: Total Sequences in Block Data | AG3: =COUNTA(L52:L73) -> 22 | AK3: Total Sequences in Block Data | AL3: =COUNTA(L74:L95) -> 22 | AP3: Total Sequences in Block Data | AQ3: =COUNTA(L96:L118) -> 23 | AU3: Total Sequences in Block Data | AV3: =COUNTA(L119:L140) -> 22
P4: Total Sequences in Summary | Q4: =SUM(O7:O22) -> 134 | V4: Total Sequences in Block Summary | W4: =SUM(U7:U22) -> 22 | AA4: Total Sequences in Block Summary | AB4: =SUM(Z7:Z22) -> 23 | AF4: Total Sequences in Block Summary | AG4: =SUM(AE7:AE22) -> 22 | AK4: Total Sequences in Block Summary | AL4: =SUM(AJ7:AJ22) -> 22 | AP4: Total Sequences in Block Summary | AQ4: =SUM(AO7:AO22) -> 23 | AU4: Total Sequences in Block Summary | AV4: =SUM(AT7:AT22) -> 22
T5: Block 1 | Y5: Block 2 | AD5: Block 3 | AI5: Block 4 | AN5: Block 5 | AS5: Block 6
A6: Sequence Component 1 | B6: Time 1 | C6: Sequence Component 2 | D6: Time 2 | E6: Sequence Component 3 | F6: Time 3 | G6: Sequence Component 4 | H6: Time 4 | I6: Sequence Component 5 | J6: Time 5 | K6: Correct? 0=No 1=Yes | L6: Sequence | N6: Frequency | P6: Relative Frequency | Q6: Variability | T6: Frequency | V6: Relative Frequency | W6: Variability | Y6: Frequency | AA6: Relative Frequency | AB6: Variability | AD6: Frequency | AF6: Relative Frequency | AG6: Variability | AI6: Frequency | AK6: Relative Frequency | AL6: Variability | AN6: Frequency | AP6: Relative Frequency | AQ6: Variability | AS6: Frequency | AU6: Relative Frequency | AV6: Variability
A7: 21 | B7: 33 | C7: 21 | D7: 37 | E7: 22 | F7: 43 | G7: 23 | H7: 50 | K7: 0 | L7: 2222 | N7: 1111 | O7: =COUNTIF($L$7:$L$500,N7) -> 9 | P7: =O7/$Q$4 -> 0.0671641791 | Q7: =IF(P7=0,0,(P7*((LOG(P7))/LOG(2)))) -> -0.2616826694 | T7: =N7 -> 1111 | U7: =COUNTIF(L7:L28,T7) -> 0 | V7: =U7/(W4-U20) -> 0 | W7: =IF(V7=0,0,(V7*((LOG(V7))/LOG(2)))) -> 0 | Y7: =N7 -> 1111 | Z7: =COUNTIF(L29:L51,Y7) -> 3 | AA7: =Z7/(AB4-Z20) -> 0.1304347826 | AB7: =IF(AA7=0,0,(AA7*((LOG(AA7))/LOG(2)))) -> -0.3832955811 | AD7: =N7 -> 1111 | AE7: =COUNTIF(L52:L73,AD7) -> 2 | AF7: =AE7/(AG4-AE20) -> 0.1 | AG7: =IF(AF7=0,0,(AF7*((LOG(AF7))/LOG(2)))) -> -0.3321928095 | AI7: =N7 -> 1111 | AJ7: =COUNTIF(L74:L95,AI7) -> 2 | AK7: =AJ7/(AL4-AJ20) -> 0.09090909091 | AL7: =IF(AK7=0,0,(AK7*((LOG(AK7))/LOG(2)))) -> -0.3144937835 | AN7: =N7 -> 1111 | AO7: =COUNTIF(L96:L118,AN7) -> 2 | AP7: =AO7/(AQ4-AO20) -> 0.08695652174 | AQ7: =IF(AP7=0,0,(AP7*((LOG(AP7))/LOG(2)))) -> -0.3063966918 | AS7: =N7 -> 1111 | AT7: =COUNTIF(L119:L140,AS7) -> 0 | AU7: =AT7/(AV4-AT20) -> 0 | AV7: =IF(AU7=0,0,(AU7*((LOG(AU7))/LOG(2)))) -> 0
A8: 21 | B8: 146 | C8: 21 | D8: 163 | E8: 22 | F8: 166 | G8: 14 | H8: 189 | K8: 0 | L8: 2221 | N8: 1112 | O8: =COUNTIF($L$7:$L$500,N8) -> 28 | P8: =O8/$Q$4 -> 0.2089552239 | Q8: =IF(P8=0,0,(P8*((LOG(P8))/LOG(2)))) -> -0.4719743247 | T8: =N8 -> 1112 | U8: =COUNTIF(L7:L28,T8) -> 1 | V8: =U8/(W4-U20) -> 0.04545454545 | W8: =IF(V8=0,0,(V8*((LOG(V8))/LOG(2)))) -> -0.2027014372 | Y8: =N8 -> 1112 | Z8: =COUNTIF(L29:L51,Y8) -> 4 | AA8: =Z8/(AB4-Z20) -> 0.1739130435 | AB8: =IF(AA8=0,0,(AA8*((LOG(AA8))/LOG(2)))) -> -0.4388803402 | AD8: =N8 -> 1112 | AE8: =COUNTIF(L52:L73,AD8) -> 2 | AF8: =AE8/(AG4-AE20) -> 0.1 | AG8: =IF(AF8=0,0,(AF8*((LOG(AF8))/LOG(2)))) -> -0.3321928095 | AI8: =N8 -> 1112 | AJ8: =COUNTIF(L74:L95,AI8) -> 9 | AK8: =AJ8/(AL4-AJ20) -> 0.4090909091 | AL8: =IF(AK8=0,0,(AK8*((LOG(AK8))/LOG(2)))) -> -0.5275254343 | AN8: =N8 -> 1112 | AO8: =COUNTIF(L96:L118,AN8) -> 9 | AP8: =AO8/(AQ4-AO20) -> 0.3913043478 | AQ8: =IF(AP8=0,0,(AP8*((LOG(AP8))/LOG(2)))) -> -0.5296840257 | AS8: =N8 -> 1112 | AT8: =COUNTIF(L119:L140,AS8) -> 3 | AU8: =AT8/(AV4-AT20) -> 0.1363636364 | AV8: =IF(AU8=0,0,(AU8*((LOG(AU8))/LOG(2)))) -> -0.3919730615
A9: 12 | B9: 289 | C9: 23 | D9: 297 | E9: 24 | F9: 300 | G9: 23 | H9: 305 | K9: 0 | L9: 1222 | N9: 1121 | O9: =COUNTIF($L$7:$L$500,N9) -> 0 | P9: =O9/$Q$4 -> 0 | Q9: =IF(P9=0,0,(P9*((LOG(P9))/LOG(2)))) -> 0 | T9: =N9 -> 1121 | U9: =COUNTIF(L7:L28,T9) -> 0 | V9: =U9/(W4-U20) -> 0 | W9: =IF(V9=0,0,(V9*((LOG(V9))/LOG(2)))) -> 0 | Y9: =N9 -> 1121 | Z9: =COUNTIF(L29:L51,Y9) -> 0 | AA9: =Z9/(AB4-Z20) -> 0 | AB9: =IF(AA9=0,0,(AA9*((LOG(AA9))/LOG(2)))) -> 0 | AD9: =N9 -> 1121 | AE9: =COUNTIF(L52:L73,AD9) -> 0 | AF9: =AE9/(AG4-AE20) -> 0 | AG9: =IF(AF9=0,0,(AF9*((LOG(AF9))/LOG(2)))) -> 0 | AI9: =N9 -> 1121 | AJ9: =COUNTIF(L74:L95,AI9) -> 0 | AK9: =AJ9/(AL4-AJ20) -> 0 | AL9: =IF(AK9=0,0,(AK9*((LOG(AK9))/LOG(2)))) -> 0 | AN9: =N9 -> 1121 | AO9: =COUNTIF(L96:L118,AN9) -> 0 | AP9: =AO9/(AQ4-AO20) -> 0 | AQ9: =IF(AP9=0,0,(AP9*((LOG(AP9))/LOG(2)))) -> 0 | AS9: =N9 -> 1121 | AT9: =COUNTIF(L119:L140,AS9) -> 0 | AU9: =AT9/(AV4-AT20) -> 0 | AV9: =IF(AU9=0,0,(AU9*((LOG(AU9))/LOG(2)))) -> 0
A10: 12 | B10: 403 | C10: 23 | D10: 412 | E10: 24 | F10: 416 | G10: 23 | H10: 422 | K10: 0 | L10: 1222 | N10: 1122 | O10: =COUNTIF($L$7:$L$500,N10) -> 49 | P10: =O10/$Q$4 -> 0.3656716418 | Q10: =IF(P10=0,0,(P10*((LOG(P10))/LOG(2)))) -> -0.5307282684 | T10: =N10 -> 1122 | U10: =COUNTIF(L7:L28,T10) -> 10 | V10: =U10/(W4-U20) -> 0.4545454545 | W10: =IF(V10=0,0,(V10*((LOG(V10))/LOG(2)))) -> -0.5170470562 | Y10: =N10 -> 1122 | Z10: =COUNTIF(L29:L51,Y10) -> 10 | AA10: =Z10/(AB4-Z20) -> 0.4347826087 | AB10: =IF(AA10=0,0,(AA10*((LOG(AA10))/LOG(2)))) -> -0.5224495049 | AD10: =N10 -> 1122 | AE10: =COUNTIF(L52:L73,AD10) -> 7 | AF10: =AE10/(AG4-AE20) -> 0.35 | AG10: =IF(AF10=0,0,(AF10*((LOG(AF10))/LOG(2)))) -> -0.5301006105 | AI10: =N10 -> 1122 | AJ10: =COUNTIF(L74:L95,AI10) -> 8 | AK10: =AJ10/(AL4-AJ20) -> 0.3636363636 | AL10: =IF(AK10=0,0,(AK10*((LOG(AK10))/LOG(2)))) -> -0.5307024068 | AN10: =N10 -> 1122 | AO10: =COUNTIF(L96:L118,AN10) -> 6 | AP10: =AO10/(AQ4-AO20) -> 0.2608695652 | AQ10: =IF(AP10=0,0,(AP10*((LOG(AP10))/LOG(2)))) -> -0.505721597 | AS10: =N10 -> 1122 | AT10: =COUNTIF(L119:L140,AS10) -> 8 | AU10: =AT10/(AV4-AT20) -> 0.3636363636 | AV10: =IF(AU10=0,0,(AU10*((LOG(AU10))/LOG(2)))) -> -0.5307024068
A11: 12 | B11: 517 | C11: 14 | D11: 523 | E11: 24 | F11: 534 | G11: 23 | H11: 539 | K11: 0 | L11: 1122 | N11: 1211 | O11: =COUNTIF($L$7:$L$500,N11) -> 0 | P11: =O11/$Q$4 -> 0 | Q11: =IF(P11=0,0,(P11*((LOG(P11))/LOG(2)))) -> 0 | T11: =N11 -> 1211 | U11: =COUNTIF(L7:L28,T11) -> 0 | V11: =U11/(W4-U20) -> 0 | W11: =IF(V11=0,0,(V11*((LOG(V11))/LOG(2)))) -> 0 | Y11: =N11 -> 1211 | Z11: =COUNTIF(L29:L51,Y11) -> 0 | AA11: =Z11/(AB4-Z20) -> 0 | AB11: =IF(AA11=0,0,(AA11*((LOG(AA11))/LOG(2)))) -> 0 | AD11: =N11 -> 1211 | AE11: =COUNTIF(L52:L73,AD11) -> 0 | AF11: =AE11/(AG4-AE20) -> 0 | AG11: =IF(AF11=0,0,(AF11*((LOG(AF11))/LOG(2)))) -> 0 | AI11: =N11 -> 1211 | AJ11: =COUNTIF(L74:L95,AI11) -> 0 | AK11: =AJ11/(AL4-AJ20) -> 0 | AL11: =IF(AK11=0,0,(AK11*((LOG(AK11))/LOG(2)))) -> 0 | AN11: =N11 -> 1211 | AO11: =COUNTIF(L96:L118,AN11) -> 0 | AP11: =AO11/(AQ4-AO20) -> 0 | AQ11: =IF(AP11=0,0,(AP11*((LOG(AP11))/LOG(2)))) -> 0 | AS11: =N11 -> 1211 | AT11: =COUNTIF(L119:L140,AS11) -> 0 | AU11: =AT11/(AV4-AT20) -> 0 | AV11: =IF(AU11=0,0,(AU11*((LOG(AU11))/LOG(2)))) -> 0
A12: 12 | B12: 634 | C12: 23 | D12: 644 | E12: 24 | F12: 648 | G12: 23 | H12: 654 | K12: 0 | L12: 1222 | N12: 1212 | O12: =COUNTIF($L$7:$L$500,N12) -> 1 | P12: =O12/$Q$4 -> 0.007462686567 | Q12: =IF(P12=0,0,(P12*((LOG(P12))/LOG(2)))) -> -0.05273200888 | T12: =N12 -> 1212 | U12: =COUNTIF(L7:L28,T12) -> 0 | V12: =U12/(W4-U20) -> 0 | W12: =IF(V12=0,0,(V12*((LOG(V12))/LOG(2)))) -> 0 | Y12: =N12 -> 1212 | Z12: =COUNTIF(L29:L51,Y12) -> 0 | AA12: =Z12/(AB4-Z20) -> 0 | AB12: =IF(AA12=0,0,(AA12*((LOG(AA12))/LOG(2)))) -> 0 | AD12: =N12 -> 1212 | AE12: =COUNTIF(L52:L73,AD12) -> 1 | AF12: =AE12/(AG4-AE20) -> 0.05 | AG12: =IF(AF12=0,0,(AF12*((LOG(AF12))/LOG(2)))) -> -0.2160964047 | AI12: =N12 -> 1212 | AJ12: =COUNTIF(L74:L95,AI12) -> 0 | AK12: =AJ12/(AL4-AJ20) -> 0 | AL12: =IF(AK12=0,0,(AK12*((LOG(AK12))/LOG(2)))) -> 0 | AN12: =N12 -> 1212 | AO12: =COUNTIF(L96:L118,AN12) -> 0 | AP12: =AO12/(AQ4-AO20) -> 0 | AQ12: =IF(AP12=0,0,(AP12*((LOG(AP12))/LOG(2)))) -> 0 | AS12: =N12 -> 1212 | AT12: =COUNTIF(L119:L140,AS12) -> 0 | AU12: =AT12/(AV4-AT20) -> 0 | AV12: =IF(AU12=0,0,(AU12*((LOG(AU12))/LOG(2)))) -> 0
A13: 12 | B13: 752 | C13: 14 | D13: 754 | E13: 24 | F13: 766 | G13: 23 | H13: 775 | K13: 0 | L13: 1122 | N13: 1221 | O13: =COUNTIF($L$7:$L$500,N13) -> 1 | P13: =O13/$Q$4 -> 0.007462686567 | Q13: =IF(P13=0,0,(P13*((LOG(P13))/LOG(2)))) -> -0.05273200888 | T13: =N13 -> 1221 | U13: =COUNTIF(L7:L28,T13) -> 0 | V13: =U13/(W4-U20) -> 0 | W13: =IF(V13=0,0,(V13*((LOG(V13))/LOG(2)))) -> 0 | Y13: =N13 -> 1221 | Z13: =COUNTIF(L29:L51,Y13) -> 0 | AA13: =Z13/(AB4-Z20) -> 0 | AB13: =IF(AA13=0,0,(AA13*((LOG(AA13))/LOG(2)))) -> 0 | AD13: =N13 -> 1221 | AE13: =COUNTIF(L52:L73,AD13) -> 1 | AF13: =AE13/(AG4-AE20) -> 0.05 | AG13: =IF(AF13=0,0,(AF13*((LOG(AF13))/LOG(2)))) -> -0.2160964047 | AI13: =N13 -> 1221 | AJ13: =COUNTIF(L74:L95,AI13) -> 0 | AK13: =AJ13/(AL4-AJ20) -> 0 | AL13: =IF(AK13=0,0,(AK13*((LOG(AK13))/LOG(2)))) -> 0 | AN13: =N13 -> 1221 | AO13: =COUNTIF(L96:L118,AN13) -> 0 | AP13: =AO13/(AQ4-AO20) -> 0 | AQ13: =IF(AP13=0,0,(AP13*((LOG(AP13))/LOG(2)))) -> 0 | AS13: =N13 -> 1221 | AT13: =COUNTIF(L119:L140,AS13) -> 0 | AU13: =AT13/(AV4-AT20) -> 0 | AV13: =IF(AU13=0,0,(AU13*((LOG(AU13))/LOG(2)))) -> 0
A14: 12 | B14: 870 | C14: 14 | D14: 874 | E14: 24 | F14: 882 | G14: 23 | H14: 900 | K14: 0 | L14: 1122 | N14: 1222 | O14: =COUNTIF($L$7:$L$500,N14) -> 29 | P14: =O14/$Q$4 -> 0.2164179104 | Q14: =IF(P14=0,0,(P14*((LOG(P14))/LOG(2)))) -> -0.4778741617 | T14: =N14 -> 1222 | U14: =COUNTIF(L7:L28,T14) -> 8 | V14: =U14/(W4-U20) -> 0.3636363636 | W14: =IF(V14=0,0,(V14*((LOG(V14))/LOG(2)))) -> -0.5307024068 | Y14: =N14 -> 1222 | Z14: =COUNTIF(L29:L51,Y14) -> 2 | AA14: =Z14/(AB4-Z20) -> 0.08695652174 | AB14: =IF(AA14=0,0,(AA14*((LOG(AA14))/LOG(2)))) -> -0.3063966918 | AD14: =N14 -> 1222 | AE14: =COUNTIF(L52:L73,AD14) -> 4 | AF14: =AE14/(AG4-AE20) -> 0.2 | AG14: =IF(AF14=0,0,(AF14*((LOG(AF14))/LOG(2)))) -> -0.464385619 | AI14: =N14 -> 1222 | AJ14: =COUNTIF(L74:L95,AI14) -> 3 | AK14: =AJ14/(AL4-AJ20) -> 0.1363636364 | AL14: =IF(AK14=0,0,(AK14*((LOG(AK14))/LOG(2)))) -> -0.3919730615 | AN14: =N14 -> 1222 | AO14: =COUNTIF(L96:L118,AN14) -> 4 | AP14: =AO14/(AQ4-AO20) -> 0.1739130435 | AQ14: =IF(AP14=0,0,(AP14*((LOG(AP14))/LOG(2)))) -> -0.4388803402 | AS14: =N14 -> 1222 | AT14: =COUNTIF(L119:L140,AS14) -> 8 | AU14: =AT14/(AV4-AT20) -> 0.3636363636 | AV14: =IF(AU14=0,0,(AU14*((LOG(AU14))/LOG(2)))) -> -0.5307024068
A15: 12 | B15: 997 | C15: 14 | D15: 1002 | E15: 24 | F15: 1010 | G15: 23 | H15: 1014 | K15: 0 | L15: 1122 | N15: 2111 | O15: =COUNTIF($L$7:$L$500,N15) -> 0 | P15: =O15/$Q$4 -> 0 | Q15: =IF(P15=0,0,(P15*((LOG(P15))/LOG(2)))) -> 0 | T15: =N15 -> 2111 | U15: =COUNTIF(L7:L28,T15) -> 0 | V15: =U15/(W4-U20) -> 0 | W15: =IF(V15=0,0,(V15*((LOG(V15))/LOG(2)))) -> 0 | Y15: =N15 -> 2111 | Z15: =COUNTIF(L29:L51,Y15) -> 0 | AA15: =Z15/(AB4-Z20) -> 0 | AB15: =IF(AA15=0,0,(AA15*((LOG(AA15))/LOG(2)))) -> 0 | AD15: =N15 -> 2111 | AE15: =COUNTIF(L52:L73,AD15) -> 0 | AF15: =AE15/(AG4-AE20) -> 0 | AG15: =IF(AF15=0,0,(AF15*((LOG(AF15))/LOG(2)))) -> 0 | AI15: =N15 -> 2111 | AJ15: =COUNTIF(L74:L95,AI15) -> 0 | AK15: =AJ15/(AL4-AJ20) -> 0 | AL15: =IF(AK15=0,0,(AK15*((LOG(AK15))/LOG(2)))) -> 0 | AN15: =N15 -> 2111 | AO15: =COUNTIF(L96:L118,AN15) -> 0 | AP15: =AO15/(AQ4-AO20) -> 0 | AQ15: =IF(AP15=0,0,(AP15*((LOG(AP15))/LOG(2)))) -> 0 | AS15: =N15 -> 2111 | AT15: =COUNTIF(L119:L140,AS15) -> 0 | AU15: =AT15/(AV4-AT20) -> 0 | AV15: =IF(AU15=0,0,(AU15*((LOG(AU15))/LOG(2)))) -> 0
A16: 12 | B16: 1115 | C16: 23 | D16: 1125 | E16: 24 | F16: 1130 | G16: 23 | H16: 1135 | K16: 0 | L16: 1222 | N16: 2112 | O16: =COUNTIF($L$7:$L$500,N16) -> 0 | P16: =O16/$Q$4 -> 0 | Q16: =IF(P16=0,0,(P16*((LOG(P16))/LOG(2)))) -> 0 | T16: =N16 -> 2112 | U16: =COUNTIF(L7:L28,T16) -> 0 | V16: =U16/(W4-U20) -> 0 | W16: =IF(V16=0,0,(V16*((LOG(V16))/LOG(2)))) -> 0 | Y16: =N16 -> 2112 | Z16: =COUNTIF(L29:L51,Y16) -> 0 | AA16: =Z16/(AB4-Z20) -> 0 | AB16: =IF(AA16=0,0,(AA16*((LOG(AA16))/LOG(2)))) -> 0 | AD16: =N16 -> 2112 | AE16: =COUNTIF(L52:L73,AD16) -> 0 | AF16: =AE16/(AG4-AE20) -> 0 | AG16: =IF(AF16=0,0,(AF16*((LOG(AF16))/LOG(2)))) -> 0 | AI16: =N16 -> 2112 | AJ16: =COUNTIF(L74:L95,AI16) -> 0 | AK16: =AJ16/(AL4-AJ20) -> 0 | AL16: =IF(AK16=0,0,(AK16*((LOG(AK16))/LOG(2)))) -> 0 | AN16: =N16 -> 2112 | AO16: =COUNTIF(L96:L118,AN16) -> 0 | AP16: =AO16/(AQ4-AO20) -> 0 | AQ16: =IF(AP16=0,0,(AP16*((LOG(AP16))/LOG(2)))) -> 0 | AS16: =N16 -> 2112 | AT16: =COUNTIF(L119:L140,AS16) -> 0 | AU16: =AT16/(AV4-AT20) -> 0 | AV16: =IF(AU16=0,0,(AU16*((LOG(AU16))/LOG(2)))) -> 0
A17: 12 | B17: 1231 | C17: 23 | D17: 1244 | E17: 24 | F17: 1252 | G17: 23 | H17: 1259 | K17: 0 | L17: 1222 | N17: 2121 | O17: =COUNTIF($L$7:$L$500,N17) -> 0 | P17: =O17/$Q$4 -> 0 | Q17: =IF(P17=0,0,(P17*((LOG(P17))/LOG(2)))) -> 0 | T17: =N17 -> 2121 | U17: =COUNTIF(L7:L28,T17) -> 0 | V17: =U17/(W4-U20) -> 0 | W17: =IF(V17=0,0,(V17*((LOG(V17))/LOG(2)))) -> 0 | Y17: =N17 -> 2121 | Z17: =COUNTIF(L29:L51,Y17) -> 0 | AA17: =Z17/(AB4-Z20) -> 0 | AB17: =IF(AA17=0,0,(AA17*((LOG(AA17))/LOG(2)))) -> 0 | AD17: =N17 -> 2121 | AE17: =COUNTIF(L52:L73,AD17) -> 0 | AF17: =AE17/(AG4-AE20) -> 0 | AG17: =IF(AF17=0,0,(AF17*((LOG(AF17))/LOG(2)))) -> 0 | AI17: =N17 -> 2121 | AJ17: =COUNTIF(L74:L95,AI17) -> 0 | AK17: =AJ17/(AL4-AJ20) -> 0 | AL17: =IF(AK17=0,0,(AK17*((LOG(AK17))/LOG(2)))) -> 0 | AN17: =N17 -> 2121 | AO17: =COUNTIF(L96:L118,AN17) -> 0 | AP17: =AO17/(AQ4-AO20) -> 0 | AQ17: =IF(AP17=0,0,(AP17*((LOG(AP17))/LOG(2)))) -> 0 | AS17: =N17 -> 2121 | AT17: =COUNTIF(L119:L140,AS17) -> 0 | AU17: =AT17/(AV4-AT20) -> 0 | AV17: =IF(AU17=0,0,(AU17*((LOG(AU17))/LOG(2)))) -> 0
A18: 12 | B18: 1410 | C18: 23 | D18: 1423 | E18: 24 | F18: 1432 | G18: 23 | H18: 1439 | K18: 0 | L18: 1222 | N18: 2122 | O18: =COUNTIF($L$7:$L$500,N18) -> 2 | P18: =O18/$Q$4 -> 0.01492537313 | Q18: =IF(P18=0,0,(P18*((LOG(P18))/LOG(2)))) -> -0.09053864463 | T18: =N18 -> 2122 | U18: =COUNTIF(L7:L28,T18) -> 0 | V18: =U18/(W4-U20) -> 0 | W18: =IF(V18=0,0,(V18*((LOG(V18))/LOG(2)))) -> 0 | Y18: =N18 -> 2122 | Z18: =COUNTIF(L29:L51,Y18) -> 0 | AA18: =Z18/(AB4-Z20) -> 0 | AB18: =IF(AA18=0,0,(AA18*((LOG(AA18))/LOG(2)))) -> 0 | AD18: =N18 -> 2122 | AE18: =COUNTIF(L52:L73,AD18) -> 1 | AF18: =AE18/(AG4-AE20) -> 0.05 | AG18: =IF(AF18=0,0,(AF18*((LOG(AF18))/LOG(2)))) -> -0.2160964047 | AI18: =N18 -> 2122 | AJ18: =COUNTIF(L74:L95,AI18) -> 0 | AK18: =AJ18/(AL4-AJ20) -> 0 | AL18: =IF(AK18=0,0,(AK18*((LOG(AK18))/LOG(2)))) -> 0 | AN18: =N18 -> 2122 | AO18: =COUNTIF(L96:L118,AN18) -> 0 | AP18: =AO18/(AQ4-AO20) -> 0 | AQ18: =IF(AP18=0,0,(AP18*((LOG(AP18))/LOG(2)))) -> 0 | AS18: =N18 -> 2122 | AT18: =COUNTIF(L119:L140,AS18) -> 1 | AU18: =AT18/(AV4-AT20) -> 0.04545454545 | AV18: =IF(AU18=0,0,(AU18*((LOG(AU18))/LOG(2)))) -> -0.2027014372
A19: 12 | B19: 1534 | C19: 14 | D19: 1537 | E19: 24 | F19: 1549 | G19: 23 | H19: 1553 | K19: 0 | L19: 1122 | N19: 2211 | O19: =COUNTIF($L$7:$L$500,N19) -> 1 | P19: =O19/$Q$4 -> 0.007462686567 | Q19: =IF(P19=0,0,(P19*((LOG(P19))/LOG(2)))) -> -0.05273200888 | T19: =N19 -> 2211 | U19: =COUNTIF(L7:L28,T19) -> 0 | V19: =U19/(W4-U20) -> 0 | W19: =IF(V19=0,0,(V19*((LOG(V19))/LOG(2)))) -> 0 | Y19: =N19 -> 2211 | Z19: =COUNTIF(L29:L51,Y19) -> 0 | AA19: =Z19/(AB4-Z20) -> 0 | AB19: =IF(AA19=0,0,(AA19*((LOG(AA19))/LOG(2)))) -> 0 | AD19: =N19 -> 2211 | AE19: =COUNTIF(L52:L73,AD19) -> 0 | AF19: =AE19/(AG4-AE20) -> 0 | AG19: =IF(AF19=0,0,(AF19*((LOG(AF19))/LOG(2)))) -> 0 | AI19: =N19 -> 2211 | AJ19: =COUNTIF(L74:L95,AI19) -> 0 | AK19: =AJ19/(AL4-AJ20) -> 0 | AL19: =IF(AK19=0,0,(AK19*((LOG(AK19))/LOG(2)))) -> 0 | AN19: =N19 -> 2211 | AO19: =COUNTIF(L96:L118,AN19) -> 1 | AP19: =AO19/(AQ4-AO20) -> 0.04347826087 | AQ19: =IF(AP19=0,0,(AP19*((LOG(AP19))/LOG(2)))) -> -0.1966766068 | AS19: =N19 -> 2211 | AT19: =COUNTIF(L119:L140,AS19) -> 0 | AU19: =AT19/(AV4-AT20) -> 0 | AV19: =IF(AU19=0,0,(AU19*((LOG(AU19))/LOG(2)))) -> 0
A20: 12 | B20: 1768 | C20: 23 | D20: 1778 | E20: 24 | F20: 1782 | G20: 23 | H20: 1789 | K20: 0 | L20: 1222 | N20: 2212 | O20: =COUNTIF($L$7:$L$500,N20) -> 2 | P20: =O20/$Q$4 -> 0.01492537313 | Q20: =IF(P20=0,0,(P20*((LOG(P20))/LOG(2)))) -> -0.09053864463 | T20: =N20 -> 2212 | U20: =COUNTIF(L7:L28,T20) -> 0 | Y20: =N20 -> 2212 | Z20: =COUNTIF(L29:L51,Y20) -> 0 | AD20: =N20 -> 2212 | AE20: =COUNTIF(L52:L73,AD20) -> 2 | AI20: =N20 -> 2212 | AJ20: =COUNTIF(L74:L95,AI20) -> 0 | AN20: =N20 -> 2212 | AO20: =COUNTIF(L96:L118,AN20) -> 0 | AS20: =N20 -> 2212 | AT20: =COUNTIF(L119:L140,AS20) -> 0
A21: 21 | B21: 1894 | C21: 21 | D21: 1897 | E21: 22 | F21: 1907 | G21: 23 | H21: 1918 | K21: 0 | L21: 2222 | N21: 2221 | O21: =COUNTIF($L$7:$L$500,N21) -> 1 | P21: =O21/$Q$4 -> 0.007462686567 | Q21: =IF(P21=0,0,(P21*((LOG(P21))/LOG(2)))) -> -0.05273200888 | T21: =N21 -> 2221 | U21: =COUNTIF(L7:L28,T21) -> 1 | V21: =U21/(W4-U20) -> 0.04545454545 | W21: =IF(V21=0,0,(V21*((LOG(V21))/LOG(2)))) -> -0.2027014372 | Y21: =N21 -> 2221 | Z21: =COUNTIF(L29:L51,Y21) -> 0 | AA21: =Z21/(AB4-Z20) -> 0 | AB21: =IF(AA21=0,0,(AA21*((LOG(AA21))/LOG(2)))) -> 0 | AD21: =N21 -> 2221 | AE21: =COUNTIF(L52:L73,AD21) -> 0 | AF21: =AE21/(AG4-AE20) -> 0 | AG21: =IF(AF21=0,0,(AF21*((LOG(AF21))/LOG(2)))) -> 0 | AI21: =N21 -> 2221 | AJ21: =COUNTIF(L74:L95,AI21) -> 0 | AK21: =AJ21/(AL4-AJ20) -> 0 | AL21: =IF(AK21=0,0,(AK21*((LOG(AK21))/LOG(2)))) -> 0 | AN21: =N21 -> 2221 | AO21: =COUNTIF(L96:L118,AN21) -> 0 | AP21: =AO21/(AQ4-AO20) -> 0 | AQ21: =IF(AP21=0,0,(AP21*((LOG(AP21))/LOG(2)))) -> 0 | AS21: =N21 -> 2221 | AT21: =COUNTIF(L119:L140,AS21) -> 0 | AU21: =AT21/(AV4-AT20) -> 0 | AV21: =IF(AU21=0,0,(AU21*((LOG(AU21))/LOG(2)))) -> 0
A22: 12 | B22: 2014 | C22: 14 | D22: 2021 | E22: 24 | F22: 2028 | G22: 23 | H22: 2032 | K22: 0 | L22: 1122 | N22: 2222 | O22: =COUNTIF($L$7:$L$500,N22) -> 11 | P22: =O22/$Q$4 -> 0.08208955224 | Q22: =IF(P22=0,0,(P22*((LOG(P22))/LOG(2)))) -> -0.2960689051 | T22: =N22 -> 2222 | U22: =COUNTIF(L7:L28,T22) -> 2 | V22: =U22/(W4-U20) -> 0.09090909091 | W22: =IF(V22=0,0,(V22*((LOG(V22))/LOG(2)))) -> -0.3144937835 | Y22: =N22 -> 2222 | Z22: =COUNTIF(L29:L51,Y22) -> 4 | AA22: =Z22/(AB4-Z20) -> 0.1739130435 | AB22: =IF(AA22=0,0,(AA22*((LOG(AA22))/LOG(2)))) -> -0.4388803402 | AD22: =N22 -> 2222 | AE22: =COUNTIF(L52:L73,AD22) -> 2 | AF22: =AE22/(AG4-AE20) -> 0.1 | AG22: =IF(AF22=0,0,(AF22*((LOG(AF22))/LOG(2)))) -> -0.3321928095 | AI22: =N22 -> 2222 | AJ22: =COUNTIF(L74:L95,AI22) -> 0 | AK22: =AJ22/(AL4-AJ20) -> 0 | AL22: =IF(AK22=0,0,(AK22*((LOG(AK22))/LOG(2)))) -> 0 | AN22: =N22 -> 2222 | AO22: =COUNTIF(L96:L118,AN22) -> 1 | AP22: =AO22/(AQ4-AO20) -> 0.04347826087 | AQ22: =IF(AP22=0,0,(AP22*((LOG(AP22))/LOG(2)))) -> -0.1966766068 | AS22: =N22 -> 2222 | AT22: =COUNTIF(L119:L140,AS22) -> 2 | AU22: =AT22/(AV4-AT20) -> 0.09090909091 | AV22: =IF(AU22=0,0,(AU22*((LOG(AU22))/LOG(2)))) -> -0.3144937835
A23: 12 | B23: 2128 | C23: 14 | D23: 2133 | E23: 24 | F23: 2141 | G23: 23 | H23: 2148 | K23: 0 | L23: 1122 | P23: =SUM(P7:P22) -> 1 | Q23: =-SUM(Q7:Q22) -> 2.430333654 | V23: =SUM(V7:V22) -> 1 | W23: =-SUM(W7:W22) -> 1.767646121 | AA23: =SUM(AA7:AA22) -> 1 | AB23: =-SUM(AB7:AB22) -> 2.089902458 | AF23: =SUM(AF7:AF22) -> 1 | AG23: =-SUM(AG7:AG22) -> 2.639353872 | AK23: =SUM(AK7:AK22) -> 1 | AL23: =-SUM(AL7:AL22) -> 1.764694686 | AP23: =SUM(AP7:AP22) -> 1 | AQ23: =-SUM(AQ7:AQ22) -> 2.174035868 | AU23: =SUM(AU7:AU22) -> 1 | AV23: =-SUM(AV7:AV22) -> 1.970573096
A24: 12 | B24: 2386 | C24: 14 | D24: 2391 | E24: 24 | F24: 2398 | G24: 23 | H24: 2402 | K24: 0 | L24: 1122 | P24: U= | Q24: =Q23/(LOG(Q4)/LOG(2)) -> 0.3439432462 | V24: U1= | W24: =W23/(LOG(W4)/LOG(2)) -> 0.396383726 | AA24: U2= | AB24: =AB23/(LOG(AB4)/LOG(2)) -> 0.4620037215 | AF24: U3= | AG24: =AG23/(LOG(AG4)/LOG(2)) -> 0.5918588058 | AK24: U4= | AL24: =AL23/(LOG(AL4)/LOG(2)) -> 0.395721885 | AP24: U5= | AQ24: =AQ23/(LOG(AQ4)/LOG(2)) -> 0.4806026511 | AU24: U6= | AV24: =AV23/(LOG(AV4)/LOG(2)) -> 0.4418888469
A25: 12 | B25: 2497 | C25: 14 | D25: 2500 | E25: 24 | F25: 2509 | G25: 23 | H25: 2514 | K25: 0 | L25: 1122
A26: 12 | B26: 2608 | C26: 14 | D26: 2613 | E26: 24 | F26: 2620 | G26: 23 | H26: 2628 | K26: 0 | L26: 1122
A27: 12 | B27: 2726 | C27: 23 | D27: 2735 | E27: 24 | F27: 2738 | G27: 23 | H27: 2741 | K27: 0 | L27: 1222 | N27: Total Target Seq
A28: 12 | B28: 2847 | C28: 14 | D28: 2849 | E28: 13 | F28: 2855 | G28: 23 | H28: 2862 | K28: 0 | L28: 1112 | N28: =COUNTIF(L7:L140,G3) -> 2 | P28: 22 | Q28: 23 | R28: 22 | S28: 22 | T28: 23 | U28: 22
A29: 12 | B29: 2958 | C29: 14 | D29: 2962 | E29: 24 | F29: 2976 | G29: 23 | H29: 2986 | K29: 0 | L29: 1122 | P29: % of reinforcement given in 6 equal intervals based on number of trials
A30: 12 | B30: 3083 | C30: 14 | D30: 3087 | E30: 13 | F30: 3091 | G30: 23 | H30: 3100 | K30: 0 | L30: 1112 | P30: %_1 | Q30: %_2 | R30: %_3 | S30: %_4 | T30: %_5 | U30: %_6
A31: 12 | B31: 3201 | C31: 14 | D31: 3205 | E31: 13 | F31: 3212 | G31: 23 | H31: 3225 | K31: 0 | L31: 1112 | O31: target sequence | P31: =$G$3 -> 2212 | Q31: =$G$3 -> 2212 | R31: =$G$3 -> 2212 | S31: =$G$3 -> 2212 | T31: =$G$3 -> 2212 | U31: =$G$3 -> 2212
A32: 12 | B32: 3321 | C32: 14 | D32: 3329 | E32: 13 | F32: 3332 | G32: 14 | H32: 3335 | K32: 0 | L32: 1111 | O32: total reinforcement | P32: =U20 -> 0 | Q32: =Z20 -> 0 | R32: =AE20 -> 2 | S32: =AJ20 -> 0 | T32: =AO20 -> 0 | U32: =AT20 -> 0
A33: 12 | B33: 3431 | C33: 14 | D33: 3436 | E33: 13 | F33: 3439 | G33: 14 | H33: 3443 | K33: 0 | L33: 1111 | O33: % target
A34: 21 | B34: 3540 | C34: 21 | D34: 3543 | E34: 22 | F34: 3548 | G34: 23 | H34: 3553 | K34: 0 | L34: 2222 | O34: CCRF
A35: 12 | B35: 3648 | C35: 14 | D35: 3653 | E35: 24 | F35: 3659 | G35: 23 | H35: 3663 | K35: 0 | L35: 1122 | O35: % CCRf
A36: 12 | B36: 3760 | C36: 14 | D36: 3768 | E36: 24 | F36: 3775 | G36: 23 | H36: 3781 | K36: 0 | L36: 1122 | O36: average response rate | P36: =H28/P28 -> 130.0909091 | Q36: =(H51-H28)/Q28 -> 137.1304348 | R36: =(H73-H51)/R28 -> 168.3181818 | S36: =(H95-H73)/S28 -> 122.8636364 | T36: =(H118-H95)/T28 -> 271.6086957 | U36: =(H140-H118)/U28 -> 232.9545455
A37: 12 | B37: 3884 | C37: 14 | D37: 3887 | E37: 13 | F37: 3892 | G37: 23 | H37: 3899 | K37: 0 | L37: 1112
A38: 12 | B38: 4002 | C38: 14 | D38: 4006 | E38: 24 | F38: 4018 | G38: 23 | H38: 4023 | K38: 0 | L38: 1122
A39: 12 | B39: 4120 | C39: 14 | D39: 4128 | E39: 24 | F39: 4135 | G39: 23 | H39: 4140 | K39: 0 | L39: 1122
A40: 12 | B40: 4235 | C40: 14 | D40: 4241 | E40: 24 | F40: 4248 | G40: 23 | H40: 4252 | K40: 0 | L40: 1122
A41: 21 | B41: 4361 | C41: 21 | D41: 4364 | E41: 22 | F41: 4373 | G41: 23 | H41: 4382 | K41: 0 | L41: 2222
A42: 12 | B42: 4498 | C42: 14 | D42: 4506 | E42: 24 | F42: 4515 | G42: 23 | H42: 4520 | K42: 0 | L42: 1122
A43: 12 | B43: 4616 | C43: 14 | D43: 4624 | E43: 24 | F43: 4632 | G43: 23 | H43: 4635 | K43: 0 | L43: 1122
A44: 12 | B44: 4731 | C44: 14 | D44: 4734 | E44: 13 | F44: 4739 | G44: 14 | H44: 4741 | K44: 0 | L44: 1111
A45: 12 | B45: 4840 | C45: 14 | D45: 4844 | E45: 13 | F45: 4848 | G45: 23 | H45: 4855 | K45: 0 | L45: 1112
A46: 12 | B46: 4952 | C46: 23 | D46: 4966 | E46: 24 | F46: 4970 | G46: 23 | H46: 4976 | K46: 0 | L46: 1222
A47: 21 | B47: 5100 | C47: 21 | D47: 5103 | E47: 22 | F47: 5113 | G47: 23 | H47: 5119 | K47: 0 | L47: 2222
A48: 21 | B48: 5321 | C48: 21 | D48: 5325 | E48: 22 | F48: 5330 | G48: 23 | H48: 5335 | K48: 0 | L48: 2222
A49: 12 | B49: 5489 | C49: 14 | D49: 5491 | E49: 24 | F49: 5501 | G49: 23 | H49: 5507 | K49: 0 | L49: 1122
A50: 12 | B50: 5657 | C50: 14 | D50: 5661 | E50: 24 | F50: 5677 | G50: 23 | H50: 5682 | K50: 0 | L50: 1122
A51: 12 | B51: 5989 | C51: 23 | D51: 6005 | E51: 24 | F51: 6009 | G51: 23 | H51: 6016 | K51: 0 | L51: 1222
A52: 21 | B52: 6499 | C52: 21 | D52: 6504 | E52: 22 | F52: 6509 | G52: 23 | H52: 6516 | K52: 0 | L52: 2222
A53: 21 | B53: 6884 | C53: 21 | D53: 6893 | E53: 11 | F53: 6941 | G53: 21 | H53: 6949 | K53: 0 | L53: 2212
A54: 12 | B54: 7126 | C54: 23 | D54: 7135 | E54: 24 | F54: 7148 | G54: 23 | H54: 7156 | K54: 0 | L54: 1222
A55: 12 | B55: 7253 | C55: 23 | D55: 7271 | E55: 24 | F55: 7277 | G55: 23 | H55: 7282 | K55: 0 | L55: 1222
A56: 12 | B56: 7377 | C56: 14 | D56: 7381 | E56: 24 | F56: 7392 | G56: 23 | H56: 7395 | K56: 0 | L56: 1122
A57: 12 | B57: 7490 | C57: 14 | D57: 7495 | E57: 24 | F57: 7502 | G57: 23 | H57: 7506 | K57: 0 | L57: 1122
A58: 21 | B58: 7611 | C58: 21 | D58: 7614 | E58: 22 | F58: 7619 | G58: 23 | H58: 7625 | K58: 0 | L58: 2222
A59: 12 | B59: 7719 | C59: 14 | D59: 7724 | E59: 13 | F59: 7729 | G59: 14 | H59: 7732 | K59: 0 | L59: 1111
A60: 21 | B60: 7834 | C60: 21 | D60: 7838 | E60: 11 | F60: 7848 | G60: 21 | H60: 7860 | K60: 0 | L60: 2212
A61: 12 | B61: 8018 | C61: 14 | D61: 8021 | E61: 13 | F61: 8027 | G61: 14 | H61: 8031 | K61: 0 | L61: 1111
A62: 12 | B62: 8171 | C62: 23 | D62: 8181 | E62: 24 | F62: 8190 | G62: 23 | H62: 8201 | K62: 0 | L62: 1222
A63: 12 | B63: 8300 | C63: 14 | D63: 8303 | E63: 13 | F63: 8308 | G63: 23 | H63: 8317 | K63: 0 | L63: 1112
A64: 12 | B64: 8412 | C64: 14 | D64: 8419 | E64: 24 | F64: 8427 | G64: 23 | H64: 8434 | K64: 0 | L64: 1122
A65: 21 | B65: 8535 | C65: 12 | D65: 8546 | E65: 24 | F65: 8554 | G65: 23 | H65: 8559 | K65: 0 | L65: 2122
A66: 12 | B66: 8657 | C66: 14 | D66: 8661 | E66: 24 | F66: 8671 | G66: 23 | H66: 8676 | K66: 0 | L66: 1122
A67: 12 | B67: 8935 | C67: 14 | D67: 8938 | E67: 13 | F67: 8947 | G67: 23 | H67: 8956 | K67: 0 | L67: 1112
A68: 12 | B68: 9058 | C68: 23 | D68: 9067 | E68: 24 | F68: 9071 | G68: 14 | H68: 9100 | K68: 0 | L68: 1221
A69: 12 | B69: 9198 | C69: 23 | D69: 9206 | E69: 13 | F69: 9224 | G69: 23 | H69: 9238 | K69: 0 | L69: 1212
A70: 12 | B70: 9349 | C70: 14 | D70: 9354 | E70: 24 | F70: 9361 | G70: 23 | H70: 9365 | K70: 0 | L70: 1122
A71: 12 | B71: 9464 | C71: 14 | D71: 9468 | E71: 24 | F71: 9476 | G71: 23 | H71: 9479 | K71: 0 | L71: 1122
A72: 12 | B72: 9574 | C72: 23 | D72: 9587 | E72: 24 | F72: 9591 | G72: 23 | H72: 9597 | K72: 0 | L72: 1222
A73: 12 | B73: 9696 | C73: 14 | D73: 9701 | E73: 24 | F73: 9707 | G73: 23 | H73: 9719 | K73: 0 | L73: 1122
A74: 12 | B74: 9826 | C74: 14 | D74: 9833 | E74: 24 | F74: 9842 | G74: 23 | H74: 9845 | K74: 0 | L74: 1122
A75: 12 | B75: 9942 | C75: 14 | D75: 9949 | E75: 24 | F75: 9956 | G75: 23 | H75: 9964 | K75: 0 | L75: 1122
A76: 12 | B76: 10071 | C76: 14 | D76: 10078 | E76: 24 | F76: 10085 | G76: 23 | H76: 10090 | K76: 0 | L76: 1122
A77: 12 | B77: 10189 | C77: 23 | D77: 10201 | E77: 24 | F77: 10205 | G77: 23 | H77: 10210 | K77: 0 | L77: 1222
A78: 12 | B78: 10306 | C78: 23 | D78: 10318 | E78: 24 | F78: 10322 | G78: 23 | H78: 10326 | K78: 0 | L78: 1222
A79: 12 | B79: 10422 | C79: 14 | D79: 10427 | E79: 13 | F79: 10433 | G79: 23 | H79: 10441 | K79: 0 | L79: 1112
A80: 12 | B80: 10540 | C80: 14 | D80: 10549 | E80: 24 | F80: 10557 | G80: 23 | H80: 10564 | K80: 0 | L80: 1122
A81: 12 | B81: 10661 | C81: 14 | D81: 10668 | E81: 13 | F81: 10671 | G81: 14 | H81: 10678 | K81: 0 | L81: 1111
A82: 12 | B82: 10789 | C82: 14 | D82: 10793 | E82: 13 | F82: 10800 | G82: 23 | H82: 10807 | K82: 0 | L82: 1112
A83: 12 | B83: 10938 | C83: 14 | D83: 10945 | E83: 24 | F83: 10951 | G83: 23 | H83: 10954 | K83: 0 | L83: 1122
A84: 12 | B84: 11054 | C84: 14 | D84: 11058 | E84: 13 | F84: 11060 | G84: 23 | H84: 11069 | K84: 0 | L84: 1112
A85: 12 | B85: 11163 | C85: 14 | D85: 11171 | E85: 13 | F85: 11178 | G85: 23 | H85: 11185 | K85: 0 | L85: 1112
A86: 12 | B86: 11301 | C86: 14 | D86: 11313 | E86: 13 | F86: 11319 | G86: 23 | H86: 11327 | K86: 0 | L86: 1112
A87: 12 | B87: 11439 | C87: 14 | D87: 11451 | E87: 13 | F87: 11455 | G87: 23 | H87: 11465 | K87: 0 | L87: 1112
A88: 12 | B88: 11561 | C88: 14 | D88: 11566 | E88: 24 | F88: 11577 | G88: 23 | H88: 11581 | K88: 0 | L88: 1122
A89: 12 | B89: 11677 | C89: 14 | D89: 11682 | E89: 13 | F89: 11685 | G89: 14 | H89: 11688 | K89: 0 | L89: 1111
A90: 12 | B90: 11786 | C90: 23 | D90: 11798 | E90: 24 | F90: 11802 | G90: 23 | H90: 11805 | K90: 0 | L90: 1222
A91: 12 | B91: 11901 | C91: 14 | D91: 11910 | E91: 24 | F91: 11918 | G91: 23 | H91: 11926 | K91: 0 | L91: 1122
A92: 12 | B92: 12028 | C92: 14 | D92: 12034 | E92: 13 | F92: 12040 | G92: 23 | H92: 12047 | K92: 0 | L92: 1112
A93: 12 | B93: 12155 | C93: 14 | D93: 12161 | E93: 13 | F93: 12165 | G93: 23 | H93: 12174 | K93: 0 | L93: 1112
A94: 12 | B94: 12285 | C94: 14 | D94: 12293 | E94: 24 | F94: 12303 | G94: 23 | H94: 12308 | K94: 0 | L94: 1122
A95: 12 | B95: 12404 | C95: 14 | D95: 12408 | E95: 13 | F95: 12412 | G95: 23 | H95: 12422 | K95: 0 | L95: 1112
A96: 12 | B96: 12540 | C96: 14 | D96: 12544 | E96: 13 | F96: 12548 | G96: 23 | H96: 12565 | K96: 0 | L96: 1112
A97: 12 | B97: 12664 | C97: 14 | D97: 12668 | E97: 13 | F97: 12672 | G97: 23 | H97: 12680 | K97: 0 | L97: 1112
A98: 12 | B98: 12779 | C98: 14 | D98: 12787 | E98: 13 | F98: 12791 | G98: 23 | H98: 12799 | K98: 0 | L98: 1112
A99: 12 | B99: 12896 | C99: 14 | D99: 12903 | E99: 13 | F99: 12908 | G99: 23 | H99: 12920 | K99: 0 | L99: 1112
A100: 12 | B100: 13017 | C100: 14 | D100: 13022 | E100: 13 | F100: 13026 | G100: 23 | H100: 13035 | K100: 0 | L100: 1112
A101: 12 | B101: 13165 | C101: 14 | D101: 13169 | E101: 24 | F101: 13177 | G101: 23 | H101: 13181 | K101: 0 | L101: 1122
A102: 12 | B102: 13282 | C102: 23 | D102: 13289 | E102: 24 | F102: 13293 | G102: 23 | H102: 13299 | K102: 0 | L102: 1222
A103: 12 | B103: 13394 | C103: 14 | D103: 13397 | E103: 13 | F103: 13402 | G103: 23 | H103: 13410 | K103: 0 | L103: 1112
A104: 12 | B104: 13520 | C104: 14 | D104: 13525 | E104: 24 | F104: 13534 | G104: 23 | H104: 13537 | K104: 0 | L104: 1122
A105: 12 | B105: 13640 | C105: 14 | D105: 13644 | E105: 13 | F105: 13649 | G105: 14 | H105: 13655 | K105: 0 | L105: 1111
A106: 12 | B106: 13750 | C106: 14 | D106: 13759 | E106: 24 | F106: 13768 | G106: 23 | H106: 13771 | K106: 0 | L106: 1122
A107: 12 | B107: 13948 | C107: 14 | D107: 13951 | E107: 13 | F107: 13961 | G107: 23 | H107: 13968 | K107: 0 | L107: 1112
A108: 12 | B108: 14085 | C108: 23 | D108: 14093 | E108: 24 | F108: 14098 | G108: 23 | H108: 14103 | K108: 0 | L108: 1222
A109: 12 | B109: 14208 | C109: 14 | D109: 14212 | E109: 24 | F109: 14229 | G109: 23 | H109: 14235 | K109: 0 | L109: 1122
A110: 12 | B110: 14329 | C110: 14 | D110: 14335 | E110: 13 | F110: 14339 | G110: 14 | H110: 14349 | K110: 0 | L110: 1111
A111: 12 | B111: 14460 | C111: 14 | D111: 14465 | E111: 13 | F111: 14467 | G111: 23 | H111: 14475 | K111: 0 | L111: 1112
A112: 12 | B112: 17878 | C112: 23 | D112: 17892 | E112: 24 | F112: 17896 | G112: 23 | H112: 17901 | K112: 0 | L112: 1222
A113: 12 | B113: 18027 | C113: 14 | D113: 18033 | E113: 24 | F113: 18041 | G113: 23 | H113: 18044 | K113: 0 | L113: 1122
A114: 21 | B114: 18144 | C114: 21 | D114: 18149 | E114: 22 | F114: 18154 | G114: 23 | H114: 18157 | K114: 0 | L114: 2222
A115: 21 | B115: 18255 | C115: 21 | D115: 18259 | E115: 11 | F115: 18272 | G115: 12 | H115: 18276 | K115: 0 | L115: 2211
A116: 12 | B116: 18408 | C116: 23 | D116: 18418 | E116: 24 | F116: 18423 | G116: 23 | H116: 18428 | K116: 0 | L116: 1222
A117: 12 | B117: 18530 | C117: 14 | D117: 18534 | E117: 24 | F117: 18542 | G117: 23 | H117: 18546 | K117: 0 | L117: 1122
A118: 12 | B118: 18643 | C118: 14 | D118: 18651 | E118: 13 | F118: 18659 | G118: 23 | H118: 18669 | K118: 0 | L118: 1112
A119: 12 | B119: 18768 | C119: 14 | D119: 18773 | E119: 24 | F119: 18781 | G119: 23 | H119: 18789 | K119: 0 | L119: 1122
A120: 12 | B120: 18887 | C120: 14 | D120: 18891 | E120: 24 | F120: 18899 | G120: 23 | H120: 18903 | K120: 0 | L120: 1122
A121: 12 | B121: 19001 | C121: 14 | D121: 19005 | E121: 24 | F121: 19013 | G121: 23 | H121: 19016 | K121: 0 | L121: 1122
A122: 12 | B122: 19114 | C122: 23 | D122: 19128 | E122: 24 | F122: 19133 | G122: 23 | H122: 19139 | K122: 0 | L122: 1222
A123: 12 | B123: 19243 | C123: 23 | D123: 19251 | E123: 24 | F123: 19254 | G123: 23 | H123: 19260 | K123: 0 | L123: 1222
A124: 21 | B124: 19374 | C124: 21 | D124: 19379 | E124: 22 | F124: 19385 | G124: 23 | H124: 19391 | K124: 0 | L124: 2222
A125: 12 | B125: 19486 | C125: 14 | D125: 19495 | E125: 24 | F125: 19503 | G125: 23 | H125: 19507 | K125: 0 | L125: 1122
A126: 12 | B126: 19617 | C126: 14 | D126: 19620 | E126: 13 | F126: 19625 | G126: 23 | H126: 19634 | K126: 0 | L126: 1112
A127: 12 | B127: 19760 | C127: 14 | D127: 19764 | E127: 13 | F127: 19768 | G127: 23 | H127: 19777 | K127: 0 | L127: 1112
A128: 12 | B128: 19874 | C128: 23 | D128: 19892 | E128: 24 | F128: 19896 | G128: 23 | H128: 19901 | K128: 0 | L128: 1222
A129: 12 | B129: 19999 | C129: 14 | D129: 20004 | E129: 24 | F129: 20011 | G129: 23 | H129: 20015 | K129: 0 | L129: 1122
A130: 12 | B130: 20433 | C130: 23 | D130: 20447 | E130: 24 | F130: 20458 | G130: 23 | H130: 20465 | K130: 0 | L130: 1222
A131: 12 | B131: 20610 | C131: 14 | D131: 20614 | E131: 13 | F131: 20621 | G131: 23 | H131: 20628 | K131: 0 | L131: 1112
A132: 21 | B132: 20905 | C132: 21 | D132: 20922 | E132: 22 | F132: 20928 | G132: 23 | H132: 20937 | K132: 0 | L132: 2222
A133: 12 | B133: 21044 | C133: 23 | D133: 21057 | E133: 24 | F133: 21070 | G133: 23 | H133: 21076 | K133: 0 | L133: 1222
A134: 12 | B134: 21267 | C134: 14 | D134: 21557 | E134: 24 | F134: 21571 | G134: 23 | H134: 21577 | K134: 0 | L134: 1122
A135: 21 | B135: 21807 | C135: 12 | D135: 21842 | E135: 24 | F135: 21856 | G135: 23 | H135: 21861 | K135: 0 | L135: 2122
A136: 12 | B136: 22698 | C136: 14 | D136: 22704 | E136: 24 | F136: 22714 | G136: 23 | H136: 22717 | K136: 0 | L136: 1122
A137: 12 | B137: 22889 | C137: 23 | D137: 22902 | E137: 24 | F137: 22906 | G137: 23 | H137: 22913 | K137: 0 | L137: 1222
A138: 12 | B138: 23205 | C138: 23 | D138: 23217 | E138: 24 | F138: 23221 | G138: 23 | H138: 23227 | K138: 0 | L138: 1222
A139: 12 | B139: 23403 | C139: 14 | D139: 23636 | E139: 24 | F139: 23645 | G139: 23 | H139: 23650 | K139: 0 | L139: 1122
A140: 12 | B140: 23779 | C140: 23 | D140: 23787 | E140: 24 | F140: 23790 | G140: 23 | H140: 23794 | K140: 0 | L140: 1222

Sheet !LB14B14..Is
A1: Report for:!LB14B14..Is
A2: Date: | B2: <date>
A3: Hen: | B3: <hen> | F3: Correct Sequence | G3: =Start!J2 -> 2212 | P3: Total Sequences in Data | Q3: =4994-COUNTBLANK(L7:L5000) -> 35 | V3: Total Sequences in Block Data | W3: =COUNTA(L7:L12) -> 6 | AA3: Total Sequences in Block Data | AB3: =COUNTA(L13:L18) -> 6 | AF3: Total Sequences in Block Data | AG3: =COUNTA(L19:L23) -> 5 | AK3: Total Sequences in Block Data | AL3: =COUNTA(L24:L29) -> 6 | AP3: Total Sequences in Block Data | AQ3: =COUNTA(L30:L35) -> 6 | AU3: Total Sequences in Block Data | AV3: =COUNTA(L36:L41) -> 6
P4: Total Sequences in Summary | Q4: =SUM(O7:O22) -> 34 | V4: Total Sequences in Block Summary | W4: =SUM(U7:U22) -> 6 | AA4: Total Sequences in Block Summary | AB4: =SUM(Z7:Z22) -> 6 | AF4: Total Sequences in Block Summary | AG4: =SUM(AE7:AE22) -> 5 | AK4: Total Sequences in Block Summary | AL4: =SUM(AJ7:AJ22) -> 6 | AP4: Total Sequences in Block Summary | AQ4: =SUM(AO7:AO22) -> 6 | AU4: Total Sequences in Block Summary | AV4: =SUM(AT7:AT22) -> 5
T5: Block 1 | Y5: Block 2 | AD5: Block 3 | AI5: Block 4 | AN5: Block 5 | AS5: Block 6
A6: Sequence Component 1 | B6: Time 1 | C6: Sequence Component 2 | D6: Time 2 | E6: Sequence Component 3 | F6: Time 3 | G6: Sequence Component 4 | H6: Time 4 | I6: Sequence Component 5 | J6: Time 5 | K6: Correct? 0=No 1=Yes | L6: Sequence | N6: Frequency | P6: Relative Frequency | Q6: Variability | T6: Frequency | V6: Relative Frequency | W6: Variability | Y6: Frequency | AA6: Relative Frequency | AB6: Variability | AD6: Frequency | AF6: Relative Frequency | AG6: Variability | AI6: Frequency | AK6: Relative Frequency | AL6: Variability | AN6: Frequency | AP6: Relative Frequency | AQ6: Variability | AS6: Frequency | AU6: Relative Frequency | AV6: Variability
A7: 12 | B7: 24 | C7: 23 | D7: 33 | E7: 24 | F7: 39 | G7: 23 | H7: 50 | K7: 0 | L7: 1222 | N7: 1111 | O7: =COUNTIF($L$7:$L$500,N7) -> 0 | P7: =O7/$Q$4 -> 0 | Q7: =IF(P7=0,0,(P7*((LOG(P7))/LOG(2)))) -> 0 | T7: =N7 -> 1111 | U7: =COUNTIF(L7:L12,T7) -> 0 | V7: =U7/(W4-U20) -> 0 | W7: =IF(V7=0,0,(V7*((LOG(V7))/LOG(2)))) -> 0 | Y7: =N7 -> 1111 | Z7: =COUNTIF(L13:L18,Y7) -> 0 | AA7: =Z7/(AB4-Z20) -> 0 | AB7: =IF(AA7=0,0,(AA7*((LOG(AA7))/LOG(2)))) -> 0 | AD7: =N7 -> 1111 | AE7: =COUNTIF(L19:L23,AD7) -> 0 | AF7: =AE7/(AG4-AE20) -> 0 | AG7: =IF(AF7=0,0,(AF7*((LOG(AF7))/LOG(2)))) -> 0 | AI7: =N7 -> 1111 | AJ7: =COUNTIF(L24:L29,AI7) -> 0 | AK7: =AJ7/(AL4-AJ20) -> 0 | AL7: =IF(AK7=0,0,(AK7*((LOG(AK7))/LOG(2)))) -> 0 | AN7: =N7 -> 1111 | AO7: =COUNTIF(L30:L35,AN7) -> 0 | AP7: =AO7/(AQ4-AO20) -> 0 | AQ7: =IF(AP7=0,0,(AP7*((LOG(AP7))/LOG(2)))) -> 0 | AS7: =N7 -> 1111 | AT7: =COUNTIF(L36:L41,AS7) -> 0 | AU7: =AT7/(AV4-AT20) -> 0 | AV7: =IF(AU7=0,0,(AU7*((LOG(AU7))/LOG(2)))) -> 0
A8: 12 | B8: 173 | C8: 14 | D8: 177 | E8: 24 | F8: 183 | G8: 23 | H8: 187 | K8: 0 | L8: 1122 | N8: 1112 | O8: =COUNTIF($L$7:$L$500,N8) -> 6 | P8: =O8/$Q$4 -> 0.1764705882 | Q8: =IF(P8=0,0,(P8*((LOG(P8))/LOG(2)))) -> -0.4416177072 | T8: =N8 -> 1112 | U8: =COUNTIF(L7:L12,T8) -> 0 | V8: =U8/(W4-U20) -> 0 | W8: =IF(V8=0,0,(V8*((LOG(V8))/LOG(2)))) -> 0 | Y8: =N8 -> 1112 | Z8: =COUNTIF(L13:L18,Y8) -> 3 | AA8: =Z8/(AB4-Z20) -> 0.5 | AB8: =IF(AA8=0,0,(AA8*((LOG(AA8))/LOG(2)))) -> -0.5 | AD8: =N8 -> 1112 | AE8: =COUNTIF(L19:L23,AD8) -> 2 | AF8: =AE8/(AG4-AE20) -> 0.4 | AG8: =IF(AF8=0,0,(AF8*((LOG(AF8))/LOG(2)))) -> -0.528771238 | AI8: =N8 -> 1112 | AJ8: =COUNTIF(L24:L29,AI8) -> 1 | AK8: =AJ8/(AL4-AJ20) -> 0.1666666667 | AL8: =IF(AK8=0,0,(AK8*((LOG(AK8))/LOG(2)))) -> -0.4308270835 | AN8: =N8 -> 1112 | AO8: =COUNTIF(L30:L35,AN8) -> 0 | AP8: =AO8/(AQ4-AO20) -> 0 | AQ8: =IF(AP8=0,0,(AP8*((LOG(AP8))/LOG(2)))) -> 0 | AS8: =N8 -> 1112 | AT8: =COUNTIF(L36:L41,AS8) -> 0 | AU8: =AT8/(AV4-AT20) -> 0 | AV8: =IF(AU8=0,0,(AU8*((LOG(AU8))/LOG(2)))) -> 0
A9: 12 | B9: 288 | C9: 23 | D9: 294 | E9: 24 | F9: 297 | G9: 23 | H9: 302 | K9: 0 | L9: 1222 | N9: 1121 | O9: =COUNTIF($L$7:$L$500,N9) -> 1 | P9: =O9/$Q$4 -> 0.02941176471 | Q9: =IF(P9=0,0,(P9*((LOG(P9))/LOG(2)))) -> -0.14963126 | T9: =N9 -> 1121 | U9: =COUNTIF(L7:L12,T9) -> 0 | V9: =U9/(W4-U20) -> 0 | W9: =IF(V9=0,0,(V9*((LOG(V9))/LOG(2)))) -> 0 | Y9: =N9 -> 1121 | Z9: =COUNTIF(L13:L18,Y9) -> 0 | AA9: =Z9/(AB4-Z20) -> 0 | AB9: =IF(AA9=0,0,(AA9*((LOG(AA9))/LOG(2)))) -> 0 | AD9: =N9 -> 1121 | AE9: =COUNTIF(L19:L23,AD9) -> 0 | AF9: =AE9/(AG4-AE20) -> 0 | AG9: =IF(AF9=0,0,(AF9*((LOG(AF9))/LOG(2)))) -> 0 | AI9: =N9 -> 1121 | AJ9: =COUNTIF(L24:L29,AI9) -> 0 | AK9: =AJ9/(AL4-AJ20) -> 0 | AL9: =IF(AK9=0,0,(AK9*((LOG(AK9))/LOG(2)))) -> 0 | AN9: =N9 -> 1121 | AO9: =COUNTIF(L30:L35,AN9) -> 1 | AP9: =AO9/(AQ4-AO20) -> 0.1666666667 | AQ9: =IF(AP9=0,0,(AP9*((LOG(AP9))/LOG(2)))) -> -0.4308270835 | AS9: =N9 -> 1121 | AT9: =COUNTIF(L36:L41,AS9) -> 0 | AU9: =AT9/(AV4-AT20) -> 0 | AV9: =IF(AU9=0,0,(AU9*((LOG(AU9))/LOG(2)))) -> 0
A10: 12 | B10: 400 | C10: 23 | D10: 416 | E10: 24 | F10: 427 | G10: 23 | H10: 434 | K10: 0 | L10: 1222 | N10: 1122 | O10: =COUNTIF($L$7:$L$500,N10) -> 8 | P10: =O10/$Q$4 -> 0.2352941176 | Q10: =IF(P10=0,0,(P10*((LOG(P10))/LOG(2)))) -> -0.4911677274 | T10: =N10 -> 1122 | U10: =COUNTIF(L7:L12,T10) -> 3 | V10: =U10/(W4-U20) -> 0.5 | W10: =IF(V10=0,0,(V10*((LOG(V10))/LOG(2)))) -> -0.5 | Y10: =N10 -> 1122 | Z10: =COUNTIF(L13:L18,Y10) -> 1 | AA10: =Z10/(AB4-Z20) -> 0.1666666667 | AB10: =IF(AA10=0,0,(AA10*((LOG(AA10))/LOG(2)))) -> -0.4308270835 | AD10: =N10 -> 1122 | AE10: =COUNTIF(L19:L23,AD10) -> 0 | AF10: =AE10/(AG4-AE20) -> 0 | AG10: =IF(AF10=0,0,(AF10*((LOG(AF10))/LOG(2)))) -> 0 | AI10: =N10 -> 1122 | AJ10: =COUNTIF(L24:L29,AI10) -> 3 | AK10: =AJ10/(AL4-AJ20) -> 0.5 | AL10: =IF(AK10=0,0,(AK10*((LOG(AK10))/LOG(2)))) -> -0.5 | AN10: =N10 -> 1122 | AO10: =COUNTIF(L30:L35,AN10) -> 0 | AP10: =AO10/(AQ4-AO20) -> 0 | AQ10: =IF(AP10=0,0,(AP10*((LOG(AP10))/LOG(2)))) -> 0 | AS10: =N10 -> 1122 | AT10: =COUNTIF(L36:L41,AS10) -> 1 | AU10: =AT10/(AV4-AT20) -> 0.2 | AV10: =IF(AU10=0,0,(AU10*((LOG(AU10))/LOG(2)))) -> -0.464385619
A11: 12 | B11: 534 | C11: 14 | D11: 540 | E11: 24 | F11: 547 | G11: 23 | H11: 555 | K11: 0 | L11: 1122 | N11: 1211 | O11: =COUNTIF($L$7:$L$500,N11) -> 0 | P11: =O11/$Q$4 -> 0 | Q11: =IF(P11=0,0,(P11*((LOG(P11))/LOG(2)))) -> 0 | T11: =N11 -> 1211 | U11: =COUNTIF(L7:L12,T11) -> 0 | V11: =U11/(W4-U20) -> 0 | W11: =IF(V11=0,0,(V11*((LOG(V11))/LOG(2)))) -> 0 | Y11: =N11 -> 1211 | Z11: =COUNTIF(L13:L18,Y11) -> 0 | AA11: =Z11/(AB4-Z20) -> 0 | AB11: =IF(AA11=0,0,(AA11*((LOG(AA11))/LOG(2)))) -> 0 | AD11: =N11 -> 1211 | AE11: =COUNTIF(L19:L23,AD11) -> 0 | AF11: =AE11/(AG4-AE20) -> 0 | AG11: =IF(AF11=0,0,(AF11*((LOG(AF11))/LOG(2)))) -> 0 | AI11: =N11 -> 1211 | AJ11: =COUNTIF(L24:L29,AI11) -> 0 | AK11: =AJ11/(AL4-AJ20) -> 0 | AL11: =IF(AK11=0,0,(AK11*((LOG(AK11))/LOG(2)))) -> 0 | AN11: =N11 -> 1211 | AO11: =COUNTIF(L30:L35,AN11) -> 0 | AP11: =AO11/(AQ4-AO20) -> 0 | AQ11: =IF(AP11=0,0,(AP11*((LOG(AP11))/LOG(2)))) -> 0 | AS11: =N11 -> 1211 | AT11: =COUNTIF(L36:L41,AS11) -> 0 | AU11: =AT11/(AV4-AT20) -> 0 | AV11: =IF(AU11=0,0,(AU11*((LOG(AU11))/LOG(2)))) -> 0
A12: 12 | B12: 671 | C12: 14 | D12: 676 | E12: 24 | F12: 683 | G12: 23 | H12: 687 | K12: 0 | L12: 1122 | N12: 1212 | O12: =COUNTIF($L$7:$L$500,N12) -> 0 | P12: =O12/$Q$4 -> 0 | Q12: =IF(P12=0,0,(P12*((LOG(P12))/LOG(2)))) -> 0 | T12: =N12 -> 1212 | U12: =COUNTIF(L7:L12,T12) -> 0 | V12: =U12/(W4-U20) -> 0 | W12: =IF(V12=0,0,(V12*((LOG(V12))/LOG(2)))) -> 0 | Y12: =N12 -> 1212 | Z12: =COUNTIF(L13:L18,Y12) -> 0 | AA12: =Z12/(AB4-Z20) -> 0 | AB12: =IF(AA12=0,0,(AA12*((LOG(AA12))/LOG(2)))) -> 0 | AD12: =N12 -> 1212 | AE12: =COUNTIF(L19:L23,AD12) -> 0 | AF12: =AE12/(AG4-AE20) -> 0 | AG12: =IF(AF12=0,0,(AF12*((LOG(AF12))/LOG(2)))) -> 0 | AI12: =N12 -> 1212 | AJ12: =COUNTIF(L24:L29,AI12) -> 0 | AK12: =AJ12/(AL4-AJ20) -> 0 | AL12: =IF(AK12=0,0,(AK12*((LOG(AK12))/LOG(2)))) -> 0 | AN12: =N12 -> 1212 | AO12: =COUNTIF(L30:L35,AN12) -> 0 | AP12: =AO12/(AQ4-AO20) -> 0 | AQ12: =IF(AP12=0,0,(AP12*((LOG(AP12))/LOG(2)))) -> 0 | AS12: =N12 -> 1212 | AT12: =COUNTIF(L36:L41,AS12) -> 0 | AU12: =AT12/(AV4-AT20) -> 0 | AV12: =IF(AU12=0,0,(AU12*((LOG(AU12))/LOG(2)))) -> 0
A13: 21 | B13: 801 | C13: 21 | D13: 817 | E13: 22 | F13: 823 | G13: 23 | H13: 829 | K13: 0 | L13: 2222 | N13: 1221 | O13: =COUNTIF($L$7:$L$500,N13) -> 2 | P13: =O13/$Q$4 -> 0.05882352941 | Q13: =IF(P13=0,0,(P13*((LOG(P13))/LOG(2)))) -> -0.2404389907 | T13: =N13 -> 1221 | U13: =COUNTIF(L7:L12,T13) -> 0 | V13: =U13/(W4-U20) -> 0 | W13: =IF(V13=0,0,(V13*((LOG(V13))/LOG(2)))) -> 0 | Y13: =N13 -> 1221 | Z13: =COUNTIF(L13:L18,Y13) -> 0 | AA13: =Z13/(AB4-Z20) -> 0 | AB13: =IF(AA13=0,0,(AA13*((LOG(AA13))/LOG(2)))) -> 0 | AD13: =N13 -> 1221 | AE13: =COUNTIF(L19:L23,AD13) -> 0 | AF13: =AE13/(AG4-AE20) -> 0 | AG13: =IF(AF13=0,0,(AF13*((LOG(AF13))/LOG(2)))) -> 0 | AI13: =N13 -> 1221 | AJ13: =COUNTIF(L24:L29,AI13) -> 0 | AK13: =AJ13/(AL4-AJ20) -> 0 | AL13: =IF(AK13=0,0,(AK13*((LOG(AK13))/LOG(2)))) -> 0 | AN13: =N13 -> 1221 | AO13: =COUNTIF(L30:L35,AN13) -> 0 | AP13: =AO13/(AQ4-AO20) -> 0 | AQ13: =IF(AP13=0,0,(AP13*((LOG(AP13))/LOG(2)))) -> 0 | AS13: =N13 -> 1221 | AT13: =COUNTIF(L36:L41,AS13) -> 2 | AU13: =AT13/(AV4-AT20) -> 0.4 | AV13: =IF(AU13=0,0,(AU13*((LOG(AU13))/LOG(2)))) -> -0.528771238
A14: 12 | B14: 925 | C14: 14 | D14: 933 | E14: 24 | F14: 946 | G14: 23 | H14: 951 | K14: 0 | L14: 1122 | N14: 1222 | O14: =COUNTIF($L$7:$L$500,N14) -> 13 | P14: =O14/$Q$4 -> 0.3823529412 | Q14: =IF(P14=0,0,(P14*((LOG(P14))/LOG(2)))) -> -0.5303323706 | T14: =N14 -> 1222 | U14: =COUNTIF(L7:L12,T14) -> 3 | V14: =U14/(W4-U20) -> 0.5 | W14: =IF(V14=0,0,(V14*((LOG(V14))/LOG(2)))) -> -0.5 | Y14: =N14 -> 1222 | Z14: =COUNTIF(L13:L18,Y14) -> 1 | AA14: =Z14/(AB4-Z20) -> 0.1666666667 | AB14: =IF(AA14=0,0,(AA14*((LOG(AA14))/LOG(2)))) -> -0.4308270835 | AD14: =N14 -> 1222 | AE14: =COUNTIF(L19:L23,AD14) -> 3 | AF14: =AE14/(AG4-AE20) -> 0.6 | AG14: =IF(AF14=0,0,(AF14*((LOG(AF14))/LOG(2)))) -> -0.4421793565 | AI14: =N14 -> 1222 | AJ14: =COUNTIF(L24:L29,AI14) -> 1 | AK14: =AJ14/(AL4-AJ20) -> 0.1666666667 | AL14: =IF(AK14=0,0,(AK14*((LOG(AK14))/LOG(2)))) -> -0.4308270835 | AN14: =N14 -> 1222 | AO14: =COUNTIF(L30:L35,AN14) -> 3 | AP14: =AO14/(AQ4-AO20) -> 0.5 | AQ14: =IF(AP14=0,0,(AP14*((LOG(AP14))/LOG(2)))) -> -0.5 | AS14: =N14 -> 1222 | AT14: =COUNTIF(L36:L41,AS14) -> 2 | AU14: =AT14/(AV4-AT20) -> 0.4 | AV14: =IF(AU14=0,0,(AU14*((LOG(AU14))/LOG(2)))) -> -0.528771238
A15: 12 | B15: 1047 | C15: 14 | D15: 1050 | E15: 13 | F15: 1057 | G15: 23 | H15: 1066 | K15: 0 | L15: 1112 | N15: 2111 | O15: =COUNTIF($L$7:$L$500,N15) -> 1 | P15: =O15/$Q$4 -> 0.02941176471 | Q15: =IF(P15=0,0,(P15*((LOG(P15))/LOG(2)))) -> -0.14963126 | T15: =N15 -> 2111 | U15: =COUNTIF(L7:L12,T15) -> 0 | V15: =U15/(W4-U20) -> 0 | W15: =IF(V15=0,0,(V15*((LOG(V15))/LOG(2)))) -> 0 | Y15: =N15 -> 2111 | Z15: =COUNTIF(L13:L18,Y15) -> 0 | AA15: =Z15/(AB4-Z20) -> 0 | AB15: =IF(AA15=0,0,(AA15*((LOG(AA15))/LOG(2)))) -> 0 | AD15: =N15 -> 2111 | AE15: =COUNTIF(L19:L23,AD15) -> 0 | AF15: =AE15/(AG4-AE20) -> 0 | AG15: =IF(AF15=0,0,(AF15*((LOG(AF15))/LOG(2)))) -> 0 | AI15: =N15 -> 2111 | AJ15: =COUNTIF(L24:L29,AI15) -> 0 | AK15: =AJ15/(AL4-AJ20) -> 0 | AL15: =IF(AK15=0,0,(AK15*((LOG(AK15))/LOG(2)))) -> 0 | AN15: =N15 -> 2111 | AO15: =COUNTIF(L30:L35,AN15) -> 1 | AP15: =AO15/(AQ4-AO20) -> 0.1666666667 | AQ15: =IF(AP15=0,0,(AP15*((LOG(AP15))/LOG(2)))) -> -0.4308270835 | AS15: =N15 -> 2111 | AT15: =COUNTIF(L36:L41,AS15) -> 0 | AU15: =AT15/(AV4-AT20) -> 0 | AV15: =IF(AU15=0,0,(AU15*((LOG(AU15))/LOG(2)))) -> 0
A16: 12 | B16: 1163 | C16: 14 | D16: 1168 | E16: 13 | F16: 1175 | G16: 23 | H16: 1183 | K16: 0 | L16: 1112 | N16: 2112 | O16: =COUNTIF($L$7:$L$500,N16) -> 0 | P16: =O16/$Q$4 -> 0 | Q16: =IF(P16=0,0,(P16*((LOG(P16))/LOG(2)))) -> 0 | T16: =N16 -> 2112 | U16: =COUNTIF(L7:L12,T16) -> 0 | V16: =U16/(W4-U20) -> 0 | W16: =IF(V16=0,0,(V16*((LOG(V16))/LOG(2)))) -> 0 | Y16: =N16 -> 2112 | Z16: =COUNTIF(L13:L18,Y16) -> 0 | AA16: =Z16/(AB4-Z20) -> 0 | AB16: =IF(AA16=0,0,(AA16*((LOG(AA16))/LOG(2)))) -> 0 | AD16: =N16 -> 2112 | AE16: =COUNTIF(L19:L23,AD16) -> 0 | AF16: =AE16/(AG4-AE20) -> 0 | AG16: =IF(AF16=0,0,(AF16*((LOG(AF16))/LOG(2)))) -> 0 | AI16: =N16 -> 2112 | AJ16: =COUNTIF(L24:L29,AI16) -> 0 | AK16: =AJ16/(AL4-AJ20) -> 0 | AL16: =IF(AK16=0,0,(AK16*((LOG(AK16))/LOG(2)))) -> 0 | AN16: =N16 -> 2112 | AO16: =COUNTIF(L30:L35,AN16) -> 0 | AP16: =AO16/(AQ4-AO20) -> 0 | AQ16: =IF(AP16=0,0,(AP16*((LOG(AP16))/LOG(2)))) -> 0 | AS16: =N16 -> 2112 | AT16: =COUNTIF(L36:L41,AS16) -> 0 | AU16: =AT16/(AV4-AT20) -> 0 | AV16: =IF(AU16=0,0,(AU16*((LOG(AU16))/LOG(2)))) -> 0
A17: 12 | B17: 1304 | C17: 14 | D17: 1309 | E17: 13 | F17: 1314 | G17: 23 | H17: 1322 | K17: 0 | L17: 1112 | N17: 2121 | O17: =COUNTIF($L$7:$L$500,N17) -> 0 | P17: =O17/$Q$4 -> 0 | Q17: =IF(P17=0,0,(P17*((LOG(P17))/LOG(2)))) -> 0 | T17: =N17 -> 2121 | U17: =COUNTIF(L7:L12,T17) -> 0 | V17: =U17/(W4-U20) -> 0 | W17: =IF(V17=0,0,(V17*((LOG(V17))/LOG(2)))) -> 0 | Y17: =N17 -> 2121 | Z17: =COUNTIF(L13:L18,Y17) -> 0 | AA17: =Z17/(AB4-Z20) -> 0 | AB17: =IF(AA17=0,0,(AA17*((LOG(AA17))/LOG(2)))) -> 0 | AD17: =N17 -> 2121 | AE17: =COUNTIF(L19:L23,AD17) -> 0 | AF17: =AE17/(AG4-AE20) -> 0 | AG17: =IF(AF17=0,0,(AF17*((LOG(AF17))/LOG(2)))) -> 0 | AI17: =N17 -> 2121 | AJ17: =COUNTIF(L24:L29,AI17) -> 0 | AK17: =AJ17/(AL4-AJ20) -> 0 | AL17: =IF(AK17=0,0,(AK17*((LOG(AK17))/LOG(2)))) -> 0 | AN17: =N17 -> 2121 | AO17: =COUNTIF(L30:L35,AN17) -> 0 | AP17: =AO17/(AQ4-AO20) -> 0 | AQ17: =IF(AP17=0,0,(AP17*((LOG(AP17))/LOG(2)))) -> 0 | AS17: =N17 -> 2121 | AT17: =COUNTIF(L36:L41,AS17) -> 0 | AU17: =AT17/(AV4-AT20) -> 0 | AV17: =IF(AU17=0,0,(AU17*((LOG(AU17))/LOG(2)))) -> 0
A18: 12 | B18: 1423 | C18: 23 | D18: 1432 | E18: 24 | F18: 1436 | G18: 23 | H18: 1443 | K18: 0 | L18: 1222 | N18: 2122 | O18: =COUNTIF($L$7:$L$500,N18) -> 1 | P18: =O18/$Q$4 -> 0.02941176471 | Q18: =IF(P18=0,0,(P18*((LOG(P18))/LOG(2)))) -> -0.14963126 | T18: =N18 -> 2122 | U18: =COUNTIF(L7:L12,T18) -> 0 | V18: =U18/(W4-U20) -> 0 | W18: =IF(V18=0,0,(V18*((LOG(V18))/LOG(2)))) -> 0 | Y18: =N18 -> 2122 | Z18: =COUNTIF(L13:L18,Y18) -> 0 | AA18: =Z18/(AB4-Z20) -> 0 | AB18: =IF(AA18=0,0,(AA18*((LOG(AA18))/LOG(2)))) -> 0 | AD18: =N18 -> 2122 | AE18: =COUNTIF(L19:L23,AD18) -> 0 | AF18: =AE18/(AG4-AE20) -> 0 | AG18: =IF(AF18=0,0,(AF18*((LOG(AF18))/LOG(2)))) -> 0 | AI18: =N18 -> 2122 | AJ18: =COUNTIF(L24:L29,AI18) -> 0 | AK18: =AJ18/(AL4-AJ20) -> 0 | AL18: =IF(AK18=0,0,(AK18*((LOG(AK18))/LOG(2)))) -> 0 | AN18: =N18 -> 2122 | AO18: =COUNTIF(L30:L35,AN18) -> 1 | AP18: =AO18/(AQ4-AO20) -> 0.1666666667 | AQ18: =IF(AP18=0,0,(AP18*((LOG(AP18))/LOG(2)))) -> -0.4308270835 | AS18: =N18 -> 2122 | AT18: =COUNTIF(L36:L41,AS18) -> 0 | AU18: =AT18/(AV4-AT20) -> 0 | AV18: =IF(AU18=0,0,(AU18*((LOG(AU18))/LOG(2)))) -> 0
A19: 12 | B19: 1540 | C19: 14 | D19: 1548 | E19: 13 | F19: 1556 | G19: 23 | H19: 1563 | K19: 0 | L19: 1112 | N19: 2211 | O19: =COUNTIF($L$7:$L$500,N19) -> 0 | P19: =O19/$Q$4 -> 0 | Q19: =IF(P19=0,0,(P19*((LOG(P19))/LOG(2)))) -> 0 | T19: =N19 -> 2211 | U19: =COUNTIF(L7:L12,T19) -> 0 | V19: =U19/(W4-U20) -> 0 | W19: =IF(V19=0,0,(V19*((LOG(V19))/LOG(2)))) -> 0 | Y19: =N19 -> 2211 | Z19: =COUNTIF(L13:L18,Y19) -> 0 | AA19: =Z19/(AB4-Z20) -> 0 | AB19: =IF(AA19=0,0,(AA19*((LOG(AA19))/LOG(2)))) -> 0 | AD19: =N19 -> 2211 | AE19: =COUNTIF(L19:L23,AD19) -> 0 | AF19: =AE19/(AG4-AE20) -> 0 | AG19: =IF(AF19=0,0,(AF19*((LOG(AF19))/LOG(2)))) -> 0 | AI19: =N19 -> 2211 | AJ19: =COUNTIF(L24:L29,AI19) -> 0 | AK19: =AJ19/(AL4-AJ20) -> 0 | AL19: =IF(AK19=0,0,(AK19*((LOG(AK19))/LOG(2)))) -> 0 | AN19: =N19 -> 2211 | AO19: =COUNTIF(L30:L35,AN19) -> 0 | AP19: =AO19/(AQ4-AO20) -> 0 | AQ19: =IF(AP19=0,0,(AP19*((LOG(AP19))/LOG(2)))) -> 0 | AS19: =N19 -> 2211 | AT19: =COUNTIF(L36:L41,AS19) -> 0 | AU19: =AT19/(AV4-AT20) -> 0 | AV19: =IF(AU19=0,0,(AU19*((LOG(AU19))/LOG(2)))) -> 0
A20: 12 | B20: 1660 | C20: 14 | D20: 1667 | E20: 13 | F20: 1673 | G20: 23 | H20: 1680 | K20: 0 | L20: 1112 | N20: 2212 | O20: =COUNTIF($L$7:$L$500,N20) -> 0 | P20: =O20/$Q$4 -> 0 | Q20: =IF(P20=0,0,(P20*((LOG(P20))/LOG(2)))) -> 0 | T20: =N20 -> 2212 | U20: =COUNTIF(L7:L12,T20) -> 0 | Y20: =N20 -> 2212 | Z20: =COUNTIF(L13:L18,Y20) -> 0 | AD20: =N20 -> 2212 | AE20: =COUNTIF(L19:L23,AD20) -> 0 | AI20: =N20 -> 2212 | AJ20: =COUNTIF(L24:L29,AI20) -> 0 | AN20: =N20 -> 2212 | AO20: =COUNTIF(L30:L35,AN20) -> 0 | AS20: =N20 -> 2212 | AT20: =COUNTIF(L36:L41,AS20) -> 0
A21: 12 | B21: 1787 | C21: 23 | D21: 1795 | E21: 24 | F21: 1802 | G21: 23 | H21: 1809 | K21: 0 | L21: 1222 | N21: 2221 | O21: =COUNTIF($L$7:$L$500,N21) -> 0 | P21: =O21/$Q$4 -> 0 | Q21: =IF(P21=0,0,(P21*((LOG(P21))/LOG(2)))) -> 0 | T21: =N21 -> 2221 | U21: =COUNTIF(L7:L12,T21) -> 0 | V21: =U21/(W4-U20) -> 0 | W21: =IF(V21=0,0,(V21*((LOG(V21))/LOG(2)))) -> 0 | Y21: =N21 -> 2221 | Z21: =COUNTIF(L13:L18,Y21) -> 0 | AA21: =Z21/(AB4-Z20) -> 0 | AB21: =IF(AA21=0,0,(AA21*((LOG(AA21))/LOG(2)))) -> 0 | AD21: =N21 -> 2221 | AE21: =COUNTIF(L19:L23,AD21) -> 0 | AF21: =AE21/(AG4-AE20) -> 0 | AG21: =IF(AF21=0,0,(AF21*((LOG(AF21))/LOG(2)))) -> 0 | AI21: =N21 -> 2221 | AJ21: =COUNTIF(L24:L29,AI21) -> 0 | AK21: =AJ21/(AL4-AJ20) -> 0 | AL21: =IF(AK21=0,0,(AK21*((LOG(AK21))/LOG(2)))) -> 0 | AN21: =N21 -> 2221 | AO21: =COUNTIF(L30:L35,AN21) -> 0 | AP21: =AO21/(AQ4-AO20) -> 0 | AQ21: =IF(AP21=0,0,(AP21*((LOG(AP21))/LOG(2)))) -> 0 | AS21: =N21 -> 2221 | AT21: =COUNTIF(L36:L41,AS21) -> 0 | AU21: =AT21/(AV4-AT20) -> 0 | AV21: =IF(AU21=0,0,(AU21*((LOG(AU21))/LOG(2)))) -> 0
A22: 12 | B22: 1908 | C22: 23 | D22: 1919 | E22: 24 | F22: 1923 | G22: 23 | H22: 1928 | K22: 0 | L22: 1222 | N22: 2222 | O22: =COUNTIF($L$7:$L$500,N22) -> 2 | P22: =O22/$Q$4 -> 0.05882352941 | Q22: =IF(P22=0,0,(P22*((LOG(P22))/LOG(2)))) -> -0.2404389907 | T22: =N22 -> 2222 | U22: =COUNTIF(L7:L12,T22) -> 0 | V22: =U22/(W4-U20) -> 0 | W22: =IF(V22=0,0,(V22*((LOG(V22))/LOG(2)))) -> 0 | Y22: =N22 -> 2222 | Z22: =COUNTIF(L13:L18,Y22) -> 1 | AA22: =Z22/(AB4-Z20) -> 0.1666666667 | AB22: =IF(AA22=0,0,(AA22*((LOG(AA22))/LOG(2)))) -> -0.4308270835 | AD22: =N22 -> 2222 | AE22: =COUNTIF(L19:L23,AD22) -> 0 | AF22: =AE22/(AG4-AE20) -> 0 | AG22: =IF(AF22=0,0,(AF22*((LOG(AF22))/LOG(2)))) -> 0 | AI22: =N22 -> 2222 | AJ22: =COUNTIF(L24:L29,AI22) -> 1 | AK22: =AJ22/(AL4-AJ20) -> 0.1666666667 | AL22: =IF(AK22=0,0,(AK22*((LOG(AK22))/LOG(2)))) -> -0.4308270835 | AN22: =N22 -> 2222 | AO22: =COUNTIF(L30:L35,AN22) -> 0 | AP22: =AO22/(AQ4-AO20) -> 0 | AQ22: =IF(AP22=0,0,(AP22*((LOG(AP22))/LOG(2)))) -> 0 | AS22: =N22 -> 2222 | AT22: =COUNTIF(L36:L41,AS22) -> 0 | AU22: =AT22/(AV4-AT20) -> 0 | AV22: =IF(AU22=0,0,(AU22*((LOG(AU22))/LOG(2)))) -> 0
A23: 12 | B23: 2037 | C23: 23 | D23: 2048 | E23: 24 | F23: 2055 | G23: 23 | H23: 2061 | K23: 0 | L23: 1222 | P23: =SUM(P7:P22) -> 1 | Q23: =-SUM(Q7:Q22) -> 2.392889567 | V23: =SUM(V7:V22) -> 1 | W23: =-SUM(W7:W22) -> 1 | AA23: =SUM(AA7:AA22) -> 1 | AB23: =-SUM(AB7:AB22) -> 1.79248125 | AF23: =SUM(AF7:AF22) -> 1 | AG23: =-SUM(AG7:AG22) -> 0.9709505945 | AK23: =SUM(AK7:AK22) -> 1 | AL23: =-SUM(AL7:AL22) -> 1.79248125 | AP23: =SUM(AP7:AP22) -> 1 | AQ23: =-SUM(AQ7:AQ22) -> 1.79248125 | AU23: =SUM(AU7:AU22) -> 1 | AV23: =-SUM(AV7:AV22) -> 1.521928095
A24: 12 | B24: 2160 | C24: 23 | D24: 2168 | E24: 24 | F24: 2172 | G24: 23 | H24: 2176 | K24: 0 | L24: 1222 | P24: U= | Q24: =Q23/(LOG(Q4)/LOG(2)) -> 0.470350279 | V24: U1= | W24: =W23/(LOG(W4)/LOG(2)) -> 0.3868528072 | AA24: U2= | AB24: =AB23/(LOG(AB4)/LOG(2)) -> 0.6934264036 | AF24: U3= | AG24: =AG23/(LOG(AG4)/LOG(2)) -> 0.4181656601 | AK24: U4= | AL24: =AL23/(LOG(AL4)/LOG(2)) -> 0.6934264036 | AP24: U5= | AQ24: =AQ23/(LOG(AQ4)/LOG(2)) -> 0.6934264036 | AU24: U6= | AV24: =AV23/(LOG(AV4)/LOG(2)) -> 0.6554587535
A25: 12 | B25: 2275 | C25: 14 | D25: 2279 | E25: 24 | F25: 2288 | G25: 23 | H25: 2291 | K25: 0 | L25: 1122
A26: 21 | B26: 2398 | C26: 21 | D26: 2409 | E26: 22 | F26: 2420 | G26: 23 | H26: 2431 | K26: 0 | L26: 2222
A27: 12 | B27: 2532 | C27: 14 | D27: 2536 | E27: 24 | F27: 2545 | G27: 23 | H27: 2550 | K27: 0 | L27: 1122 | N27: Total Target Seq
A28: 12 | B28: 2789 | C28: 14 | D28: 2813 | E28: 13 | F28: 2819 | G28: 23 | H28: 2830 | K28: 0 | L28: 1112 | N28: =COUNTIF(L7:L41,G3) -> 0 | P28: 6 | Q28: 6 | R28: 5 | S28: 6 | T28: 6 | U28: 6
A29: 12 | B29: 3469 | C29: 14 | D29: 3473 | E29: 24 | F29: 3483 | G29: 23 | H29: 3493 | K29: 0 | L29: 1122 | P29: % of reinforcement given in 6 equal intervals based on number of trials
A30: 12 | B30: 3719 | C30: 14 | D30: 3728 | E30: 24 | F30: 3738 | G30: 14 | H30: 4810 | K30: 0 | L30: 1121 | P30: %_1 | Q30: %_2 | R30: %_3 | S30: %_4 | T30: %_5 | U30: %_6
A31: 12 | B31: 5256 | C31: 23 | D31: 5265 | E31: 24 | F31: 5271 | G31: 23 | H31: 5276 | K31: 0 | L31: 1222 | O31: target sequence | P31: =$G$3 -> 2212 | Q31: =$G$3 -> 2212 | R31: =$G$3 -> 2212 | S31: =$G$3 -> 2212 | T31: =$G$3 -> 2212 | U31: =$G$3 -> 2212
A32: 21 | B32: 7846 | C32: 12 | D32: 7977 | E32: 24 | F32: 7984 | G32: 23 | H32: 7988 | K32: 0 | L32: 2122 | O32: total reinforcement | P32: =U20 -> 0 | Q32: =Z20 -> 0 | R32: =AE20 -> 0 | S32: =AJ20 -> 0 | T32: =AO20 -> 0 | U32: =AT20 -> 0
A33: 12 | B33: 9016 | C33: 23 | D33: 9026 | E33: 24 | F33: 9030 | G33: 23 | H33: 9035 | K33: 0 | L33: 1222 | O33: % target
A34: 21 | B34: 9182 | C34: 12 | D34: 9186 | E34: 13 | F34: 10032 | G34: 14 | H34: 10041 | K34: 0 | L34: 2111 | O34: CCRF
A35: 12 | B35: 10399 | C35: 23 | D35: 10409 | E35: 24 | F35: 10412 | G35: 23 | H35: 10417 | K35: 0 | L35: 1222 | O35: % CCRf
A36: 12 | B36: 10586 | C36: 23 | D36: 10700 | E36: 24 | F36: 10702 | G36: 23 | H36: 10706 | K36: 0 | L36: 1222 | O36: average response rate | P36: =H12/P28 -> 114.5 | Q36: =(H18-H12)/Q28 -> 126 | R36: =(H23-H18)/R28 -> 123.6 | S36: =(H29-H23)/S28 -> 238.6666667 | T36: =(H35-H29)/T28 -> 1154 | U36: =(H41-H35)/U28 -> -1736.166667
A37: 12 | B37: 10989 | C37: 23 | D37: 11018 | E37: 24 | F37: 11028 | G37: 14 | H37: 11035 | K37: 0 | L37: 1221
A38: 12 | B38: 11922 | C38: 23 | D38: 12554 | E38: 24 | F38: 12659 | G38: 23 | H38: 12674 | K38: 0 | L38: 1222
A39: 12 | B39: 14056 | C39: 14 | D39: 14580 | E39: 24 | F39: 14589 | G39: 23 | H39: 14594 | K39: 0 | L39: 1122
A40: 12 | B40: 17459 | C40: 23 | D40: 17470 | E40: 24 | F40: 17475 | G40: 14 | H40: 17484 | K40: 0 | L40: 1221
A41: 12 | B41: 19991 | C41: 14 | D41: 20394 | E41: 24 | F41: 21812 | L41: 112

Sheet !LB15A24..Is
A1: Report for:!LB15A24..Is
A2: Date: | B2: <date>
A3: Hen: | B3: <hen> | F3: Correct Sequence | G3: =Start!J2 -> 2212 | P3: Total Sequences in Data | Q3: =4994-COUNTBLANK(L7:L5000) -> 22 | V3: Total Sequences in Block Data | W3: =COUNTA(L7:L10) -> 4 | AA3: Total Sequences in Block Data | AB3: =COUNTA(L11:L13) -> 3 | AF3: Total Sequences in Block Data | AG3: =COUNTA(L14:L17) -> 4 | AK3: Total Sequences in Block Data | AL3: =COUNTA(L18:L21) -> 4 | AP3: Total Sequences in Block Data | AQ3: =COUNTA(L22:L24) -> 3 | AU3: Total Sequences in Block Data | AV3: =COUNTA(L25:L28) -> 4
P4: Total Sequences in Summary | Q4: =SUM(O7:O22) -> 21 | V4: Total Sequences in Block Summary | W4: =SUM(U7:U22) -> 4 | AA4: Total Sequences in Block Summary | AB4: =SUM(Z7:Z22) -> 3 | AF4: Total Sequences in Block Summary | AG4: =SUM(AE7:AE22) -> 4 | AK4: Total Sequences in Block Summary | AL4: =SUM(AJ7:AJ22) -> 4 | AP4: Total Sequences in Block Summary | AQ4: =SUM(AO7:AO22) -> 3 | AU4: Total Sequences in Block Summary | AV4: =SUM(AT7:AT22) -> 3
T5: Block 1 | Y5: Block 2 | AD5: Block 3 | AI5: Block 4 | AN5: Block 5 | AS5: Block 6
A6: Sequence Component 1 | B6: Time 1 | C6: Sequence Component 2 | D6: Time 2 | E6: Sequence Component 3 | F6: Time 3 | G6: Sequence Component 4 | H6: Time 4 | I6: Sequence Component 5 | J6: Time 5 | K6: Correct? 0=No 1=Yes | L6: Sequence | N6: Frequency | P6: Relative Frequency | Q6: Variability | T6: Frequency | V6: Relative Frequency | W6: Variability | Y6: Frequency | AA6: Relative Frequency | AB6: Variability | AD6: Frequency | AF6: Relative Frequency | AG6: Variability | AI6: Frequency | AK6: Relative Frequency | AL6: Variability | AN6: Frequency | AP6: Relative Frequency | AQ6: Variability | AS6: Frequency | AU6: Relative Frequency | AV6: Variability
A7: 12 | B7: 112 | C7: 23 | D7: 122 | E7: 24 | F7: 126 | G7: 14 | H7: 140 | K7: 0 | L7: 1221 | N7: 1111 | O7: =COUNTIF($L$7:$L$500,N7) -> 2 | P7: =O7/$Q$4 -> 0.09523809524 | Q7: =IF(P7=0,0,(P7*((LOG(P7))/LOG(2)))) -> -0.3230778498 | T7: =N7 -> 1111 | U7: =COUNTIF(L7:L10,T7) -> 0 | V7: =U7/(W4-U20) -> 0 | W7: =IF(V7=0,0,(V7*((LOG(V7))/LOG(2)))) -> 0 | Y7: =N7 -> 1111 | Z7: =COUNTIF(L11:L13,Y7) -> 1 | AA7: =Z7/(AB4-Z20) -> 0.3333333333 | AB7: =IF(AA7=0,0,(AA7*((LOG(AA7))/LOG(2)))) -> -0.5283208336 | AD7: =N7 -> 1111 | AE7: =COUNTIF(L14:L17,AD7) -> 1 | AF7: =AE7/(AG4-AE20) -> 0.25 | AG7: =IF(AF7=0,0,(AF7*((LOG(AF7))/LOG(2)))) -> -0.5 | AI7: =N7 -> 1111 | AJ7: =COUNTIF(L18:L21,AI7) -> 0 | AK7: =AJ7/(AL4-AJ20) -> 0 | AL7: =IF(AK7=0,0,(AK7*((LOG(AK7))/LOG(2)))) -> 0 | AN7: =N7 -> 1111 | AO7: =COUNTIF(L22:L24,AN7) -> 0 | AP7: =AO7/(AQ4-AO20) -> 0 | AQ7: =IF(AP7=0,0,(AP7*((LOG(AP7))/LOG(2)))) -> 0 | AS7: =N7 -> 1111 | AT7: =COUNTIF(L25:L28,AS7) -> 0 | AU7: =AT7/(AV4-AT20) -> 0 | AV7: =IF(AU7=0,0,(AU7*((LOG(AU7))/LOG(2)))) -> 0
A8: 12 | B8: 237 | C8: 14 | D8: 244 | E8: 24 | F8: 250 | G8: 23 | H8: 254 | K8: 0 | L8: 1122 | N8: 1112 | O8: =COUNTIF($L$7:$L$500,N8) -> 2 | P8: =O8/$Q$4 -> 0.09523809524 | Q8: =IF(P8=0,0,(P8*((LOG(P8))/LOG(2)))) -> -0.3230778498 | T8: =N8 -> 1112 | U8: =COUNTIF(L7:L10,T8) -> 0 | V8: =U8/(W4-U20) -> 0 | W8: =IF(V8=0,0,(V8*((LOG(V8))/LOG(2)))) -> 0 | Y8: =N8 -> 1112 | Z8: =COUNTIF(L11:L13,Y8) -> 0 | AA8: =Z8/(AB4-Z20) -> 0 | AB8: =IF(AA8=0,0,(AA8*((LOG(AA8))/LOG(2)))) -> 0 | AD8: =N8 -> 1112 | AE8: =COUNTIF(L14:L17,AD8) -> 2 | AF8: =AE8/(AG4-AE20) -> 0.5 | AG8: =IF(AF8=0,0,(AF8*((LOG(AF8))/LOG(2)))) -> -0.5 | AI8: =N8 -> 1112 | AJ8: =COUNTIF(L18:L21,AI8) -> 0 | AK8: =AJ8/(AL4-AJ20) -> 0 | AL8: =IF(AK8=0,0,(AK8*((LOG(AK8))/LOG(2)))) -> 0 | AN8: =N8 -> 1112 | AO8: =COUNTIF(L22:L24,AN8) -> 0 | AP8: =AO8/(AQ4-AO20) -> 0 | AQ8: =IF(AP8=0,0,(AP8*((LOG(AP8))/LOG(2)))) -> 0 | AS8: =N8 -> 1112 | AT8: =COUNTIF(L25:L28,AS8) -> 0 | AU8: =AT8/(AV4-AT20) -> 0 | AV8: =IF(AU8=0,0,(AU8*((LOG(AU8))/LOG(2)))) -> 0
A9: 12 | B9: 350 | C9: 14 | D9: 355 | E9: 24 | F9: 363 | G9: 23 | H9: 367 | K9: 0 | L9: 1122 | N9: 1121 | O9: =COUNTIF($L$7:$L$500,N9) -> 1 | P9: =O9/$Q$4 -> 0.04761904762 | Q9: =IF(P9=0,0,(P9*((LOG(P9))/LOG(2)))) -> -0.2091579725 | T9: =N9 -> 1121 | U9: =COUNTIF(L7:L10,T9) -> 0 | V9: =U9/(W4-U20) -> 0 | W9: =IF(V9=0,0,(V9*((LOG(V9))/LOG(2)))) -> 0 | Y9: =N9 -> 1121 | Z9: =COUNTIF(L11:L13,Y9) -> 0 | AA9: =Z9/(AB4-Z20) -> 0 | AB9: =IF(AA9=0,0,(AA9*((LOG(AA9))/LOG(2)))) -> 0 | AD9: =N9 -> 1121 | AE9: =COUNTIF(L14:L17,AD9) -> 0 | AF9: =AE9/(AG4-AE20) -> 0 | AG9: =IF(AF9=0,0,(AF9*((LOG(AF9))/LOG(2)))) -> 0 | AI9: =N9 -> 1121 | AJ9: =COUNTIF(L18:L21,AI9) -> 0 | AK9: =AJ9/(AL4-AJ20) -> 0 | AL9: =IF(AK9=0,0,(AK9*((LOG(AK9))/LOG(2)))) -> 0 | AN9: =N9 -> 1121 | AO9: =COUNTIF(L22:L24,AN9) -> 0 | AP9: =AO9/(AQ4-AO20) -> 0 | AQ9: =IF(AP9=0,0,(AP9*((LOG(AP9))/LOG(2)))) -> 0 | AS9: =N9 -> 1121 | AT9: =COUNTIF(L25:L28,AS9) -> 1 | AU9: =AT9/(AV4-AT20) -> 0.3333333333 | AV9: =IF(AU9=0,0,(AU9*((LOG(AU9))/LOG(2)))) -> -0.5283208336
A10: 12 | B10: 463 | C10: 14 | D10: 475 | E10: 24 | F10: 482 | G10: 23 | H10: 487 | K10: 0 | L10: 1122 | N10: 1122 | O10: =COUNTIF($L$7:$L$500,N10) -> 6 | P10: =O10/$Q$4 -> 0.2857142857 | Q10: =IF(P10=0,0,(P10*((LOG(P10))/LOG(2)))) -> -0.5163871206 | T10: =N10 -> 1122 | U10: =COUNTIF(L7:L10,T10) -> 3 | V10: =U10/(W4-U20) -> 0.75 | W10: =IF(V10=0,0,(V10*((LOG(V10))/LOG(2)))) -> -0.3112781245 | Y10: =N10 -> 1122 | Z10: =COUNTIF(L11:L13,Y10) -> 0 | AA10: =Z10/(AB4-Z20) -> 0 | AB10: =IF(AA10=0,0,(AA10*((LOG(AA10))/LOG(2)))) -> 0 | AD10: =N10 -> 1122 | AE10: =COUNTIF(L14:L17,AD10) -> 1 | AF10: =AE10/(AG4-AE20) -> 0.25 | AG10: =IF(AF10=0,0,(AF10*((LOG(AF10))/LOG(2)))) -> -0.5 | AI10: =N10 -> 1122 | AJ10: =COUNTIF(L18:L21,AI10) -> 1 | AK10: =AJ10/(AL4-AJ20) -> 0.25 | AL10: =IF(AK10=0,0,(AK10*((LOG(AK10))/LOG(2)))) -> -0.5 | AN10: =N10 -> 1122 | AO10: =COUNTIF(L22:L24,AN10) -> 1 | AP10: =AO10/(AQ4-AO20) -> 0.3333333333 | AQ10: =IF(AP10=0,0,(AP10*((LOG(AP10))/LOG(2)))) -> -0.5283208336 | AS10: =N10 -> 1122 | AT10: =COUNTIF(L25:L28,AS10) -> 0 | AU10: =AT10/(AV4-AT20) -> 0 | AV10: =IF(AU10=0,0,(AU10*((LOG(AU10))/LOG(2)))) -> 0
A11: 12 | B11: 584 | C11: 23 | D11: 600 | E11: 24 | F11: 605 | G11: 23 | H11: 611 | K11: 0 | L11: 1222 | N11: 1211 | O11: =COUNTIF($L$7:$L$500,N11) -> 1 | P11: =O11/$Q$4 -> 0.04761904762 | Q11: =IF(P11=0,0,(P11*((LOG(P11))/LOG(2)))) -> -0.2091579725 | T11: =N11 -> 1211 | U11: =COUNTIF(L7:L10,T11) -> 0 | V11: =U11/(W4-U20) -> 0 | W11: =IF(V11=0,0,(V11*((LOG(V11))/LOG(2)))) -> 0 | Y11: =N11 -> 1211 | Z11: =COUNTIF(L11:L13,Y11) -> 0 | AA11: =Z11/(AB4-Z20) -> 0 | AB11: =IF(AA11=0,0,(AA11*((LOG(AA11))/LOG(2)))) -> 0 | AD11: =N11 -> 1211 | AE11: =COUNTIF(L14:L17,AD11) -> 0 | AF11: =AE11/(AG4-AE20) -> 0 | AG11: =IF(AF11=0,0,(AF11*((LOG(AF11))/LOG(2)))) -> 0 | AI11: =N11 -> 1211 | AJ11: =COUNTIF(L18:L21,AI11) -> 0 | AK11: =AJ11/(AL4-AJ20) -> 0 | AL11: =IF(AK11=0,0,(AK11*((LOG(AK11))/LOG(2)))) -> 0 | AN11: =N11 -> 1211 | AO11: =COUNTIF(L22:L24,AN11) -> 1 | AP11: =AO11/(AQ4-AO20) -> 0.3333333333 | AQ11: =IF(AP11=0,0,(AP11*((LOG(AP11))/LOG(2)))) -> -0.5283208336 | AS11: =N11 -> 1211 | AT11: =COUNTIF(L25:L28,AS11) -> 0 | AU11: =AT11/(AV4-AT20) -> 0 | AV11: =IF(AU11=0,0,(AU11*((LOG(AU11))/LOG(2)))) -> 0
A12: 12 | B12: 707 | C12: 14 | D12: 713 | E12: 13 | F12: 716 | G12: 14 | H12: 718 | K12: 0 | L12: 1111 | N12: 1212 | O12: =COUNTIF($L$7:$L$500,N12) -> 1 | P12: =O12/$Q$4 -> 0.04761904762 | Q12: =IF(P12=0,0,(P12*((LOG(P12))/LOG(2)))) -> -0.2091579725 | T12: =N12 -> 1212 | U12: =COUNTIF(L7:L10,T12) -> 0 | V12: =U12/(W4-U20) -> 0 | W12: =IF(V12=0,0,(V12*((LOG(V12))/LOG(2)))) -> 0 | Y12: =N12 -> 1212 | Z12: =COUNTIF(L11:L13,Y12) -> 0 | AA12: =Z12/(AB4-Z20) -> 0 | AB12: =IF(AA12=0,0,(AA12*((LOG(AA12))/LOG(2)))) -> 0 | AD12: =N12 -> 1212 | AE12: =COUNTIF(L14:L17,AD12) -> 0 | AF12: =AE12/(AG4-AE20) -> 0 | AG12: =IF(AF12=0,0,(AF12*((LOG(AF12))/LOG(2)))) -> 0 | AI12: =N12 -> 1212 | AJ12: =COUNTIF(L18:L21,AI12) -> 1 | AK12: =AJ12/(AL4-AJ20) -> 0.25 | AL12: =IF(AK12=0,0,(AK12*((LOG(AK12))/LOG(2)))) -> -0.5 | AN12: =N12 -> 1212 | AO12: =COUNTIF(L22:L24,AN12) -> 0 | AP12: =AO12/(AQ4-AO20) -> 0 | AQ12: =IF(AP12=0,0,(AP12*((LOG(AP12))/LOG(2)))) -> 0 | AS12: =N12 -> 1212 | AT12: =COUNTIF(L25:L28,AS12) -> 0 | AU12: =AT12/(AV4-AT20) -> 0 | AV12: =IF(AU12=0,0,(AU12*((LOG(AU12))/LOG(2)))) -> 0
A13: 12 | B13: 816 | C13: 23 | D13: 829 | E13: 24 | F13: 832 | G13: 23 | H13: 837 | K13: 0 | L13: 1222 | N13: 1221 | O13: =COUNTIF($L$7:$L$500,N13) -> 1 | P13: =O13/$Q$4 -> 0.04761904762 | Q13: =IF(P13=0,0,(P13*((LOG(P13))/LOG(2)))) -> -0.2091579725 | T13: =N13 -> 1221 | U13: =COUNTIF(L7:L10,T13) -> 1 | V13: =U13/(W4-U20) -> 0.25 | W13: =IF(V13=0,0,(V13*((LOG(V13))/LOG(2)))) -> -0.5 | Y13: =N13 -> 1221 | Z13: =COUNTIF(L11:L13,Y13) -> 0 | AA13: =Z13/(AB4-Z20) -> 0 | AB13: =IF(AA13=0,0,(AA13*((LOG(AA13))/LOG(2)))) -> 0 | AD13: =N13 -> 1221 | AE13: =COUNTIF(L14:L17,AD13) -> 0 | AF13: =AE13/(AG4-AE20) -> 0 | AG13: =IF(AF13=0,0,(AF13*((LOG(AF13))/LOG(2)))) -> 0 | AI13: =N13 -> 1221 | AJ13: =COUNTIF(L18:L21,AI13) -> 0 | AK13: =AJ13/(AL4-AJ20) -> 0 | AL13: =IF(AK13=0,0,(AK13*((LOG(AK13))/LOG(2)))) -> 0 | AN13: =N13 -> 1221 | AO13: =COUNTIF(L22:L24,AN13) -> 0 | AP13: =AO13/(AQ4-AO20) -> 0 | AQ13: =IF(AP13=0,0,(AP13*((LOG(AP13))/LOG(2)))) -> 0 | AS13: =N13 -> 1221 | AT13: =COUNTIF(L25:L28,AS13) -> 0 | AU13: =AT13/(AV4-AT20) -> 0 | AV13: =IF(AU13=0,0,(AU13*((LOG(AU13))/LOG(2)))) -> 0
A14: 12 | B14: 965 | C14: 14 | D14: 971 | E14: 24 | F14: 980 | G14: 23 | H14: 983 | K14: 0 | L14: 1122 | N14: 1222 | O14: =COUNTIF($L$7:$L$500,N14) -> 6 | P14: =O14/$Q$4 -> 0.2857142857 | Q14: =IF(P14=0,0,(P14*((LOG(P14))/LOG(2)))) -> -0.5163871206 | T14: =N14 -> 1222 | U14: =COUNTIF(L7:L10,T14) -> 0 | V14: =U14/(W4-U20) -> 0 | W14: =IF(V14=0,0,(V14*((LOG(V14))/LOG(2)))) -> 0 | Y14: =N14 -> 1222 | Z14: =COUNTIF(L11:L13,Y14) -> 2 | AA14: =Z14/(AB4-Z20) -> 0.6666666667 | AB14: =IF(AA14=0,0,(AA14*((LOG(AA14))/LOG(2)))) -> -0.3899750005 | AD14: =N14 -> 1222 | AE14: =COUNTIF(L14:L17,AD14) -> 0 | AF14: =AE14/(AG4-AE20) -> 0 | AG14: =IF(AF14=0,0,(AF14*((LOG(AF14))/LOG(2)))) -> 0 | AI14: =N14 -> 1222 | AJ14: =COUNTIF(L18:L21,AI14) -> 2 | AK14: =AJ14/(AL4-AJ20) -> 0.5 | AL14: =IF(AK14=0,0,(AK14*((LOG(AK14))/LOG(2)))) -> -0.5 | AN14: =N14 -> 1222 | AO14: =COUNTIF(L22:L24,AN14) -> 1 | AP14: =AO14/(AQ4-AO20) -> 0.3333333333 | AQ14: =IF(AP14=0,0,(AP14*((LOG(AP14))/LOG(2)))) -> -0.5283208336 | AS14: =N14 -> 1222 | AT14: =COUNTIF(L25:L28,AS14) -> 1 | AU14: =AT14/(AV4-AT20) -> 0.3333333333 | AV14: =IF(AU14=0,0,(AU14*((LOG(AU14))/LOG(2)))) -> -0.5283208336
A15: 12 | B15: 1082 | C15: 14 | D15: 1088 | E15: 13 | F15: 1091 | G15: 23 | H15: 1101 | K15: 0 | L15: 1112 | N15: 2111 | O15: =COUNTIF($L$7:$L$500,N15) -> 0 | P15: =O15/$Q$4 -> 0 | Q15: =IF(P15=0,0,(P15*((LOG(P15))/LOG(2)))) -> 0 | T15: =N15 -> 2111 | U15: =COUNTIF(L7:L10,T15) -> 0 | V15: =U15/(W4-U20) -> 0 | W15: =IF(V15=0,0,(V15*((LOG(V15))/LOG(2)))) -> 0 | Y15: =N15 -> 2111 | Z15: =COUNTIF(L11:L13,Y15) -> 0 | AA15: =Z15/(AB4-Z20) -> 0 | AB15: =IF(AA15=0,0,(AA15*((LOG(AA15))/LOG(2)))) -> 0 | AD15: =N15 -> 2111 | AE15: =COUNTIF(L14:L17,AD15) -> 0 | AF15: =AE15/(AG4-AE20) -> 0 | AG15: =IF(AF15=0,0,(AF15*((LOG(AF15))/LOG(2)))) -> 0 | AI15: =N15 -> 2111 | AJ15: =COUNTIF(L18:L21,AI15) -> 0 | AK15: =AJ15/(AL4-AJ20) -> 0 | AL15: =IF(AK15=0,0,(AK15*((LOG(AK15))/LOG(2)))) -> 0 | AN15: =N15 -> 2111 | AO15: =COUNTIF(L22:L24,AN15) -> 0 | AP15: =AO15/(AQ4-AO20) -> 0 | AQ15: =IF(AP15=0,0,(AP15*((LOG(AP15))/LOG(2)))) -> 0 | AS15: =N15 -> 2111 | AT15: =COUNTIF(L25:L28,AS15) -> 0 | AU15: =AT15/(AV4-AT20) -> 0 | AV15: =IF(AU15=0,0,(AU15*((LOG(AU15))/LOG(2)))) -> 0
A16: 12 | B16: 1197 | C16: 14 | D16: 1202 | E16: 13 | F16: 1206 | G16: 23 | H16: 1215 | K16: 0 | L16: 1112 | N16: 2112 | O16: =COUNTIF($L$7:$L$500,N16) -> 0 | P16: =O16/$Q$4 -> 0 | Q16: =IF(P16=0,0,(P16*((LOG(P16))/LOG(2)))) -> 0 | T16: =N16 -> 2112 | U16: =COUNTIF(L7:L10,T16) -> 0 | V16: =U16/(W4-U20) -> 0 | W16: =IF(V16=0,0,(V16*((LOG(V16))/LOG(2)))) -> 0 | Y16: =N16 -> 2112 | Z16: =COUNTIF(L11:L13,Y16) -> 0 | AA16: =Z16/(AB4-Z20) -> 0 | AB16: =IF(AA16=0,0,(AA16*((LOG(AA16))/LOG(2)))) -> 0 | AD16: =N16 -> 2112 | AE16: =COUNTIF(L14:L17,AD16) -> 0 | AF16: =AE16/(AG4-AE20) -> 0 | AG16: =IF(AF16=0,0,(AF16*((LOG(AF16))/LOG(2)))) -> 0 | AI16: =N16 -> 2112 | AJ16: =COUNTIF(L18:L21,AI16) -> 0 | AK16: =AJ16/(AL4-AJ20) -> 0 | AL16: =IF(AK16=0,0,(AK16*((LOG(AK16))/LOG(2)))) -> 0 | AN16: =N16 -> 2112 | AO16: =COUNTIF(L22:L24,AN16) -> 0 | AP16: =AO16/(AQ4-AO20) -> 0 | AQ16: =IF(AP16=0,0,(AP16*((LOG(AP16))/LOG(2)))) -> 0 | AS16: =N16 -> 2112 | AT16: =COUNTIF(L25:L28,AS16) -> 0 | AU16: =AT16/(AV4-AT20) -> 0 | AV16: =IF(AU16=0,0,(AU16*((LOG(AU16))/LOG(2)))) -> 0
A17: 12 | B17: 1319 | C17: 14 | D17: 1324 | E17: 13 | F17: 1328 | G17: 14 | H17: 1334 | K17: 0 | L17: 1111 | N17: 2121 | O17: =COUNTIF($L$7:$L$500,N17) -> 0 | P17: =O17/$Q$4 -> 0 | Q17: =IF(P17=0,0,(P17*((LOG(P17))/LOG(2)))) -> 0 | T17: =N17 -> 2121 | U17: =COUNTIF(L7:L10,T17) -> 0 | V17: =U17/(W4-U20) -> 0 | W17: =IF(V17=0,0,(V17*((LOG(V17))/LOG(2)))) -> 0 | Y17: =N17 -> 2121 | Z17: =COUNTIF(L11:L13,Y17) -> 0 | AA17: =Z17/(AB4-Z20) -> 0 | AB17: =IF(AA17=0,0,(AA17*((LOG(AA17))/LOG(2)))) -> 0 | AD17: =N17 -> 2121 | AE17: =COUNTIF(L14:L17,AD17) -> 0 | AF17: =AE17/(AG4-AE20) -> 0 | AG17: =IF(AF17=0,0,(AF17*((LOG(AF17))/LOG(2)))) -> 0 | AI17: =N17 -> 2121 | AJ17: =COUNTIF(L18:L21,AI17) -> 0 | AK17: =AJ17/(AL4-AJ20) -> 0 | AL17: =IF(AK17=0,0,(AK17*((LOG(AK17))/LOG(2)))) -> 0 | AN17: =N17 -> 2121 | AO17: =COUNTIF(L22:L24,AN17) -> 0 | AP17: =AO17/(AQ4-AO20) -> 0 | AQ17: =IF(AP17=0,0,(AP17*((LOG(AP17))/LOG(2)))) -> 0 | AS17: =N17 -> 2121 | AT17: =COUNTIF(L25:L28,AS17) -> 0 | AU17: =AT17/(AV4-AT20) -> 0 | AV17: =IF(AU17=0,0,(AU17*((LOG(AU17))/LOG(2)))) -> 0
A18: 12 | B18: 1439 | C18: 14 | D18: 1452 | E18: 24 | F18: 1480 | G18: 23 | H18: 1486 | K18: 0 | L18: 1122 | N18: 2122 | O18: =COUNTIF($L$7:$L$500,N18) -> 0 | P18: =O18/$Q$4 -> 0 | Q18: =IF(P18=0,0,(P18*((LOG(P18))/LOG(2)))) -> 0 | T18: =N18 -> 2122 | U18: =COUNTIF(L7:L10,T18) -> 0 | V18: =U18/(W4-U20) -> 0 | W18: =IF(V18=0,0,(V18*((LOG(V18))/LOG(2)))) -> 0 | Y18: =N18 -> 2122 | Z18: =COUNTIF(L11:L13,Y18) -> 0 | AA18: =Z18/(AB4-Z20) -> 0 | AB18: =IF(AA18=0,0,(AA18*((LOG(AA18))/LOG(2)))) -> 0 | AD18: =N18 -> 2122 | AE18: =COUNTIF(L14:L17,AD18) -> 0 | AF18: =AE18/(AG4-AE20) -> 0 | AG18: =IF(AF18=0,0,(AF18*((LOG(AF18))/LOG(2)))) -> 0 | AI18: =N18 -> 2122 | AJ18: =COUNTIF(L18:L21,AI18) -> 0 | AK18: =AJ18/(AL4-AJ20) -> 0 | AL18: =IF(AK18=0,0,(AK18*((LOG(AK18))/LOG(2)))) -> 0 | AN18: =N18 -> 2122 | AO18: =COUNTIF(L22:L24,AN18) -> 0 | AP18: =AO18/(AQ4-AO20) -> 0 | AQ18: =IF(AP18=0,0,(AP18*((LOG(AP18))/LOG(2)))) -> 0 | AS18: =N18 -> 2122 | AT18: =COUNTIF(L25:L28,AS18) -> 0 | AU18: =AT18/(AV4-AT20) -> 0 | AV18: =IF(AU18=0,0,(AU18*((LOG(AU18))/LOG(2)))) -> 0
A19: 12 | B19: 1611 | C19: 23 | D19: 1621 | E19: 24 | F19: 1627 | G19: 23 | H19: 1633 | K19: 0 | L19: 1222 | N19: 2211 | O19: =COUNTIF($L$7:$L$500,N19) -> 0 | P19: =O19/$Q$4 -> 0 | Q19: =IF(P19=0,0,(P19*((LOG(P19))/LOG(2)))) -> 0 | T19: =N19 -> 2211 | U19: =COUNTIF(L7:L10,T19) -> 0 | V19: =U19/(W4-U20) -> 0 | W19: =IF(V19=0,0,(V19*((LOG(V19))/LOG(2)))) -> 0 | Y19: =N19 -> 2211 | Z19: =COUNTIF(L11:L13,Y19) -> 0 | AA19: =Z19/(AB4-Z20) -> 0 | AB19: =IF(AA19=0,0,(AA19*((LOG(AA19))/LOG(2)))) -> 0 | AD19: =N19 -> 2211 | AE19: =COUNTIF(L14:L17,AD19) -> 0 | AF19: =AE19/(AG4-AE20) -> 0 | AG19: =IF(AF19=0,0,(AF19*((LOG(AF19))/LOG(2)))) -> 0 | AI19: =N19 -> 2211 | AJ19: =COUNTIF(L18:L21,AI19) -> 0 | AK19: =AJ19/(AL4-AJ20) -> 0 | AL19: =IF(AK19=0,0,(AK19*((LOG(AK19))/LOG(2)))) -> 0 | AN19: =N19 -> 2211 | AO19: =COUNTIF(L22:L24,AN19) -> 0 | AP19: =AO19/(AQ4-AO20) -> 0 | AQ19: =IF(AP19=0,0,(AP19*((LOG(AP19))/LOG(2)))) -> 0 | AS19: =N19 -> 2211 | AT19: =COUNTIF(L25:L28,AS19) -> 0 | AU19: =AT19/(AV4-AT20) -> 0 | AV19: =IF(AU19=0,0,(AU19*((LOG(AU19))/LOG(2)))) -> 0
A20: 12 | B20: 1794 | C20: 23 | D20: 1804 | E20: 24 | F20: 1808 | G20: 23 | H20: 1813 | K20: 0 | L20: 1222 | N20: 2212 | O20: =COUNTIF($L$7:$L$500,N20) -> 0 | P20: =O20/$Q$4 -> 0 | Q20: =IF(P20=0,0,(P20*((LOG(P20))/LOG(2)))) -> 0 | T20: =N20 -> 2212 | U20: =COUNTIF(L7:L10,T20) -> 0 | Y20: =N20 -> 2212 | Z20: =COUNTIF(L11:L13,Y20) -> 0 | AD20: =N20 -> 2212 | AE20: =COUNTIF(L14:L17,AD20) -> 0 | AI20: =N20 -> 2212 | AJ20: =COUNTIF(L18:L21,AI20) -> 0 | AN20: =N20 -> 2212 | AO20: =COUNTIF(L22:L24,AN20) -> 0 | AS20: =N20 -> 2212 | AT20: =COUNTIF(L25:L28,AS20) -> 0
A21: 12 | B21: 2174 | C21: 23 | D21: 2186 | E21: 13 | F21: 2204 | G21: 23 | H21: 2217 | K21: 0 | L21: 1212 | N21: 2221 | O21: =COUNTIF($L$7:$L$500,N21) -> 0 | P21: =O21/$Q$4 -> 0 | Q21: =IF(P21=0,0,(P21*((LOG(P21))/LOG(2)))) -> 0 | T21: =N21 -> 2221 | U21: =COUNTIF(L7:L10,T21) -> 0 | V21: =U21/(W4-U20) -> 0 | W21: =IF(V21=0,0,(V21*((LOG(V21))/LOG(2)))) -> 0 | Y21: =N21 -> 2221 | Z21: =COUNTIF(L11:L13,Y21) -> 0 | AA21: =Z21/(AB4-Z20) -> 0 | AB21: =IF(AA21=0,0,(AA21*((LOG(AA21))/LOG(2)))) -> 0 | AD21: =N21 -> 2221 | AE21: =COUNTIF(L14:L17,AD21) -> 0 | AF21: =AE21/(AG4-AE20) -> 0 | AG21: =IF(AF21=0,0,(AF21*((LOG(AF21))/LOG(2)))) -> 0 | AI21: =N21 -> 2221 | AJ21: =COUNTIF(L18:L21,AI21) -> 0 | AK21: =AJ21/(AL4-AJ20) -> 0 | AL21: =IF(AK21=0,0,(AK21*((LOG(AK21))/LOG(2)))) -> 0 | AN21: =N21 -> 2221 | AO21: =COUNTIF(L22:L24,AN21) -> 0 | AP21: =AO21/(AQ4-AO20) -> 0 | AQ21: =IF(AP21=0,0,(AP21*((LOG(AP21))/LOG(2)))) -> 0 | AS21: =N21 -> 2221 | AT21: =COUNTIF(L25:L28,AS21) -> 0 | AU21: =AT21/(AV4-AT20) -> 0 | AV21: =IF(AU21=0,0,(AU21*((LOG(AU21))/LOG(2)))) -> 0
A22: 12 | B22: 3553 | C22: 23 | D22: 3562 | E22: 13 | F22: 3586 | G22: 14 | H22: 3592 | K22: 0 | L22: 1211 | N22: 2222 | O22: =COUNTIF($L$7:$L$500,N22) -> 1 | P22: =O22/$Q$4 -> 0.04761904762 | Q22: =IF(P22=0,0,(P22*((LOG(P22))/LOG(2)))) -> -0.2091579725 | T22: =N22 -> 2222 | U22: =COUNTIF(L7:L10,T22) -> 0 | V22: =U22/(W4-U20) -> 0 | W22: =IF(V22=0,0,(V22*((LOG(V22))/LOG(2)))) -> 0 | Y22: =N22 -> 2222 | Z22: =COUNTIF(L11:L13,Y22) -> 0 | AA22: =Z22/(AB4-Z20) -> 0 | AB22: =IF(AA22=0,0,(AA22*((LOG(AA22))/LOG(2)))) -> 0 | AD22: =N22 -> 2222 | AE22: =COUNTIF(L14:L17,AD22) -> 0 | AF22: =AE22/(AG4-AE20) -> 0 | AG22: =IF(AF22=0,0,(AF22*((LOG(AF22))/LOG(2)))) -> 0 | AI22: =N22 -> 2222 | AJ22: =COUNTIF(L18:L21,AI22) -> 0 | AK22: =AJ22/(AL4-AJ20) -> 0 | AL22: =IF(AK22=0,0,(AK22*((LOG(AK22))/LOG(2)))) -> 0 | AN22: =N22 -> 2222 | AO22: =COUNTIF(L22:L24,AN22) -> 0 | AP22: =AO22/(AQ4-AO20) -> 0 | AQ22: =IF(AP22=0,0,(AP22*((LOG(AP22))/LOG(2)))) -> 0 | AS22: =N22 -> 2222 | AT22: =COUNTIF(L25:L28,AS22) -> 1 | AU22: =AT22/(AV4-AT20) -> 0.3333333333 | AV22: =IF(AU22=0,0,(AU22*((LOG(AU22))/LOG(2)))) -> -0.5283208336
A23: 12 | B23: 8119 | C23: 14 | D23: 8126 | E23: 24 | F23: 8136 | G23: 23 | H23: 8141 | K23: 0 | L23: 1122 | P23: =SUM(P7:P22) -> 1 | Q23: =-SUM(Q7:Q22) -> 2.724719803 | V23: =SUM(V7:V22) -> 1 | W23: =-SUM(W7:W22) -> 0.8112781245 | AA23: =SUM(AA7:AA22) -> 1 | AB23: =-SUM(AB7:AB22) -> 0.9182958341 | AF23: =SUM(AF7:AF22) -> 1 | AG23: =-SUM(AG7:AG22) -> 1.5 | AK23: =SUM(AK7:AK22) -> 1 | AL23: =-SUM(AL7:AL22) -> 1.5 | AP23: =SUM(AP7:AP22) -> 1 | AQ23: =-SUM(AQ7:AQ22) -> 1.584962501 | AU23: =SUM(AU7:AU22) -> 1 | AV23: =-SUM(AV7:AV22) -> 1.584962501
A24: 12 | B24: 10042 | C24: 23 | D24: 10055 | E24: 24 | F24: 10061 | G24: 23 | H24: 10066 | K24: 0 | L24: 1222 | P24: U= | Q24: =Q23/(LOG(Q4)/LOG(2)) -> 0.6203376353 | V24: U1= | W24: =W23/(LOG(W4)/LOG(2)) -> 0.4056390622 | AA24: U2= | AB24: =AB23/(LOG(AB4)/LOG(2)) -> 0.5793801643 | AF24: U3= | AG24: =AG23/(LOG(AG4)/LOG(2)) -> 0.75 | AK24: U4= | AL24: =AL23/(LOG(AL4)/LOG(2)) -> 0.75 | AP24: U5= | AQ24: =AQ23/(LOG(AQ4)/LOG(2)) -> 1 | AU24: U6= | AV24: =AV23/(LOG(AV4)/LOG(2)) -> 1
A25: 12 | B25: 12073 | C25: 14 | D25: 13408 | E25: 24 | F25: 17236 | G25: 14 | H25: 17810 | K25: 0 | L25: 1121
A26: 21 | B26: 17940 | C26: 21 | D26: 17944 | E26: 22 | F26: 17950 | G26: 23 | H26: 17962 | K26: 0 | L26: 2222
A27: 12 | B27: 18069 | C27: 23 | D27: 18078 | E27: 24 | F27: 18081 | G27: 23 | H27: 18085 | K27: 0 | L27: 1222 | N27: Total Target Seq
A28: 21 | B28: 21428 | L28: 2 | N28: =COUNTIF(L7:L28,G3) -> 0 | P28: 4 | Q28: 3 | R28: 4 | S28: 4 | T28: 3 | U28: 4
P29: % of reinforcement given in 6 equal intervals based on number of trials
P30: %_1 | Q30: %_2 | R30: %_3 | S30: %_4 | T30: %_5 | U30: %_6
O31: target sequence | P31: =$G$3 -> 2212 | Q31: =$G$3 -> 2212 | R31: =$G$3 -> 2212 | S31: =$G$3 -> 2212 | T31: =$G$3 -> 2212 | U31: =$G$3 -> 2212
O32: total reinforcement | P32: =U20 -> 0 | Q32: =Z20 -> 0 | R32: =AE20 -> 0 | S32: =AJ20 -> 0 | T32: =AO20 -> 0 | U32: =AT20 -> 0
O33: % target
O34: CCRF
O35: % CCRf
O36: average response rate | P36: =H10/P28 -> 121.75 | Q36: =(H13-H10)/Q28 -> 116.6666667 | R36: =(H17-H13)/R28 -> 124.25 | S36: =(H21-H17)/S28 -> 220.75 | T36: =(H24-H21)/T28 -> 2616.333333 | U36: =(H28-H24)/U28 -> -2516.5

Sheet !LB16A14..Is
A1: Report for:!LB16A14..Is
A2: Date: | B2: <date>
A3: Hen: | B3: <hen> | F3: Correct Sequence | G3: =Start!J2 -> 2212 | P3: Total Sequences in Data | Q3: =4994-COUNTBLANK(L7:L5000) -> 76 | V3: Total Sequences in Block Data | W3: =COUNTA(L7:L19) -> 13 | AA3: Total Sequences in Block Data | AB3: =COUNTA(L20:L31) -> 12 | AF3: Total Sequences in Block Data | AG3: =COUNTA(L32:L44) -> 13 | AK3: Total Sequences in Block Data | AL3: =COUNTA(L45:L57) -> 13 | AP3: Total Sequences in Block Data | AQ3: =COUNTA(L58:L69) -> 12 | AU3: Total Sequences in Block Data | AV3: =COUNTA(L70:L82) -> 13
P4: Total Sequences in Summary | Q4: =SUM(O7:O22) -> 75 | V4: Total Sequences in Block Summary | W4: =SUM(U7:U22) -> 13 | AA4: Total Sequences in Block Summary | AB4: =SUM(Z7:Z22) -> 12 | AF4: Total Sequences in Block Summary | AG4: =SUM(AE7:AE22) -> 13 | AK4: Total Sequences in Block Summary | AL4: =SUM(AJ7:AJ22) -> 13 | AP4: Total Sequences in Block Summary | AQ4: =SUM(AO7:AO22) -> 12 | AU4: Total Sequences in Block Summary | AV4: =SUM(AT7:AT22) -> 12
T5: Block 1 | Y5: Block 2 | AD5: Block 3 | AI5: Block 4 | AN5: Block 5 | AS5: Block 6
A6: Sequence Component 1 | B6: Time 1 | C6: Sequence Component 2 | D6: Time 2 | E6: Sequence Component 3 | F6: Time 3 | G6: Sequence Component 4 | H6: Time 4 | I6: Sequence Component 5 | J6: Time 5 | K6: Correct? 0=No 1=Yes | L6: Sequence | N6: Frequency | P6: Relative Frequency | Q6: Variability | T6: Frequency | V6: Relative Frequency | W6: Variability | Y6: Frequency | AA6: Relative Frequency | AB6: Variability | AD6: Frequency | AF6: Relative Frequency | AG6: Variability | AI6: Frequency | AK6: Relative Frequency | AL6: Variability | AN6: Frequency | AP6: Relative Frequency | AQ6: Variability | AS6: Frequency | AU6: Relative Frequency | AV6: Variability
A7: 21 | B7: 41 | C7: 21 | D7: 46 | E7: 11 | F7: 59 | G7: 12 | H7: 66 | K7: 0 | L7: 2211 | N7: 1111 | O7: =COUNTIF($L$7:$L$500,N7) -> 6 | P7: =O7/$Q$4 -> 0.08 | Q7: =IF(P7=0,0,(P7*((LOG(P7))/LOG(2)))) -> -0.2915084952 | T7: =N7 -> 1111 | U7: =COUNTIF(L7:L19,T7) -> 1 | V7: =U7/(W4-U20) -> 0.07692307692 | W7: =IF(V7=0,0,(V7*((LOG(V7))/LOG(2)))) -> -0.2846492091 | Y7: =N7 -> 1111 | Z7: =COUNTIF(L20:L31,Y7) -> 1 | AA7: =Z7/(AB4-Z20) -> 0.08333333333 | AB7: =IF(AA7=0,0,(AA7*((LOG(AA7))/LOG(2)))) -> -0.2987468751 | AD7: =N7 -> 1111 | AE7: =COUNTIF(L32:L44,AD7) -> 3 | AF7: =AE7/(AG4-AE20) -> 0.2307692308 | AG7: =IF(AF7=0,0,(AF7*((LOG(AF7))/LOG(2)))) -> -0.4881870502 | AI7: =N7 -> 1111 | AJ7: =COUNTIF(L45:L57,AI7) -> 0 | AK7: =AJ7/(AL4-AJ20) -> 0 | AL7: =IF(AK7=0,0,(AK7*((LOG(AK7))/LOG(2)))) -> 0 | AN7: =N7 -> 1111 | AO7: =COUNTIF(L58:L69,AN7) -> 0 | AP7: =AO7/(AQ4-AO20) -> 0 | AQ7: =IF(AP7=0,0,(AP7*((LOG(AP7))/LOG(2)))) -> 0 | AS7: =N7 -> 1111 | AT7: =COUNTIF(L70:L82,AS7) -> 1 | AU7: =AT7/(AV4-AT20) -> 0.08333333333 | AV7: =IF(AU7=0,0,(AU7*((LOG(AU7))/LOG(2)))) -> -0.2987468751
A8: 12 | B8: 196 | C8: 23 | D8: 203 | E8: 24 | F8: 206 | G8: 23 | H8: 211 | K8: 0 | L8: 1222 | N8: 1112 | O8: =COUNTIF($L$7:$L$500,N8) -> 18 | P8: =O8/$Q$4 -> 0.24 | Q8: =IF(P8=0,0,(P8*((LOG(P8))/LOG(2)))) -> -0.4941344854 | T8: =N8 -> 1112 | U8: =COUNTIF(L7:L19,T8) -> 3 | V8: =U8/(W4-U20) -> 0.2307692308 | W8: =IF(V8=0,0,(V8*((LOG(V8))/LOG(2)))) -> -0.4881870502 | Y8: =N8 -> 1112 | Z8: =COUNTIF(L20:L31,Y8) -> 5 | AA8: =Z8/(AB4-Z20) -> 0.4166666667 | AB8: =IF(AA8=0,0,(AA8*((LOG(AA8))/LOG(2)))) -> -0.5262643358 | AD8: =N8 -> 1112 | AE8: =COUNTIF(L32:L44,AD8) -> 3 | AF8: =AE8/(AG4-AE20) -> 0.2307692308 | AG8: =IF(AF8=0,0,(AF8*((LOG(AF8))/LOG(2)))) -> -0.4881870502 | AI8: =N8 -> 1112 | AJ8: =COUNTIF(L45:L57,AI8) -> 2 | AK8: =AJ8/(AL4-AJ20) -> 0.1538461538 | AL8: =IF(AK8=0,0,(AK8*((LOG(AK8))/LOG(2)))) -> -0.4154522643 | AN8: =N8 -> 1112 | AO8: =COUNTIF(L58:L69,AN8) -> 3 | AP8: =AO8/(AQ4-AO20) -> 0.25 | AQ8: =IF(AP8=0,0,(AP8*((LOG(AP8))/LOG(2)))) -> -0.5 | AS8: =N8 -> 1112 | AT8: =COUNTIF(L70:L82,AS8) -> 2 | AU8: =AT8/(AV4-AT20) -> 0.1666666667 | AV8: =IF(AU8=0,0,(AU8*((LOG(AU8))/LOG(2)))) -> -0.4308270835
A9: 12 | B9: 337 | C9: 23 | D9: 345 | E9: 24 | F9: 349 | G9: 23 | H9: 354 | K9: 0 | L9: 1222 | N9: 1121 | O9: =COUNTIF($L$7:$L$500,N9) -> 0 | P9: =O9/$Q$4 -> 0 | Q9: =IF(P9=0,0,(P9*((LOG(P9))/LOG(2)))) -> 0 | T9: =N9 -> 1121 | U9: =COUNTIF(L7:L19,T9) -> 0 | V9: =U9/(W4-U20) -> 0 | W9: =IF(V9=0,0,(V9*((LOG(V9))/LOG(2)))) -> 0 | Y9: =N9 -> 1121 | Z9: =COUNTIF(L20:L31,Y9) -> 0 | AA9: =Z9/(AB4-Z20) -> 0 | AB9: =IF(AA9=0,0,(AA9*((LOG(AA9))/LOG(2)))) -> 0 | AD9: =N9 -> 1121 | AE9: =COUNTIF(L32:L44,AD9) -> 0 | AF9: =AE9/(AG4-AE20) -> 0 | AG9: =IF(AF9=0,0,(AF9*((LOG(AF9))/LOG(2)))) -> 0 | AI9: =N9 -> 1121 | AJ9: =COUNTIF(L45:L57,AI9) -> 0 | AK9: =AJ9/(AL4-AJ20) -> 0 | AL9: =IF(AK9=0,0,(AK9*((LOG(AK9))/LOG(2)))) -> 0 | AN9: =N9 -> 1121 | AO9: =COUNTIF(L58:L69,AN9) -> 0 | AP9: =AO9/(AQ4-AO20) -> 0 | AQ9: =IF(AP9=0,0,(AP9*((LOG(AP9))/LOG(2)))) -> 0 | AS9: =N9 -> 1121 | AT9: =COUNTIF(L70:L82,AS9) -> 0 | AU9: =AT9/(AV4-AT20) -> 0 | AV9: =IF(AU9=0,0,(AU9*((LOG(AU9))/LOG(2)))) -> 0
A10: 12 | B10: 452 | C10: 23 | D10: 467 | E10: 24 | F10: 470 | G10: 23 | H10: 476 | K10: 0 | L10: 1222 | N10: 1122 | O10: =COUNTIF($L$7:$L$500,N10) -> 21 | P10: =O10/$Q$4 -> 0.28 | Q10: =IF(P10=0,0,(P10*((LOG(P10))/LOG(2)))) -> -0.514220355 | T10: =N10 -> 1122 | U10: =COUNTIF(L7:L19,T10) -> 3 | V10: =U10/(W4-U20) -> 0.2307692308 | W10: =IF(V10=0,0,(V10*((LOG(V10))/LOG(2)))) -> -0.4881870502 | Y10: =N10 -> 1122 | Z10: =COUNTIF(L20:L31,Y10) -> 4 | AA10: =Z10/(AB4-Z20) -> 0.3333333333 | AB10: =IF(AA10=0,0,(AA10*((LOG(AA10))/LOG(2)))) -> -0.5283208336 | AD10: =N10 -> 1122 | AE10: =COUNTIF(L32:L44,AD10) -> 5 | AF10: =AE10/(AG4-AE20) -> 0.3846153846 | AG10: =IF(AF10=0,0,(AF10*((LOG(AF10))/LOG(2)))) -> -0.5301967782 | AI10: =N10 -> 1122 | AJ10: =COUNTIF(L45:L57,AI10) -> 4 | AK10: =AJ10/(AL4-AJ20) -> 0.3076923077 | AL10: =IF(AK10=0,0,(AK10*((LOG(AK10))/LOG(2)))) -> -0.523212221 | AN10: =N10 -> 1122 | AO10: =COUNTIF(L58:L69,AN10) -> 3 | AP10: =AO10/(AQ4-AO20) -> 0.25 | AQ10: =IF(AP10=0,0,(AP10*((LOG(AP10))/LOG(2)))) -> -0.5 | AS10: =N10 -> 1122 | AT10: =COUNTIF(L70:L82,AS10) -> 2 | AU10: =AT10/(AV4-AT20) -> 0.1666666667 | AV10: =IF(AU10=0,0,(AU10*((LOG(AU10))/LOG(2)))) -> -0.4308270835
A11: 12 | B11: 571 | C11: 14 | D11: 575 | E11: 13 | F11: 582 | G11: 23 | H11: 591 | K11: 0 | L11: 1112 | N11: 1211 | O11: =COUNTIF($L$7:$L$500,N11) -> 0 | P11: =O11/$Q$4 -> 0 | Q11: =IF(P11=0,0,(P11*((LOG(P11))/LOG(2)))) -> 0 | T11: =N11 -> 1211 | U11: =COUNTIF(L7:L19,T11) -> 0 | V11: =U11/(W4-U20) -> 0 | W11: =IF(V11=0,0,(V11*((LOG(V11))/LOG(2)))) -> 0 | Y11: =N11 -> 1211 | Z11: =COUNTIF(L20:L31,Y11) -> 0 | AA11: =Z11/(AB4-Z20) -> 0 | AB11: =IF(AA11=0,0,(AA11*((LOG(AA11))/LOG(2)))) -> 0 | AD11: =N11 -> 1211 | AE11: =COUNTIF(L32:L44,AD11) -> 0 | AF11: =AE11/(AG4-AE20) -> 0 | AG11: =IF(AF11=0,0,(AF11*((LOG(AF11))/LOG(2)))) -> 0 | AI11: =N11 -> 1211 | AJ11: =COUNTIF(L45:L57,AI11) -> 0 | AK11: =AJ11/(AL4-AJ20) -> 0 | AL11: =IF(AK11=0,0,(AK11*((LOG(AK11))/LOG(2)))) -> 0 | AN11: =N11 -> 1211 | AO11: =COUNTIF(L58:L69,AN11) -> 0 | AP11: =AO11/(AQ4-AO20) -> 0 | AQ11: =IF(AP11=0,0,(AP11*((LOG(AP11))/LOG(2)))) -> 0 | AS11: =N11 -> 1211 | AT11: =COUNTIF(L70:L82,AS11) -> 0 | AU11: =AT11/(AV4-AT20) -> 0 | AV11: =IF(AU11=0,0,(AU11*((LOG(AU11))/LOG(2)))) -> 0
A12: 12 | B12: 792 | C12: 23 | D12: 805 | E12: 24 | F12: 810 | G12: 23 | H12: 815 | K12: 0 | L12: 1222 | N12: 1212 | O12: =COUNTIF($L$7:$L$500,N12) -> 1 | P12: =O12/$Q$4 -> 0.01333333333 | Q12: =IF(P12=0,0,(P12*((LOG(P12))/LOG(2)))) -> -0.08305091587 | T12: =N12 -> 1212 | U12: =COUNTIF(L7:L19,T12) -> 0 | V12: =U12/(W4-U20) -> 0 | W12: =IF(V12=0,0,(V12*((LOG(V12))/LOG(2)))) -> 0 | Y12: =N12 -> 1212 | Z12: =COUNTIF(L20:L31,Y12) -> 0 | AA12: =Z12/(AB4-Z20) -> 0 | AB12: =IF(AA12=0,0,(AA12*((LOG(AA12))/LOG(2)))) -> 0 | AD12: =N12 -> 1212 | AE12: =COUNTIF(L32:L44,AD12) -> 0 | AF12: =AE12/(AG4-AE20) -> 0 | AG12: =IF(AF12=0,0,(AF12*((LOG(AF12))/LOG(2)))) -> 0 | AI12: =N12 -> 1212 | AJ12: =COUNTIF(L45:L57,AI12) -> 0 | AK12: =AJ12/(AL4-AJ20) -> 0 | AL12: =IF(AK12=0,0,(AK12*((LOG(AK12))/LOG(2)))) -> 0 | AN12: =N12 -> 1212 | AO12: =COUNTIF(L58:L69,AN12) -> 1 | AP12: =AO12/(AQ4-AO20) -> 0.08333333333 | AQ12: =IF(AP12=0,0,(AP12*((LOG(AP12))/LOG(2)))) -> -0.2987468751 | AS12: =N12 -> 1212 | AT12: =COUNTIF(L70:L82,AS12) -> 0 | AU12: =AT12/(AV4-AT20) -> 0 | AV12: =IF(AU12=0,0,(AU12*((LOG(AU12))/LOG(2)))) -> 0
A13: 12 | B13: 913 | C13: 14 | D13: 916 | E13: 24 | F13: 928 | G13: 23 | H13: 934 | K13: 0 | L13: 1122 | N13: 1221 | O13: =COUNTIF($L$7:$L$500,N13) -> 1 | P13: =O13/$Q$4 -> 0.01333333333 | Q13: =IF(P13=0,0,(P13*((LOG(P13))/LOG(2)))) -> -0.08305091587 | T13: =N13 -> 1221 | U13: =COUNTIF(L7:L19,T13) -> 0 | V13: =U13/(W4-U20) -> 0 | W13: =IF(V13=0,0,(V13*((LOG(V13))/LOG(2)))) -> 0 | Y13: =N13 -> 1221 | Z13: =COUNTIF(L20:L31,Y13) -> 0 | AA13: =Z13/(AB4-Z20) -> 0 | AB13: =IF(AA13=0,0,(AA13*((LOG(AA13))/LOG(2)))) -> 0 | AD13: =N13 -> 1221 | AE13: =COUNTIF(L32:L44,AD13) -> 0 | AF13: =AE13/(AG4-AE20) -> 0 | AG13: =IF(AF13=0,0,(AF13*((LOG(AF13))/LOG(2)))) -> 0 | AI13: =N13 -> 1221 | AJ13: =COUNTIF(L45:L57,AI13) -> 1 | AK13: =AJ13/(AL4-AJ20) -> 0.07692307692 | AL13: =IF(AK13=0,0,(AK13*((LOG(AK13))/LOG(2)))) -> -0.2846492091 | AN13: =N13 -> 1221 | AO13: =COUNTIF(L58:L69,AN13) -> 0 | AP13: =AO13/(AQ4-AO20) -> 0 | AQ13: =IF(AP13=0,0,(AP13*((LOG(AP13))/LOG(2)))) -> 0 | AS13: =N13 -> 1221 | AT13: =COUNTIF(L70:L82,AS13) -> 0 | AU13: =AT13/(AV4-AT20) -> 0 | AV13: =IF(AU13=0,0,(AU13*((LOG(AU13))/LOG(2)))) -> 0
A14: 12 | B14: 1030 | C14: 14 | D14: 1035 | E14: 13 | F14: 1040 | G14: 23 | H14: 1047 | K14: 0 | L14: 1112 | N14: 1222 | O14: =COUNTIF($L$7:$L$500,N14) -> 24 | P14: =O14/$Q$4 -> 0.32 | Q14: =IF(P14=0,0,(P14*((LOG(P14))/LOG(2)))) -> -0.5260339807 | T14: =N14 -> 1222 | U14: =COUNTIF(L7:L19,T14) -> 5 | V14: =U14/(W4-U20) -> 0.3846153846 | W14: =IF(V14=0,0,(V14*((LOG(V14))/LOG(2)))) -> -0.5301967782 | Y14: =N14 -> 1222 | Z14: =COUNTIF(L20:L31,Y14) -> 2 | AA14: =Z14/(AB4-Z20) -> 0.1666666667 | AB14: =IF(AA14=0,0,(AA14*((LOG(AA14))/LOG(2)))) -> -0.4308270835 | AD14: =N14 -> 1222 | AE14: =COUNTIF(L32:L44,AD14) -> 1 | AF14: =AE14/(AG4-AE20) -> 0.07692307692 | AG14: =IF(AF14=0,0,(AF14*((LOG(AF14))/LOG(2)))) -> -0.2846492091 | AI14: =N14 -> 1222 | AJ14: =COUNTIF(L45:L57,AI14) -> 5 | AK14: =AJ14/(AL4-AJ20) -> 0.3846153846 | AL14: =IF(AK14=0,0,(AK14*((LOG(AK14))/LOG(2)))) -> -0.5301967782 | AN14: =N14 -> 1222 | AO14: =COUNTIF(L58:L69,AN14) -> 4 | AP14: =AO14/(AQ4-AO20) -> 0.3333333333 | AQ14: =IF(AP14=0,0,(AP14*((LOG(AP14))/LOG(2)))) -> -0.5283208336 | AS14: =N14 -> 1222 | AT14: =COUNTIF(L70:L82,AS14) -> 7 | AU14: =AT14/(AV4-AT20) -> 0.5833333333 | AV14: =IF(AU14=0,0,(AU14*((LOG(AU14))/LOG(2)))) -> -0.4536044209
A15: 12 | B15: 1213 | C15: 23 | D15: 1222 | E15: 24 | F15: 1226 | G15: 23 | H15: 1231 | K15: 0 | L15: 1222 | N15: 2111 | O15: =COUNTIF($L$7:$L$500,N15) -> 0 | P15: =O15/$Q$4 -> 0 | Q15: =IF(P15=0,0,(P15*((LOG(P15))/LOG(2)))) -> 0 | T15: =N15 -> 2111 | U15: =COUNTIF(L7:L19,T15) -> 0 | V15: =U15/(W4-U20) -> 0 | W15: =IF(V15=0,0,(V15*((LOG(V15))/LOG(2)))) -> 0 | Y15: =N15 -> 2111 | Z15: =COUNTIF(L20:L31,Y15) -> 0 | AA15: =Z15/(AB4-Z20) -> 0 | AB15: =IF(AA15=0,0,(AA15*((LOG(AA15))/LOG(2)))) -> 0 | AD15: =N15 -> 2111 | AE15: =COUNTIF(L32:L44,AD15) -> 0 | AF15: =AE15/(AG4-AE20) -> 0 | AG15: =IF(AF15=0,0,(AF15*((LOG(AF15))/LOG(2)))) -> 0 | AI15: =N15 -> 2111 | AJ15: =COUNTIF(L45:L57,AI15) -> 0 | AK15: =AJ15/(AL4-AJ20) -> 0 | AL15: =IF(AK15=0,0,(AK15*((LOG(AK15))/LOG(2)))) -> 0 | AN15: =N15 -> 2111 | AO15: =COUNTIF(L58:L69,AN15) -> 0 | AP15: =AO15/(AQ4-AO20) -> 0 | AQ15: =IF(AP15=0,0,(AP15*((LOG(AP15))/LOG(2)))) -> 0 | AS15: =N15 -> 2111 | AT15: =COUNTIF(L70:L82,AS15) -> 0 | AU15: =AT15/(AV4-AT20) -> 0 | AV15: =IF(AU15=0,0,(AU15*((LOG(AU15))/LOG(2)))) -> 0
A16: 12 | B16: 1328 | C16: 14 | D16: 1332 | E16: 13 | F16: 1336 | G16: 23 | H16: 1346 | K16: 0 | L16: 1112 | N16: 2112 | O16: =COUNTIF($L$7:$L$500,N16) -> 0 | P16: =O16/$Q$4 -> 0 | Q16: =IF(P16=0,0,(P16*((LOG(P16))/LOG(2)))) -> 0 | T16: =N16 -> 2112 | U16: =COUNTIF(L7:L19,T16) -> 0 | V16: =U16/(W4-U20) -> 0 | W16: =IF(V16=0,0,(V16*((LOG(V16))/LOG(2)))) -> 0 | Y16: =N16 -> 2112 | Z16: =COUNTIF(L20:L31,Y16) -> 0 | AA16: =Z16/(AB4-Z20) -> 0 | AB16: =IF(AA16=0,0,(AA16*((LOG(AA16))/LOG(2)))) -> 0 | AD16: =N16 -> 2112 | AE16: =COUNTIF(L32:L44,AD16) -> 0 | AF16: =AE16/(AG4-AE20) -> 0 | AG16: =IF(AF16=0,0,(AF16*((LOG(AF16))/LOG(2)))) -> 0 | AI16: =N16 -> 2112 | AJ16: =COUNTIF(L45:L57,AI16) -> 0 | AK16: =AJ16/(AL4-AJ20) -> 0 | AL16: =IF(AK16=0,0,(AK16*((LOG(AK16))/LOG(2)))) -> 0 | AN16: =N16 -> 2112 | AO16: =COUNTIF(L58:L69,AN16) -> 0 | AP16: =AO16/(AQ4-AO20) -> 0 | AQ16: =IF(AP16=0,0,(AP16*((LOG(AP16))/LOG(2)))) -> 0 | AS16: =N16 -> 2112 | AT16: =COUNTIF(L70:L82,AS16) -> 0 | AU16: =AT16/(AV4-AT20) -> 0 | AV16: =IF(AU16=0,0,(AU16*((LOG(AU16))/LOG(2)))) -> 0
A17: 12 | B17: 1493 | C17: 14 | D17: 1499 | E17: 13 | F17: 1510 | G17: 14 | H17: 1518 | K17: 0 | L17: 1111 | N17: 2121 | O17: =COUNTIF($L$7:$L$500,N17) -> 0 | P17: =O17/$Q$4 -> 0 | Q17: =IF(P17=0,0,(P17*((LOG(P17))/LOG(2)))) -> 0 | T17: =N17 -> 2121 | U17: =COUNTIF(L7:L19,T17) -> 0 | V17: =U17/(W4-U20) -> 0 | W17: =IF(V17=0,0,(V17*((LOG(V17))/LOG(2)))) -> 0 | Y17: =N17 -> 2121 | Z17: =COUNTIF(L20:L31,Y17) -> 0 | AA17: =Z17/(AB4-Z20) -> 0 | AB17: =IF(AA17=0,0,(AA17*((LOG(AA17))/LOG(2)))) -> 0 | AD17: =N17 -> 2121 | AE17: =COUNTIF(L32:L44,AD17) -> 0 | AF17: =AE17/(AG4-AE20) -> 0 | AG17: =IF(AF17=0,0,(AF17*((LOG(AF17))/LOG(2)))) -> 0 | AI17: =N17 -> 2121 | AJ17: =COUNTIF(L45:L57,AI17) -> 0 | AK17: =AJ17/(AL4-AJ20) -> 0 | AL17: =IF(AK17=0,0,(AK17*((LOG(AK17))/LOG(2)))) -> 0 | AN17: =N17 -> 2121 | AO17: =COUNTIF(L58:L69,AN17) -> 0 | AP17: =AO17/(AQ4-AO20) -> 0 | AQ17: =IF(AP17=0,0,(AP17*((LOG(AP17))/LOG(2)))) -> 0 | AS17: =N17 -> 2121 | AT17: =COUNTIF(L70:L82,AS17) -> 0 | AU17: =AT17/(AV4-AT20) -> 0 | AV17: =IF(AU17=0,0,(AU17*((LOG(AU17))/LOG(2)))) -> 0
A18: 12 | B18: 1620 | C18: 14 | D18: 1624 | E18: 24 | F18: 1652 | G18: 23 | H18: 1658 | K18: 0 | L18: 1122 | N18: 2122 | O18: =COUNTIF($L$7:$L$500,N18) -> 1 | P18: =O18/$Q$4 -> 0.01333333333 | Q18: =IF(P18=0,0,(P18*((LOG(P18))/LOG(2)))) -> -0.08305091587 | T18: =N18 -> 2122 | U18: =COUNTIF(L7:L19,T18) -> 0 | V18: =U18/(W4-U20) -> 0 | W18: =IF(V18=0,0,(V18*((LOG(V18))/LOG(2)))) -> 0 | Y18: =N18 -> 2122 | Z18: =COUNTIF(L20:L31,Y18) -> 0 | AA18: =Z18/(AB4-Z20) -> 0 | AB18: =IF(AA18=0,0,(AA18*((LOG(AA18))/LOG(2)))) -> 0 | AD18: =N18 -> 2122 | AE18: =COUNTIF(L32:L44,AD18) -> 0 | AF18: =AE18/(AG4-AE20) -> 0 | AG18: =IF(AF18=0,0,(AF18*((LOG(AF18))/LOG(2)))) -> 0 | AI18: =N18 -> 2122 | AJ18: =COUNTIF(L45:L57,AI18) -> 0 | AK18: =AJ18/(AL4-AJ20) -> 0 | AL18: =IF(AK18=0,0,(AK18*((LOG(AK18))/LOG(2)))) -> 0 | AN18: =N18 -> 2122 | AO18: =COUNTIF(L58:L69,AN18) -> 1 | AP18: =AO18/(AQ4-AO20) -> 0.08333333333 | AQ18: =IF(AP18=0,0,(AP18*((LOG(AP18))/LOG(2)))) -> -0.2987468751 | AS18: =N18 -> 2122 | AT18: =COUNTIF(L70:L82,AS18) -> 0 | AU18: =AT18/(AV4-AT20) -> 0 | AV18: =IF(AU18=0,0,(AU18*((LOG(AU18))/LOG(2)))) -> 0
A19: 12 | B19: 1753 | C19: 14 | D19: 1759 | E19: 24 | F19: 1767 | G19: 23 | H19: 1772 | K19: 0 | L19: 1122 | N19: 2211 | O19: =COUNTIF($L$7:$L$500,N19) -> 1 | P19: =O19/$Q$4 -> 0.01333333333 | Q19: =IF(P19=0,0,(P19*((LOG(P19))/LOG(2)))) -> -0.08305091587 | T19: =N19 -> 2211 | U19: =COUNTIF(L7:L19,T19) -> 1 | V19: =U19/(W4-U20) -> 0.07692307692 | W19: =IF(V19=0,0,(V19*((LOG(V19))/LOG(2)))) -> -0.2846492091 | Y19: =N19 -> 2211 | Z19: =COUNTIF(L20:L31,Y19) -> 0 | AA19: =Z19/(AB4-Z20) -> 0 | AB19: =IF(AA19=0,0,(AA19*((LOG(AA19))/LOG(2)))) -> 0 | AD19: =N19 -> 2211 | AE19: =COUNTIF(L32:L44,AD19) -> 0 | AF19: =AE19/(AG4-AE20) -> 0 | AG19: =IF(AF19=0,0,(AF19*((LOG(AF19))/LOG(2)))) -> 0 | AI19: =N19 -> 2211 | AJ19: =COUNTIF(L45:L57,AI19) -> 0 | AK19: =AJ19/(AL4-AJ20) -> 0 | AL19: =IF(AK19=0,0,(AK19*((LOG(AK19))/LOG(2)))) -> 0 | AN19: =N19 -> 2211 | AO19: =COUNTIF(L58:L69,AN19) -> 0 | AP19: =AO19/(AQ4-AO20) -> 0 | AQ19: =IF(AP19=0,0,(AP19*((LOG(AP19))/LOG(2)))) -> 0 | AS19: =N19 -> 2211 | AT19: =COUNTIF(L70:L82,AS19) -> 0 | AU19: =AT19/(AV4-AT20) -> 0 | AV19: =IF(AU19=0,0,(AU19*((LOG(AU19))/LOG(2)))) -> 0
A20: 12 | B20: 1883 | C20: 14 | D20: 1890 | E20: 13 | F20: 1894 | G20: 14 | H20: 1904 | K20: 0 | L20: 1111 | N20: 2212 | O20: =COUNTIF($L$7:$L$500,N20) -> 0 | P20: =O20/$Q$4 -> 0 | Q20: =IF(P20=0,0,(P20*((LOG(P20))/LOG(2)))) -> 0 | T20: =N20 -> 2212 | U20: =COUNTIF(L7:L19,T20) -> 0 | Y20: =N20 -> 2212 | Z20: =COUNTIF(L20:L31,Y20) -> 0 | AD20: =N20 -> 2212 | AE20: =COUNTIF(L32:L44,AD20) -> 0 | AI20: =N20 -> 2212 | AJ20: =COUNTIF(L45:L57,AI20) -> 0 | AN20: =N20 -> 2212 | AO20: =COUNTIF(L58:L69,AN20) -> 0 | AS20: =N20 -> 2212 | AT20: =COUNTIF(L70:L82,AS20) -> 0
A21: 12 | B21: 2109 | C21: 23 | D21: 2121 | E21: 24 | F21: 2129 | G21: 23 | H21: 2138 | K21: 0 | L21: 1222 | N21: 2221 | O21: =COUNTIF($L$7:$L$500,N21) -> 0 | P21: =O21/$Q$4 -> 0 | Q21: =IF(P21=0,0,(P21*((LOG(P21))/LOG(2)))) -> 0 | T21: =N21 -> 2221 | U21: =COUNTIF(L7:L19,T21) -> 0 | V21: =U21/(W4-U20) -> 0 | W21: =IF(V21=0,0,(V21*((LOG(V21))/LOG(2)))) -> 0 | Y21: =N21 -> 2221 | Z21: =COUNTIF(L20:L31,Y21) -> 0 | AA21: =Z21/(AB4-Z20) -> 0 | AB21: =IF(AA21=0,0,(AA21*((LOG(AA21))/LOG(2)))) -> 0 | AD21: =N21 -> 2221 | AE21: =COUNTIF(L32:L44,AD21) -> 0 | AF21: =AE21/(AG4-AE20) -> 0 | AG21: =IF(AF21=0,0,(AF21*((LOG(AF21))/LOG(2)))) -> 0 | AI21: =N21 -> 2221 | AJ21: =COUNTIF(L45:L57,AI21) -> 0 | AK21: =AJ21/(AL4-AJ20) -> 0 | AL21: =IF(AK21=0,0,(AK21*((LOG(AK21))/LOG(2)))) -> 0 | AN21: =N21 -> 2221 | AO21: =COUNTIF(L58:L69,AN21) -> 0 | AP21: =AO21/(AQ4-AO20) -> 0 | AQ21: =IF(AP21=0,0,(AP21*((LOG(AP21))/LOG(2)))) -> 0 | AS21: =N21 -> 2221 | AT21: =COUNTIF(L70:L82,AS21) -> 0 | AU21: =AT21/(AV4-AT20) -> 0 | AV21: =IF(AU21=0,0,(AU21*((LOG(AU21))/LOG(2)))) -> 0
A22: 12 | B22: 2234 | C22: 14 | D22: 2241 | E22: 24 | F22: 2252 | G22: 23 | H22: 2255 | K22: 0 | L22: 1122 | N22: 2222 | O22: =COUNTIF($L$7:$L$500,N22) -> 2 | P22: =O22/$Q$4 -> 0.02666666667 | Q22: =IF(P22=0,0,(P22*((LOG(P22))/LOG(2)))) -> -0.1394351651 | T22: =N22 -> 2222 | U22: =COUNTIF(L7:L19,T22) -> 0 | V22: =U22/(W4-U20) -> 0 | W22: =IF(V22=0,0,(V22*((LOG(V22))/LOG(2)))) -> 0 | Y22: =N22 -> 2222 | Z22: =COUNTIF(L20:L31,Y22) -> 0 | AA22: =Z22/(AB4-Z20) -> 0 | AB22: =IF(AA22=0,0,(AA22*((LOG(AA22))/LOG(2)))) -> 0 | AD22: =N22 -> 2222 | AE22: =COUNTIF(L32:L44,AD22) -> 1 | AF22: =AE22/(AG4-AE20) -> 0.07692307692 | AG22: =IF(AF22=0,0,(AF22*((LOG(AF22))/LOG(2)))) -> -0.2846492091 | AI22: =N22 -> 2222 | AJ22: =COUNTIF(L45:L57,AI22) -> 1 | AK22: =AJ22/(AL4-AJ20) -> 0.07692307692 | AL22: =IF(AK22=0,0,(AK22*((LOG(AK22))/LOG(2)))) -> -0.2846492091 | AN22: =N22 -> 2222 | AO22: =COUNTIF(L58:L69,AN22) -> 0 | AP22: =AO22/(AQ4-AO20) -> 0 | AQ22: =IF(AP22=0,0,(AP22*((LOG(AP22))/LOG(2)))) -> 0 | AS22: =N22 -> 2222 | AT22: =COUNTIF(L70:L82,AS22) -> 0 | AU22: =AT22/(AV4-AT20) -> 0 | AV22: =IF(AU22=0,0,(AU22*((LOG(AU22))/LOG(2)))) -> 0
A23: 12 | B23: 2350 | C23: 14 | D23: 2355 | E23: 24 | F23: 2363 | G23: 23 | H23: 2371 | K23: 0 | L23: 1122 | P23: =SUM(P7:P22) -> 1 | Q23: =-SUM(Q7:Q22) -> 2.297536145 | V23: =SUM(V7:V22) -> 1 | W23: =-SUM(W7:W22) -> 2.075869297 | AA23: =SUM(AA7:AA22) -> 1 | AB23: =-SUM(AB7:AB22) -> 1.784159128 | AF23: =SUM(AF7:AF22) -> 1 | AG23: =-SUM(AG7:AG22) -> 2.075869297 | AK23: =SUM(AK7:AK22) -> 1 | AL23: =-SUM(AL7:AL22) -> 2.038159682 | AP23: =SUM(AP7:AP22) -> 1 | AQ23: =-SUM(AQ7:AQ22) -> 2.125814584 | AU23: =SUM(AU7:AU22) -> 1 | AV23: =-SUM(AV7:AV22) -> 1.614005463
A24: 12 | B24: 2477 | C24: 23 | D24: 2488 | E24: 24 | F24: 2492 | G24: 23 | H24: 2496 | K24: 0 | L24: 1222 | P24: U= | Q24: =Q23/(LOG(Q4)/LOG(2)) -> 0.3688558391 | V24: U1= | W24: =W23/(LOG(W4)/LOG(2)) -> 0.5609790876 | AA24: U2= | AB24: =AB23/(LOG(AB4)/LOG(2)) -> 0.4976786026 | AF24: U3= | AG24: =AG23/(LOG(AG4)/LOG(2)) -> 0.5609790876 | AK24: U4= | AL24: =AL23/(LOG(AL4)/LOG(2)) -> 0.5507885108 | AP24: U5= | AQ24: =AQ23/(LOG(AQ4)/LOG(2)) -> 0.5929809819 | AU24: U6= | AV24: =AV23/(LOG(AV4)/LOG(2)) -> 0.4502154381
A25: 12 | B25: 2591 | C25: 14 | D25: 2595 | E25: 24 | F25: 2604 | G25: 23 | H25: 2608 | K25: 0 | L25: 1122
A26: 12 | B26: 2703 | C26: 14 | D26: 2709 | E26: 13 | F26: 2714 | G26: 23 | H26: 2724 | K26: 0 | L26: 1112
A27: 12 | B27: 2826 | C27: 14 | D27: 2834 | E27: 24 | F27: 2842 | G27: 23 | H27: 2846 | K27: 0 | L27: 1122 | N27: Total Target Seq
A28: 12 | B28: 2942 | C28: 14 | D28: 2947 | E28: 13 | F28: 2953 | G28: 23 | H28: 2963 | K28: 0 | L28: 1112 | N28: =COUNTIF(L7:L82,G3) -> 0 | P28: 13 | Q28: 12 | R28: 13 | S28: 13 | T28: 12 | U28: 13
A29: 12 | B29: 3061 | C29: 14 | D29: 3066 | E29: 13 | F29: 3071 | G29: 23 | H29: 3079 | K29: 0 | L29: 1112 | P29: % of reinforcement given in 6 equal intervals based on number of trials
A30: 12 | B30: 3191 | C30: 14 | D30: 3195 | E30: 13 | F30: 3198 | G30: 23 | H30: 3208 | K30: 0 | L30: 1112 | P30: %_1 | Q30: %_2 | R30: %_3 | S30: %_4 | T30: %_5 | U30: %_6
A31: 12 | B31: 3307 | C31: 14 | D31: 3311 | E31: 13 | F31: 3316 | G31: 23 | H31: 3325 | K31: 0 | L31: 1112 | O31: target sequence | P31: =$G$3 -> 2212 | Q31: =$G$3 -> 2212 | R31: =$G$3 -> 2212 | S31: =$G$3 -> 2212 | T31: =$G$3 -> 2212 | U31: =$G$3 -> 2212
A32: 12 | B32: 3420 | C32: 14 | D32: 3424 | E32: 13 | F32: 3428 | G32: 14 | H32: 3436 | K32: 0 | L32: 1111 | O32: total reinforcement | P32: =U20 -> 0 | Q32: =Z20 -> 0 | R32: =AE20 -> 0 | S32: =AJ20 -> 0 | T32: =AO20 -> 0 | U32: =AT20 -> 0
A33: 12 | B33: 3530 | C33: 14 | D33: 3535 | E33: 13 | F33: 3539 | G33: 23 | H33: 3546 | K33: 0 | L33: 1112 | O33: % target
A34: 12 | B34: 3642 | C34: 14 | D34: 3653 | E34: 24 | F34: 3667 | G34: 23 | H34: 3671 | K34: 0 | L34: 1122 | O34: CCRF
A35: 12 | B35: 3768 | C35: 14 | D35: 3772 | E35: 13 | F35: 3776 | G35: 23 | H35: 3792 | K35: 0 | L35: 1112 | O35: % CCRf
A36: 12 | B36: 3892 | C36: 14 | D36: 3896 | E36: 13 | F36: 3904 | G36: 14 | H36: 3908 | K36: 0 | L36: 1111 | O36: average response rate | P36: =H19/P28 -> 136.3076923 | Q36: =(H31-H19)/Q28 -> 129.4166667 | R36: =(H44-H31)/R28 -> 119.5384615 | S36: =(H57-H44)/S28 -> 146.7692308 | T36: =(H69-H57)/T28 -> 436.4166667 | U36: =(H82-H69)/U28 -> -924.9230769
A37: 12 | B37: 4003 | C37: 14 | D37: 4011 | E37: 24 | F37: 4018 | G37: 23 | H37: 4022 | K37: 0 | L37: 1122
A38: 12 | B38: 4125 | C38: 14 | D38: 4132 | E38: 24 | F38: 4144 | G38: 23 | H38: 4147 | K38: 0 | L38: 1122
A39: 12 | B39: 4261 | C39: 14 | D39: 4269 | E39: 13 | F39: 4275 | G39: 23 | H39: 4286 | K39: 0 | L39: 1112
A40: 12 | B40: 4395 | C40: 14 | D40: 4398 | E40: 24 | F40: 4406 | G40: 23 | H40: 4409 | K40: 0 | L40: 1122
A41: 12 | B41: 4506 | C41: 14 | D41: 4513 | E41: 13 | F41: 4519 | G41: 14 | H41: 4523 | K41: 0 | L41: 1111
A42: 21 | B42: 4632 | C42: 21 | D42: 4635 | E42: 22 | F42: 4640 | G42: 23 | H42: 4645 | K42: 0 | L42: 2222
A43: 12 | B43: 4744 | C43: 23 | D43: 4756 | E43: 24 | F43: 4760 | G43: 23 | H43: 4765 | K43: 0 | L43: 1222
A44: 12 | B44: 4860 | C44: 14 | D44: 4868 | E44: 24 | F44: 4876 | G44: 23 | H44: 4879 | K44: 0 | L44: 1122
A45: 12 | B45: 4986 | C45: 14 | D45: 4990 | E45: 24 | F45: 4998 | G45: 23 | H45: 5002 | K45: 0 | L45: 1122
A46: 12 | B46: 5099 | C46: 14 | D46: 5103 | E46: 24 | F46: 5110 | G46: 23 | H46: 5113 | K46: 0 | L46: 1122
A47: 12 | B47: 5210 | C47: 23 | D47: 5219 | E47: 24 | F47: 5223 | G47: 23 | H47: 5228 | K47: 0 | L47: 1222
A48: 12 | B48: 5326 | C48: 23 | D48: 5336 | E48: 24 | F48: 5341 | G48: 23 | H48: 5348 | K48: 0 | L48: 1222
A49: 12 | B49: 5444 | C49: 14 | D49: 5449 | E49: 13 | F49: 5457 | G49: 23 | H49: 5464 | K49: 0 | L49: 1112
A50: 12 | B50: 5565 | C50: 23 | D50: 5575 | E50: 24 | F50: 5579 | G50: 23 | H50: 5592 | K50: 0 | L50: 1222
A51: 12 | B51: 5696 | C51: 23 | D51: 5709 | E51: 24 | F51: 5714 | G51: 23 | H51: 5720 | K51: 0 | L51: 1222
A52: 12 | B52: 5821 | C52: 23 | D52: 5829 | E52: 24 | F52: 5841 | G52: 14 | H52: 5855 | K52: 0 | L52: 1221
A53: 12 | B53: 5953 | C53: 23 | D53: 5964 | E53: 24 | F53: 5968 | G53: 23 | H53: 5974 | K53: 0 | L53: 1222
A54: 21 | B54: 6068 | C54: 21 | D54: 6072 | E54: 22 | F54: 6078 | G54: 23 | H54: 6083 | K54: 0 | L54: 2222
A55: 12 | B55: 6265 | C55: 14 | D55: 6269 | E55: 24 | F55: 6277 | G55: 23 | H55: 6281 | K55: 0 | L55: 1122
A56: 12 | B56: 6590 | C56: 14 | D56: 6612 | E56: 13 | F56: 6617 | G56: 23 | H56: 6628 | K56: 0 | L56: 1112
A57: 12 | B57: 6773 | C57: 14 | D57: 6776 | E57: 24 | F57: 6784 | G57: 23 | H57: 6787 | K57: 0 | L57: 1122
A58: 12 | B58: 6960 | C58: 14 | D58: 6964 | E58: 13 | F58: 6988 | G58: 23 | H58: 6996 | K58: 0 | L58: 1112
A59: 21 | B59: 7094 | C59: 12 | D59: 7109 | E59: 24 | F59: 7118 | G59: 23 | H59: 7122 | K59: 0 | L59: 2122
A60: 12 | B60: 7432 | C60: 23 | D60: 7446 | E60: 24 | F60: 7450 | G60: 23 | H60: 7455 | K60: 0 | L60: 1222
A61: 12 | B61: 7647 | C61: 23 | D61: 7657 | E61: 13 | F61: 7678 | G61: 23 | H61: 7687 | K61: 0 | L61: 1212
A62: 12 | B62: 7793 | C62: 23 | D62: 7804 | E62: 24 | F62: 7807 | G62: 23 | H62: 7811 | K62: 0 | L62: 1222
A63: 12 | B63: 7920 | C63: 23 | D63: 7928 | E63: 24 | F63: 7930 | G63: 23 | H63: 7934 | K63: 0 | L63: 1222
A64: 12 | B64: 8050 | C64: 14 | D64: 8052 | E64: 13 | F64: 8057 | G64: 23 | H64: 8070 | K64: 0 | L64: 1112
A65: 12 | B65: 8178 | C65: 14 | D65: 8187 | E65: 24 | F65: 8207 | G65: 23 | H65: 8213 | K65: 0 | L65: 1122
A66: 12 | B66: 8852 | C66: 14 | D66: 8857 | E66: 24 | F66: 8868 | G66: 23 | H66: 8873 | K66: 0 | L66: 1122
A67: 12 | B67: 9022 | C67: 14 | D67: 9028 | E67: 13 | F67: 9045 | G67: 23 | H67: 9055 | K67: 0 | L67: 1112
A68: 12 | B68: 10043 | C68: 14 | D68: 10049 | E68: 24 | F68: 11564 | G68: 23 | H68: 11568 | K68: 0 | L68: 1122
A69: 12 | B69: 12004 | C69: 23 | D69: 12013 | E69: 24 | F69: 12018 | G69: 23 | H69: 12024 | K69: 0 | L69: 1222
A70: 12 | B70: 12122 | C70: 23 | D70: 12135 | E70: 24 | F70: 12137 | G70: 23 | H70: 12141 | K70: 0 | L70: 1222
A71: 12 | B71: 12352 | C71: 14 | D71: 13644 | E71: 13 | F71: 13737 | G71: 23 | H71: 13747 | K71: 0 | L71: 1112
A72: 12 | B72: 13845 | C72: 23 | D72: 13854 | E72: 24 | F72: 13857 | G72: 23 | H72: 13861 | K72: 0 | L72: 1222
A73: 12 | B73: 13956 | C73: 23 | D73: 13967 | E73: 24 | F73: 13969 | G73: 23 | H73: 13971 | K73: 0 | L73: 1222
A74: 12 | B74: 14074 | C74: 23 | D74: 14083 | E74: 24 | F74: 14086 | G74: 23 | H74: 14093 | K74: 0 | L74: 1222
A75: 12 | B75: 14225 | C75: 23 | D75: 14231 | E75: 24 | F75: 14235 | G75: 23 | H75: 14241 | K75: 0 | L75: 1222
A76: 12 | B76: 14359 | C76: 14 | D76: 14369 | E76: 13 | F76: 14374 | G76: 23 | H76: 14382 | K76: 0 | L76: 1112
A77: 12 | B77: 14813 | C77: 14 | D77: 14865 | E77: 24 | F77: 14872 | G77: 23 | H77: 14876 | K77: 0 | L77: 1122
A78: 12 | B78: 14987 | C78: 14 | D78: 14994 | E78: 24 | F78: 15004 | G78: 23 | H78: 15010 | K78: 0 | L78: 1122
A79: 12 | B79: 18174 | C79: 14 | D79: 18177 | E79: 13 | F79: 18180 | G79: 14 | H79: 18185 | K79: 0 | L79: 1111
A80: 12 | B80: 18816 | C80: 23 | D80: 19278 | E80: 24 | F80: 19290 | G80: 23 | H80: 19594 | K80: 0 | L80: 1222
A81: 12 | B81: 19842 | C81: 23 | D81: 19854 | E81: 24 | F81: 19859 | G81: 23 | H81: 19863 | K81: 0 | L81: 1222
A82: 12 | B82: 22887 | C82: 14 | D82: 22907 | E82: 13 | F82: 22914 | L82: 111

Sheet !LB17A04..Is
A1: Report for:!LB17A04..Is
A2: Date: | B2: <date>
A3: Hen: | B3: <hen> | F3: Correct Sequence | G3: =Start!J2 -> 2212 | P3: Total Sequences in Data | Q3: =4994-COUNTBLANK(L7:L5000) -> 67 | V3: Total Sequences in Block Data | W3: =COUNTA(L7:L17) -> 11 | AA3: Total Sequences in Block Data | AB3: =COUNTA(L18:L28) -> 11 | AF3: Total Sequences in Block Data | AG3: =COUNTA(L29:L40) -> 12 | AK3: Total Sequences in Block Data | AL3: =COUNTA(L41:L51) -> 11 | AP3: Total Sequences in Block Data | AQ3: =COUNTA(L52:L62) -> 11 | AU3: Total Sequences in Block Data | AV3: =COUNTA(L63:L73) -> 11
P4: Total Sequences in Summary | Q4: =SUM(O7:O22) -> 66 | V4: Total Sequences in Block Summary | W4: =SUM(U7:U22) -> 11 | AA4: Total Sequences in Block Summary | AB4: =SUM(Z7:Z22) -> 11 | AF4: Total Sequences in Block Summary | AG4: =SUM(AE7:AE22) -> 12 | AK4: Total Sequences in Block Summary | AL4: =SUM(AJ7:AJ22) -> 11 | AP4: Total Sequences in Block Summary | AQ4: =SUM(AO7:AO22) -> 11 | AU4: Total Sequences in Block Summary | AV4: =SUM(AT7:AT22) -> 10
T5: Block 1 | Y5: Block 2 | AD5: Block 3 | AI5: Block 4 | AN5: Block 5 | AS5: Block 6
A6: Sequence Component 1 | B6: Time 1 | C6: Sequence Component 2 | D6: Time 2 | E6: Sequence Component 3 | F6: Time 3 | G6: Sequence Component 4 | H6: Time 4 | I6: Sequence Component 5 | J6: Time 5 | K6: Correct? 0=No 1=Yes | L6: Sequence | N6: Frequency | P6: Relative Frequency | Q6: Variability | T6: Frequency | V6: Relative Frequency | W6: Variability | Y6: Frequency | AA6: Relative Frequency | AB6: Variability | AD6: Frequency | AF6: Relative Frequency | AG6: Variability | AI6: Frequency | AK6: Relative Frequency | AL6: Variability | AN6: Frequency | AP6: Relative Frequency | AQ6: Variability | AS6: Frequency | AU6: Relative Frequency | AV6: Variability
A7: 12 | B7: 23 | C7: 23 | D7: 33 | E7: 24 | F7: 39 | G7: 14 | H7: 85 | K7: 0 | L7: 1221 | N7: 1111 | O7: =COUNTIF($L$7:$L$500,N7) -> 12 | P7: =O7/$Q$4 -> 0.1818181818 | Q7: =IF(P7=0,0,(P7*((LOG(P7))/LOG(2)))) -> -0.4471693852 | T7: =N7 -> 1111 | U7: =COUNTIF(L7:L17,T7) -> 0 | V7: =U7/(W4-U20) -> 0 | W7: =IF(V7=0,0,(V7*((LOG(V7))/LOG(2)))) -> 0 | Y7: =N7 -> 1111 | Z7: =COUNTIF(L18:L28,Y7) -> 2 | AA7: =Z7/(AB4-Z20) -> 0.1818181818 | AB7: =IF(AA7=0,0,(AA7*((LOG(AA7))/LOG(2)))) -> -0.4471693852 | AD7: =N7 -> 1111 | AE7: =COUNTIF(L29:L40,AD7) -> 7 | AF7: =AE7/(AG4-AE20) -> 0.5833333333 | AG7: =IF(AF7=0,0,(AF7*((LOG(AF7))/LOG(2)))) -> -0.4536044209 | AI7: =N7 -> 1111 | AJ7: =COUNTIF(L41:L51,AI7) -> 2 | AK7: =AJ7/(AL4-AJ20) -> 0.1818181818 | AL7: =IF(AK7=0,0,(AK7*((LOG(AK7))/LOG(2)))) -> -0.4471693852 | AN7: =N7 -> 1111 | AO7: =COUNTIF(L52:L62,AN7) -> 1 | AP7: =AO7/(AQ4-AO20) -> 0.09090909091 | AQ7: =IF(AP7=0,0,(AP7*((LOG(AP7))/LOG(2)))) -> -0.3144937835 | AS7: =N7 -> 1111 | AT7: =COUNTIF(L63:L73,AS7) -> 0 | AU7: =AT7/(AV4-AT20) -> 0 | AV7: =IF(AU7=0,0,(AU7*((LOG(AU7))/LOG(2)))) -> 0
A8: 12 | B8: 203 | C8: 23 | D8: 211 | E8: 24 | F8: 214 | G8: 23 | H8: 221 | K8: 0 | L8: 1222 | N8: 1112 | O8: =COUNTIF($L$7:$L$500,N8) -> 13 | P8: =O8/$Q$4 -> 0.196969697 | Q8: =IF(P8=0,0,(P8*((LOG(P8))/LOG(2)))) -> -0.4616879881 | T8: =N8 -> 1112 | U8: =COUNTIF(L7:L17,T8) -> 3 | V8: =U8/(W4-U20) -> 0.2727272727 | W8: =IF(V8=0,0,(V8*((LOG(V8))/LOG(2)))) -> -0.5112188503 | Y8: =N8 -> 1112 | Z8: =COUNTIF(L18:L28,Y8) -> 4 | AA8: =Z8/(AB4-Z20) -> 0.3636363636 | AB8: =IF(AA8=0,0,(AA8*((LOG(AA8))/LOG(2)))) -> -0.5307024068 | AD8: =N8 -> 1112 | AE8: =COUNTIF(L29:L40,AD8) -> 3 | AF8: =AE8/(AG4-AE20) -> 0.25 | AG8: =IF(AF8=0,0,(AF8*((LOG(AF8))/LOG(2)))) -> -0.5 | AI8: =N8 -> 1112 | AJ8: =COUNTIF(L41:L51,AI8) -> 2 | AK8: =AJ8/(AL4-AJ20) -> 0.1818181818 | AL8: =IF(AK8=0,0,(AK8*((LOG(AK8))/LOG(2)))) -> -0.4471693852 | AN8: =N8 -> 1112 | AO8: =COUNTIF(L52:L62,AN8) -> 1 | AP8: =AO8/(AQ4-AO20) -> 0.09090909091 | AQ8: =IF(AP8=0,0,(AP8*((LOG(AP8))/LOG(2)))) -> -0.3144937835 | AS8: =N8 -> 1112 | AT8: =COUNTIF(L63:L73,AS8) -> 0 | AU8: =AT8/(AV4-AT20) -> 0 | AV8: =IF(AU8=0,0,(AU8*((LOG(AU8))/LOG(2)))) -> 0
A9: 12 | B9: 367 | C9: 23 | D9: 375 | E9: 24 | F9: 383 | G9: 23 | H9: 390 | K9: 0 | L9: 1222 | N9: 1121 | O9: =COUNTIF($L$7:$L$500,N9) -> 0 | P9: =O9/$Q$4 -> 0 | Q9: =IF(P9=0,0,(P9*((LOG(P9))/LOG(2)))) -> 0 | T9: =N9 -> 1121 | U9: =COUNTIF(L7:L17,T9) -> 0 | V9: =U9/(W4-U20) -> 0 | W9: =IF(V9=0,0,(V9*((LOG(V9))/LOG(2)))) -> 0 | Y9: =N9 -> 1121 | Z9: =COUNTIF(L18:L28,Y9) -> 0 | AA9: =Z9/(AB4-Z20) -> 0 | AB9: =IF(AA9=0,0,(AA9*((LOG(AA9))/LOG(2)))) -> 0 | AD9: =N9 -> 1121 | AE9: =COUNTIF(L29:L40,AD9) -> 0 | AF9: =AE9/(AG4-AE20) -> 0 | AG9: =IF(AF9=0,0,(AF9*((LOG(AF9))/LOG(2)))) -> 0 | AI9: =N9 -> 1121 | AJ9: =COUNTIF(L41:L51,AI9) -> 0 | AK9: =AJ9/(AL4-AJ20) -> 0 | AL9: =IF(AK9=0,0,(AK9*((LOG(AK9))/LOG(2)))) -> 0 | AN9: =N9 -> 1121 | AO9: =COUNTIF(L52:L62,AN9) -> 0 | AP9: =AO9/(AQ4-AO20) -> 0 | AQ9: =IF(AP9=0,0,(AP9*((LOG(AP9))/LOG(2)))) -> 0 | AS9: =N9 -> 1121 | AT9: =COUNTIF(L63:L73,AS9) -> 0 | AU9: =AT9/(AV4-AT20) -> 0 | AV9: =IF(AU9=0,0,(AU9*((LOG(AU9))/LOG(2)))) -> 0
A10: 12 | B10: 506 | C10: 23 | D10: 544 | E10: 24 | F10: 562 | G10: 23 | H10: 570 | K10: 0 | L10: 1222 | N10: 1122 | O10: =COUNTIF($L$7:$L$500,N10) -> 20 | P10: =O10/$Q$4 -> 0.303030303 | Q10: =IF(P10=0,0,(P10*((LOG(P10))/LOG(2)))) -> -0.5219594014 | T10: =N10 -> 1122 | U10: =COUNTIF(L7:L17,T10) -> 4 | V10: =U10/(W4-U20) -> 0.3636363636 | W10: =IF(V10=0,0,(V10*((LOG(V10))/LOG(2)))) -> -0.5307024068 | Y10: =N10 -> 1122 | Z10: =COUNTIF(L18:L28,Y10) -> 4 | AA10: =Z10/(AB4-Z20) -> 0.3636363636 | AB10: =IF(AA10=0,0,(AA10*((LOG(AA10))/LOG(2)))) -> -0.5307024068 | AD10: =N10 -> 1122 | AE10: =COUNTIF(L29:L40,AD10) -> 1 | AF10: =AE10/(AG4-AE20) -> 0.08333333333 | AG10: =IF(AF10=0,0,(AF10*((LOG(AF10))/LOG(2)))) -> -0.2987468751 | AI10: =N10 -> 1122 | AJ10: =COUNTIF(L41:L51,AI10) -> 5 | AK10: =AJ10/(AL4-AJ20) -> 0.4545454545 | AL10: =IF(AK10=0,0,(AK10*((LOG(AK10))/LOG(2)))) -> -0.5170470562 | AN10: =N10 -> 1122 | AO10: =COUNTIF(L52:L62,AN10) -> 5 | AP10: =AO10/(AQ4-AO20) -> 0.4545454545 | AQ10: =IF(AP10=0,0,(AP10*((LOG(AP10))/LOG(2)))) -> -0.5170470562 | AS10: =N10 -> 1122 | AT10: =COUNTIF(L63:L73,AS10) -> 1 | AU10: =AT10/(AV4-AT20) -> 0.1 | AV10: =IF(AU10=0,0,(AU10*((LOG(AU10))/LOG(2)))) -> -0.3321928095
A11: 12 | B11: 669 | C11: 14 | D11: 678 | E11: 24 | F11: 687 | G11: 23 | H11: 703 | K11: 0 | L11: 1122 | N11: 1211 | O11: =COUNTIF($L$7:$L$500,N11) -> 0 | P11: =O11/$Q$4 -> 0 | Q11: =IF(P11=0,0,(P11*((LOG(P11))/LOG(2)))) -> 0 | T11: =N11 -> 1211 | U11: =COUNTIF(L7:L17,T11) -> 0 | V11: =U11/(W4-U20) -> 0 | W11: =IF(V11=0,0,(V11*((LOG(V11))/LOG(2)))) -> 0 | Y11: =N11 -> 1211 | Z11: =COUNTIF(L18:L28,Y11) -> 0 | AA11: =Z11/(AB4-Z20) -> 0 | AB11: =IF(AA11=0,0,(AA11*((LOG(AA11))/LOG(2)))) -> 0 | AD11: =N11 -> 1211 | AE11: =COUNTIF(L29:L40,AD11) -> 0 | AF11: =AE11/(AG4-AE20) -> 0 | AG11: =IF(AF11=0,0,(AF11*((LOG(AF11))/LOG(2)))) -> 0 | AI11: =N11 -> 1211 | AJ11: =COUNTIF(L41:L51,AI11) -> 0 | AK11: =AJ11/(AL4-AJ20) -> 0 | AL11: =IF(AK11=0,0,(AK11*((LOG(AK11))/LOG(2)))) -> 0 | AN11: =N11 -> 1211 | AO11: =COUNTIF(L52:L62,AN11) -> 0 | AP11: =AO11/(AQ4-AO20) -> 0 | AQ11: =IF(AP11=0,0,(AP11*((LOG(AP11))/LOG(2)))) -> 0 | AS11: =N11 -> 1211 | AT11: =COUNTIF(L63:L73,AS11) -> 0 | AU11: =AT11/(AV4-AT20) -> 0 | AV11: =IF(AU11=0,0,(AU11*((LOG(AU11))/LOG(2)))) -> 0
A12: 12 | B12: 802 | C12: 14 | D12: 807 | E12: 24 | F12: 815 | G12: 23 | H12: 827 | K12: 0 | L12: 1122 | N12: 1212 | O12: =COUNTIF($L$7:$L$500,N12) -> 1 | P12: =O12/$Q$4 -> 0.01515151515 | Q12: =IF(P12=0,0,(P12*((LOG(P12))/LOG(2)))) -> -0.09158172908 | T12: =N12 -> 1212 | U12: =COUNTIF(L7:L17,T12) -> 0 | V12: =U12/(W4-U20) -> 0 | W12: =IF(V12=0,0,(V12*((LOG(V12))/LOG(2)))) -> 0 | Y12: =N12 -> 1212 | Z12: =COUNTIF(L18:L28,Y12) -> 0 | AA12: =Z12/(AB4-Z20) -> 0 | AB12: =IF(AA12=0,0,(AA12*((LOG(AA12))/LOG(2)))) -> 0 | AD12: =N12 -> 1212 | AE12: =COUNTIF(L29:L40,AD12) -> 0 | AF12: =AE12/(AG4-AE20) -> 0 | AG12: =IF(AF12=0,0,(AF12*((LOG(AF12))/LOG(2)))) -> 0 | AI12: =N12 -> 1212 | AJ12: =COUNTIF(L41:L51,AI12) -> 0 | AK12: =AJ12/(AL4-AJ20) -> 0 | AL12: =IF(AK12=0,0,(AK12*((LOG(AK12))/LOG(2)))) -> 0 | AN12: =N12 -> 1212 | AO12: =COUNTIF(L52:L62,AN12) -> 1 | AP12: =AO12/(AQ4-AO20) -> 0.09090909091 | AQ12: =IF(AP12=0,0,(AP12*((LOG(AP12))/LOG(2)))) -> -0.3144937835 | AS12: =N12 -> 1212 | AT12: =COUNTIF(L63:L73,AS12) -> 0 | AU12: =AT12/(AV4-AT20) -> 0 | AV12: =IF(AU12=0,0,(AU12*((LOG(AU12))/LOG(2)))) -> 0
A13: 12 | B13: 925 | C13: 14 | D13: 934 | E13: 24 | F13: 942 | G13: 23 | H13: 945 | K13: 0 | L13: 1122 | N13: 1221 | O13: =COUNTIF($L$7:$L$500,N13) -> 1 | P13: =O13/$Q$4 -> 0.01515151515 | Q13: =IF(P13=0,0,(P13*((LOG(P13))/LOG(2)))) -> -0.09158172908 | T13: =N13 -> 1221 | U13: =COUNTIF(L7:L17,T13) -> 1 | V13: =U13/(W4-U20) -> 0.09090909091 | W13: =IF(V13=0,0,(V13*((LOG(V13))/LOG(2)))) -> -0.3144937835 | Y13: =N13 -> 1221 | Z13: =COUNTIF(L18:L28,Y13) -> 0 | AA13: =Z13/(AB4-Z20) -> 0 | AB13: =IF(AA13=0,0,(AA13*((LOG(AA13))/LOG(2)))) -> 0 | AD13: =N13 -> 1221 | AE13: =COUNTIF(L29:L40,AD13) -> 0 | AF13: =AE13/(AG4-AE20) -> 0 | AG13: =IF(AF13=0,0,(AF13*((LOG(AF13))/LOG(2)))) -> 0 | AI13: =N13 -> 1221 | AJ13: =COUNTIF(L41:L51,AI13) -> 0 | AK13: =AJ13/(AL4-AJ20) -> 0 | AL13: =IF(AK13=0,0,(AK13*((LOG(AK13))/LOG(2)))) -> 0 | AN13: =N13 -> 1221 | AO13: =COUNTIF(L52:L62,AN13) -> 0 | AP13: =AO13/(AQ4-AO20) -> 0 | AQ13: =IF(AP13=0,0,(AP13*((LOG(AP13))/LOG(2)))) -> 0 | AS13: =N13 -> 1221 | AT13: =COUNTIF(L63:L73,AS13) -> 0 | AU13: =AT13/(AV4-AT20) -> 0 | AV13: =IF(AU13=0,0,(AU13*((LOG(AU13))/LOG(2)))) -> 0
A14: 12 | B14: 1048 | C14: 14 | D14: 1054 | E14: 13 | F14: 1058 | G14: 23 | H14: 1068 | K14: 0 | L14: 1112 | N14: 1222 | O14: =COUNTIF($L$7:$L$500,N14) -> 14 | P14: =O14/$Q$4 -> 0.2121212121 | Q14: =IF(P14=0,0,(P14*((LOG(P14))/LOG(2)))) -> -0.4745234661 | T14: =N14 -> 1222 | U14: =COUNTIF(L7:L17,T14) -> 3 | V14: =U14/(W4-U20) -> 0.2727272727 | W14: =IF(V14=0,0,(V14*((LOG(V14))/LOG(2)))) -> -0.5112188503 | Y14: =N14 -> 1222 | Z14: =COUNTIF(L18:L28,Y14) -> 1 | AA14: =Z14/(AB4-Z20) -> 0.09090909091 | AB14: =IF(AA14=0,0,(AA14*((LOG(AA14))/LOG(2)))) -> -0.3144937835 | AD14: =N14 -> 1222 | AE14: =COUNTIF(L29:L40,AD14) -> 1 | AF14: =AE14/(AG4-AE20) -> 0.08333333333 | AG14: =IF(AF14=0,0,(AF14*((LOG(AF14))/LOG(2)))) -> -0.2987468751 | AI14: =N14 -> 1222 | AJ14: =COUNTIF(L41:L51,AI14) -> 2 | AK14: =AJ14/(AL4-AJ20) -> 0.1818181818 | AL14: =IF(AK14=0,0,(AK14*((LOG(AK14))/LOG(2)))) -> -0.4471693852 | AN14: =N14 -> 1222 | AO14: =COUNTIF(L52:L62,AN14) -> 2 | AP14: =AO14/(AQ4-AO20) -> 0.1818181818 | AQ14: =IF(AP14=0,0,(AP14*((LOG(AP14))/LOG(2)))) -> -0.4471693852 | AS14: =N14 -> 1222 | AT14: =COUNTIF(L63:L73,AS14) -> 5 | AU14: =AT14/(AV4-AT20) -> 0.5 | AV14: =IF(AU14=0,0,(AU14*((LOG(AU14))/LOG(2)))) -> -0.5
A15: 12 | B15: 1169 | C15: 14 | D15: 1174 | E15: 13 | F15: 1179 | G15: 23 | H15: 1204 | K15: 0 | L15: 1112 | N15: 2111 | O15: =COUNTIF($L$7:$L$500,N15) -> 0 | P15: =O15/$Q$4 -> 0 | Q15: =IF(P15=0,0,(P15*((LOG(P15))/LOG(2)))) -> 0 | T15: =N15 -> 2111 | U15: =COUNTIF(L7:L17,T15) -> 0 | V15: =U15/(W4-U20) -> 0 | W15: =IF(V15=0,0,(V15*((LOG(V15))/LOG(2)))) -> 0 | Y15: =N15 -> 2111 | Z15: =COUNTIF(L18:L28,Y15) -> 0 | AA15: =Z15/(AB4-Z20) -> 0 | AB15: =IF(AA15=0,0,(AA15*((LOG(AA15))/LOG(2)))) -> 0 | AD15: =N15 -> 2111 | AE15: =COUNTIF(L29:L40,AD15) -> 0 | AF15: =AE15/(AG4-AE20) -> 0 | AG15: =IF(AF15=0,0,(AF15*((LOG(AF15))/LOG(2)))) -> 0 | AI15: =N15 -> 2111 | AJ15: =COUNTIF(L41:L51,AI15) -> 0 | AK15: =AJ15/(AL4-AJ20) -> 0 | AL15: =IF(AK15=0,0,(AK15*((LOG(AK15))/LOG(2)))) -> 0 | AN15: =N15 -> 2111 | AO15: =COUNTIF(L52:L62,AN15) -> 0 | AP15: =AO15/(AQ4-AO20) -> 0 | AQ15: =IF(AP15=0,0,(AP15*((LOG(AP15))/LOG(2)))) -> 0 | AS15: =N15 -> 2111 | AT15: =COUNTIF(L63:L73,AS15) -> 0 | AU15: =AT15/(AV4-AT20) -> 0 | AV15: =IF(AU15=0,0,(AU15*((LOG(AU15))/LOG(2)))) -> 0
A16: 12 | B16: 1299 | C16: 14 | D16: 1304 | E16: 13 | F16: 1308 | G16: 23 | H16: 1318 | K16: 0 | L16: 1112 | N16: 2112 | O16: =COUNTIF($L$7:$L$500,N16) -> 0 | P16: =O16/$Q$4 -> 0 | Q16: =IF(P16=0,0,(P16*((LOG(P16))/LOG(2)))) -> 0 | T16: =N16 -> 2112 | U16: =COUNTIF(L7:L17,T16) -> 0 | V16: =U16/(W4-U20) -> 0 | W16: =IF(V16=0,0,(V16*((LOG(V16))/LOG(2)))) -> 0 | Y16: =N16 -> 2112 | Z16: =COUNTIF(L18:L28,Y16) -> 0 | AA16: =Z16/(AB4-Z20) -> 0 | AB16: =IF(AA16=0,0,(AA16*((LOG(AA16))/LOG(2)))) -> 0 | AD16: =N16 -> 2112 | AE16: =COUNTIF(L29:L40,AD16) -> 0 | AF16: =AE16/(AG4-AE20) -> 0 | AG16: =IF(AF16=0,0,(AF16*((LOG(AF16))/LOG(2)))) -> 0 | AI16: =N16 -> 2112 | AJ16: =COUNTIF(L41:L51,AI16) -> 0 | AK16: =AJ16/(AL4-AJ20) -> 0 | AL16: =IF(AK16=0,0,(AK16*((LOG(AK16))/LOG(2)))) -> 0 | AN16: =N16 -> 2112 | AO16: =COUNTIF(L52:L62,AN16) -> 0 | AP16: =AO16/(AQ4-AO20) -> 0 | AQ16: =IF(AP16=0,0,(AP16*((LOG(AP16))/LOG(2)))) -> 0 | AS16: =N16 -> 2112 | AT16: =COUNTIF(L63:L73,AS16) -> 0 | AU16: =AT16/(AV4-AT20) -> 0 | AV16: =IF(AU16=0,0,(AU16*((LOG(AU16))/LOG(2)))) -> 0
A17: 12 | B17: 1416 | C17: 14 | D17: 1423 | E17: 24 | F17: 1431 | G17: 23 | H17: 1434 | K17: 0 | L17: 1122 | N17: 2121 | O17: =COUNTIF($L$7:$L$500,N17) -> 0 | P17: =O17/$Q$4 -> 0 | Q17: =IF(P17=0,0,(P17*((LOG(P17))/LOG(2)))) -> 0 | T17: =N17 -> 2121 | U17: =COUNTIF(L7:L17,T17) -> 0 | V17: =U17/(W4-U20) -> 0 | W17: =IF(V17=0,0,(V17*((LOG(V17))/LOG(2)))) -> 0 | Y17: =N17 -> 2121 | Z17: =COUNTIF(L18:L28,Y17) -> 0 | AA17: =Z17/(AB4-Z20) -> 0 | AB17: =IF(AA17=0,0,(AA17*((LOG(AA17))/LOG(2)))) -> 0 | AD17: =N17 -> 2121 | AE17: =COUNTIF(L29:L40,AD17) -> 0 | AF17: =AE17/(AG4-AE20) -> 0 | AG17: =IF(AF17=0,0,(AF17*((LOG(AF17))/LOG(2)))) -> 0 | AI17: =N17 -> 2121 | AJ17: =COUNTIF(L41:L51,AI17) -> 0 | AK17: =AJ17/(AL4-AJ20) -> 0 | AL17: =IF(AK17=0,0,(AK17*((LOG(AK17))/LOG(2)))) -> 0 | AN17: =N17 -> 2121 | AO17: =COUNTIF(L52:L62,AN17) -> 0 | AP17: =AO17/(AQ4-AO20) -> 0 | AQ17: =IF(AP17=0,0,(AP17*((LOG(AP17))/LOG(2)))) -> 0 | AS17: =N17 -> 2121 | AT17: =COUNTIF(L63:L73,AS17) -> 0 | AU17: =AT17/(AV4-AT20) -> 0 | AV17: =IF(AU17=0,0,(AU17*((LOG(AU17))/LOG(2)))) -> 0
A18: 12 | B18: 1533 | C18: 14 | D18: 1537 | E18: 13 | F18: 1544 | G18: 23 | H18: 1556 | K18: 0 | L18: 1112 | N18: 2122 | O18: =COUNTIF($L$7:$L$500,N18) -> 1 | P18: =O18/$Q$4 -> 0.01515151515 | Q18: =IF(P18=0,0,(P18*((LOG(P18))/LOG(2)))) -> -0.09158172908 | T18: =N18 -> 2122 | U18: =COUNTIF(L7:L17,T18) -> 0 | V18: =U18/(W4-U20) -> 0 | W18: =IF(V18=0,0,(V18*((LOG(V18))/LOG(2)))) -> 0 | Y18: =N18 -> 2122 | Z18: =COUNTIF(L18:L28,Y18) -> 0 | AA18: =Z18/(AB4-Z20) -> 0 | AB18: =IF(AA18=0,0,(AA18*((LOG(AA18))/LOG(2)))) -> 0 | AD18: =N18 -> 2122 | AE18: =COUNTIF(L29:L40,AD18) -> 0 | AF18: =AE18/(AG4-AE20) -> 0 | AG18: =IF(AF18=0,0,(AF18*((LOG(AF18))/LOG(2)))) -> 0 | AI18: =N18 -> 2122 | AJ18: =COUNTIF(L41:L51,AI18) -> 0 | AK18: =AJ18/(AL4-AJ20) -> 0 | AL18: =IF(AK18=0,0,(AK18*((LOG(AK18))/LOG(2)))) -> 0 | AN18: =N18 -> 2122 | AO18: =COUNTIF(L52:L62,AN18) -> 1 | AP18: =AO18/(AQ4-AO20) -> 0.09090909091 | AQ18: =IF(AP18=0,0,(AP18*((LOG(AP18))/LOG(2)))) -> -0.3144937835 | AS18: =N18 -> 2122 | AT18: =COUNTIF(L63:L73,AS18) -> 0 | AU18: =AT18/(AV4-AT20) -> 0 | AV18: =IF(AU18=0,0,(AU18*((LOG(AU18))/LOG(2)))) -> 0
A19: 12 | B19: 1705 | C19: 14 | D19: 1710 | E19: 13 | F19: 1714 | G19: 14 | H19: 1720 | K19: 0 | L19: 1111 | N19: 2211 | O19: =COUNTIF($L$7:$L$500,N19) -> 1 | P19: =O19/$Q$4 -> 0.01515151515 | Q19: =IF(P19=0,0,(P19*((LOG(P19))/LOG(2)))) -> -0.09158172908 | T19: =N19 -> 2211 | U19: =COUNTIF(L7:L17,T19) -> 0 | V19: =U19/(W4-U20) -> 0 | W19: =IF(V19=0,0,(V19*((LOG(V19))/LOG(2)))) -> 0 | Y19: =N19 -> 2211 | Z19: =COUNTIF(L18:L28,Y19) -> 0 | AA19: =Z19/(AB4-Z20) -> 0 | AB19: =IF(AA19=0,0,(AA19*((LOG(AA19))/LOG(2)))) -> 0 | AD19: =N19 -> 2211 | AE19: =COUNTIF(L29:L40,AD19) -> 0 | AF19: =AE19/(AG4-AE20) -> 0 | AG19: =IF(AF19=0,0,(AF19*((LOG(AF19))/LOG(2)))) -> 0 | AI19: =N19 -> 2211 | AJ19: =COUNTIF(L41:L51,AI19) -> 0 | AK19: =AJ19/(AL4-AJ20) -> 0 | AL19: =IF(AK19=0,0,(AK19*((LOG(AK19))/LOG(2)))) -> 0 | AN19: =N19 -> 2211 | AO19: =COUNTIF(L52:L62,AN19) -> 0 | AP19: =AO19/(AQ4-AO20) -> 0 | AQ19: =IF(AP19=0,0,(AP19*((LOG(AP19))/LOG(2)))) -> 0 | AS19: =N19 -> 2211 | AT19: =COUNTIF(L63:L73,AS19) -> 1 | AU19: =AT19/(AV4-AT20) -> 0.1 | AV19: =IF(AU19=0,0,(AU19*((LOG(AU19))/LOG(2)))) -> -0.3321928095
A20: 12 | B20: 2128 | C20: 14 | D20: 2141 | E20: 24 | F20: 2150 | G20: 23 | H20: 2161 | K20: 0 | L20: 1122 | N20: 2212 | O20: =COUNTIF($L$7:$L$500,N20) -> 0 | P20: =O20/$Q$4 -> 0 | Q20: =IF(P20=0,0,(P20*((LOG(P20))/LOG(2)))) -> 0 | T20: =N20 -> 2212 | U20: =COUNTIF(L7:L17,T20) -> 0 | Y20: =N20 -> 2212 | Z20: =COUNTIF(L18:L28,Y20) -> 0 | AD20: =N20 -> 2212 | AE20: =COUNTIF(L29:L40,AD20) -> 0 | AI20: =N20 -> 2212 | AJ20: =COUNTIF(L41:L51,AI20) -> 0 | AN20: =N20 -> 2212 | AO20: =COUNTIF(L52:L62,AN20) -> 0 | AS20: =N20 -> 2212 | AT20: =COUNTIF(L63:L73,AS20) -> 0
A21: 12 | B21: 2588 | C21: 14 | D21: 2597 | E21: 13 | F21: 2602 | G21: 23 | H21: 2611 | K21: 0 | L21: 1112 | N21: 2221 | O21: =COUNTIF($L$7:$L$500,N21) -> 2 | P21: =O21/$Q$4 -> 0.0303030303 | Q21: =IF(P21=0,0,(P21*((LOG(P21))/LOG(2)))) -> -0.1528604279 | T21: =N21 -> 2221 | U21: =COUNTIF(L7:L17,T21) -> 0 | V21: =U21/(W4-U20) -> 0 | W21: =IF(V21=0,0,(V21*((LOG(V21))/LOG(2)))) -> 0 | Y21: =N21 -> 2221 | Z21: =COUNTIF(L18:L28,Y21) -> 0 | AA21: =Z21/(AB4-Z20) -> 0 | AB21: =IF(AA21=0,0,(AA21*((LOG(AA21))/LOG(2)))) -> 0 | AD21: =N21 -> 2221 | AE21: =COUNTIF(L29:L40,AD21) -> 0 | AF21: =AE21/(AG4-AE20) -> 0 | AG21: =IF(AF21=0,0,(AF21*((LOG(AF21))/LOG(2)))) -> 0 | AI21: =N21 -> 2221 | AJ21: =COUNTIF(L41:L51,AI21) -> 0 | AK21: =AJ21/(AL4-AJ20) -> 0 | AL21: =IF(AK21=0,0,(AK21*((LOG(AK21))/LOG(2)))) -> 0 | AN21: =N21 -> 2221 | AO21: =COUNTIF(L52:L62,AN21) -> 0 | AP21: =AO21/(AQ4-AO20) -> 0 | AQ21: =IF(AP21=0,0,(AP21*((LOG(AP21))/LOG(2)))) -> 0 | AS21: =N21 -> 2221 | AT21: =COUNTIF(L63:L73,AS21) -> 2 | AU21: =AT21/(AV4-AT20) -> 0.2 | AV21: =IF(AU21=0,0,(AU21*((LOG(AU21))/LOG(2)))) -> -0.464385619
A22: 12 | B22: 2791 | C22: 14 | D22: 2796 | E22: 24 | F22: 2807 | G22: 23 | H22: 2824 | K22: 0 | L22: 1122 | N22: 2222 | O22: =COUNTIF($L$7:$L$500,N22) -> 1 | P22: =O22/$Q$4 -> 0.01515151515 | Q22: =IF(P22=0,0,(P22*((LOG(P22))/LOG(2)))) -> -0.09158172908 | T22: =N22 -> 2222 | U22: =COUNTIF(L7:L17,T22) -> 0 | V22: =U22/(W4-U20) -> 0 | W22: =IF(V22=0,0,(V22*((LOG(V22))/LOG(2)))) -> 0 | Y22: =N22 -> 2222 | Z22: =COUNTIF(L18:L28,Y22) -> 0 | AA22: =Z22/(AB4-Z20) -> 0 | AB22: =IF(AA22=0,0,(AA22*((LOG(AA22))/LOG(2)))) -> 0 | AD22: =N22 -> 2222 | AE22: =COUNTIF(L29:L40,AD22) -> 0 | AF22: =AE22/(AG4-AE20) -> 0 | AG22: =IF(AF22=0,0,(AF22*((LOG(AF22))/LOG(2)))) -> 0 | AI22: =N22 -> 2222 | AJ22: =COUNTIF(L41:L51,AI22) -> 0 | AK22: =AJ22/(AL4-AJ20) -> 0 | AL22: =IF(AK22=0,0,(AK22*((LOG(AK22))/LOG(2)))) -> 0 | AN22: =N22 -> 2222 | AO22: =COUNTIF(L52:L62,AN22) -> 0 | AP22: =AO22/(AQ4-AO20) -> 0 | AQ22: =IF(AP22=0,0,(AP22*((LOG(AP22))/LOG(2)))) -> 0 | AS22: =N22 -> 2222 | AT22: =COUNTIF(L63:L73,AS22) -> 1 | AU22: =AT22/(AV4-AT20) -> 0.1 | AV22: =IF(AU22=0,0,(AU22*((LOG(AU22))/LOG(2)))) -> -0.3321928095
A23: 12 | B23: 2932 | C23: 14 | D23: 2936 | E23: 24 | F23: 2944 | G23: 23 | H23: 2955 | K23: 0 | L23: 1122 | P23: =SUM(P7:P22) -> 1 | Q23: =-SUM(Q7:Q22) -> 2.516109314 | V23: =SUM(V7:V22) -> 1 | W23: =-SUM(W7:W22) -> 1.867633891 | AA23: =SUM(AA7:AA22) -> 1 | AB23: =-SUM(AB7:AB22) -> 1.823067982 | AF23: =SUM(AF7:AF22) -> 1 | AG23: =-SUM(AG7:AG22) -> 1.551098171 | AK23: =SUM(AK7:AK22) -> 1 | AL23: =-SUM(AL7:AL22) -> 1.858555212 | AP23: =SUM(AP7:AP22) -> 1 | AQ23: =-SUM(AQ7:AQ22) -> 2.222191576 | AU23: =SUM(AU7:AU22) -> 1 | AV23: =-SUM(AV7:AV22) -> 1.960964047
A24: 12 | B24: 3053 | C24: 14 | D24: 3061 | E24: 24 | F24: 3070 | G24: 23 | H24: 3081 | K24: 0 | L24: 1122 | P24: U= | Q24: =Q23/(LOG(Q4)/LOG(2)) -> 0.4162715509 | V24: U1= | W24: =W23/(LOG(W4)/LOG(2)) -> 0.5398672663 | AA24: U2= | AB24: =AB23/(LOG(AB4)/LOG(2)) -> 0.5269848297 | AF24: U3= | AG24: =AG23/(LOG(AG4)/LOG(2)) -> 0.4326678928 | AK24: U4= | AL24: =AL23/(LOG(AL4)/LOG(2)) -> 0.5372429395 | AP24: U5= | AQ24: =AQ23/(LOG(AQ4)/LOG(2)) -> 0.6423574218 | AU24: U6= | AV24: =AV23/(LOG(AV4)/LOG(2)) -> 0.5903089987
A25: 12 | B25: 3176 | C25: 14 | D25: 3181 | E25: 13 | F25: 3188 | G25: 23 | H25: 3195 | K25: 0 | L25: 1112
A26: 12 | B26: 3292 | C26: 14 | D26: 3296 | E26: 13 | F26: 3300 | G26: 23 | H26: 3308 | K26: 0 | L26: 1112
A27: 12 | B27: 3404 | C27: 14 | D27: 3408 | E27: 13 | F27: 3413 | G27: 14 | H27: 3417 | K27: 0 | L27: 1111 | N27: Total Target Seq
A28: 12 | B28: 3523 | C28: 23 | D28: 3538 | E28: 24 | F28: 3541 | G28: 23 | H28: 3548 | K28: 0 | L28: 1222 | N28: =COUNTIF(L7:L73,G3) -> 0 | P28: 11 | Q28: 11 | R28: 12 | S28: 11 | T28: 11 | U28: 11
A29: 12 | B29: 3646 | C29: 14 | D29: 3654 | E29: 13 | F29: 3658 | G29: 23 | H29: 3668 | K29: 0 | L29: 1112 | P29: % of reinforcement given in 6 equal intervals based on number of trials
A30: 12 | B30: 3763 | C30: 14 | D30: 3766 | E30: 13 | F30: 3770 | G30: 23 | H30: 3786 | K30: 0 | L30: 1112 | P30: %_1 | Q30: %_2 | R30: %_3 | S30: %_4 | T30: %_5 | U30: %_6
A31: 12 | B31: 3889 | C31: 23 | D31: 3901 | E31: 24 | F31: 3905 | G31: 23 | H31: 3910 | K31: 0 | L31: 1222 | O31: target sequence | P31: =$G$3 -> 2212 | Q31: =$G$3 -> 2212 | R31: =$G$3 -> 2212 | S31: =$G$3 -> 2212 | T31: =$G$3 -> 2212 | U31: =$G$3 -> 2212
A32: 12 | B32: 4006 | C32: 14 | D32: 4010 | E32: 13 | F32: 4014 | G32: 14 | H32: 4017 | K32: 0 | L32: 1111 | O32: total reinforcement | P32: =U20 -> 0 | Q32: =Z20 -> 0 | R32: =AE20 -> 0 | S32: =AJ20 -> 0 | T32: =AO20 -> 0 | U32: =AT20 -> 0
A33: 12 | B33: 4117 | C33: 14 | D33: 4121 | E33: 13 | F33: 4126 | G33: 14 | H33: 4130 | K33: 0 | L33: 1111 | O33: % target
A34: 12 | B34: 4226 | C34: 14 | D34: 4231 | E34: 13 | F34: 4235 | G34: 23 | H34: 4243 | K34: 0 | L34: 1112 | O34: CCRF
A35: 12 | B35: 4375 | C35: 14 | D35: 4381 | E35: 13 | F35: 4383 | G35: 14 | H35: 4386 | K35: 0 | L35: 1111 | O35: % CCRf
A36: 12 | B36: 4483 | C36: 14 | D36: 4485 | E36: 13 | F36: 4489 | G36: 14 | H36: 4492 | K36: 0 | L36: 1111 | O36: average response rate | P36: =H17/P28 -> 130.3636364 | Q36: =(H28-H17)/Q28 -> 192.1818182 | R36: =(H40-H28)/R28 -> 116.8333333 | S36: =(H51-H40)/S28 -> 155.3636364 | T36: =(H62-H51)/T28 -> 123.9090909 | U36: =(H73-H62)/U28 -> -729.2727273
A37: 12 | B37: 4587 | C37: 14 | D37: 4591 | E37: 13 | F37: 4595 | G37: 14 | H37: 4602 | K37: 0 | L37: 1111
A38: 12 | B38: 4700 | C38: 14 | D38: 4704 | E38: 13 | F38: 4708 | G38: 14 | H38: 4713 | K38: 0 | L38: 1111
A39: 12 | B39: 4809 | C39: 14 | D39: 4811 | E39: 13 | F39: 4814 | G39: 14 | H39: 4820 | K39: 0 | L39: 1111
A40: 12 | B40: 4920 | C40: 14 | D40: 4922 | E40: 24 | F40: 4946 | G40: 23 | H40: 4950 | K40: 0 | L40: 1122
A41: 12 | B41: 5119 | C41: 14 | D41: 5123 | E41: 13 | F41: 5128 | G41: 14 | H41: 5136 | K41: 0 | L41: 1111
A42: 12 | B42: 5251 | C42: 14 | D42: 5253 | E42: 13 | F42: 5256 | G42: 23 | H42: 5266 | K42: 0 | L42: 1112
A43: 12 | B43: 5368 | C43: 23 | D43: 5381 | E43: 24 | F43: 5386 | G43: 23 | H43: 5397 | K43: 0 | L43: 1222
A44: 12 | B44: 5497 | C44: 14 | D44: 5503 | E44: 24 | F44: 5513 | G44: 23 | H44: 5529 | K44: 0 | L44: 1122
A45: 12 | B45: 5733 | C45: 14 | D45: 5739 | E45: 24 | F45: 5745 | G45: 23 | H45: 5752 | K45: 0 | L45: 1122
A46: 12 | B46: 5856 | C46: 14 | D46: 5860 | E46: 13 | F46: 5864 | G46: 23 | H46: 5877 | K46: 0 | L46: 1112
A47: 12 | B47: 5974 | C47: 14 | D47: 5980 | E47: 24 | F47: 5998 | G47: 23 | H47: 6002 | K47: 0 | L47: 1122
A48: 12 | B48: 6105 | C48: 14 | D48: 6114 | E48: 24 | F48: 6125 | G48: 23 | H48: 6138 | K48: 0 | L48: 1122
A49: 12 | B49: 6241 | C49: 23 | D49: 6255 | E49: 24 | F49: 6258 | G49: 23 | H49: 6262 | K49: 0 | L49: 1222
A50: 12 | B50: 6526 | C50: 14 | D50: 6529 | E50: 13 | F50: 6534 | G50: 14 | H50: 6538 | K50: 0 | L50: 1111
A51: 12 | B51: 6637 | C51: 14 | D51: 6644 | E51: 24 | F51: 6653 | G51: 23 | H51: 6659 | K51: 0 | L51: 1122
A52: 12 | B52: 6761 | C52: 14 | D52: 6768 | E52: 13 | F52: 6772 | G52: 14 | H52: 6777 | K52: 0 | L52: 1111
A53: 12 | B53: 6876 | C53: 23 | D53: 6884 | E53: 24 | F53: 6889 | G53: 23 | H53: 6894 | K53: 0 | L53: 1222
A54: 12 | B54: 6993 | C54: 14 | D54: 6998 | E54: 24 | F54: 7006 | G54: 23 | H54: 7011 | K54: 0 | L54: 1122
A55: 12 | B55: 7106 | C55: 14 | D55: 7109 | E55: 24 | F55: 7117 | G55: 23 | H55: 7121 | K55: 0 | L55: 1122
A56: 12 | B56: 7237 | C56: 14 | D56: 7249 | E56: 24 | F56: 7257 | G56: 23 | H56: 7260 | K56: 0 | L56: 1122
A57: 12 | B57: 7356 | C57: 14 | D57: 7359 | E57: 13 | F57: 7367 | G57: 23 | H57: 7374 | K57: 0 | L57: 1112
A58: 12 | B58: 7482 | C58: 14 | D58: 7486 | E58: 24 | F58: 7495 | G58: 23 | H58: 7498 | K58: 0 | L58: 1122
A59: 12 | B59: 7597 | C59: 14 | D59: 7600 | E59: 24 | F59: 7613 | G59: 23 | H59: 7616 | K59: 0 | L59: 1122
A60: 12 | B60: 7722 | C60: 23 | D60: 7738 | E60: 24 | F60: 7744 | G60: 23 | H60: 7749 | K60: 0 | L60: 1222
A61: 12 | B61: 7852 | C61: 23 | D61: 7866 | E61: 13 | F61: 7875 | G61: 23 | H61: 7886 | K61: 0 | L61: 1212
A62: 21 | B62: 7993 | C62: 12 | D62: 8000 | E62: 24 | F62: 8013 | G62: 23 | H62: 8022 | K62: 0 | L62: 2122
A63: 12 | B63: 8774 | C63: 23 | D63: 8789 | E63: 24 | F63: 8794 | G63: 23 | H63: 8799 | K63: 0 | L63: 1222
A64: 12 | B64: 8967 | C64: 23 | D64: 8977 | E64: 24 | F64: 8981 | G64: 23 | H64: 8987 | K64: 0 | L64: 1222
A65: 21 | B65: 9480 | C65: 21 | D65: 9485 | E65: 22 | F65: 9489 | G65: 23 | H65: 9496 | K65: 0 | L65: 2222
A66: 12 | B66: 10984 | C66: 23 | D66: 10993 | E66: 24 | F66: 10996 | G66: 23 | H66: 10998 | K66: 0 | L66: 1222
A67: 12 | B67: 11108 | C67: 23 | D67: 11116 | E67: 24 | F67: 11121 | G67: 23 | H67: 11126 | K67: 0 | L67: 1222
A68: 21 | B68: 12525 | C68: 21 | D68: 12532 | E68: 22 | F68: 12546 | G68: 14 | H68: 12554 | K68: 0 | L68: 2221
A69: 12 | B69: 13591 | C69: 23 | D69: 13605 | E69: 24 | F69: 13609 | G69: 23 | H69: 13620 | K69: 0 | L69: 1222
A70: 21 | B70: 13959 | C70: 21 | D70: 13964 | E70: 22 | F70: 13968 | G70: 14 | H70: 13978 | K70: 0 | L70: 2221
A71: 21 | B71: 14547 | C71: 21 | D71: 14551 | E71: 11 | F71: 14565 | G71: 12 | H71: 14572 | K71: 0 | L71: 2211
A72: 12 | B72: 14691 | C72: 14 | D72: 14727 | E72: 24 | F72: 14738 | G72: 23 | H72: 14743 | K72: 0 | L72: 1122
A73: 21 | B73: 16749 | C73: 12 | D73: 19819 | L73: 21

Sheet !LB18A04..Is
A1: Report for:!LB18A04..Is
A2: Date: | B2: <date>
A3: Hen: | B3: <hen> | F3: Correct Sequence | G3: =Start!J2 -> 2212 | P3: Total Sequences in Data | Q3: =4994-COUNTBLANK(L7:L5000) -> 49 | V3: Total Sequences in Block Data | W3: =COUNTA(L7:L14) -> 8 | AA3: Total Sequences in Block Data | AB3: =COUNTA(L15:L22) -> 8 | AF3: Total Sequences in Block Data | AG3: =COUNTA(L23:L31) -> 9 | AK3: Total Sequences in Block Data | AL3: =COUNTA(L32:L39) -> 8 | AP3: Total Sequences in Block Data | AQ3: =COUNTA(L40:L47) -> 8 | AU3: Total Sequences in Block Data | AV3: =COUNTA(L48:L55) -> 8
P4: Total Sequences in Summary | Q4: =SUM(O7:O22) -> 49 | V4: Total Sequences in Block Summary | W4: =SUM(U7:U22) -> 8 | AA4: Total Sequences in Block Summary | AB4: =SUM(Z7:Z22) -> 8 | AF4: Total Sequences in Block Summary | AG4: =SUM(AE7:AE22) -> 9 | AK4: Total Sequences in Block Summary | AL4: =SUM(AJ7:AJ22) -> 8 | AP4: Total Sequences in Block Summary | AQ4: =SUM(AO7:AO22) -> 8 | AU4: Total Sequences in Block Summary | AV4: =SUM(AT7:AT22) -> 8
T5: Block 1 | Y5: Block 2 | AD5: Block 3 | AI5: Block 4 | AN5: Block 5 | AS5: Block 6
A6: Sequence Component 1 | B6: Time 1 | C6: Sequence Component 2 | D6: Time 2 | E6: Sequence Component 3 | F6: Time 3 | G6: Sequence Component 4 | H6: Time 4 | I6: Sequence Component 5 | J6: Time 5 | K6: Correct? 0=No 1=Yes | L6: Sequence | N6: Frequency | P6: Relative Frequency | Q6: Variability | T6: Frequency | V6: Relative Frequency | W6: Variability | Y6: Frequency | AA6: Relative Frequency | AB6: Variability | AD6: Frequency | AF6: Relative Frequency | AG6: Variability | AI6: Frequency | AK6: Relative Frequency | AL6: Variability | AN6: Frequency | AP6: Relative Frequency | AQ6: Variability | AS6: Frequency | AU6: Relative Frequency | AV6: Variability
A7: 12 | B7: 37 | C7: 23 | D7: 44 | E7: 13 | F7: 56 | G7: 14 | H7: 113 | K7: 0 | L7: 1211 | N7: 1111 | O7: =COUNTIF($L$7:$L$500,N7) -> 4 | P7: =O7/$Q$4 -> 0.08163265306 | Q7: =IF(P7=0,0,(P7*((LOG(P7))/LOG(2)))) -> -0.2950783546 | T7: =N7 -> 1111 | U7: =COUNTIF(L7:L14,T7) -> 0 | V7: =U7/(W4-U20) -> 0 | W7: =IF(V7=0,0,(V7*((LOG(V7))/LOG(2)))) -> 0 | Y7: =N7 -> 1111 | Z7: =COUNTIF(L15:L22,Y7) -> 0 | AA7: =Z7/(AB4-Z20) -> 0 | AB7: =IF(AA7=0,0,(AA7*((LOG(AA7))/LOG(2)))) -> 0 | AD7: =N7 -> 1111 | AE7: =COUNTIF(L23:L31,AD7) -> 1 | AF7: =AE7/(AG4-AE20) -> 0.1111111111 | AG7: =IF(AF7=0,0,(AF7*((LOG(AF7))/LOG(2)))) -> -0.352213889 | AI7: =N7 -> 1111 | AJ7: =COUNTIF(L32:L39,AI7) -> 2 | AK7: =AJ7/(AL4-AJ20) -> 0.25 | AL7: =IF(AK7=0,0,(AK7*((LOG(AK7))/LOG(2)))) -> -0.5 | AN7: =N7 -> 1111 | AO7: =COUNTIF(L40:L47,AN7) -> 0 | AP7: =AO7/(AQ4-AO20) -> 0 | AQ7: =IF(AP7=0,0,(AP7*((LOG(AP7))/LOG(2)))) -> 0 | AS7: =N7 -> 1111 | AT7: =COUNTIF(L48:L55,AS7) -> 1 | AU7: =AT7/(AV4-AT20) -> 0.125 | AV7: =IF(AU7=0,0,(AU7*((LOG(AU7))/LOG(2)))) -> -0.375
A8: 12 | B8: 280 | C8: 23 | D8: 291 | E8: 24 | F8: 295 | G8: 23 | H8: 300 | K8: 0 | L8: 1222 | N8: 1112 | O8: =COUNTIF($L$7:$L$500,N8) -> 6 | P8: =O8/$Q$4 -> 0.1224489796 | Q8: =IF(P8=0,0,(P8*((LOG(P8))/LOG(2)))) -> -0.3709894706 | T8: =N8 -> 1112 | U8: =COUNTIF(L7:L14,T8) -> 0 | V8: =U8/(W4-U20) -> 0 | W8: =IF(V8=0,0,(V8*((LOG(V8))/LOG(2)))) -> 0 | Y8: =N8 -> 1112 | Z8: =COUNTIF(L15:L22,Y8) -> 0 | AA8: =Z8/(AB4-Z20) -> 0 | AB8: =IF(AA8=0,0,(AA8*((LOG(AA8))/LOG(2)))) -> 0 | AD8: =N8 -> 1112 | AE8: =COUNTIF(L23:L31,AD8) -> 3 | AF8: =AE8/(AG4-AE20) -> 0.3333333333 | AG8: =IF(AF8=0,0,(AF8*((LOG(AF8))/LOG(2)))) -> -0.5283208336 | AI8: =N8 -> 1112 | AJ8: =COUNTIF(L32:L39,AI8) -> 2 | AK8: =AJ8/(AL4-AJ20) -> 0.25 | AL8: =IF(AK8=0,0,(AK8*((LOG(AK8))/LOG(2)))) -> -0.5 | AN8: =N8 -> 1112 | AO8: =COUNTIF(L40:L47,AN8) -> 1 | AP8: =AO8/(AQ4-AO20) -> 0.125 | AQ8: =IF(AP8=0,0,(AP8*((LOG(AP8))/LOG(2)))) -> -0.375 | AS8: =N8 -> 1112 | AT8: =COUNTIF(L48:L55,AS8) -> 0 | AU8: =AT8/(AV4-AT20) -> 0 | AV8: =IF(AU8=0,0,(AU8*((LOG(AU8))/LOG(2)))) -> 0
A9: 12 | B9: 396 | C9: 14 | D9: 402 | E9: 24 | F9: 408 | G9: 23 | H9: 412 | K9: 0 | L9: 1122 | N9: 1121 | O9: =COUNTIF($L$7:$L$500,N9) -> 0 | P9: =O9/$Q$4 -> 0 | Q9: =IF(P9=0,0,(P9*((LOG(P9))/LOG(2)))) -> 0 | T9: =N9 -> 1121 | U9: =COUNTIF(L7:L14,T9) -> 0 | V9: =U9/(W4-U20) -> 0 | W9: =IF(V9=0,0,(V9*((LOG(V9))/LOG(2)))) -> 0 | Y9: =N9 -> 1121 | Z9: =COUNTIF(L15:L22,Y9) -> 0 | AA9: =Z9/(AB4-Z20) -> 0 | AB9: =IF(AA9=0,0,(AA9*((LOG(AA9))/LOG(2)))) -> 0 | AD9: =N9 -> 1121 | AE9: =COUNTIF(L23:L31,AD9) -> 0 | AF9: =AE9/(AG4-AE20) -> 0 | AG9: =IF(AF9=0,0,(AF9*((LOG(AF9))/LOG(2)))) -> 0 | AI9: =N9 -> 1121 | AJ9: =COUNTIF(L32:L39,AI9) -> 0 | AK9: =AJ9/(AL4-AJ20) -> 0 | AL9: =IF(AK9=0,0,(AK9*((LOG(AK9))/LOG(2)))) -> 0 | AN9: =N9 -> 1121 | AO9: =COUNTIF(L40:L47,AN9) -> 0 | AP9: =AO9/(AQ4-AO20) -> 0 | AQ9: =IF(AP9=0,0,(AP9*((LOG(AP9))/LOG(2)))) -> 0 | AS9: =N9 -> 1121 | AT9: =COUNTIF(L48:L55,AS9) -> 0 | AU9: =AT9/(AV4-AT20) -> 0 | AV9: =IF(AU9=0,0,(AU9*((LOG(AU9))/LOG(2)))) -> 0
A10: 12 | B10: 509 | C10: 23 | D10: 522 | E10: 24 | F10: 525 | G10: 23 | H10: 534 | K10: 0 | L10: 1222 | N10: 1122 | O10: =COUNTIF($L$7:$L$500,N10) -> 13 | P10: =O10/$Q$4 -> 0.2653061224 | Q10: =IF(P10=0,0,(P10*((LOG(P10))/LOG(2)))) -> -0.5078675844 | T10: =N10 -> 1122 | U10: =COUNTIF(L7:L14,T10) -> 1 | V10: =U10/(W4-U20) -> 0.125 | W10: =IF(V10=0,0,(V10*((LOG(V10))/LOG(2)))) -> -0.375 | Y10: =N10 -> 1122 | Z10: =COUNTIF(L15:L22,Y10) -> 1 | AA10: =Z10/(AB4-Z20) -> 0.1428571429 | AB10: =IF(AA10=0,0,(AA10*((LOG(AA10))/LOG(2)))) -> -0.4010507032 | AD10: =N10 -> 1122 | AE10: =COUNTIF(L23:L31,AD10) -> 1 | AF10: =AE10/(AG4-AE20) -> 0.1111111111 | AG10: =IF(AF10=0,0,(AF10*((LOG(AF10))/LOG(2)))) -> -0.352213889 | AI10: =N10 -> 1122 | AJ10: =COUNTIF(L32:L39,AI10) -> 4 | AK10: =AJ10/(AL4-AJ20) -> 0.5 | AL10: =IF(AK10=0,0,(AK10*((LOG(AK10))/LOG(2)))) -> -0.5 | AN10: =N10 -> 1122 | AO10: =COUNTIF(L40:L47,AN10) -> 3 | AP10: =AO10/(AQ4-AO20) -> 0.375 | AQ10: =IF(AP10=0,0,(AP10*((LOG(AP10))/LOG(2)))) -> -0.5306390622 | AS10: =N10 -> 1122 | AT10: =COUNTIF(L48:L55,AS10) -> 3 | AU10: =AT10/(AV4-AT20) -> 0.375 | AV10: =IF(AU10=0,0,(AU10*((LOG(AU10))/LOG(2)))) -> -0.5306390622
A11: 12 | B11: 661 | C11: 23 | D11: 668 | E11: 24 | F11: 672 | G11: 14 | H11: 704 | K11: 0 | L11: 1221 | N11: 1211 | O11: =COUNTIF($L$7:$L$500,N11) -> 1 | P11: =O11/$Q$4 -> 0.02040816327 | Q11: =IF(P11=0,0,(P11*((LOG(P11))/LOG(2)))) -> -0.1145859152 | T11: =N11 -> 1211 | U11: =COUNTIF(L7:L14,T11) -> 1 | V11: =U11/(W4-U20) -> 0.125 | W11: =IF(V11=0,0,(V11*((LOG(V11))/LOG(2)))) -> -0.375 | Y11: =N11 -> 1211 | Z11: =COUNTIF(L15:L22,Y11) -> 0 | AA11: =Z11/(AB4-Z20) -> 0 | AB11: =IF(AA11=0,0,(AA11*((LOG(AA11))/LOG(2)))) -> 0 | AD11: =N11 -> 1211 | AE11: =COUNTIF(L23:L31,AD11) -> 0 | AF11: =AE11/(AG4-AE20) -> 0 | AG11: =IF(AF11=0,0,(AF11*((LOG(AF11))/LOG(2)))) -> 0 | AI11: =N11 -> 1211 | AJ11: =COUNTIF(L32:L39,AI11) -> 0 | AK11: =AJ11/(AL4-AJ20) -> 0 | AL11: =IF(AK11=0,0,(AK11*((LOG(AK11))/LOG(2)))) -> 0 | AN11: =N11 -> 1211 | AO11: =COUNTIF(L40:L47,AN11) -> 0 | AP11: =AO11/(AQ4-AO20) -> 0 | AQ11: =IF(AP11=0,0,(AP11*((LOG(AP11))/LOG(2)))) -> 0 | AS11: =N11 -> 1211 | AT11: =COUNTIF(L48:L55,AS11) -> 0 | AU11: =AT11/(AV4-AT20) -> 0 | AV11: =IF(AU11=0,0,(AU11*((LOG(AU11))/LOG(2)))) -> 0
A12: 21 | B12: 851 | C12: 21 | D12: 859 | E12: 22 | F12: 863 | G12: 14 | H12: 872 | K12: 0 | L12: 2221 | N12: 1212 | O12: =COUNTIF($L$7:$L$500,N12) -> 0 | P12: =O12/$Q$4 -> 0 | Q12: =IF(P12=0,0,(P12*((LOG(P12))/LOG(2)))) -> 0 | T12: =N12 -> 1212 | U12: =COUNTIF(L7:L14,T12) -> 0 | V12: =U12/(W4-U20) -> 0 | W12: =IF(V12=0,0,(V12*((LOG(V12))/LOG(2)))) -> 0 | Y12: =N12 -> 1212 | Z12: =COUNTIF(L15:L22,Y12) -> 0 | AA12: =Z12/(AB4-Z20) -> 0 | AB12: =IF(AA12=0,0,(AA12*((LOG(AA12))/LOG(2)))) -> 0 | AD12: =N12 -> 1212 | AE12: =COUNTIF(L23:L31,AD12) -> 0 | AF12: =AE12/(AG4-AE20) -> 0 | AG12: =IF(AF12=0,0,(AF12*((LOG(AF12))/LOG(2)))) -> 0 | AI12: =N12 -> 1212 | AJ12: =COUNTIF(L32:L39,AI12) -> 0 | AK12: =AJ12/(AL4-AJ20) -> 0 | AL12: =IF(AK12=0,0,(AK12*((LOG(AK12))/LOG(2)))) -> 0 | AN12: =N12 -> 1212 | AO12: =COUNTIF(L40:L47,AN12) -> 0 | AP12: =AO12/(AQ4-AO20) -> 0 | AQ12: =IF(AP12=0,0,(AP12*((LOG(AP12))/LOG(2)))) -> 0 | AS12: =N12 -> 1212 | AT12: =COUNTIF(L48:L55,AS12) -> 0 | AU12: =AT12/(AV4-AT20) -> 0 | AV12: =IF(AU12=0,0,(AU12*((LOG(AU12))/LOG(2)))) -> 0
A13: 21 | B13: 980 | C13: 21 | D13: 983 | E13: 22 | F13: 988 | G13: 23 | H13: 1041 | K13: 0 | L13: 2222 | N13: 1221 | O13: =COUNTIF($L$7:$L$500,N13) -> 2 | P13: =O13/$Q$4 -> 0.04081632653 | Q13: =IF(P13=0,0,(P13*((LOG(P13))/LOG(2)))) -> -0.1883555038 | T13: =N13 -> 1221 | U13: =COUNTIF(L7:L14,T13) -> 1 | V13: =U13/(W4-U20) -> 0.125 | W13: =IF(V13=0,0,(V13*((LOG(V13))/LOG(2)))) -> -0.375 | Y13: =N13 -> 1221 | Z13: =COUNTIF(L15:L22,Y13) -> 1 | AA13: =Z13/(AB4-Z20) -> 0.1428571429 | AB13: =IF(AA13=0,0,(AA13*((LOG(AA13))/LOG(2)))) -> -0.4010507032 | AD13: =N13 -> 1221 | AE13: =COUNTIF(L23:L31,AD13) -> 0 | AF13: =AE13/(AG4-AE20) -> 0 | AG13: =IF(AF13=0,0,(AF13*((LOG(AF13))/LOG(2)))) -> 0 | AI13: =N13 -> 1221 | AJ13: =COUNTIF(L32:L39,AI13) -> 0 | AK13: =AJ13/(AL4-AJ20) -> 0 | AL13: =IF(AK13=0,0,(AK13*((LOG(AK13))/LOG(2)))) -> 0 | AN13: =N13 -> 1221 | AO13: =COUNTIF(L40:L47,AN13) -> 0 | AP13: =AO13/(AQ4-AO20) -> 0 | AQ13: =IF(AP13=0,0,(AP13*((LOG(AP13))/LOG(2)))) -> 0 | AS13: =N13 -> 1221 | AT13: =COUNTIF(L48:L55,AS13) -> 0 | AU13: =AT13/(AV4-AT20) -> 0 | AV13: =IF(AU13=0,0,(AU13*((LOG(AU13))/LOG(2)))) -> 0
A14: 12 | B14: 1376 | C14: 23 | D14: 1383 | E14: 24 | F14: 1386 | G14: 23 | H14: 1391 | K14: 0 | L14: 1222 | N14: 1222 | O14: =COUNTIF($L$7:$L$500,N14) -> 8 | P14: =O14/$Q$4 -> 0.1632653061 | Q14: =IF(P14=0,0,(P14*((LOG(P14))/LOG(2)))) -> -0.4268914031 | T14: =N14 -> 1222 | U14: =COUNTIF(L7:L14,T14) -> 3 | V14: =U14/(W4-U20) -> 0.375 | W14: =IF(V14=0,0,(V14*((LOG(V14))/LOG(2)))) -> -0.5306390622 | Y14: =N14 -> 1222 | Z14: =COUNTIF(L15:L22,Y14) -> 0 | AA14: =Z14/(AB4-Z20) -> 0 | AB14: =IF(AA14=0,0,(AA14*((LOG(AA14))/LOG(2)))) -> 0 | AD14: =N14 -> 1222 | AE14: =COUNTIF(L23:L31,AD14) -> 3 | AF14: =AE14/(AG4-AE20) -> 0.3333333333 | AG14: =IF(AF14=0,0,(AF14*((LOG(AF14))/LOG(2)))) -> -0.5283208336 | AI14: =N14 -> 1222 | AJ14: =COUNTIF(L32:L39,AI14) -> 0 | AK14: =AJ14/(AL4-AJ20) -> 0 | AL14: =IF(AK14=0,0,(AK14*((LOG(AK14))/LOG(2)))) -> 0 | AN14: =N14 -> 1222 | AO14: =COUNTIF(L40:L47,AN14) -> 2 | AP14: =AO14/(AQ4-AO20) -> 0.25 | AQ14: =IF(AP14=0,0,(AP14*((LOG(AP14))/LOG(2)))) -> -0.5 | AS14: =N14 -> 1222 | AT14: =COUNTIF(L48:L55,AS14) -> 0 | AU14: =AT14/(AV4-AT20) -> 0 | AV14: =IF(AU14=0,0,(AU14*((LOG(AU14))/LOG(2)))) -> 0
A15: 21 | B15: 1580 | C15: 21 | D15: 1584 | E15: 22 | F15: 1593 | G15: 14 | H15: 1610 | K15: 0 | L15: 2221 | N15: 2111 | O15: =COUNTIF($L$7:$L$500,N15) -> 0 | P15: =O15/$Q$4 -> 0 | Q15: =IF(P15=0,0,(P15*((LOG(P15))/LOG(2)))) -> 0 | T15: =N15 -> 2111 | U15: =COUNTIF(L7:L14,T15) -> 0 | V15: =U15/(W4-U20) -> 0 | W15: =IF(V15=0,0,(V15*((LOG(V15))/LOG(2)))) -> 0 | Y15: =N15 -> 2111 | Z15: =COUNTIF(L15:L22,Y15) -> 0 | AA15: =Z15/(AB4-Z20) -> 0 | AB15: =IF(AA15=0,0,(AA15*((LOG(AA15))/LOG(2)))) -> 0 | AD15: =N15 -> 2111 | AE15: =COUNTIF(L23:L31,AD15) -> 0 | AF15: =AE15/(AG4-AE20) -> 0 | AG15: =IF(AF15=0,0,(AF15*((LOG(AF15))/LOG(2)))) -> 0 | AI15: =N15 -> 2111 | AJ15: =COUNTIF(L32:L39,AI15) -> 0 | AK15: =AJ15/(AL4-AJ20) -> 0 | AL15: =IF(AK15=0,0,(AK15*((LOG(AK15))/LOG(2)))) -> 0 | AN15: =N15 -> 2111 | AO15: =COUNTIF(L40:L47,AN15) -> 0 | AP15: =AO15/(AQ4-AO20) -> 0 | AQ15: =IF(AP15=0,0,(AP15*((LOG(AP15))/LOG(2)))) -> 0 | AS15: =N15 -> 2111 | AT15: =COUNTIF(L48:L55,AS15) -> 0 | AU15: =AT15/(AV4-AT20) -> 0 | AV15: =IF(AU15=0,0,(AU15*((LOG(AU15))/LOG(2)))) -> 0
A16: 12 | B16: 2240 | C16: 14 | D16: 2248 | E16: 24 | F16: 2257 | G16: 23 | H16: 2262 | K16: 0 | L16: 1122 | N16: 2112 | O16: =COUNTIF($L$7:$L$500,N16) -> 2 | P16: =O16/$Q$4 -> 0.04081632653 | Q16: =IF(P16=0,0,(P16*((LOG(P16))/LOG(2)))) -> -0.1883555038 | T16: =N16 -> 2112 | U16: =COUNTIF(L7:L14,T16) -> 0 | V16: =U16/(W4-U20) -> 0 | W16: =IF(V16=0,0,(V16*((LOG(V16))/LOG(2)))) -> 0 | Y16: =N16 -> 2112 | Z16: =COUNTIF(L15:L22,Y16) -> 1 | AA16: =Z16/(AB4-Z20) -> 0.1428571429 | AB16: =IF(AA16=0,0,(AA16*((LOG(AA16))/LOG(2)))) -> -0.4010507032 | AD16: =N16 -> 2112 | AE16: =COUNTIF(L23:L31,AD16) -> 0 | AF16: =AE16/(AG4-AE20) -> 0 | AG16: =IF(AF16=0,0,(AF16*((LOG(AF16))/LOG(2)))) -> 0 | AI16: =N16 -> 2112 | AJ16: =COUNTIF(L32:L39,AI16) -> 0 | AK16: =AJ16/(AL4-AJ20) -> 0 | AL16: =IF(AK16=0,0,(AK16*((LOG(AK16))/LOG(2)))) -> 0 | AN16: =N16 -> 2112 | AO16: =COUNTIF(L40:L47,AN16) -> 0 | AP16: =AO16/(AQ4-AO20) -> 0 | AQ16: =IF(AP16=0,0,(AP16*((LOG(AP16))/LOG(2)))) -> 0 | AS16: =N16 -> 2112 | AT16: =COUNTIF(L48:L55,AS16) -> 1 | AU16: =AT16/(AV4-AT20) -> 0.125 | AV16: =IF(AU16=0,0,(AU16*((LOG(AU16))/LOG(2)))) -> -0.375
A17: 21 | B17: 2711 | C17: 12 | D17: 2725 | E17: 24 | F17: 2740 | G17: 23 | H17: 2749 | K17: 0 | L17: 2122 | N17: 2121 | O17: =COUNTIF($L$7:$L$500,N17) -> 0 | P17: =O17/$Q$4 -> 0 | Q17: =IF(P17=0,0,(P17*((LOG(P17))/LOG(2)))) -> 0 | T17: =N17 -> 2121 | U17: =COUNTIF(L7:L14,T17) -> 0 | V17: =U17/(W4-U20) -> 0 | W17: =IF(V17=0,0,(V17*((LOG(V17))/LOG(2)))) -> 0 | Y17: =N17 -> 2121 | Z17: =COUNTIF(L15:L22,Y17) -> 0 | AA17: =Z17/(AB4-Z20) -> 0 | AB17: =IF(AA17=0,0,(AA17*((LOG(AA17))/LOG(2)))) -> 0 | AD17: =N17 -> 2121 | AE17: =COUNTIF(L23:L31,AD17) -> 0 | AF17: =AE17/(AG4-AE20) -> 0 | AG17: =IF(AF17=0,0,(AF17*((LOG(AF17))/LOG(2)))) -> 0 | AI17: =N17 -> 2121 | AJ17: =COUNTIF(L32:L39,AI17) -> 0 | AK17: =AJ17/(AL4-AJ20) -> 0 | AL17: =IF(AK17=0,0,(AK17*((LOG(AK17))/LOG(2)))) -> 0 | AN17: =N17 -> 2121 | AO17: =COUNTIF(L40:L47,AN17) -> 0 | AP17: =AO17/(AQ4-AO20) -> 0 | AQ17: =IF(AP17=0,0,(AP17*((LOG(AP17))/LOG(2)))) -> 0 | AS17: =N17 -> 2121 | AT17: =COUNTIF(L48:L55,AS17) -> 0 | AU17: =AT17/(AV4-AT20) -> 0 | AV17: =IF(AU17=0,0,(AU17*((LOG(AU17))/LOG(2)))) -> 0
A18: 12 | B18: 3112 | C18: 23 | D18: 3120 | E18: 24 | F18: 3125 | G18: 14 | H18: 3153 | K18: 0 | L18: 1221 | N18: 2122 | O18: =COUNTIF($L$7:$L$500,N18) -> 1 | P18: =O18/$Q$4 -> 0.02040816327 | Q18: =IF(P18=0,0,(P18*((LOG(P18))/LOG(2)))) -> -0.1145859152 | T18: =N18 -> 2122 | U18: =COUNTIF(L7:L14,T18) -> 0 | V18: =U18/(W4-U20) -> 0 | W18: =IF(V18=0,0,(V18*((LOG(V18))/LOG(2)))) -> 0 | Y18: =N18 -> 2122 | Z18: =COUNTIF(L15:L22,Y18) -> 1 | AA18: =Z18/(AB4-Z20) -> 0.1428571429 | AB18: =IF(AA18=0,0,(AA18*((LOG(AA18))/LOG(2)))) -> -0.4010507032 | AD18: =N18 -> 2122 | AE18: =COUNTIF(L23:L31,AD18) -> 0 | AF18: =AE18/(AG4-AE20) -> 0 | AG18: =IF(AF18=0,0,(AF18*((LOG(AF18))/LOG(2)))) -> 0 | AI18: =N18 -> 2122 | AJ18: =COUNTIF(L32:L39,AI18) -> 0 | AK18: =AJ18/(AL4-AJ20) -> 0 | AL18: =IF(AK18=0,0,(AK18*((LOG(AK18))/LOG(2)))) -> 0 | AN18: =N18 -> 2122 | AO18: =COUNTIF(L40:L47,AN18) -> 0 | AP18: =AO18/(AQ4-AO20) -> 0 | AQ18: =IF(AP18=0,0,(AP18*((LOG(AP18))/LOG(2)))) -> 0 | AS18: =N18 -> 2122 | AT18: =COUNTIF(L48:L55,AS18) -> 0 | AU18: =AT18/(AV4-AT20) -> 0 | AV18: =IF(AU18=0,0,(AU18*((LOG(AU18))/LOG(2)))) -> 0
A19: 21 | B19: 7769 | C19: 21 | D19: 7773 | E19: 11 | F19: 7893 | G19: 21 | H19: 7907 | K19: 0 | L19: 2212 | N19: 2211 | O19: =COUNTIF($L$7:$L$500,N19) -> 1 | P19: =O19/$Q$4 -> 0.02040816327 | Q19: =IF(P19=0,0,(P19*((LOG(P19))/LOG(2)))) -> -0.1145859152 | T19: =N19 -> 2211 | U19: =COUNTIF(L7:L14,T19) -> 0 | V19: =U19/(W4-U20) -> 0 | W19: =IF(V19=0,0,(V19*((LOG(V19))/LOG(2)))) -> 0 | Y19: =N19 -> 2211 | Z19: =COUNTIF(L15:L22,Y19) -> 0 | AA19: =Z19/(AB4-Z20) -> 0 | AB19: =IF(AA19=0,0,(AA19*((LOG(AA19))/LOG(2)))) -> 0 | AD19: =N19 -> 2211 | AE19: =COUNTIF(L23:L31,AD19) -> 0 | AF19: =AE19/(AG4-AE20) -> 0 | AG19: =IF(AF19=0,0,(AF19*((LOG(AF19))/LOG(2)))) -> 0 | AI19: =N19 -> 2211 | AJ19: =COUNTIF(L32:L39,AI19) -> 0 | AK19: =AJ19/(AL4-AJ20) -> 0 | AL19: =IF(AK19=0,0,(AK19*((LOG(AK19))/LOG(2)))) -> 0 | AN19: =N19 -> 2211 | AO19: =COUNTIF(L40:L47,AN19) -> 0 | AP19: =AO19/(AQ4-AO20) -> 0 | AQ19: =IF(AP19=0,0,(AP19*((LOG(AP19))/LOG(2)))) -> 0 | AS19: =N19 -> 2211 | AT19: =COUNTIF(L48:L55,AS19) -> 1 | AU19: =AT19/(AV4-AT20) -> 0.125 | AV19: =IF(AU19=0,0,(AU19*((LOG(AU19))/LOG(2)))) -> -0.375
A20: 21 | B20: 8221 | C20: 21 | D20: 8225 | E20: 22 | F20: 8229 | G20: 23 | H20: 8235 | K20: 0 | L20: 2222 | N20: 2212 | O20: =COUNTIF($L$7:$L$500,N20) -> 1 | P20: =O20/$Q$4 -> 0.02040816327 | Q20: =IF(P20=0,0,(P20*((LOG(P20))/LOG(2)))) -> -0.1145859152 | T20: =N20 -> 2212 | U20: =COUNTIF(L7:L14,T20) -> 0 | Y20: =N20 -> 2212 | Z20: =COUNTIF(L15:L22,Y20) -> 1 | AD20: =N20 -> 2212 | AE20: =COUNTIF(L23:L31,AD20) -> 0 | AI20: =N20 -> 2212 | AJ20: =COUNTIF(L32:L39,AI20) -> 0 | AN20: =N20 -> 2212 | AO20: =COUNTIF(L40:L47,AN20) -> 0 | AS20: =N20 -> 2212 | AT20: =COUNTIF(L48:L55,AS20) -> 0
A21: 21 | B21: 8351 | C21: 21 | D21: 8354 | E21: 22 | F21: 8358 | G21: 23 | H21: 8366 | K21: 0 | L21: 2222 | N21: 2221 | O21: =COUNTIF($L$7:$L$500,N21) -> 3 | P21: =O21/$Q$4 -> 0.0612244898 | Q21: =IF(P21=0,0,(P21*((LOG(P21))/LOG(2)))) -> -0.2467192251 | T21: =N21 -> 2221 | U21: =COUNTIF(L7:L14,T21) -> 1 | V21: =U21/(W4-U20) -> 0.125 | W21: =IF(V21=0,0,(V21*((LOG(V21))/LOG(2)))) -> -0.375 | Y21: =N21 -> 2221 | Z21: =COUNTIF(L15:L22,Y21) -> 1 | AA21: =Z21/(AB4-Z20) -> 0.1428571429 | AB21: =IF(AA21=0,0,(AA21*((LOG(AA21))/LOG(2)))) -> -0.4010507032 | AD21: =N21 -> 2221 | AE21: =COUNTIF(L23:L31,AD21) -> 0 | AF21: =AE21/(AG4-AE20) -> 0 | AG21: =IF(AF21=0,0,(AF21*((LOG(AF21))/LOG(2)))) -> 0 | AI21: =N21 -> 2221 | AJ21: =COUNTIF(L32:L39,AI21) -> 0 | AK21: =AJ21/(AL4-AJ20) -> 0 | AL21: =IF(AK21=0,0,(AK21*((LOG(AK21))/LOG(2)))) -> 0 | AN21: =N21 -> 2221 | AO21: =COUNTIF(L40:L47,AN21) -> 0 | AP21: =AO21/(AQ4-AO20) -> 0 | AQ21: =IF(AP21=0,0,(AP21*((LOG(AP21))/LOG(2)))) -> 0 | AS21: =N21 -> 2221 | AT21: =COUNTIF(L48:L55,AS21) -> 1 | AU21: =AT21/(AV4-AT20) -> 0.125 | AV21: =IF(AU21=0,0,(AU21*((LOG(AU21))/LOG(2)))) -> -0.375
A22: 21 | B22: 8463 | C22: 12 | D22: 8472 | E22: 13 | F22: 8476 | G22: 23 | H22: 8483 | K22: 0 | L22: 2112 | N22: 2222 | O22: =COUNTIF($L$7:$L$500,N22) -> 7 | P22: =O22/$Q$4 -> 0.1428571429 | Q22: =IF(P22=0,0,(P22*((LOG(P22))/LOG(2)))) -> -0.4010507032 | T22: =N22 -> 2222 | U22: =COUNTIF(L7:L14,T22) -> 1 | V22: =U22/(W4-U20) -> 0.125 | W22: =IF(V22=0,0,(V22*((LOG(V22))/LOG(2)))) -> -0.375 | Y22: =N22 -> 2222 | Z22: =COUNTIF(L15:L22,Y22) -> 2 | AA22: =Z22/(AB4-Z20) -> 0.2857142857 | AB22: =IF(AA22=0,0,(AA22*((LOG(AA22))/LOG(2)))) -> -0.5163871206 | AD22: =N22 -> 2222 | AE22: =COUNTIF(L23:L31,AD22) -> 1 | AF22: =AE22/(AG4-AE20) -> 0.1111111111 | AG22: =IF(AF22=0,0,(AF22*((LOG(AF22))/LOG(2)))) -> -0.352213889 | AI22: =N22 -> 2222 | AJ22: =COUNTIF(L32:L39,AI22) -> 0 | AK22: =AJ22/(AL4-AJ20) -> 0 | AL22: =IF(AK22=0,0,(AK22*((LOG(AK22))/LOG(2)))) -> 0 | AN22: =N22 -> 2222 | AO22: =COUNTIF(L40:L47,AN22) -> 2 | AP22: =AO22/(AQ4-AO20) -> 0.25 | AQ22: =IF(AP22=0,0,(AP22*((LOG(AP22))/LOG(2)))) -> -0.5 | AS22: =N22 -> 2222 | AT22: =COUNTIF(L48:L55,AS22) -> 1 | AU22: =AT22/(AV4-AT20) -> 0.125 | AV22: =IF(AU22=0,0,(AU22*((LOG(AU22))/LOG(2)))) -> -0.375
A23: 12 | B23: 8630 | C23: 23 | D23: 8641 | E23: 24 | F23: 8645 | G23: 23 | H23: 8651 | K23: 0 | L23: 1222 | P23: =SUM(P7:P22) -> 1 | Q23: =-SUM(Q7:Q22) -> 3.083651409 | V23: =SUM(V7:V22) -> 1 | W23: =-SUM(W7:W22) -> 2.405639062 | AA23: =SUM(AA7:AA22) -> 1 | AB23: =-SUM(AB7:AB22) -> 2.521640636 | AF23: =SUM(AF7:AF22) -> 1 | AG23: =-SUM(AG7:AG22) -> 2.113283334 | AK23: =SUM(AK7:AK22) -> 1 | AL23: =-SUM(AL7:AL22) -> 1.5 | AP23: =SUM(AP7:AP22) -> 1 | AQ23: =-SUM(AQ7:AQ22) -> 1.905639062 | AU23: =SUM(AU7:AU22) -> 1 | AV23: =-SUM(AV7:AV22) -> 2.405639062
A24: 12 | B24: 8748 | C24: 14 | D24: 8752 | E24: 13 | F24: 8756 | G24: 14 | H24: 8760 | K24: 0 | L24: 1111 | P24: U= | Q24: =Q23/(LOG(Q4)/LOG(2)) -> 0.5492093973 | V24: U1= | W24: =W23/(LOG(W4)/LOG(2)) -> 0.8018796874 | AA24: U2= | AB24: =AB23/(LOG(AB4)/LOG(2)) -> 0.8405468788 | AF24: U3= | AG24: =AG23/(LOG(AG4)/LOG(2)) -> 0.6666666667 | AK24: U4= | AL24: =AL23/(LOG(AL4)/LOG(2)) -> 0.5 | AP24: U5= | AQ24: =AQ23/(LOG(AQ4)/LOG(2)) -> 0.6352130207 | AU24: U6= | AV24: =AV23/(LOG(AV4)/LOG(2)) -> 0.8018796874
A25: 12 | B25: 8869 | C25: 23 | D25: 8882 | E25: 24 | F25: 8887 | G25: 23 | H25: 8893 | K25: 0 | L25: 1222
A26: 21 | B26: 9004 | C26: 21 | D26: 9008 | E26: 22 | F26: 9016 | G26: 23 | H26: 9021 | K26: 0 | L26: 2222
A27: 12 | B27: 9120 | C27: 23 | D27: 9131 | E27: 24 | F27: 9136 | G27: 23 | H27: 9141 | K27: 0 | L27: 1222 | N27: Total Target Seq
A28: 12 | B28: 9318 | C28: 14 | D28: 9322 | E28: 24 | F28: 9330 | G28: 23 | H28: 9339 | K28: 0 | L28: 1122 | N28: =COUNTIF(L7:L55,G3) -> 1 | P28: 8 | Q28: 8 | R28: 9 | S28: 8 | T28: 8 | U28: 8
A29: 12 | B29: 9440 | C29: 14 | D29: 9444 | E29: 13 | F29: 9449 | G29: 23 | H29: 9455 | K29: 0 | L29: 1112 | P29: % of reinforcement given in 6 equal intervals based on number of trials
A30: 12 | B30: 9551 | C30: 14 | D30: 9554 | E30: 13 | F30: 9558 | G30: 23 | H30: 9570 | K30: 0 | L30: 1112 | P30: %_1 | Q30: %_2 | R30: %_3 | S30: %_4 | T30: %_5 | U30: %_6
A31: 12 | B31: 9666 | C31: 14 | D31: 9670 | E31: 13 | F31: 9675 | G31: 23 | H31: 9684 | K31: 0 | L31: 1112 | O31: target sequence | P31: =$G$3 -> 2212 | Q31: =$G$3 -> 2212 | R31: =$G$3 -> 2212 | S31: =$G$3 -> 2212 | T31: =$G$3 -> 2212 | U31: =$G$3 -> 2212
A32: 12 | B32: 9781 | C32: 14 | D32: 9785 | E32: 24 | F32: 9796 | G32: 23 | H32: 9803 | K32: 0 | L32: 1122 | O32: total reinforcement | P32: =U20 -> 0 | Q32: =Z20 -> 1 | R32: =AE20 -> 0 | S32: =AJ20 -> 0 | T32: =AO20 -> 0 | U32: =AT20 -> 0
A33: 12 | B33: 9909 | C33: 14 | D33: 9913 | E33: 13 | F33: 9917 | G33: 23 | H33: 9931 | K33: 0 | L33: 1112 | O33: % target
A34: 12 | B34: 10029 | C34: 14 | D34: 10033 | E34: 13 | F34: 10037 | G34: 14 | H34: 10046 | K34: 0 | L34: 1111 | O34: CCRF
A35: 12 | B35: 10141 | C35: 14 | D35: 10146 | E35: 13 | F35: 10152 | G35: 23 | H35: 10163 | K35: 0 | L35: 1112 | O35: % CCRf
A36: 12 | B36: 10259 | C36: 14 | D36: 10262 | E36: 24 | F36: 10273 | G36: 23 | H36: 10277 | K36: 0 | L36: 1122 | O36: average response rate | P36: =H14/P28 -> 173.875 | Q36: =(H22-H14)/Q28 -> 886.5 | R36: =(H31-H22)/R28 -> 133.4444444 | S36: =(H39-H31)/S28 -> 118.25 | T36: =(H47-H39)/T28 -> 286.5 | U36: =(H55-H47)/U28 -> 1373.75
A37: 12 | B37: 10375 | C37: 14 | D37: 10379 | E37: 24 | F37: 10391 | G37: 23 | H37: 10398 | K37: 0 | L37: 1122
A38: 12 | B38: 10496 | C38: 14 | D38: 10502 | E38: 24 | F38: 10510 | G38: 23 | H38: 10513 | K38: 0 | L38: 1122
A39: 12 | B39: 10609 | C39: 14 | D39: 10613 | E39: 13 | F39: 10617 | G39: 14 | H39: 10630 | K39: 0 | L39: 1111
A40: 12 | B40: 10730 | C40: 14 | D40: 10738 | E40: 24 | F40: 10746 | G40: 23 | H40: 10749 | K40: 0 | L40: 1122
A41: 12 | B41: 10845 | C41: 14 | D41: 10849 | E41: 13 | F41: 10852 | G41: 23 | H41: 10861 | K41: 0 | L41: 1112
A42: 12 | B42: 11061 | C42: 14 | D42: 11069 | E42: 24 | F42: 11080 | G42: 23 | H42: 11084 | K42: 0 | L42: 1122
A43: 12 | B43: 11181 | C43: 14 | D43: 11184 | E43: 24 | F43: 11198 | G43: 23 | H43: 11201 | K43: 0 | L43: 1122
A44: 21 | B44: 11309 | C44: 21 | D44: 11313 | E44: 22 | F44: 11319 | G44: 23 | H44: 11325 | K44: 0 | L44: 2222
A45: 21 | B45: 11528 | C45: 21 | D45: 11532 | E45: 22 | F45: 11538 | G45: 23 | H45: 11559 | K45: 0 | L45: 2222
A46: 12 | B46: 11661 | C46: 23 | D46: 11674 | E46: 24 | F46: 11679 | G46: 23 | H46: 11686 | K46: 0 | L46: 1222
A47: 12 | B47: 12904 | C47: 23 | D47: 12913 | E47: 24 | F47: 12916 | G47: 23 | H47: 12922 | K47: 0 | L47: 1222
A48: 21 | B48: 13071 | C48: 12 | D48: 13126 | E48: 13 | F48: 13135 | G48: 23 | H48: 13144 | K48: 0 | L48: 2112
A49: 21 | B49: 13436 | C49: 21 | D49: 13441 | E49: 11 | F49: 13456 | G49: 12 | H49: 13461 | K49: 0 | L49: 2211
A50: 12 | B50: 13629 | C50: 14 | D50: 13634 | E50: 24 | F50: 13651 | G50: 23 | H50: 13658 | K50: 0 | L50: 1122
A51: 12 | B51: 14667 | C51: 14 | D51: 15689 | E51: 24 | F51: 15700 | G51: 23 | H51: 15706 | K51: 0 | L51: 1122
A52: 12 | B52: 17330 | C52: 14 | D52: 21305 | E52: 13 | F52: 21312 | G52: 14 | H52: 21317 | K52: 0 | L52: 1111
A53: 12 | B53: 21693 | C53: 14 | D53: 21697 | E53: 24 | F53: 21709 | G53: 23 | H53: 21716 | K53: 0 | L53: 1122
A54: 21 | B54: 22727 | C54: 21 | D54: 22732 | E54: 22 | F54: 22738 | G54: 23 | H54: 22744 | K54: 0 | L54: 2222
A55: 21 | B55: 23895 | C55: 21 | D55: 23899 | E55: 22 | F55: 23905 | G55: 14 | H55: 23912 | L55: 2221

Sheet !LB19C54..Is
A1: Report for:!LB19C54..Is
A2: Date: | B2: <date>
A3: Hen: | B3: <hen> | F3: Correct Sequence | G3: =Start!J2 -> 2212 | P3: Total Sequences in Data | Q3: =4994-COUNTBLANK(L7:L5000) -> 57 | V3: Total Sequences in Block Data | W3: =COUNTA(L7:L16) -> 10 | AA3: Total Sequences in Block Data | AB3: =COUNTA(L17:L25) -> 9 | AF3: Total Sequences in Block Data | AG3: =COUNTA(L26:L35) -> 10 | AK3: Total Sequences in Block Data | AL3: =COUNTA(L36:L44) -> 9 | AP3: Total Sequences in Block Data | AQ3: =COUNTA(L45:L54) -> 10 | AU3: Total Sequences in Block Data | AV3: =COUNTA(L55:L63) -> 9
P4: Total Sequences in Summary | Q4: =SUM(O7:O22) -> 57 | V4: Total Sequences in Block Summary | W4: =SUM(U7:U22) -> 10 | AA4: Total Sequences in Block Summary | AB4: =SUM(Z7:Z22) -> 9 | AF4: Total Sequences in Block Summary | AG4: =SUM(AE7:AE22) -> 10 | AK4: Total Sequences in Block Summary | AL4: =SUM(AJ7:AJ22) -> 9 | AP4: Total Sequences in Block Summary | AQ4: =SUM(AO7:AO22) -> 10 | AU4: Total Sequences in Block Summary | AV4: =SUM(AT7:AT22) -> 9
T5: Block 1 | Y5: Block 2 | AD5: Block 3 | AI5: Block 4 | AN5: Block 5 | AS5: Block 6
A6: Sequence Component 1 | B6: Time 1 | C6: Sequence Component 2 | D6: Time 2 | E6: Sequence Component 3 | F6: Time 3 | G6: Sequence Component 4 | H6: Time 4 | I6: Sequence Component 5 | J6: Time 5 | K6: Correct? 0=No 1=Yes | L6: Sequence | N6: Frequency | P6: Relative Frequency | Q6: Variability | T6: Frequency | V6: Relative Frequency | W6: Variability | Y6: Frequency | AA6: Relative Frequency | AB6: Variability | AD6: Frequency | AF6: Relative Frequency | AG6: Variability | AI6: Frequency | AK6: Relative Frequency | AL6: Variability | AN6: Frequency | AP6: Relative Frequency | AQ6: Variability | AS6: Frequency | AU6: Relative Frequency | AV6: Variability
A7: 21 | B7: 230 | C7: 21 | D7: 240 | E7: 11 | F7: 266 | G7: 12 | H7: 282 | K7: 0 | L7: 2211 | N7: 1111 | O7: =COUNTIF($L$7:$L$500,N7) -> 9 | P7: =O7/$Q$4 -> 0.1578947368 | Q7: =IF(P7=0,0,(P7*((LOG(P7))/LOG(2)))) -> -0.4204681599 | T7: =N7 -> 1111 | U7: =COUNTIF(L7:L16,T7) -> 2 | V7: =U7/(W4-U20) -> 0.2 | W7: =IF(V7=0,0,(V7*((LOG(V7))/LOG(2)))) -> -0.464385619 | Y7: =N7 -> 1111 | Z7: =COUNTIF(L17:L25,Y7) -> 1 | AA7: =Z7/(AB4-Z20) -> 0.1111111111 | AB7: =IF(AA7=0,0,(AA7*((LOG(AA7))/LOG(2)))) -> -0.352213889 | AD7: =N7 -> 1111 | AE7: =COUNTIF(L26:L35,AD7) -> 3 | AF7: =AE7/(AG4-AE20) -> 0.3 | AG7: =IF(AF7=0,0,(AF7*((LOG(AF7))/LOG(2)))) -> -0.5210896782 | AI7: =N7 -> 1111 | AJ7: =COUNTIF(L36:L44,AI7) -> 2 | AK7: =AJ7/(AL4-AJ20) -> 0.2222222222 | AL7: =IF(AK7=0,0,(AK7*((LOG(AK7))/LOG(2)))) -> -0.4822055559 | AN7: =N7 -> 1111 | AO7: =COUNTIF(L45:L54,AN7) -> 0 | AP7: =AO7/(AQ4-AO20) -> 0 | AQ7: =IF(AP7=0,0,(AP7*((LOG(AP7))/LOG(2)))) -> 0 | AS7: =N7 -> 1111 | AT7: =COUNTIF(L55:L63,AS7) -> 1 | AU7: =AT7/(AV4-AT20) -> 0.1111111111 | AV7: =IF(AU7=0,0,(AU7*((LOG(AU7))/LOG(2)))) -> -0.352213889
A8: 21 | B8: 446 | C8: 12 | D8: 464 | E8: 24 | F8: 477 | G8: 23 | H8: 533 | K8: 0 | L8: 2122 | N8: 1112 | O8: =COUNTIF($L$7:$L$500,N8) -> 8 | P8: =O8/$Q$4 -> 0.1403508772 | Q8: =IF(P8=0,0,(P8*((LOG(P8))/LOG(2)))) -> -0.3975985985 | T8: =N8 -> 1112 | U8: =COUNTIF(L7:L16,T8) -> 0 | V8: =U8/(W4-U20) -> 0 | W8: =IF(V8=0,0,(V8*((LOG(V8))/LOG(2)))) -> 0 | Y8: =N8 -> 1112 | Z8: =COUNTIF(L17:L25,Y8) -> 1 | AA8: =Z8/(AB4-Z20) -> 0.1111111111 | AB8: =IF(AA8=0,0,(AA8*((LOG(AA8))/LOG(2)))) -> -0.352213889 | AD8: =N8 -> 1112 | AE8: =COUNTIF(L26:L35,AD8) -> 3 | AF8: =AE8/(AG4-AE20) -> 0.3 | AG8: =IF(AF8=0,0,(AF8*((LOG(AF8))/LOG(2)))) -> -0.5210896782 | AI8: =N8 -> 1112 | AJ8: =COUNTIF(L36:L44,AI8) -> 1 | AK8: =AJ8/(AL4-AJ20) -> 0.1111111111 | AL8: =IF(AK8=0,0,(AK8*((LOG(AK8))/LOG(2)))) -> -0.352213889 | AN8: =N8 -> 1112 | AO8: =COUNTIF(L45:L54,AN8) -> 3 | AP8: =AO8/(AQ4-AO20) -> 0.3333333333 | AQ8: =IF(AP8=0,0,(AP8*((LOG(AP8))/LOG(2)))) -> -0.5283208336 | AS8: =N8 -> 1112 | AT8: =COUNTIF(L55:L63,AS8) -> 0 | AU8: =AT8/(AV4-AT20) -> 0 | AV8: =IF(AU8=0,0,(AU8*((LOG(AU8))/LOG(2)))) -> 0
A9: 12 | B9: 703 | C9: 23 | D9: 710 | E9: 24 | F9: 713 | G9: 23 | H9: 718 | K9: 0 | L9: 1222 | N9: 1121 | O9: =COUNTIF($L$7:$L$500,N9) -> 0 | P9: =O9/$Q$4 -> 0 | Q9: =IF(P9=0,0,(P9*((LOG(P9))/LOG(2)))) -> 0 | T9: =N9 -> 1121 | U9: =COUNTIF(L7:L16,T9) -> 0 | V9: =U9/(W4-U20) -> 0 | W9: =IF(V9=0,0,(V9*((LOG(V9))/LOG(2)))) -> 0 | Y9: =N9 -> 1121 | Z9: =COUNTIF(L17:L25,Y9) -> 0 | AA9: =Z9/(AB4-Z20) -> 0 | AB9: =IF(AA9=0,0,(AA9*((LOG(AA9))/LOG(2)))) -> 0 | AD9: =N9 -> 1121 | AE9: =COUNTIF(L26:L35,AD9) -> 0 | AF9: =AE9/(AG4-AE20) -> 0 | AG9: =IF(AF9=0,0,(AF9*((LOG(AF9))/LOG(2)))) -> 0 | AI9: =N9 -> 1121 | AJ9: =COUNTIF(L36:L44,AI9) -> 0 | AK9: =AJ9/(AL4-AJ20) -> 0 | AL9: =IF(AK9=0,0,(AK9*((LOG(AK9))/LOG(2)))) -> 0 | AN9: =N9 -> 1121 | AO9: =COUNTIF(L45:L54,AN9) -> 0 | AP9: =AO9/(AQ4-AO20) -> 0 | AQ9: =IF(AP9=0,0,(AP9*((LOG(AP9))/LOG(2)))) -> 0 | AS9: =N9 -> 1121 | AT9: =COUNTIF(L55:L63,AS9) -> 0 | AU9: =AT9/(AV4-AT20) -> 0 | AV9: =IF(AU9=0,0,(AU9*((LOG(AU9))/LOG(2)))) -> 0
A10: 12 | B10: 841 | C10: 14 | D10: 890 | E10: 24 | F10: 919 | G10: 23 | H10: 932 | K10: 0 | L10: 1122 | N10: 1122 | O10: =COUNTIF($L$7:$L$500,N10) -> 25 | P10: =O10/$Q$4 -> 0.4385964912 | Q10: =IF(P10=0,0,(P10*((LOG(P10))/LOG(2)))) -> -0.5215060633 | T10: =N10 -> 1122 | U10: =COUNTIF(L7:L16,T10) -> 3 | V10: =U10/(W4-U20) -> 0.3 | W10: =IF(V10=0,0,(V10*((LOG(V10))/LOG(2)))) -> -0.5210896782 | Y10: =N10 -> 1122 | Z10: =COUNTIF(L17:L25,Y10) -> 6 | AA10: =Z10/(AB4-Z20) -> 0.6666666667 | AB10: =IF(AA10=0,0,(AA10*((LOG(AA10))/LOG(2)))) -> -0.3899750005 | AD10: =N10 -> 1122 | AE10: =COUNTIF(L26:L35,AD10) -> 1 | AF10: =AE10/(AG4-AE20) -> 0.1 | AG10: =IF(AF10=0,0,(AF10*((LOG(AF10))/LOG(2)))) -> -0.3321928095 | AI10: =N10 -> 1122 | AJ10: =COUNTIF(L36:L44,AI10) -> 4 | AK10: =AJ10/(AL4-AJ20) -> 0.4444444444 | AL10: =IF(AK10=0,0,(AK10*((LOG(AK10))/LOG(2)))) -> -0.5199666673 | AN10: =N10 -> 1122 | AO10: =COUNTIF(L45:L54,AN10) -> 6 | AP10: =AO10/(AQ4-AO20) -> 0.6666666667 | AQ10: =IF(AP10=0,0,(AP10*((LOG(AP10))/LOG(2)))) -> -0.3899750005 | AS10: =N10 -> 1122 | AT10: =COUNTIF(L55:L63,AS10) -> 5 | AU10: =AT10/(AV4-AT20) -> 0.5555555556 | AV10: =IF(AU10=0,0,(AU10*((LOG(AU10))/LOG(2)))) -> -0.4711093925
A11: 12 | B11: 1128 | C11: 14 | D11: 1134 | E11: 13 | F11: 1171 | G11: 14 | H11: 1178 | K11: 0 | L11: 1111 | N11: 1211 | O11: =COUNTIF($L$7:$L$500,N11) -> 0 | P11: =O11/$Q$4 -> 0 | Q11: =IF(P11=0,0,(P11*((LOG(P11))/LOG(2)))) -> 0 | T11: =N11 -> 1211 | U11: =COUNTIF(L7:L16,T11) -> 0 | V11: =U11/(W4-U20) -> 0 | W11: =IF(V11=0,0,(V11*((LOG(V11))/LOG(2)))) -> 0 | Y11: =N11 -> 1211 | Z11: =COUNTIF(L17:L25,Y11) -> 0 | AA11: =Z11/(AB4-Z20) -> 0 | AB11: =IF(AA11=0,0,(AA11*((LOG(AA11))/LOG(2)))) -> 0 | AD11: =N11 -> 1211 | AE11: =COUNTIF(L26:L35,AD11) -> 0 | AF11: =AE11/(AG4-AE20) -> 0 | AG11: =IF(AF11=0,0,(AF11*((LOG(AF11))/LOG(2)))) -> 0 | AI11: =N11 -> 1211 | AJ11: =COUNTIF(L36:L44,AI11) -> 0 | AK11: =AJ11/(AL4-AJ20) -> 0 | AL11: =IF(AK11=0,0,(AK11*((LOG(AK11))/LOG(2)))) -> 0 | AN11: =N11 -> 1211 | AO11: =COUNTIF(L45:L54,AN11) -> 0 | AP11: =AO11/(AQ4-AO20) -> 0 | AQ11: =IF(AP11=0,0,(AP11*((LOG(AP11))/LOG(2)))) -> 0 | AS11: =N11 -> 1211 | AT11: =COUNTIF(L55:L63,AS11) -> 0 | AU11: =AT11/(AV4-AT20) -> 0 | AV11: =IF(AU11=0,0,(AU11*((LOG(AU11))/LOG(2)))) -> 0
A12: 12 | B12: 1290 | C12: 14 | D12: 1300 | E12: 24 | F12: 1308 | G12: 23 | H12: 1316 | K12: 0 | L12: 1122 | N12: 1212 | O12: =COUNTIF($L$7:$L$500,N12) -> 0 | P12: =O12/$Q$4 -> 0 | Q12: =IF(P12=0,0,(P12*((LOG(P12))/LOG(2)))) -> 0 | T12: =N12 -> 1212 | U12: =COUNTIF(L7:L16,T12) -> 0 | V12: =U12/(W4-U20) -> 0 | W12: =IF(V12=0,0,(V12*((LOG(V12))/LOG(2)))) -> 0 | Y12: =N12 -> 1212 | Z12: =COUNTIF(L17:L25,Y12) -> 0 | AA12: =Z12/(AB4-Z20) -> 0 | AB12: =IF(AA12=0,0,(AA12*((LOG(AA12))/LOG(2)))) -> 0 | AD12: =N12 -> 1212 | AE12: =COUNTIF(L26:L35,AD12) -> 0 | AF12: =AE12/(AG4-AE20) -> 0 | AG12: =IF(AF12=0,0,(AF12*((LOG(AF12))/LOG(2)))) -> 0 | AI12: =N12 -> 1212 | AJ12: =COUNTIF(L36:L44,AI12) -> 0 | AK12: =AJ12/(AL4-AJ20) -> 0 | AL12: =IF(AK12=0,0,(AK12*((LOG(AK12))/LOG(2)))) -> 0 | AN12: =N12 -> 1212 | AO12: =COUNTIF(L45:L54,AN12) -> 0 | AP12: =AO12/(AQ4-AO20) -> 0 | AQ12: =IF(AP12=0,0,(AP12*((LOG(AP12))/LOG(2)))) -> 0 | AS12: =N12 -> 1212 | AT12: =COUNTIF(L55:L63,AS12) -> 0 | AU12: =AT12/(AV4-AT20) -> 0 | AV12: =IF(AU12=0,0,(AU12*((LOG(AU12))/LOG(2)))) -> 0
A13: 12 | B13: 1611 | C13: 14 | D13: 1615 | E13: 13 | F13: 1636 | G13: 14 | H13: 1643 | K13: 0 | L13: 1111 | N13: 1221 | O13: =COUNTIF($L$7:$L$500,N13) -> 3 | P13: =O13/$Q$4 -> 0.05263157895 | Q13: =IF(P13=0,0,(P13*((LOG(P13))/LOG(2)))) -> -0.2235751323 | T13: =N13 -> 1221 | U13: =COUNTIF(L7:L16,T13) -> 1 | V13: =U13/(W4-U20) -> 0.1 | W13: =IF(V13=0,0,(V13*((LOG(V13))/LOG(2)))) -> -0.3321928095 | Y13: =N13 -> 1221 | Z13: =COUNTIF(L17:L25,Y13) -> 0 | AA13: =Z13/(AB4-Z20) -> 0 | AB13: =IF(AA13=0,0,(AA13*((LOG(AA13))/LOG(2)))) -> 0 | AD13: =N13 -> 1221 | AE13: =COUNTIF(L26:L35,AD13) -> 1 | AF13: =AE13/(AG4-AE20) -> 0.1 | AG13: =IF(AF13=0,0,(AF13*((LOG(AF13))/LOG(2)))) -> -0.3321928095 | AI13: =N13 -> 1221 | AJ13: =COUNTIF(L36:L44,AI13) -> 1 | AK13: =AJ13/(AL4-AJ20) -> 0.1111111111 | AL13: =IF(AK13=0,0,(AK13*((LOG(AK13))/LOG(2)))) -> -0.352213889 | AN13: =N13 -> 1221 | AO13: =COUNTIF(L45:L54,AN13) -> 0 | AP13: =AO13/(AQ4-AO20) -> 0 | AQ13: =IF(AP13=0,0,(AP13*((LOG(AP13))/LOG(2)))) -> 0 | AS13: =N13 -> 1221 | AT13: =COUNTIF(L55:L63,AS13) -> 0 | AU13: =AT13/(AV4-AT20) -> 0 | AV13: =IF(AU13=0,0,(AU13*((LOG(AU13))/LOG(2)))) -> 0
A14: 12 | B14: 1869 | C14: 23 | D14: 1876 | E14: 24 | F14: 1885 | G14: 14 | H14: 1898 | K14: 0 | L14: 1221 | N14: 1222 | O14: =COUNTIF($L$7:$L$500,N14) -> 7 | P14: =O14/$Q$4 -> 0.1228070175 | Q14: =IF(P14=0,0,(P14*((LOG(P14))/LOG(2)))) -> -0.3715569411 | T14: =N14 -> 1222 | U14: =COUNTIF(L7:L16,T14) -> 2 | V14: =U14/(W4-U20) -> 0.2 | W14: =IF(V14=0,0,(V14*((LOG(V14))/LOG(2)))) -> -0.464385619 | Y14: =N14 -> 1222 | Z14: =COUNTIF(L17:L25,Y14) -> 1 | AA14: =Z14/(AB4-Z20) -> 0.1111111111 | AB14: =IF(AA14=0,0,(AA14*((LOG(AA14))/LOG(2)))) -> -0.352213889 | AD14: =N14 -> 1222 | AE14: =COUNTIF(L26:L35,AD14) -> 2 | AF14: =AE14/(AG4-AE20) -> 0.2 | AG14: =IF(AF14=0,0,(AF14*((LOG(AF14))/LOG(2)))) -> -0.464385619 | AI14: =N14 -> 1222 | AJ14: =COUNTIF(L36:L44,AI14) -> 0 | AK14: =AJ14/(AL4-AJ20) -> 0 | AL14: =IF(AK14=0,0,(AK14*((LOG(AK14))/LOG(2)))) -> 0 | AN14: =N14 -> 1222 | AO14: =COUNTIF(L45:L54,AN14) -> 0 | AP14: =AO14/(AQ4-AO20) -> 0 | AQ14: =IF(AP14=0,0,(AP14*((LOG(AP14))/LOG(2)))) -> 0 | AS14: =N14 -> 1222 | AT14: =COUNTIF(L55:L63,AS14) -> 2 | AU14: =AT14/(AV4-AT20) -> 0.2222222222 | AV14: =IF(AU14=0,0,(AU14*((LOG(AU14))/LOG(2)))) -> -0.4822055559
A15: 12 | B15: 1996 | C15: 14 | D15: 2002 | E15: 24 | F15: 2010 | G15: 23 | H15: 2024 | K15: 0 | L15: 1122 | N15: 2111 | O15: =COUNTIF($L$7:$L$500,N15) -> 0 | P15: =O15/$Q$4 -> 0 | Q15: =IF(P15=0,0,(P15*((LOG(P15))/LOG(2)))) -> 0 | T15: =N15 -> 2111 | U15: =COUNTIF(L7:L16,T15) -> 0 | V15: =U15/(W4-U20) -> 0 | W15: =IF(V15=0,0,(V15*((LOG(V15))/LOG(2)))) -> 0 | Y15: =N15 -> 2111 | Z15: =COUNTIF(L17:L25,Y15) -> 0 | AA15: =Z15/(AB4-Z20) -> 0 | AB15: =IF(AA15=0,0,(AA15*((LOG(AA15))/LOG(2)))) -> 0 | AD15: =N15 -> 2111 | AE15: =COUNTIF(L26:L35,AD15) -> 0 | AF15: =AE15/(AG4-AE20) -> 0 | AG15: =IF(AF15=0,0,(AF15*((LOG(AF15))/LOG(2)))) -> 0 | AI15: =N15 -> 2111 | AJ15: =COUNTIF(L36:L44,AI15) -> 0 | AK15: =AJ15/(AL4-AJ20) -> 0 | AL15: =IF(AK15=0,0,(AK15*((LOG(AK15))/LOG(2)))) -> 0 | AN15: =N15 -> 2111 | AO15: =COUNTIF(L45:L54,AN15) -> 0 | AP15: =AO15/(AQ4-AO20) -> 0 | AQ15: =IF(AP15=0,0,(AP15*((LOG(AP15))/LOG(2)))) -> 0 | AS15: =N15 -> 2111 | AT15: =COUNTIF(L55:L63,AS15) -> 0 | AU15: =AT15/(AV4-AT20) -> 0 | AV15: =IF(AU15=0,0,(AU15*((LOG(AU15))/LOG(2)))) -> 0
A16: 12 | B16: 2120 | C16: 23 | D16: 2131 | E16: 24 | F16: 2135 | G16: 23 | H16: 2139 | K16: 0 | L16: 1222 | N16: 2112 | O16: =COUNTIF($L$7:$L$500,N16) -> 0 | P16: =O16/$Q$4 -> 0 | Q16: =IF(P16=0,0,(P16*((LOG(P16))/LOG(2)))) -> 0 | T16: =N16 -> 2112 | U16: =COUNTIF(L7:L16,T16) -> 0 | V16: =U16/(W4-U20) -> 0 | W16: =IF(V16=0,0,(V16*((LOG(V16))/LOG(2)))) -> 0 | Y16: =N16 -> 2112 | Z16: =COUNTIF(L17:L25,Y16) -> 0 | AA16: =Z16/(AB4-Z20) -> 0 | AB16: =IF(AA16=0,0,(AA16*((LOG(AA16))/LOG(2)))) -> 0 | AD16: =N16 -> 2112 | AE16: =COUNTIF(L26:L35,AD16) -> 0 | AF16: =AE16/(AG4-AE20) -> 0 | AG16: =IF(AF16=0,0,(AF16*((LOG(AF16))/LOG(2)))) -> 0 | AI16: =N16 -> 2112 | AJ16: =COUNTIF(L36:L44,AI16) -> 0 | AK16: =AJ16/(AL4-AJ20) -> 0 | AL16: =IF(AK16=0,0,(AK16*((LOG(AK16))/LOG(2)))) -> 0 | AN16: =N16 -> 2112 | AO16: =COUNTIF(L45:L54,AN16) -> 0 | AP16: =AO16/(AQ4-AO20) -> 0 | AQ16: =IF(AP16=0,0,(AP16*((LOG(AP16))/LOG(2)))) -> 0 | AS16: =N16 -> 2112 | AT16: =COUNTIF(L55:L63,AS16) -> 0 | AU16: =AT16/(AV4-AT20) -> 0 | AV16: =IF(AU16=0,0,(AU16*((LOG(AU16))/LOG(2)))) -> 0
A17: 12 | B17: 2247 | C17: 23 | D17: 2260 | E17: 24 | F17: 2268 | G17: 23 | H17: 2274 | K17: 0 | L17: 1222 | N17: 2121 | O17: =COUNTIF($L$7:$L$500,N17) -> 0 | P17: =O17/$Q$4 -> 0 | Q17: =IF(P17=0,0,(P17*((LOG(P17))/LOG(2)))) -> 0 | T17: =N17 -> 2121 | U17: =COUNTIF(L7:L16,T17) -> 0 | V17: =U17/(W4-U20) -> 0 | W17: =IF(V17=0,0,(V17*((LOG(V17))/LOG(2)))) -> 0 | Y17: =N17 -> 2121 | Z17: =COUNTIF(L17:L25,Y17) -> 0 | AA17: =Z17/(AB4-Z20) -> 0 | AB17: =IF(AA17=0,0,(AA17*((LOG(AA17))/LOG(2)))) -> 0 | AD17: =N17 -> 2121 | AE17: =COUNTIF(L26:L35,AD17) -> 0 | AF17: =AE17/(AG4-AE20) -> 0 | AG17: =IF(AF17=0,0,(AF17*((LOG(AF17))/LOG(2)))) -> 0 | AI17: =N17 -> 2121 | AJ17: =COUNTIF(L36:L44,AI17) -> 0 | AK17: =AJ17/(AL4-AJ20) -> 0 | AL17: =IF(AK17=0,0,(AK17*((LOG(AK17))/LOG(2)))) -> 0 | AN17: =N17 -> 2121 | AO17: =COUNTIF(L45:L54,AN17) -> 0 | AP17: =AO17/(AQ4-AO20) -> 0 | AQ17: =IF(AP17=0,0,(AP17*((LOG(AP17))/LOG(2)))) -> 0 | AS17: =N17 -> 2121 | AT17: =COUNTIF(L55:L63,AS17) -> 0 | AU17: =AT17/(AV4-AT20) -> 0 | AV17: =IF(AU17=0,0,(AU17*((LOG(AU17))/LOG(2)))) -> 0
A18: 12 | B18: 2375 | C18: 14 | D18: 2379 | E18: 13 | F18: 2383 | G18: 14 | H18: 2387 | K18: 0 | L18: 1111 | N18: 2122 | O18: =COUNTIF($L$7:$L$500,N18) -> 2 | P18: =O18/$Q$4 -> 0.0350877193 | Q18: =IF(P18=0,0,(P18*((LOG(P18))/LOG(2)))) -> -0.1695750882 | T18: =N18 -> 2122 | U18: =COUNTIF(L7:L16,T18) -> 1 | V18: =U18/(W4-U20) -> 0.1 | W18: =IF(V18=0,0,(V18*((LOG(V18))/LOG(2)))) -> -0.3321928095 | Y18: =N18 -> 2122 | Z18: =COUNTIF(L17:L25,Y18) -> 0 | AA18: =Z18/(AB4-Z20) -> 0 | AB18: =IF(AA18=0,0,(AA18*((LOG(AA18))/LOG(2)))) -> 0 | AD18: =N18 -> 2122 | AE18: =COUNTIF(L26:L35,AD18) -> 0 | AF18: =AE18/(AG4-AE20) -> 0 | AG18: =IF(AF18=0,0,(AF18*((LOG(AF18))/LOG(2)))) -> 0 | AI18: =N18 -> 2122 | AJ18: =COUNTIF(L36:L44,AI18) -> 1 | AK18: =AJ18/(AL4-AJ20) -> 0.1111111111 | AL18: =IF(AK18=0,0,(AK18*((LOG(AK18))/LOG(2)))) -> -0.352213889 | AN18: =N18 -> 2122 | AO18: =COUNTIF(L45:L54,AN18) -> 0 | AP18: =AO18/(AQ4-AO20) -> 0 | AQ18: =IF(AP18=0,0,(AP18*((LOG(AP18))/LOG(2)))) -> 0 | AS18: =N18 -> 2122 | AT18: =COUNTIF(L55:L63,AS18) -> 0 | AU18: =AT18/(AV4-AT20) -> 0 | AV18: =IF(AU18=0,0,(AU18*((LOG(AU18))/LOG(2)))) -> 0
A19: 12 | B19: 2485 | C19: 14 | D19: 2492 | E19: 13 | F19: 2497 | G19: 23 | H19: 2507 | K19: 0 | L19: 1112 | N19: 2211 | O19: =COUNTIF($L$7:$L$500,N19) -> 1 | P19: =O19/$Q$4 -> 0.01754385965 | Q19: =IF(P19=0,0,(P19*((LOG(P19))/LOG(2)))) -> -0.1023314038 | T19: =N19 -> 2211 | U19: =COUNTIF(L7:L16,T19) -> 1 | V19: =U19/(W4-U20) -> 0.1 | W19: =IF(V19=0,0,(V19*((LOG(V19))/LOG(2)))) -> -0.3321928095 | Y19: =N19 -> 2211 | Z19: =COUNTIF(L17:L25,Y19) -> 0 | AA19: =Z19/(AB4-Z20) -> 0 | AB19: =IF(AA19=0,0,(AA19*((LOG(AA19))/LOG(2)))) -> 0 | AD19: =N19 -> 2211 | AE19: =COUNTIF(L26:L35,AD19) -> 0 | AF19: =AE19/(AG4-AE20) -> 0 | AG19: =IF(AF19=0,0,(AF19*((LOG(AF19))/LOG(2)))) -> 0 | AI19: =N19 -> 2211 | AJ19: =COUNTIF(L36:L44,AI19) -> 0 | AK19: =AJ19/(AL4-AJ20) -> 0 | AL19: =IF(AK19=0,0,(AK19*((LOG(AK19))/LOG(2)))) -> 0 | AN19: =N19 -> 2211 | AO19: =COUNTIF(L45:L54,AN19) -> 0 | AP19: =AO19/(AQ4-AO20) -> 0 | AQ19: =IF(AP19=0,0,(AP19*((LOG(AP19))/LOG(2)))) -> 0 | AS19: =N19 -> 2211 | AT19: =COUNTIF(L55:L63,AS19) -> 0 | AU19: =AT19/(AV4-AT20) -> 0 | AV19: =IF(AU19=0,0,(AU19*((LOG(AU19))/LOG(2)))) -> 0
A20: 12 | B20: 2604 | C20: 14 | D20: 2612 | E20: 24 | F20: 2620 | G20: 23 | H20: 2626 | K20: 0 | L20: 1122 | N20: 2212 | O20: =COUNTIF($L$7:$L$500,N20) -> 1 | P20: =O20/$Q$4 -> 0.01754385965 | Q20: =IF(P20=0,0,(P20*((LOG(P20))/LOG(2)))) -> -0.1023314038 | T20: =N20 -> 2212 | U20: =COUNTIF(L7:L16,T20) -> 0 | Y20: =N20 -> 2212 | Z20: =COUNTIF(L17:L25,Y20) -> 0 | AD20: =N20 -> 2212 | AE20: =COUNTIF(L26:L35,AD20) -> 0 | AI20: =N20 -> 2212 | AJ20: =COUNTIF(L36:L44,AI20) -> 0 | AN20: =N20 -> 2212 | AO20: =COUNTIF(L45:L54,AN20) -> 1 | AS20: =N20 -> 2212 | AT20: =COUNTIF(L55:L63,AS20) -> 0
A21: 12 | B21: 2779 | C21: 14 | D21: 2783 | E21: 24 | F21: 2790 | G21: 23 | H21: 2793 | K21: 0 | L21: 1122 | N21: 2221 | O21: =COUNTIF($L$7:$L$500,N21) -> 0 | P21: =O21/$Q$4 -> 0 | Q21: =IF(P21=0,0,(P21*((LOG(P21))/LOG(2)))) -> 0 | T21: =N21 -> 2221 | U21: =COUNTIF(L7:L16,T21) -> 0 | V21: =U21/(W4-U20) -> 0 | W21: =IF(V21=0,0,(V21*((LOG(V21))/LOG(2)))) -> 0 | Y21: =N21 -> 2221 | Z21: =COUNTIF(L17:L25,Y21) -> 0 | AA21: =Z21/(AB4-Z20) -> 0 | AB21: =IF(AA21=0,0,(AA21*((LOG(AA21))/LOG(2)))) -> 0 | AD21: =N21 -> 2221 | AE21: =COUNTIF(L26:L35,AD21) -> 0 | AF21: =AE21/(AG4-AE20) -> 0 | AG21: =IF(AF21=0,0,(AF21*((LOG(AF21))/LOG(2)))) -> 0 | AI21: =N21 -> 2221 | AJ21: =COUNTIF(L36:L44,AI21) -> 0 | AK21: =AJ21/(AL4-AJ20) -> 0 | AL21: =IF(AK21=0,0,(AK21*((LOG(AK21))/LOG(2)))) -> 0 | AN21: =N21 -> 2221 | AO21: =COUNTIF(L45:L54,AN21) -> 0 | AP21: =AO21/(AQ4-AO20) -> 0 | AQ21: =IF(AP21=0,0,(AP21*((LOG(AP21))/LOG(2)))) -> 0 | AS21: =N21 -> 2221 | AT21: =COUNTIF(L55:L63,AS21) -> 0 | AU21: =AT21/(AV4-AT20) -> 0 | AV21: =IF(AU21=0,0,(AU21*((LOG(AU21))/LOG(2)))) -> 0
A22: 12 | B22: 2895 | C22: 14 | D22: 2898 | E22: 24 | F22: 2907 | G22: 23 | H22: 2911 | K22: 0 | L22: 1122 | N22: 2222 | O22: =COUNTIF($L$7:$L$500,N22) -> 1 | P22: =O22/$Q$4 -> 0.01754385965 | Q22: =IF(P22=0,0,(P22*((LOG(P22))/LOG(2)))) -> -0.1023314038 | T22: =N22 -> 2222 | U22: =COUNTIF(L7:L16,T22) -> 0 | V22: =U22/(W4-U20) -> 0 | W22: =IF(V22=0,0,(V22*((LOG(V22))/LOG(2)))) -> 0 | Y22: =N22 -> 2222 | Z22: =COUNTIF(L17:L25,Y22) -> 0 | AA22: =Z22/(AB4-Z20) -> 0 | AB22: =IF(AA22=0,0,(AA22*((LOG(AA22))/LOG(2)))) -> 0 | AD22: =N22 -> 2222 | AE22: =COUNTIF(L26:L35,AD22) -> 0 | AF22: =AE22/(AG4-AE20) -> 0 | AG22: =IF(AF22=0,0,(AF22*((LOG(AF22))/LOG(2)))) -> 0 | AI22: =N22 -> 2222 | AJ22: =COUNTIF(L36:L44,AI22) -> 0 | AK22: =AJ22/(AL4-AJ20) -> 0 | AL22: =IF(AK22=0,0,(AK22*((LOG(AK22))/LOG(2)))) -> 0 | AN22: =N22 -> 2222 | AO22: =COUNTIF(L45:L54,AN22) -> 0 | AP22: =AO22/(AQ4-AO20) -> 0 | AQ22: =IF(AP22=0,0,(AP22*((LOG(AP22))/LOG(2)))) -> 0 | AS22: =N22 -> 2222 | AT22: =COUNTIF(L55:L63,AS22) -> 1 | AU22: =AT22/(AV4-AT20) -> 0.1111111111 | AV22: =IF(AU22=0,0,(AU22*((LOG(AU22))/LOG(2)))) -> -0.352213889
A23: 12 | B23: 3007 | C23: 14 | D23: 3011 | E23: 24 | F23: 3019 | G23: 23 | H23: 3022 | K23: 0 | L23: 1122 | P23: =SUM(P7:P22) -> 1 | Q23: =-SUM(Q7:Q22) -> 2.411274195 | V23: =SUM(V7:V22) -> 1 | W23: =-SUM(W7:W22) -> 2.446439345 | AA23: =SUM(AA7:AA22) -> 1 | AB23: =-SUM(AB7:AB22) -> 1.446616668 | AF23: =SUM(AF7:AF22) -> 1 | AG23: =-SUM(AG7:AG22) -> 2.170950594 | AK23: =SUM(AK7:AK22) -> 1 | AL23: =-SUM(AL7:AL22) -> 2.05881389 | AP23: =SUM(AP7:AP22) -> 1 | AQ23: =-SUM(AQ7:AQ22) -> 0.9182958341 | AU23: =SUM(AU7:AU22) -> 1 | AV23: =-SUM(AV7:AV22) -> 1.657742727
A24: 12 | B24: 3118 | C24: 14 | D24: 3121 | E24: 24 | F24: 3129 | G24: 23 | H24: 3137 | K24: 0 | L24: 1122 | P24: U= | Q24: =Q23/(LOG(Q4)/LOG(2)) -> 0.4133927073 | V24: U1= | W24: =W23/(LOG(W4)/LOG(2)) -> 0.7364516253 | AA24: U2= | AB24: =AB23/(LOG(AB4)/LOG(2)) -> 0.4563567488 | AF24: U3= | AG24: =AG23/(LOG(AG4)/LOG(2)) -> 0.653521248 | AK24: U4= | AL24: =AL23/(LOG(AL4)/LOG(2)) -> 0.6494834702 | AP24: U5= | AQ24: =AQ23/(LOG(AQ4)/LOG(2)) -> 0.2764345909 | AU24: U6= | AV24: =AV23/(LOG(AV4)/LOG(2)) -> 0.522959605
A25: 12 | B25: 3233 | C25: 14 | D25: 3236 | E25: 24 | F25: 3247 | G25: 23 | H25: 3254 | K25: 0 | L25: 1122
A26: 12 | B26: 3371 | C26: 14 | D26: 3376 | E26: 13 | F26: 3378 | G26: 14 | H26: 3388 | K26: 0 | L26: 1111
A27: 12 | B27: 3491 | C27: 14 | D27: 3494 | E27: 13 | F27: 3498 | G27: 14 | H27: 3502 | K27: 0 | L27: 1111 | N27: Total Target Seq
A28: 12 | B28: 3598 | C28: 14 | D28: 3602 | E28: 24 | F28: 3611 | G28: 23 | H28: 3615 | K28: 0 | L28: 1122 | N28: =COUNTIF(L7:L63,G3) -> 1 | P28: 10 | Q28: 9 | R28: 10 | S28: 9 | T28: 10 | U28: 9
A29: 12 | B29: 3716 | C29: 14 | D29: 3724 | E29: 13 | F29: 3730 | G29: 14 | H29: 3733 | K29: 0 | L29: 1111 | P29: % of reinforcement given in 6 equal intervals based on number of trials
A30: 12 | B30: 3831 | C30: 14 | D30: 3840 | E30: 13 | F30: 3842 | G30: 23 | H30: 3855 | K30: 0 | L30: 1112 | P30: %_1 | Q30: %_2 | R30: %_3 | S30: %_4 | T30: %_5 | U30: %_6
A31: 12 | B31: 3964 | C31: 23 | D31: 3979 | E31: 24 | F31: 3982 | G31: 23 | H31: 3988 | K31: 0 | L31: 1222 | O31: target sequence | P31: =$G$3 -> 2212 | Q31: =$G$3 -> 2212 | R31: =$G$3 -> 2212 | S31: =$G$3 -> 2212 | T31: =$G$3 -> 2212 | U31: =$G$3 -> 2212
A32: 12 | B32: 4260 | C32: 14 | D32: 4268 | E32: 13 | F32: 4274 | G32: 23 | H32: 4282 | K32: 0 | L32: 1112 | O32: total reinforcement | P32: =U20 -> 0 | Q32: =Z20 -> 0 | R32: =AE20 -> 0 | S32: =AJ20 -> 0 | T32: =AO20 -> 1 | U32: =AT20 -> 0
A33: 12 | B33: 4416 | C33: 23 | D33: 4427 | E33: 24 | F33: 4431 | G33: 23 | H33: 4439 | K33: 0 | L33: 1222 | O33: % target
A34: 12 | B34: 4652 | C34: 23 | D34: 4668 | E34: 24 | F34: 4673 | G34: 14 | H34: 4682 | K34: 0 | L34: 1221 | O34: CCRF
A35: 12 | B35: 4828 | C35: 14 | D35: 4923 | E35: 13 | F35: 4928 | G35: 23 | H35: 4942 | K35: 0 | L35: 1112 | O35: % CCRf
A36: 12 | B36: 5341 | C36: 14 | D36: 5573 | E36: 13 | F36: 5582 | G36: 14 | H36: 5588 | K36: 0 | L36: 1111 | O36: average response rate | P36: =H16/P28 -> 213.9 | Q36: =(H25-H16)/Q28 -> 123.8888889 | R36: =(H35-H25)/R28 -> 168.8 | S36: =(H44-H35)/S28 -> 1103.333333 | T36: =(H54-H44)/T28 -> 602.5 | U36: =(H63-H54)/U28 -> 297.1111111
A37: 21 | B37: 5700 | C37: 12 | D37: 5706 | E37: 24 | F37: 5720 | G37: 23 | H37: 5723 | K37: 0 | L37: 2122
A38: 12 | B38: 5821 | C38: 14 | D38: 5829 | E38: 24 | F38: 5837 | G38: 23 | H38: 5843 | K38: 0 | L38: 1122
A39: 12 | B39: 5940 | C39: 14 | D39: 5944 | E39: 24 | F39: 5950 | G39: 23 | H39: 5954 | K39: 0 | L39: 1122
A40: 12 | B40: 6461 | C40: 14 | D40: 6466 | E40: 13 | F40: 6473 | G40: 23 | H40: 6480 | K40: 0 | L40: 1112
A41: 12 | B41: 7180 | C41: 14 | D41: 7602 | E41: 13 | F41: 7623 | G41: 14 | H41: 7629 | K41: 0 | L41: 1111
A42: 12 | B42: 11290 | C42: 14 | D42: 11295 | E42: 24 | F42: 11304 | G42: 23 | H42: 11322 | K42: 0 | L42: 1122
A43: 12 | B43: 11624 | C43: 14 | D43: 14044 | E43: 24 | F43: 14054 | G43: 23 | H43: 14058 | K43: 0 | L43: 1122
A44: 12 | B44: 14841 | C44: 23 | D44: 14852 | E44: 24 | F44: 14857 | G44: 14 | H44: 14872 | K44: 0 | L44: 1221
A45: 12 | B45: 18811 | C45: 14 | D45: 19024 | E45: 13 | F45: 19029 | G45: 23 | H45: 19035 | K45: 0 | L45: 1112
A46: 21 | B46: 19774 | C46: 21 | D46: 19778 | E46: 11 | F46: 19789 | G46: 21 | H46: 19802 | K46: 0 | L46: 2212
A47: 12 | B47: 20028 | C47: 14 | D47: 20032 | E47: 24 | F47: 20039 | G47: 23 | H47: 20043 | K47: 0 | L47: 1122
A48: 12 | B48: 20140 | C48: 14 | D48: 20143 | E48: 24 | F48: 20154 | G48: 23 | H48: 20159 | K48: 0 | L48: 1122
A49: 12 | B49: 20259 | C49: 14 | D49: 20267 | E49: 24 | F49: 20277 | G49: 23 | H49: 20286 | K49: 0 | L49: 1122
A50: 12 | B50: 20380 | C50: 14 | D50: 20384 | E50: 13 | F50: 20392 | G50: 23 | H50: 20401 | K50: 0 | L50: 1112
A51: 12 | B51: 20502 | C51: 14 | D51: 20505 | E51: 24 | F51: 20519 | G51: 23 | H51: 20526 | K51: 0 | L51: 1122
A52: 12 | B52: 20636 | C52: 14 | D52: 20641 | E52: 24 | F52: 20653 | G52: 23 | H52: 20656 | K52: 0 | L52: 1122
A53: 12 | B53: 20752 | C53: 14 | D53: 20756 | E53: 24 | F53: 20771 | G53: 23 | H53: 20777 | K53: 0 | L53: 1122
A54: 12 | B54: 20883 | C54: 14 | D54: 20886 | E54: 13 | F54: 20890 | G54: 23 | H54: 20897 | K54: 0 | L54: 1112
A55: 12 | B55: 21052 | C55: 14 | D55: 21056 | E55: 24 | F55: 21063 | G55: 23 | H55: 21068 | K55: 0 | L55: 1122
A56: 12 | B56: 21355 | C56: 14 | D56: 21364 | E56: 24 | F56: 21379 | G56: 23 | H56: 21384 | K56: 0 | L56: 1122
A57: 12 | B57: 21555 | C57: 14 | D57: 21558 | E57: 24 | F57: 21572 | G57: 23 | H57: 21578 | K57: 0 | L57: 1122
A58: 12 | B58: 21994 | C58: 14 | D58: 21996 | E58: 24 | F58: 22021 | G58: 23 | H58: 22028 | K58: 0 | L58: 1122
A59: 12 | B59: 22758 | C59: 14 | D59: 22764 | E59: 13 | F59: 22769 | G59: 14 | H59: 22771 | K59: 0 | L59: 1111
A60: 12 | B60: 22932 | C60: 23 | D60: 22938 | E60: 24 | F60: 22942 | G60: 23 | H60: 22948 | K60: 0 | L60: 1222
A61: 21 | B61: 23117 | C61: 21 | D61: 23125 | E61: 22 | F61: 23130 | G61: 23 | H61: 23136 | K61: 0 | L61: 2222
A62: 12 | B62: 23311 | C62: 14 | D62: 23355 | E62: 24 | F62: 23385 | G62: 23 | H62: 23390 | K62: 0 | L62: 1122
A63: 12 | B63: 23548 | C63: 23 | D63: 23563 | E63: 24 | F63: 23566 | G63: 23 | H63: 23571 | K63: 0 | L63: 1222

Sheet !LB20A14..Is
A1: Report for:!LB20A14..Is
A2: Date: | B2: <date>
A3: Hen: | B3: <hen> | F3: Correct Sequence | G3: =Start!J2 -> 2212 | P3: Total Sequences in Data | Q3: =4994-COUNTBLANK(L7:L5000) -> 139 | V3: Total Sequences in Block Data | W3: =COUNTA(L7:L29) -> 23 | AA3: Total Sequences in Block Data | AB3: =COUNTA(L30:L52) -> 23 | AF3: Total Sequences in Block Data | AG3: =COUNTA(L53:L76) -> 24 | AK3: Total Sequences in Block Data | AL3: =COUNTA(L77:L99) -> 23 | AP3: Total Sequences in Block Data | AQ3: =COUNTA(L100:L122) -> 23 | AU3: Total Sequences in Block Data | AV3: =COUNTA(L123:L145) -> 23
P4: Total Sequences in Summary | Q4: =SUM(O7:O22) -> 139 | V4: Total Sequences in Block Summary | W4: =SUM(U7:U22) -> 23 | AA4: Total Sequences in Block Summary | AB4: =SUM(Z7:Z22) -> 23 | AF4: Total Sequences in Block Summary | AG4: =SUM(AE7:AE22) -> 24 | AK4: Total Sequences in Block Summary | AL4: =SUM(AJ7:AJ22) -> 23 | AP4: Total Sequences in Block Summary | AQ4: =SUM(AO7:AO22) -> 23 | AU4: Total Sequences in Block Summary | AV4: =SUM(AT7:AT22) -> 23
T5: Block 1 | Y5: Block 2 | AD5: Block 3 | AI5: Block 4 | AN5: Block 5 | AS5: Block 6
A6: Sequence Component 1 | B6: Time 1 | C6: Sequence Component 2 | D6: Time 2 | E6: Sequence Component 3 | F6: Time 3 | G6: Sequence Component 4 | H6: Time 4 | I6: Sequence Component 5 | J6: Time 5 | K6: Correct? 0=No 1=Yes | L6: Sequence | N6: Frequency | P6: Relative Frequency | Q6: Variability | T6: Frequency | V6: Relative Frequency | W6: Variability | Y6: Frequency | AA6: Relative Frequency | AB6: Variability | AD6: Frequency | AF6: Relative Frequency | AG6: Variability | AI6: Frequency | AK6: Relative Frequency | AL6: Variability | AN6: Frequency | AP6: Relative Frequency | AQ6: Variability | AS6: Frequency | AU6: Relative Frequency | AV6: Variability
A7: 12 | B7: 29 | C7: 14 | D7: 64 | E7: 13 | F7: 77 | G7: 14 | H7: 85 | K7: 0 | L7: 1111 | N7: 1111 | O7: =COUNTIF($L$7:$L$500,N7) -> 8 | P7: =O7/$Q$4 -> 0.05755395683 | Q7: =IF(P7=0,0,(P7*((LOG(P7))/LOG(2)))) -> -0.2370613567 | T7: =N7 -> 1111 | U7: =COUNTIF(L7:L29,T7) -> 5 | V7: =U7/(W4-U20) -> 0.2272727273 | W7: =IF(V7=0,0,(V7*((LOG(V7))/LOG(2)))) -> -0.4857962554 | Y7: =N7 -> 1111 | Z7: =COUNTIF(L30:L52,Y7) -> 1 | AA7: =Z7/(AB4-Z20) -> 0.04347826087 | AB7: =IF(AA7=0,0,(AA7*((LOG(AA7))/LOG(2)))) -> -0.1966766068 | AD7: =N7 -> 1111 | AE7: =COUNTIF(L53:L76,AD7) -> 0 | AF7: =AE7/(AG4-AE20) -> 0 | AG7: =IF(AF7=0,0,(AF7*((LOG(AF7))/LOG(2)))) -> 0 | AI7: =N7 -> 1111 | AJ7: =COUNTIF(L77:L99,AI7) -> 2 | AK7: =AJ7/(AL4-AJ20) -> 0.08695652174 | AL7: =IF(AK7=0,0,(AK7*((LOG(AK7))/LOG(2)))) -> -0.3063966918 | AN7: =N7 -> 1111 | AO7: =COUNTIF(L100:L122,AN7) -> 0 | AP7: =AO7/(AQ4-AO20) -> 0 | AQ7: =IF(AP7=0,0,(AP7*((LOG(AP7))/LOG(2)))) -> 0 | AS7: =N7 -> 1111 | AT7: =COUNTIF(L123:L145,AS7) -> 0 | AU7: =AT7/(AV4-AT20) -> 0 | AV7: =IF(AU7=0,0,(AU7*((LOG(AU7))/LOG(2)))) -> 0
A8: 12 | B8: 184 | C8: 14 | D8: 220 | E8: 13 | F8: 241 | G8: 14 | H8: 295 | K8: 0 | L8: 1111 | N8: 1112 | O8: =COUNTIF($L$7:$L$500,N8) -> 23 | P8: =O8/$Q$4 -> 0.1654676259 | Q8: =IF(P8=0,0,(P8*((LOG(P8))/LOG(2)))) -> -0.4294512207 | T8: =N8 -> 1112 | U8: =COUNTIF(L7:L29,T8) -> 3 | V8: =U8/(W4-U20) -> 0.1363636364 | W8: =IF(V8=0,0,(V8*((LOG(V8))/LOG(2)))) -> -0.3919730615 | Y8: =N8 -> 1112 | Z8: =COUNTIF(L30:L52,Y8) -> 4 | AA8: =Z8/(AB4-Z20) -> 0.1739130435 | AB8: =IF(AA8=0,0,(AA8*((LOG(AA8))/LOG(2)))) -> -0.4388803402 | AD8: =N8 -> 1112 | AE8: =COUNTIF(L53:L76,AD8) -> 7 | AF8: =AE8/(AG4-AE20) -> 0.3043478261 | AG8: =IF(AF8=0,0,(AF8*((LOG(AF8))/LOG(2)))) -> -0.5223238799 | AI8: =N8 -> 1112 | AJ8: =COUNTIF(L77:L99,AI8) -> 6 | AK8: =AJ8/(AL4-AJ20) -> 0.2608695652 | AL8: =IF(AK8=0,0,(AK8*((LOG(AK8))/LOG(2)))) -> -0.505721597 | AN8: =N8 -> 1112 | AO8: =COUNTIF(L100:L122,AN8) -> 2 | AP8: =AO8/(AQ4-AO20) -> 0.08695652174 | AQ8: =IF(AP8=0,0,(AP8*((LOG(AP8))/LOG(2)))) -> -0.3063966918 | AS8: =N8 -> 1112 | AT8: =COUNTIF(L123:L145,AS8) -> 1 | AU8: =AT8/(AV4-AT20) -> 0.04347826087 | AV8: =IF(AU8=0,0,(AU8*((LOG(AU8))/LOG(2)))) -> -0.1966766068
A9: 12 | B9: 417 | C9: 14 | D9: 422 | E9: 24 | F9: 434 | G9: 23 | H9: 437 | K9: 0 | L9: 1122 | N9: 1121 | O9: =COUNTIF($L$7:$L$500,N9) -> 0 | P9: =O9/$Q$4 -> 0 | Q9: =IF(P9=0,0,(P9*((LOG(P9))/LOG(2)))) -> 0 | T9: =N9 -> 1121 | U9: =COUNTIF(L7:L29,T9) -> 0 | V9: =U9/(W4-U20) -> 0 | W9: =IF(V9=0,0,(V9*((LOG(V9))/LOG(2)))) -> 0 | Y9: =N9 -> 1121 | Z9: =COUNTIF(L30:L52,Y9) -> 0 | AA9: =Z9/(AB4-Z20) -> 0 | AB9: =IF(AA9=0,0,(AA9*((LOG(AA9))/LOG(2)))) -> 0 | AD9: =N9 -> 1121 | AE9: =COUNTIF(L53:L76,AD9) -> 0 | AF9: =AE9/(AG4-AE20) -> 0 | AG9: =IF(AF9=0,0,(AF9*((LOG(AF9))/LOG(2)))) -> 0 | AI9: =N9 -> 1121 | AJ9: =COUNTIF(L77:L99,AI9) -> 0 | AK9: =AJ9/(AL4-AJ20) -> 0 | AL9: =IF(AK9=0,0,(AK9*((LOG(AK9))/LOG(2)))) -> 0 | AN9: =N9 -> 1121 | AO9: =COUNTIF(L100:L122,AN9) -> 0 | AP9: =AO9/(AQ4-AO20) -> 0 | AQ9: =IF(AP9=0,0,(AP9*((LOG(AP9))/LOG(2)))) -> 0 | AS9: =N9 -> 1121 | AT9: =COUNTIF(L123:L145,AS9) -> 0 | AU9: =AT9/(AV4-AT20) -> 0 | AV9: =IF(AU9=0,0,(AU9*((LOG(AU9))/LOG(2)))) -> 0
A10: 12 | B10: 535 | C10: 14 | D10: 540 | E10: 24 | F10: 549 | G10: 23 | H10: 553 | K10: 0 | L10: 1122 | N10: 1122 | O10: =COUNTIF($L$7:$L$500,N10) -> 46 | P10: =O10/$Q$4 -> 0.3309352518 | Q10: =IF(P10=0,0,(P10*((LOG(P10))/LOG(2)))) -> -0.5279671897 | T10: =N10 -> 1122 | U10: =COUNTIF(L7:L29,T10) -> 9 | V10: =U10/(W4-U20) -> 0.4090909091 | W10: =IF(V10=0,0,(V10*((LOG(V10))/LOG(2)))) -> -0.5275254343 | Y10: =N10 -> 1122 | Z10: =COUNTIF(L30:L52,Y10) -> 11 | AA10: =Z10/(AB4-Z20) -> 0.4782608696 | AB10: =IF(AA10=0,0,(AA10*((LOG(AA10))/LOG(2)))) -> -0.5089319005 | AD10: =N10 -> 1122 | AE10: =COUNTIF(L53:L76,AD10) -> 7 | AF10: =AE10/(AG4-AE20) -> 0.3043478261 | AG10: =IF(AF10=0,0,(AF10*((LOG(AF10))/LOG(2)))) -> -0.5223238799 | AI10: =N10 -> 1122 | AJ10: =COUNTIF(L77:L99,AI10) -> 8 | AK10: =AJ10/(AL4-AJ20) -> 0.347826087 | AL10: =IF(AK10=0,0,(AK10*((LOG(AK10))/LOG(2)))) -> -0.5299345934 | AN10: =N10 -> 1122 | AO10: =COUNTIF(L100:L122,AN10) -> 3 | AP10: =AO10/(AQ4-AO20) -> 0.1304347826 | AQ10: =IF(AP10=0,0,(AP10*((LOG(AP10))/LOG(2)))) -> -0.3832955811 | AS10: =N10 -> 1122 | AT10: =COUNTIF(L123:L145,AS10) -> 8 | AU10: =AT10/(AV4-AT20) -> 0.347826087 | AV10: =IF(AU10=0,0,(AU10*((LOG(AU10))/LOG(2)))) -> -0.5299345934
A11: 12 | B11: 649 | C11: 14 | D11: 660 | E11: 24 | F11: 669 | G11: 23 | H11: 672 | K11: 0 | L11: 1122 | N11: 1211 | O11: =COUNTIF($L$7:$L$500,N11) -> 0 | P11: =O11/$Q$4 -> 0 | Q11: =IF(P11=0,0,(P11*((LOG(P11))/LOG(2)))) -> 0 | T11: =N11 -> 1211 | U11: =COUNTIF(L7:L29,T11) -> 0 | V11: =U11/(W4-U20) -> 0 | W11: =IF(V11=0,0,(V11*((LOG(V11))/LOG(2)))) -> 0 | Y11: =N11 -> 1211 | Z11: =COUNTIF(L30:L52,Y11) -> 0 | AA11: =Z11/(AB4-Z20) -> 0 | AB11: =IF(AA11=0,0,(AA11*((LOG(AA11))/LOG(2)))) -> 0 | AD11: =N11 -> 1211 | AE11: =COUNTIF(L53:L76,AD11) -> 0 | AF11: =AE11/(AG4-AE20) -> 0 | AG11: =IF(AF11=0,0,(AF11*((LOG(AF11))/LOG(2)))) -> 0 | AI11: =N11 -> 1211 | AJ11: =COUNTIF(L77:L99,AI11) -> 0 | AK11: =AJ11/(AL4-AJ20) -> 0 | AL11: =IF(AK11=0,0,(AK11*((LOG(AK11))/LOG(2)))) -> 0 | AN11: =N11 -> 1211 | AO11: =COUNTIF(L100:L122,AN11) -> 0 | AP11: =AO11/(AQ4-AO20) -> 0 | AQ11: =IF(AP11=0,0,(AP11*((LOG(AP11))/LOG(2)))) -> 0 | AS11: =N11 -> 1211 | AT11: =COUNTIF(L123:L145,AS11) -> 0 | AU11: =AT11/(AV4-AT20) -> 0 | AV11: =IF(AU11=0,0,(AU11*((LOG(AU11))/LOG(2)))) -> 0
A12: 12 | B12: 807 | C12: 14 | D12: 815 | E12: 24 | F12: 841 | G12: 23 | H12: 847 | K12: 0 | L12: 1122 | N12: 1212 | O12: =COUNTIF($L$7:$L$500,N12) -> 0 | P12: =O12/$Q$4 -> 0 | Q12: =IF(P12=0,0,(P12*((LOG(P12))/LOG(2)))) -> 0 | T12: =N12 -> 1212 | U12: =COUNTIF(L7:L29,T12) -> 0 | V12: =U12/(W4-U20) -> 0 | W12: =IF(V12=0,0,(V12*((LOG(V12))/LOG(2)))) -> 0 | Y12: =N12 -> 1212 | Z12: =COUNTIF(L30:L52,Y12) -> 0 | AA12: =Z12/(AB4-Z20) -> 0 | AB12: =IF(AA12=0,0,(AA12*((LOG(AA12))/LOG(2)))) -> 0 | AD12: =N12 -> 1212 | AE12: =COUNTIF(L53:L76,AD12) -> 0 | AF12: =AE12/(AG4-AE20) -> 0 | AG12: =IF(AF12=0,0,(AF12*((LOG(AF12))/LOG(2)))) -> 0 | AI12: =N12 -> 1212 | AJ12: =COUNTIF(L77:L99,AI12) -> 0 | AK12: =AJ12/(AL4-AJ20) -> 0 | AL12: =IF(AK12=0,0,(AK12*((LOG(AK12))/LOG(2)))) -> 0 | AN12: =N12 -> 1212 | AO12: =COUNTIF(L100:L122,AN12) -> 0 | AP12: =AO12/(AQ4-AO20) -> 0 | AQ12: =IF(AP12=0,0,(AP12*((LOG(AP12))/LOG(2)))) -> 0 | AS12: =N12 -> 1212 | AT12: =COUNTIF(L123:L145,AS12) -> 0 | AU12: =AT12/(AV4-AT20) -> 0 | AV12: =IF(AU12=0,0,(AU12*((LOG(AU12))/LOG(2)))) -> 0
A13: 12 | B13: 949 | C13: 14 | D13: 951 | E13: 13 | F13: 955 | G13: 14 | H13: 958 | K13: 0 | L13: 1111 | N13: 1221 | O13: =COUNTIF($L$7:$L$500,N13) -> 1 | P13: =O13/$Q$4 -> 0.007194244604 | Q13: =IF(P13=0,0,(P13*((LOG(P13))/LOG(2)))) -> -0.0512154034 | T13: =N13 -> 1221 | U13: =COUNTIF(L7:L29,T13) -> 0 | V13: =U13/(W4-U20) -> 0 | W13: =IF(V13=0,0,(V13*((LOG(V13))/LOG(2)))) -> 0 | Y13: =N13 -> 1221 | Z13: =COUNTIF(L30:L52,Y13) -> 0 | AA13: =Z13/(AB4-Z20) -> 0 | AB13: =IF(AA13=0,0,(AA13*((LOG(AA13))/LOG(2)))) -> 0 | AD13: =N13 -> 1221 | AE13: =COUNTIF(L53:L76,AD13) -> 0 | AF13: =AE13/(AG4-AE20) -> 0 | AG13: =IF(AF13=0,0,(AF13*((LOG(AF13))/LOG(2)))) -> 0 | AI13: =N13 -> 1221 | AJ13: =COUNTIF(L77:L99,AI13) -> 0 | AK13: =AJ13/(AL4-AJ20) -> 0 | AL13: =IF(AK13=0,0,(AK13*((LOG(AK13))/LOG(2)))) -> 0 | AN13: =N13 -> 1221 | AO13: =COUNTIF(L100:L122,AN13) -> 0 | AP13: =AO13/(AQ4-AO20) -> 0 | AQ13: =IF(AP13=0,0,(AP13*((LOG(AP13))/LOG(2)))) -> 0 | AS13: =N13 -> 1221 | AT13: =COUNTIF(L123:L145,AS13) -> 1 | AU13: =AT13/(AV4-AT20) -> 0.04347826087 | AV13: =IF(AU13=0,0,(AU13*((LOG(AU13))/LOG(2)))) -> -0.1966766068
A14: 12 | B14: 1056 | C14: 14 | D14: 1064 | E14: 24 | F14: 1081 | G14: 23 | H14: 1092 | K14: 0 | L14: 1122 | N14: 1222 | O14: =COUNTIF($L$7:$L$500,N14) -> 34 | P14: =O14/$Q$4 -> 0.2446043165 | Q14: =IF(P14=0,0,(P14*((LOG(P14))/LOG(2)))) -> -0.4969083444 | T14: =N14 -> 1222 | U14: =COUNTIF(L7:L29,T14) -> 5 | V14: =U14/(W4-U20) -> 0.2272727273 | W14: =IF(V14=0,0,(V14*((LOG(V14))/LOG(2)))) -> -0.4857962554 | Y14: =N14 -> 1222 | Z14: =COUNTIF(L30:L52,Y14) -> 6 | AA14: =Z14/(AB4-Z20) -> 0.2608695652 | AB14: =IF(AA14=0,0,(AA14*((LOG(AA14))/LOG(2)))) -> -0.505721597 | AD14: =N14 -> 1222 | AE14: =COUNTIF(L53:L76,AD14) -> 7 | AF14: =AE14/(AG4-AE20) -> 0.3043478261 | AG14: =IF(AF14=0,0,(AF14*((LOG(AF14))/LOG(2)))) -> -0.5223238799 | AI14: =N14 -> 1222 | AJ14: =COUNTIF(L77:L99,AI14) -> 4 | AK14: =AJ14/(AL4-AJ20) -> 0.1739130435 | AL14: =IF(AK14=0,0,(AK14*((LOG(AK14))/LOG(2)))) -> -0.4388803402 | AN14: =N14 -> 1222 | AO14: =COUNTIF(L100:L122,AN14) -> 5 | AP14: =AO14/(AQ4-AO20) -> 0.2173913043 | AQ14: =IF(AP14=0,0,(AP14*((LOG(AP14))/LOG(2)))) -> -0.4786160568 | AS14: =N14 -> 1222 | AT14: =COUNTIF(L123:L145,AS14) -> 7 | AU14: =AT14/(AV4-AT20) -> 0.3043478261 | AV14: =IF(AU14=0,0,(AU14*((LOG(AU14))/LOG(2)))) -> -0.5223238799
A15: 12 | B15: 1189 | C15: 14 | D15: 1196 | E15: 24 | F15: 1203 | G15: 23 | H15: 1207 | K15: 0 | L15: 1122 | N15: 2111 | O15: =COUNTIF($L$7:$L$500,N15) -> 0 | P15: =O15/$Q$4 -> 0 | Q15: =IF(P15=0,0,(P15*((LOG(P15))/LOG(2)))) -> 0 | T15: =N15 -> 2111 | U15: =COUNTIF(L7:L29,T15) -> 0 | V15: =U15/(W4-U20) -> 0 | W15: =IF(V15=0,0,(V15*((LOG(V15))/LOG(2)))) -> 0 | Y15: =N15 -> 2111 | Z15: =COUNTIF(L30:L52,Y15) -> 0 | AA15: =Z15/(AB4-Z20) -> 0 | AB15: =IF(AA15=0,0,(AA15*((LOG(AA15))/LOG(2)))) -> 0 | AD15: =N15 -> 2111 | AE15: =COUNTIF(L53:L76,AD15) -> 0 | AF15: =AE15/(AG4-AE20) -> 0 | AG15: =IF(AF15=0,0,(AF15*((LOG(AF15))/LOG(2)))) -> 0 | AI15: =N15 -> 2111 | AJ15: =COUNTIF(L77:L99,AI15) -> 0 | AK15: =AJ15/(AL4-AJ20) -> 0 | AL15: =IF(AK15=0,0,(AK15*((LOG(AK15))/LOG(2)))) -> 0 | AN15: =N15 -> 2111 | AO15: =COUNTIF(L100:L122,AN15) -> 0 | AP15: =AO15/(AQ4-AO20) -> 0 | AQ15: =IF(AP15=0,0,(AP15*((LOG(AP15))/LOG(2)))) -> 0 | AS15: =N15 -> 2111 | AT15: =COUNTIF(L123:L145,AS15) -> 0 | AU15: =AT15/(AV4-AT20) -> 0 | AV15: =IF(AU15=0,0,(AU15*((LOG(AU15))/LOG(2)))) -> 0
A16: 12 | B16: 1315 | C16: 23 | D16: 1325 | E16: 24 | F16: 1330 | G16: 23 | H16: 1336 | K16: 0 | L16: 1222 | N16: 2112 | O16: =COUNTIF($L$7:$L$500,N16) -> 1 | P16: =O16/$Q$4 -> 0.007194244604 | Q16: =IF(P16=0,0,(P16*((LOG(P16))/LOG(2)))) -> -0.0512154034 | T16: =N16 -> 2112 | U16: =COUNTIF(L7:L29,T16) -> 0 | V16: =U16/(W4-U20) -> 0 | W16: =IF(V16=0,0,(V16*((LOG(V16))/LOG(2)))) -> 0 | Y16: =N16 -> 2112 | Z16: =COUNTIF(L30:L52,Y16) -> 0 | AA16: =Z16/(AB4-Z20) -> 0 | AB16: =IF(AA16=0,0,(AA16*((LOG(AA16))/LOG(2)))) -> 0 | AD16: =N16 -> 2112 | AE16: =COUNTIF(L53:L76,AD16) -> 1 | AF16: =AE16/(AG4-AE20) -> 0.04347826087 | AG16: =IF(AF16=0,0,(AF16*((LOG(AF16))/LOG(2)))) -> -0.1966766068 | AI16: =N16 -> 2112 | AJ16: =COUNTIF(L77:L99,AI16) -> 0 | AK16: =AJ16/(AL4-AJ20) -> 0 | AL16: =IF(AK16=0,0,(AK16*((LOG(AK16))/LOG(2)))) -> 0 | AN16: =N16 -> 2112 | AO16: =COUNTIF(L100:L122,AN16) -> 0 | AP16: =AO16/(AQ4-AO20) -> 0 | AQ16: =IF(AP16=0,0,(AP16*((LOG(AP16))/LOG(2)))) -> 0 | AS16: =N16 -> 2112 | AT16: =COUNTIF(L123:L145,AS16) -> 0 | AU16: =AT16/(AV4-AT20) -> 0 | AV16: =IF(AU16=0,0,(AU16*((LOG(AU16))/LOG(2)))) -> 0
A17: 12 | B17: 1431 | C17: 14 | D17: 1436 | E17: 13 | F17: 1440 | G17: 14 | H17: 1447 | K17: 0 | L17: 1111 | N17: 2121 | O17: =COUNTIF($L$7:$L$500,N17) -> 0 | P17: =O17/$Q$4 -> 0 | Q17: =IF(P17=0,0,(P17*((LOG(P17))/LOG(2)))) -> 0 | T17: =N17 -> 2121 | U17: =COUNTIF(L7:L29,T17) -> 0 | V17: =U17/(W4-U20) -> 0 | W17: =IF(V17=0,0,(V17*((LOG(V17))/LOG(2)))) -> 0 | Y17: =N17 -> 2121 | Z17: =COUNTIF(L30:L52,Y17) -> 0 | AA17: =Z17/(AB4-Z20) -> 0 | AB17: =IF(AA17=0,0,(AA17*((LOG(AA17))/LOG(2)))) -> 0 | AD17: =N17 -> 2121 | AE17: =COUNTIF(L53:L76,AD17) -> 0 | AF17: =AE17/(AG4-AE20) -> 0 | AG17: =IF(AF17=0,0,(AF17*((LOG(AF17))/LOG(2)))) -> 0 | AI17: =N17 -> 2121 | AJ17: =COUNTIF(L77:L99,AI17) -> 0 | AK17: =AJ17/(AL4-AJ20) -> 0 | AL17: =IF(AK17=0,0,(AK17*((LOG(AK17))/LOG(2)))) -> 0 | AN17: =N17 -> 2121 | AO17: =COUNTIF(L100:L122,AN17) -> 0 | AP17: =AO17/(AQ4-AO20) -> 0 | AQ17: =IF(AP17=0,0,(AP17*((LOG(AP17))/LOG(2)))) -> 0 | AS17: =N17 -> 2121 | AT17: =COUNTIF(L123:L145,AS17) -> 0 | AU17: =AT17/(AV4-AT20) -> 0 | AV17: =IF(AU17=0,0,(AU17*((LOG(AU17))/LOG(2)))) -> 0
A18: 12 | B18: 1547 | C18: 14 | D18: 1550 | E18: 13 | F18: 1552 | G18: 14 | H18: 1557 | K18: 0 | L18: 1111 | N18: 2122 | O18: =COUNTIF($L$7:$L$500,N18) -> 1 | P18: =O18/$Q$4 -> 0.007194244604 | Q18: =IF(P18=0,0,(P18*((LOG(P18))/LOG(2)))) -> -0.0512154034 | T18: =N18 -> 2122 | U18: =COUNTIF(L7:L29,T18) -> 0 | V18: =U18/(W4-U20) -> 0 | W18: =IF(V18=0,0,(V18*((LOG(V18))/LOG(2)))) -> 0 | Y18: =N18 -> 2122 | Z18: =COUNTIF(L30:L52,Y18) -> 0 | AA18: =Z18/(AB4-Z20) -> 0 | AB18: =IF(AA18=0,0,(AA18*((LOG(AA18))/LOG(2)))) -> 0 | AD18: =N18 -> 2122 | AE18: =COUNTIF(L53:L76,AD18) -> 0 | AF18: =AE18/(AG4-AE20) -> 0 | AG18: =IF(AF18=0,0,(AF18*((LOG(AF18))/LOG(2)))) -> 0 | AI18: =N18 -> 2122 | AJ18: =COUNTIF(L77:L99,AI18) -> 0 | AK18: =AJ18/(AL4-AJ20) -> 0 | AL18: =IF(AK18=0,0,(AK18*((LOG(AK18))/LOG(2)))) -> 0 | AN18: =N18 -> 2122 | AO18: =COUNTIF(L100:L122,AN18) -> 1 | AP18: =AO18/(AQ4-AO20) -> 0.04347826087 | AQ18: =IF(AP18=0,0,(AP18*((LOG(AP18))/LOG(2)))) -> -0.1966766068 | AS18: =N18 -> 2122 | AT18: =COUNTIF(L123:L145,AS18) -> 0 | AU18: =AT18/(AV4-AT20) -> 0 | AV18: =IF(AU18=0,0,(AU18*((LOG(AU18))/LOG(2)))) -> 0
A19: 12 | B19: 1653 | C19: 14 | D19: 1658 | E19: 13 | F19: 1662 | G19: 23 | H19: 1671 | K19: 0 | L19: 1112 | N19: 2211 | O19: =COUNTIF($L$7:$L$500,N19) -> 1 | P19: =O19/$Q$4 -> 0.007194244604 | Q19: =IF(P19=0,0,(P19*((LOG(P19))/LOG(2)))) -> -0.0512154034 | T19: =N19 -> 2211 | U19: =COUNTIF(L7:L29,T19) -> 0 | V19: =U19/(W4-U20) -> 0 | W19: =IF(V19=0,0,(V19*((LOG(V19))/LOG(2)))) -> 0 | Y19: =N19 -> 2211 | Z19: =COUNTIF(L30:L52,Y19) -> 0 | AA19: =Z19/(AB4-Z20) -> 0 | AB19: =IF(AA19=0,0,(AA19*((LOG(AA19))/LOG(2)))) -> 0 | AD19: =N19 -> 2211 | AE19: =COUNTIF(L53:L76,AD19) -> 0 | AF19: =AE19/(AG4-AE20) -> 0 | AG19: =IF(AF19=0,0,(AF19*((LOG(AF19))/LOG(2)))) -> 0 | AI19: =N19 -> 2211 | AJ19: =COUNTIF(L77:L99,AI19) -> 0 | AK19: =AJ19/(AL4-AJ20) -> 0 | AL19: =IF(AK19=0,0,(AK19*((LOG(AK19))/LOG(2)))) -> 0 | AN19: =N19 -> 2211 | AO19: =COUNTIF(L100:L122,AN19) -> 1 | AP19: =AO19/(AQ4-AO20) -> 0.04347826087 | AQ19: =IF(AP19=0,0,(AP19*((LOG(AP19))/LOG(2)))) -> -0.1966766068 | AS19: =N19 -> 2211 | AT19: =COUNTIF(L123:L145,AS19) -> 0 | AU19: =AT19/(AV4-AT20) -> 0 | AV19: =IF(AU19=0,0,(AU19*((LOG(AU19))/LOG(2)))) -> 0
A20: 12 | B20: 1776 | C20: 23 | D20: 1785 | E20: 24 | F20: 1792 | G20: 23 | H20: 1797 | K20: 0 | L20: 1222 | N20: 2212 | O20: =COUNTIF($L$7:$L$500,N20) -> 2 | P20: =O20/$Q$4 -> 0.01438848921 | Q20: =IF(P20=0,0,(P20*((LOG(P20))/LOG(2)))) -> -0.08804231759 | T20: =N20 -> 2212 | U20: =COUNTIF(L7:L29,T20) -> 1 | Y20: =N20 -> 2212 | Z20: =COUNTIF(L30:L52,Y20) -> 0 | AD20: =N20 -> 2212 | AE20: =COUNTIF(L53:L76,AD20) -> 1 | AI20: =N20 -> 2212 | AJ20: =COUNTIF(L77:L99,AI20) -> 0 | AN20: =N20 -> 2212 | AO20: =COUNTIF(L100:L122,AN20) -> 0 | AS20: =N20 -> 2212 | AT20: =COUNTIF(L123:L145,AS20) -> 0
A21: 12 | B21: 1892 | C21: 14 | D21: 1897 | E21: 13 | F21: 1900 | G21: 23 | H21: 1911 | K21: 0 | L21: 1112 | N21: 2221 | O21: =COUNTIF($L$7:$L$500,N21) -> 3 | P21: =O21/$Q$4 -> 0.02158273381 | Q21: =IF(P21=0,0,(P21*((LOG(P21))/LOG(2)))) -> -0.1194383864 | T21: =N21 -> 2221 | U21: =COUNTIF(L7:L29,T21) -> 0 | V21: =U21/(W4-U20) -> 0 | W21: =IF(V21=0,0,(V21*((LOG(V21))/LOG(2)))) -> 0 | Y21: =N21 -> 2221 | Z21: =COUNTIF(L30:L52,Y21) -> 0 | AA21: =Z21/(AB4-Z20) -> 0 | AB21: =IF(AA21=0,0,(AA21*((LOG(AA21))/LOG(2)))) -> 0 | AD21: =N21 -> 2221 | AE21: =COUNTIF(L53:L76,AD21) -> 0 | AF21: =AE21/(AG4-AE20) -> 0 | AG21: =IF(AF21=0,0,(AF21*((LOG(AF21))/LOG(2)))) -> 0 | AI21: =N21 -> 2221 | AJ21: =COUNTIF(L77:L99,AI21) -> 0 | AK21: =AJ21/(AL4-AJ20) -> 0 | AL21: =IF(AK21=0,0,(AK21*((LOG(AK21))/LOG(2)))) -> 0 | AN21: =N21 -> 2221 | AO21: =COUNTIF(L100:L122,AN21) -> 3 | AP21: =AO21/(AQ4-AO20) -> 0.1304347826 | AQ21: =IF(AP21=0,0,(AP21*((LOG(AP21))/LOG(2)))) -> -0.3832955811 | AS21: =N21 -> 2221 | AT21: =COUNTIF(L123:L145,AS21) -> 0 | AU21: =AT21/(AV4-AT20) -> 0 | AV21: =IF(AU21=0,0,(AU21*((LOG(AU21))/LOG(2)))) -> 0
A22: 12 | B22: 2007 | C22: 14 | D22: 2013 | E22: 13 | F22: 2022 | G22: 23 | H22: 2032 | K22: 0 | L22: 1112 | N22: 2222 | O22: =COUNTIF($L$7:$L$500,N22) -> 19 | P22: =O22/$Q$4 -> 0.1366906475 | Q22: =IF(P22=0,0,(P22*((LOG(P22))/LOG(2)))) -> -0.3924407023 | T22: =N22 -> 2222 | U22: =COUNTIF(L7:L29,T22) -> 0 | V22: =U22/(W4-U20) -> 0 | W22: =IF(V22=0,0,(V22*((LOG(V22))/LOG(2)))) -> 0 | Y22: =N22 -> 2222 | Z22: =COUNTIF(L30:L52,Y22) -> 1 | AA22: =Z22/(AB4-Z20) -> 0.04347826087 | AB22: =IF(AA22=0,0,(AA22*((LOG(AA22))/LOG(2)))) -> -0.1966766068 | AD22: =N22 -> 2222 | AE22: =COUNTIF(L53:L76,AD22) -> 1 | AF22: =AE22/(AG4-AE20) -> 0.04347826087 | AG22: =IF(AF22=0,0,(AF22*((LOG(AF22))/LOG(2)))) -> -0.1966766068 | AI22: =N22 -> 2222 | AJ22: =COUNTIF(L77:L99,AI22) -> 3 | AK22: =AJ22/(AL4-AJ20) -> 0.1304347826 | AL22: =IF(AK22=0,0,(AK22*((LOG(AK22))/LOG(2)))) -> -0.3832955811 | AN22: =N22 -> 2222 | AO22: =COUNTIF(L100:L122,AN22) -> 8 | AP22: =AO22/(AQ4-AO20) -> 0.347826087 | AQ22: =IF(AP22=0,0,(AP22*((LOG(AP22))/LOG(2)))) -> -0.5299345934 | AS22: =N22 -> 2222 | AT22: =COUNTIF(L123:L145,AS22) -> 6 | AU22: =AT22/(AV4-AT20) -> 0.2608695652 | AV22: =IF(AU22=0,0,(AU22*((LOG(AU22))/LOG(2)))) -> -0.505721597
A23: 12 | B23: 2130 | C23: 14 | D23: 2135 | E23: 24 | F23: 2144 | G23: 23 | H23: 2149 | K23: 0 | L23: 1122 | P23: =SUM(P7:P22) -> 1 | Q23: =-SUM(Q7:Q22) -> 2.496171132 | V23: =SUM(V7:V22) -> 1 | W23: =-SUM(W7:W22) -> 1.891091007 | AA23: =SUM(AA7:AA22) -> 1 | AB23: =-SUM(AB7:AB22) -> 1.846887051 | AF23: =SUM(AF7:AF22) -> 1 | AG23: =-SUM(AG7:AG22) -> 1.960324853 | AK23: =SUM(AK7:AK22) -> 1 | AL23: =-SUM(AL7:AL22) -> 2.164228804 | AP23: =SUM(AP7:AP22) -> 1 | AQ23: =-SUM(AQ7:AQ22) -> 2.474891718 | AU23: =SUM(AU7:AU22) -> 1 | AV23: =-SUM(AV7:AV22) -> 1.951333284
A24: 12 | B24: 2245 | C24: 14 | D24: 2249 | E24: 24 | F24: 2259 | G24: 23 | H24: 2263 | K24: 0 | L24: 1122 | P24: U= | Q24: =Q23/(LOG(Q4)/LOG(2)) -> 0.350637982 | V24: U1= | W24: =W23/(LOG(W4)/LOG(2)) -> 0.4180535218 | AA24: U2= | AB24: =AB23/(LOG(AB4)/LOG(2)) -> 0.4082815863 | AF24: U3= | AG24: =AG23/(LOG(AG4)/LOG(2)) -> 0.4275552642 | AK24: U4= | AL24: =AL23/(LOG(AL4)/LOG(2)) -> 0.478434655 | AP24: U5= | AQ24: =AQ23/(LOG(AQ4)/LOG(2)) -> 0.547111268 | AU24: U6= | AV24: =AV23/(LOG(AV4)/LOG(2)) -> 0.4313709645
A25: 12 | B25: 2379 | C25: 23 | D25: 2388 | E25: 24 | F25: 2392 | G25: 23 | H25: 2398 | K25: 0 | L25: 1222
A26: 12 | B26: 2882 | C26: 14 | D26: 2886 | E26: 24 | F26: 2895 | G26: 23 | H26: 2899 | K26: 0 | L26: 1122
A27: 21 | B27: 3038 | C27: 21 | D27: 3043 | E27: 11 | F27: 3050 | G27: 21 | H27: 3064 | K27: 0 | L27: 2212 | N27: Total Target Seq
A28: 12 | B28: 3273 | C28: 23 | D28: 3291 | E28: 24 | F28: 3297 | G28: 23 | H28: 3303 | K28: 0 | L28: 1222 | N28: =COUNTIF(L7:L145,G3) -> 2 | P28: 23 | Q28: 23 | R28: 24 | S28: 23 | T28: 23 | U28: 23
A29: 12 | B29: 3400 | C29: 23 | D29: 3412 | E29: 24 | F29: 3416 | G29: 23 | H29: 3422 | K29: 0 | L29: 1222 | P29: % of reinforcement given in 6 equal intervals based on number of trials
A30: 12 | B30: 3593 | C30: 14 | D30: 3603 | E30: 24 | F30: 3612 | G30: 23 | H30: 3616 | K30: 0 | L30: 1122 | P30: %_1 | Q30: %_2 | R30: %_3 | S30: %_4 | T30: %_5 | U30: %_6
A31: 12 | B31: 3717 | C31: 23 | D31: 3729 | E31: 24 | F31: 3735 | G31: 23 | H31: 3741 | K31: 0 | L31: 1222 | O31: target sequence | P31: =$G$3 -> 2212 | Q31: =$G$3 -> 2212 | R31: =$G$3 -> 2212 | S31: =$G$3 -> 2212 | T31: =$G$3 -> 2212 | U31: =$G$3 -> 2212
A32: 12 | B32: 3838 | C32: 14 | D32: 3842 | E32: 24 | F32: 3852 | G32: 23 | H32: 3856 | K32: 0 | L32: 1122 | O32: total reinforcement | P32: =U20 -> 1 | Q32: =Z20 -> 0 | R32: =AE20 -> 1 | S32: =AJ20 -> 0 | T32: =AO20 -> 0 | U32: =AT20 -> 0
A33: 12 | B33: 3978 | C33: 14 | D33: 3986 | E33: 24 | F33: 3995 | G33: 23 | H33: 4003 | K33: 0 | L33: 1122 | O33: % target
A34: 12 | B34: 4143 | C34: 23 | D34: 4156 | E34: 24 | F34: 4162 | G34: 23 | H34: 4169 | K34: 0 | L34: 1222 | O34: CCRF
A35: 12 | B35: 4269 | C35: 14 | D35: 4273 | E35: 24 | F35: 4283 | G35: 23 | H35: 4288 | K35: 0 | L35: 1122 | O35: % CCRf
A36: 12 | B36: 4386 | C36: 14 | D36: 4390 | E36: 13 | F36: 4394 | G36: 14 | H36: 4396 | K36: 0 | L36: 1111 | O36: average response rate | P36: =H29/P28 -> 148.7826087 | Q36: =(H52-H29)/Q28 -> 137.173913 | R36: =(H76-H52)/R28 -> 140.875 | S36: =(H99-H76)/S28 -> 124.826087 | T36: =(H122-H99)/T28 -> 171.7391304 | U36: =(H145-H122)/U28 -> 299.6956522
A37: 12 | B37: 4561 | C37: 14 | D37: 4564 | E37: 24 | F37: 4574 | G37: 23 | H37: 4579 | K37: 0 | L37: 1122
A38: 12 | B38: 4679 | C38: 14 | D38: 4684 | E38: 24 | F38: 4695 | G38: 23 | H38: 4700 | K38: 0 | L38: 1122
A39: 12 | B39: 4838 | C39: 23 | D39: 4856 | E39: 24 | F39: 4861 | G39: 23 | H39: 4869 | K39: 0 | L39: 1222
A40: 12 | B40: 4965 | C40: 14 | D40: 4970 | E40: 13 | F40: 4973 | G40: 23 | H40: 4981 | K40: 0 | L40: 1112
A41: 21 | B41: 5090 | C41: 21 | D41: 5095 | E41: 22 | F41: 5100 | G41: 23 | H41: 5106 | K41: 0 | L41: 2222
A42: 12 | B42: 5209 | C42: 14 | D42: 5216 | E42: 24 | F42: 5232 | G42: 23 | H42: 5237 | K42: 0 | L42: 1122
A43: 12 | B43: 5338 | C43: 23 | D43: 5349 | E43: 24 | F43: 5352 | G43: 23 | H43: 5359 | K43: 0 | L43: 1222
A44: 12 | B44: 5456 | C44: 23 | D44: 5470 | E44: 24 | F44: 5480 | G44: 23 | H44: 5485 | K44: 0 | L44: 1222
A45: 12 | B45: 5598 | C45: 14 | D45: 5602 | E45: 24 | F45: 5611 | G45: 23 | H45: 5614 | K45: 0 | L45: 1122
A46: 12 | B46: 5710 | C46: 14 | D46: 5725 | E46: 24 | F46: 5732 | G46: 23 | H46: 5735 | K46: 0 | L46: 1122
A47: 12 | B47: 5836 | C47: 14 | D47: 5841 | E47: 13 | F47: 5848 | G47: 23 | H47: 5860 | K47: 0 | L47: 1112
A48: 12 | B48: 5955 | C48: 14 | D48: 5959 | E48: 13 | F48: 5971 | G48: 23 | H48: 5978 | K48: 0 | L48: 1112
A49: 12 | B49: 6077 | C49: 14 | D49: 6084 | E49: 13 | F49: 6088 | G49: 23 | H49: 6096 | K49: 0 | L49: 1112
A50: 12 | B50: 6204 | C50: 23 | D50: 6215 | E50: 24 | F50: 6219 | G50: 23 | H50: 6223 | K50: 0 | L50: 1222
A51: 12 | B51: 6380 | C51: 14 | D51: 6385 | E51: 24 | F51: 6393 | G51: 23 | H51: 6397 | K51: 0 | L51: 1122
A52: 12 | B52: 6556 | C52: 14 | D52: 6561 | E52: 24 | F52: 6571 | G52: 23 | H52: 6577 | K52: 0 | L52: 1122
A53: 12 | B53: 6676 | C53: 14 | D53: 6680 | E53: 13 | F53: 6684 | G53: 23 | H53: 6697 | K53: 0 | L53: 1112
A54: 12 | B54: 6815 | C54: 23 | D54: 6827 | E54: 24 | F54: 6837 | G54: 23 | H54: 6843 | K54: 0 | L54: 1222
A55: 12 | B55: 6941 | C55: 23 | D55: 6954 | E55: 24 | F55: 6959 | G55: 23 | H55: 6964 | K55: 0 | L55: 1222
A56: 12 | B56: 7060 | C56: 14 | D56: 7064 | E56: 13 | F56: 7070 | G56: 23 | H56: 7080 | K56: 0 | L56: 1112
A57: 12 | B57: 7363 | C57: 23 | D57: 7375 | E57: 24 | F57: 7388 | G57: 23 | H57: 7395 | K57: 0 | L57: 1222
A58: 12 | B58: 7498 | C58: 14 | D58: 7501 | E58: 24 | F58: 7510 | G58: 23 | H58: 7515 | K58: 0 | L58: 1122
A59: 12 | B59: 7649 | C59: 23 | D59: 7660 | E59: 24 | F59: 7663 | G59: 23 | H59: 7669 | K59: 0 | L59: 1222
A60: 12 | B60: 7776 | C60: 23 | D60: 7786 | E60: 24 | F60: 7796 | G60: 23 | H60: 7802 | K60: 0 | L60: 1222
A61: 12 | B61: 7902 | C61: 23 | D61: 7912 | E61: 24 | F61: 7916 | G61: 23 | H61: 7921 | K61: 0 | L61: 1222
A62: 12 | B62: 8054 | C62: 23 | D62: 8061 | E62: 24 | F62: 8066 | G62: 23 | H62: 8071 | K62: 0 | L62: 1222
A63: 21 | B63: 8185 | C63: 12 | D63: 8194 | E63: 13 | F63: 8199 | G63: 23 | H63: 8209 | K63: 0 | L63: 2112
A64: 21 | B64: 8365 | C64: 21 | D64: 8370 | E64: 22 | F64: 8376 | G64: 23 | H64: 8382 | K64: 0 | L64: 2222
A65: 12 | B65: 8516 | C65: 14 | D65: 8521 | E65: 13 | F65: 8532 | G65: 23 | H65: 8541 | K65: 0 | L65: 1112
A66: 12 | B66: 8636 | C66: 14 | D66: 8638 | E66: 24 | F66: 8655 | G66: 23 | H66: 8660 | K66: 0 | L66: 1122
A67: 12 | B67: 8793 | C67: 14 | D67: 8804 | E67: 24 | F67: 8813 | G67: 23 | H67: 8816 | K67: 0 | L67: 1122
A68: 12 | B68: 8916 | C68: 14 | D68: 8925 | E68: 13 | F68: 8930 | G68: 23 | H68: 8939 | K68: 0 | L68: 1112
A69: 12 | B69: 9036 | C69: 14 | D69: 9046 | E69: 24 | F69: 9055 | G69: 23 | H69: 9061 | K69: 0 | L69: 1122
A70: 12 | B70: 9177 | C70: 14 | D70: 9188 | E70: 13 | F70: 9192 | G70: 23 | H70: 9202 | K70: 0 | L70: 1112
A71: 21 | B71: 9302 | C71: 21 | D71: 9305 | E71: 11 | F71: 9318 | G71: 21 | H71: 9336 | K71: 0 | L71: 2212
A72: 12 | B72: 9484 | C72: 14 | D72: 9488 | E72: 24 | F72: 9495 | G72: 23 | H72: 9502 | K72: 0 | L72: 1122
A73: 12 | B73: 9602 | C73: 14 | D73: 9607 | E73: 24 | F73: 9614 | G73: 23 | H73: 9617 | K73: 0 | L73: 1122
A74: 12 | B74: 9715 | C74: 14 | D74: 9719 | E74: 13 | F74: 9723 | G74: 23 | H74: 9730 | K74: 0 | L74: 1112
A75: 12 | B75: 9826 | C75: 14 | D75: 9835 | E75: 24 | F75: 9841 | G75: 23 | H75: 9844 | K75: 0 | L75: 1122
A76: 12 | B76: 9942 | C76: 14 | D76: 9944 | E76: 13 | F76: 9949 | G76: 23 | H76: 9958 | K76: 0 | L76: 1112
A77: 12 | B77: 10063 | C77: 14 | D77: 10068 | E77: 24 | F77: 10084 | G77: 23 | H77: 10088 | K77: 0 | L77: 1122
A78: 12 | B78: 10184 | C78: 14 | D78: 10188 | E78: 13 | F78: 10195 | G78: 23 | H78: 10206 | K78: 0 | L78: 1112
A79: 12 | B79: 10301 | C79: 14 | D79: 10306 | E79: 13 | F79: 10310 | G79: 23 | H79: 10316 | K79: 0 | L79: 1112
A80: 12 | B80: 10413 | C80: 14 | D80: 10418 | E80: 24 | F80: 10430 | G80: 23 | H80: 10435 | K80: 0 | L80: 1122
A81: 12 | B81: 10532 | C81: 14 | D81: 10543 | E81: 24 | F81: 10551 | G81: 23 | H81: 10554 | K81: 0 | L81: 1122
A82: 12 | B82: 10649 | C82: 14 | D82: 10654 | E82: 13 | F82: 10659 | G82: 23 | H82: 10671 | K82: 0 | L82: 1112
A83: 12 | B83: 10767 | C83: 14 | D83: 10771 | E83: 13 | F83: 10775 | G83: 14 | H83: 10779 | K83: 0 | L83: 1111
A84: 21 | B84: 10886 | C84: 21 | D84: 10889 | E84: 22 | F84: 10895 | G84: 23 | H84: 10899 | K84: 0 | L84: 2222
A85: 12 | B85: 11000 | C85: 23 | D85: 11010 | E85: 24 | F85: 11014 | G85: 23 | H85: 11024 | K85: 0 | L85: 1222
A86: 12 | B86: 11122 | C86: 14 | D86: 11126 | E86: 24 | F86: 11139 | G86: 23 | H86: 11144 | K86: 0 | L86: 1122
A87: 21 | B87: 11252 | C87: 21 | D87: 11259 | E87: 22 | F87: 11270 | G87: 23 | H87: 11275 | K87: 0 | L87: 2222
A88: 12 | B88: 11416 | C88: 14 | D88: 11420 | E88: 13 | F88: 11425 | G88: 23 | H88: 11433 | K88: 0 | L88: 1112
A89: 12 | B89: 11532 | C89: 14 | D89: 11536 | E89: 24 | F89: 11544 | G89: 23 | H89: 11548 | K89: 0 | L89: 1122
A90: 21 | B90: 11645 | C90: 21 | D90: 11663 | E90: 22 | F90: 11672 | G90: 23 | H90: 11682 | K90: 0 | L90: 2222
A91: 12 | B91: 11780 | C91: 14 | D91: 11783 | E91: 13 | F91: 11787 | G91: 14 | H91: 11806 | K91: 0 | L91: 1111
A92: 12 | B92: 11977 | C92: 23 | D92: 11992 | E92: 24 | F92: 11995 | G92: 23 | H92: 12001 | K92: 0 | L92: 1222
A93: 12 | B93: 12104 | C93: 14 | D93: 12108 | E93: 24 | F93: 12116 | G93: 23 | H93: 12120 | K93: 0 | L93: 1122
A94: 12 | B94: 12216 | C94: 14 | D94: 12218 | E94: 24 | F94: 12231 | G94: 23 | H94: 12238 | K94: 0 | L94: 1122
A95: 12 | B95: 12346 | C95: 23 | D95: 12353 | E95: 24 | F95: 12356 | G95: 23 | H95: 12362 | K95: 0 | L95: 1222
A96: 12 | B96: 12460 | C96: 23 | D96: 12470 | E96: 24 | F96: 12475 | G96: 23 | H96: 12480 | K96: 0 | L96: 1222
A97: 12 | B97: 12577 | C97: 14 | D97: 12581 | E97: 13 | F97: 12586 | G97: 23 | H97: 12593 | K97: 0 | L97: 1112
A98: 12 | B98: 12698 | C98: 14 | D98: 12700 | E98: 24 | F98: 12713 | G98: 23 | H98: 12717 | K98: 0 | L98: 1122
A99: 12 | B99: 12813 | C99: 14 | D99: 12818 | E99: 13 | F99: 12821 | G99: 23 | H99: 12829 | K99: 0 | L99: 1112
A100: 21 | B100: 12931 | C100: 21 | D100: 12939 | E100: 22 | F100: 12943 | G100: 23 | H100: 12949 | K100: 0 | L100: 2222
A101: 21 | B101: 13063 | C101: 21 | D101: 13067 | E101: 22 | F101: 13072 | G101: 23 | H101: 13077 | K101: 0 | L101: 2222
A102: 12 | B102: 13176 | C102: 14 | D102: 13181 | E102: 24 | F102: 13188 | G102: 23 | H102: 13191 | K102: 0 | L102: 1122
A103: 12 | B103: 13313 | C103: 23 | D103: 13326 | E103: 24 | F103: 13330 | G103: 23 | H103: 13338 | K103: 0 | L103: 1222
A104: 12 | B104: 13449 | C104: 23 | D104: 13463 | E104: 24 | F104: 13468 | G104: 23 | H104: 13474 | K104: 0 | L104: 1222
A105: 12 | B105: 13578 | C105: 14 | D105: 13586 | E105: 13 | F105: 13594 | G105: 23 | H105: 13603 | K105: 0 | L105: 1112
A106: 21 | B106: 13715 | C106: 21 | D106: 13719 | E106: 22 | F106: 13728 | G106: 14 | H106: 13737 | K106: 0 | L106: 2221
A107: 21 | B107: 13835 | C107: 21 | D107: 13840 | E107: 22 | F107: 13846 | G107: 14 | H107: 13854 | K107: 0 | L107: 2221
A108: 21 | B108: 13953 | C108: 21 | D108: 13962 | E108: 11 | F108: 13970 | G108: 12 | H108: 13975 | K108: 0 | L108: 2211
A109: 12 | B109: 14077 | C109: 23 | D109: 14084 | E109: 24 | F109: 14090 | G109: 23 | H109: 14098 | K109: 0 | L109: 1222
A110: 12 | B110: 14194 | C110: 14 | D110: 14197 | E110: 24 | F110: 14214 | G110: 23 | H110: 14219 | K110: 0 | L110: 1122
A111: 21 | B111: 14332 | C111: 21 | D111: 14338 | E111: 22 | F111: 14342 | G111: 23 | H111: 14348 | K111: 0 | L111: 2222
A112: 21 | B112: 14449 | C112: 12 | D112: 14464 | E112: 24 | F112: 14473 | G112: 23 | H112: 14477 | K112: 0 | L112: 2122
A113: 21 | B113: 14575 | C113: 21 | D113: 14589 | E113: 22 | F113: 14612 | G113: 23 | H113: 14619 | K113: 0 | L113: 2222
A114: 21 | B114: 14730 | C114: 21 | D114: 14736 | E114: 22 | F114: 14740 | G114: 14 | H114: 14749 | K114: 0 | L114: 2221
A115: 12 | B115: 14859 | C115: 23 | D115: 14869 | E115: 24 | F115: 14873 | G115: 23 | H115: 14879 | K115: 0 | L115: 1222
A116: 21 | B116: 14982 | C116: 21 | D116: 14987 | E116: 22 | F116: 14992 | G116: 23 | H116: 15021 | K116: 0 | L116: 2222
A117: 21 | B117: 15121 | C117: 21 | D117: 15126 | E117: 22 | F117: 15130 | G117: 23 | H117: 15136 | K117: 0 | L117: 2222
A118: 12 | B118: 15244 | C118: 14 | D118: 15249 | E118: 13 | F118: 15254 | G118: 23 | H118: 15261 | K118: 0 | L118: 1112
A119: 12 | B119: 15370 | C119: 23 | D119: 15377 | E119: 24 | F119: 15381 | G119: 23 | H119: 15384 | K119: 0 | L119: 1222
A120: 21 | B120: 15481 | C120: 21 | D120: 15487 | E120: 22 | F120: 15490 | G120: 23 | H120: 15495 | K120: 0 | L120: 2222
A121: 12 | B121: 16610 | C121: 14 | D121: 16616 | E121: 24 | F121: 16623 | G121: 23 | H121: 16628 | K121: 0 | L121: 1122
A122: 21 | B122: 16753 | C122: 21 | D122: 16756 | E122: 22 | F122: 16762 | G122: 23 | H122: 16779 | K122: 0 | L122: 2222
A123: 21 | B123: 16878 | C123: 21 | D123: 16887 | E123: 22 | F123: 16894 | G123: 23 | H123: 16900 | K123: 0 | L123: 2222
A124: 21 | B124: 17008 | C124: 21 | D124: 17017 | E124: 22 | F124: 17023 | G124: 23 | H124: 17028 | K124: 0 | L124: 2222
A125: 12 | B125: 17128 | C125: 14 | D125: 17131 | E125: 13 | F125: 17135 | G125: 23 | H125: 17142 | K125: 0 | L125: 1112
A126: 21 | B126: 17272 | C126: 21 | D126: 17275 | E126: 22 | F126: 17281 | G126: 23 | H126: 17286 | K126: 0 | L126: 2222
A127: 12 | B127: 17458 | C127: 23 | D127: 17471 | E127: 24 | F127: 17476 | G127: 23 | H127: 17482 | K127: 0 | L127: 1222
A128: 12 | B128: 18125 | C128: 23 | D128: 18135 | E128: 24 | F128: 18141 | G128: 23 | H128: 18154 | K128: 0 | L128: 1222
A129: 12 | B129: 18370 | C129: 23 | D129: 18380 | E129: 24 | F129: 18383 | G129: 23 | H129: 18387 | K129: 0 | L129: 1222
A130: 12 | B130: 18549 | C130: 14 | D130: 18555 | E130: 24 | F130: 18563 | G130: 23 | H130: 18570 | K130: 0 | L130: 1122
A131: 12 | B131: 19129 | C131: 14 | D131: 19134 | E131: 24 | F131: 19141 | G131: 23 | H131: 19146 | K131: 0 | L131: 1122
A132: 12 | B132: 19441 | C132: 14 | D132: 19447 | E132: 24 | F132: 19456 | G132: 23 | H132: 19459 | K132: 0 | L132: 1122
